Workbook

Sheet Points + Rules
Q9: Latest Update: | R9: 2022-05-02
C25: POINTS | E25: Continental Open | F25: Grand Prix | G25: Continental Ch. | H25: World ch. Junior | I25: Grand Slam | J25: Masters | K25: World Ch. Senior | L25: Olympics Games
C26: 1st place | E26: 100 | F26: 700 | G26: 700 | H26: 700 | I26: 1000 | J26: 1800 | K26: 2000 | L26: 2200
C27: 2nd place | E27: 70 | F27: 490 | G27: 490 | H27: 490 | I27: 700 | J27: 1260 | K27: 1400 | L27: 1540
C28: 3rd place | E28: 50 | F28: 350 | G28: 350 | H28: 350 | I28: 500 | J28: 900 | K28: 1000 | L28: 1100
C29: 5th place | E29: 36 | F29: 252 | G29: 252 | H29: 252 | I29: 360 | J29: 648 | K29: 720 | L29: 792
C30: 7th place | E30: 26 | F30: 182 | G30: 182 | H30: 182 | I30: 260 | J30: 468 | K30: 520 | L30: 572
C31: 1/16th | E31: 16 | F31: 112 | G31: 112 | H31: 112 | I31: 160 | J31: 288 | K31: 320 | L31: 352
C32: 1/32nd | E32: 12 | F32: 84 | G32: 84 | H32: 84 | I32: 120 | J32: 0 | K32: 240 | L32: 264 | Q32: 8
C33: 1 contest won | E33: 10 | F33: 70 | G33: 70 | H33: 70 | I33: 100 | J33: 216 | K33: 200
C34: participation | E34: 0 | F34: 6 | G34: 6 | H34: 6 | I34: 10 | J34: 200 | K34: 20

Sheet -60 kg
B9: Ranking | C9: Nation | D9: Continent | E9: IJF ID | G9: FAMILY NAME | H9: Given name | I9: Total score | J9: best score past 12 months | K9: second | L9: third | M9: fourth | N9: fifth | O9: 6th extra result | P9: best score past 13-24 months | Q9: second | R9: third | S9: fourth | T9: fifth | U9: 6th extra result | V9: Sum World Chs. | W9: Sum GP+GS+Masters | X9: best event | Y9: second | Z9: third | AA9: fourth | AB9: fifth | AC9: sixth | AD9: seventh | AE9: eighth | AF9: nineth | AG9: tenth | AH9: eleventh | AI9: twelfth | AJ9: Total sum | AK9: Best | AL9: Second | AM9: Third | AN9: Best | AO9: Second | AP9: Third | AQ9: Continental '22 | AR9: Masters '22 | AS9: Continental '21 | AT9: Masters '21 | AU9: Continental '20 | AV9: Masters '19 | AW9: Continental '19 | AX9: Masters '18 | AY9: Continental '18 | AZ9: Masters '17 | BA9: Continental '17 | BB9: Masters MEX '16 | BC9: Continental '16 | BD9: Masters MAR '15 | BE9: Continental '15 | BF9: Masters '14 | BG9: Continental '14 | BH9: Masters RUS '13 | BI9: Continental '13 | BJ9: GS TUR '22 | BK9: Cont Open ALG '22 | BL9: Cont Open TUN '22 | BM9: Cont Open CZE '22 | BN9: Cont Open POL '22 | BO9: Grand Slam ISR '22 | BP9: Cont Open BIH '22 | BQ9: Grand Slam FRA '22 | BR9: Grand Prix POR '22 | BS9: Grand Slam UAE '21 | BT9: Cont Open SEN '21 | BU9: Cont Open CMR '21 | BV9: Grand Slam AZE '21 | BW9: Cont Open ESP '21 | BX9: Grand Slam FRA '21 | BY9: World Champs Junior '21 | BZ9: Grand Prix CRO '21 | CA9: Cont Open BIH '21 | CB9: Olympic Games JPN '21 | CC9: World Champs Senior '21 | CD9: Cont Open ECU '21 | CE9: Cont Open PER '21 | CF9: Grand Slam RUS '21 | CG9: Cont Open CRO '21 | CH9: Cont Open DOM '21 | CI9: Cont Open MEX '21 | CJ9: Grand Slam TUR '21 | CK9: Grand Slam GEO '21 | CL9: Cont Open KAZ '21 | CM9: Grand Slam UZB '21 | CN9: Cont Open CZE '21 | CO9: Grand Slam ISR '21 | CP9: Cont Open PER '20 | CQ9: Cont Open SEN '20 | CR9: Cont Open CMR '20 | CS9: Grand Slam HUN '20 | CT9: Cont Open ARG '20 | CU9: Conr Open POL '20 | CV9: Grand Slam GER '20 | CW9: Cont Open AUT/SVK '20 | CX9: Grand Slam FRA'20 | CY9: Cont Open POR/BUL '20 | CZ9: Grand Prix ISR '20 | DA9: Cont Open HKG '19 | DB9: Grand Slam JPN '19 | DC9: Cont Open SEN '19 | DD9: Cont Open CMR '19 | DE9: Cont Open AUS '19 | DF9: Grand Slam UAE '19 | DG9: World Champs Junior '19 | DH9: Cont Open EST '19 | DI9: Grand Slam BRA '19 | DJ9: Cont Open LUX '19 | DK9: Grand Prix UZB '19 | DL9: Cont Open DOM '19 | DM9: World Champs Senior '19 | DN9: Cont Open TPE '19 | DO9: Grand Prix CRO '19 | DP9: Cont Open KAZ '19 | DQ9: Grand Prix HUN '19 | DR9: Grand Prix CAN '19 | DS9: Cont Open ECU '19 | DT9: Cont Open ROU '19 | DU9: Grand Prix CHN '19 | DV9: Grand Slam AZE '19 | DW9: Grand Prix TUR '19 | DX9: Grand Prix GEO '19 | DY9: Cont Open CHI '19 | DZ9: Cont Open ARG '19 | EA9: Grand Slam RUS '19 | EB9: Cont Open PER '19 | EC9: Gran Prix MAR '19 | ED9: Cont Open POL/CZE '19 | EE9: Grand Slam GER '19 | EF9: Cont Open ITA/AUT '19 | EG9: Grand Slam FRA '19 | EH9: Cont Open POR/BUL '19 | EI9: Grand Prix ISR '19 | EJ9: Cont Open HKG '18 | EK9: Cont Open CMR '18 | EL9: Grand Slam JPN '18 | EM9: Cont Open SEN '18 | EN9: Cont Open AUS '18 | EO9: Grand Prix NED '18 | EP9: Grand Prix UZB '18 | EQ9: Cont Open KAZ '18 | ER9: Grand Slam UAE '18 | ES9: World Champs Junior '18 | ET9: Grand Prix MEX '18 | EU9: Cont Open GBR '18 | EV9: World Champs Senior '18 | EW9: Cont Open DOM '18 | EX9: Cont Open BLR '18 | EY9: Grand Prix HUN '18 | EZ9: Grand Prix CRO '18 | FA9: Cont Open TPE '18 | FB9: Cont Open ESP '18 | FC9: Grand Prix CHN '18 | FD9: Grand Prix TUR '18 | FE9: Grand Prix GEO '18 | FF9: Cont Open ARG '18 | FG9: Cont Open PER '18 | FH9: Grand Slam RUS '18 | FI9: Cont Open CHI '18 | FJ9: Grand Prix MAR '18 | FK9: Cont Open POL/CZE '18 | FL9: Grand Slam GER '18 | FM9: Cont Open ITA/AUT'18 | FN9: Grand Slam FRA '18 | FO9: Cont Open BUL/POR '18 | FP9: Grand Prix TUN '18 | FQ9: Cont Open HKG '17 | FR9: Grand Slam JPN '17 | FS9: Cont Open CMR '17 | FT9: Cont Open SEN '17 | FU9: Grand Prix NED '17 | FV9: Cont Open VAN '17 | FW9: Grand Slam UAE '17 | FX9: World Champ. Junior '17 | FY9: Cont Open DOM '17 | FZ9: Grand Prix UZB '17 | GA9: Grand Prix CRO '17 | GB9: Cont Open SRB '17 | GC9: World Championships '17 | GD9: Cont Open BLR '17 | GE9: Cont Open TPE '17 | GF9: Grand Prix CHN '17 | GG9: Grand Prix MEX '17 | GH9: Cont Open ROU '17 | GI9: Grand Slam RUS '17 | GJ9: Grand Prix TUR '17 | GK9: Grand Prix GEO '17 | GL9: Cont Open PER '17 | GM9: Cont Open CHI '17 | GN9: Cont Open MAR '17 | GO9: Cont Open ARG '17 | GP9: Grand Slam AZE '17 | GQ9: Cont Open CZE/POL '17 | GR9: Grand Prix GER '17 | GS9: Cont Open ITA/AUT '17 | GT9: Grand Slam FRA '17 | GU9: Cont Open POR/BUL '17 | GV9: Cont Open TUN '17 | GW9: Grand Slam JPN '16 | GX9: Grand Prix KOR '16 | GY9: Grand Prix CHN '16 | GZ9: Grand Slam UAE '16 | HA9: Cont Open AUS '16 | HB9: Cont Open GBR '16 | HC9: Grand Prix UZB '16 | HD9: Grand Prix CRO '16 | HE9: Cont Open EST '16 | HF9: Cont Open TPE '16 | HG9: Olympic Games Rio '16 | HH9: Grand Slam RUS '16 | HI9: Cont Open ESA '16 | HJ9: Grand Prix MGL '16 | HK9: Grand Prix HUN '16 | HL9: Cont Open ESP '16 | HM9: Grand Prix KAZ '16 | HN9: Grand Slam AZE '16 | HO9: Grand Prix TUR '16 | HP9: Grand Prix GEO '16 | HQ9: Cont Open CHI '16 | HR9: Cont Open ARG '16 | HS9: Cont Open MAR '16 | HT9: Cont Open PER '16 | HU9: Cont Open CZE/POL '16 | HV9: Grand Prix GER '16 | HW9: Cont Open AUT/ITA '16 | HX9: Grand Slam FRA '16 | HY9: Cont Open BUL '16 | HZ9: Grand Prix CUB '16 | IA9: Cont Open TUN '16 | IB9: Cont Open GEO '13
AQ10: CCS | AR10: Masters | AS10: CCS | AT10: Masters | AU10: CCS | AV10: Masters | AW10: CCS | AX10: Masters | AY10: CCS | AZ10: Masters | BA10: CCS | BB10: Masters | BC10: CCS | BD10: Masters | BE10: CCS | BF10: Masters | BG10: CCS | BH10: Masters | BI10: CCS | BJ10: GS | BK10: Open | BL10: Open | BM10: Open | BN10: Open | BO10: GS | BP10: Open | BQ10: GS | BR10: GP | BS10: GS | BT10: Open | BU10: Open | BV10: GS | BW10: Open | BX10: GS | BY10: WCS | BZ10: GP | CA10: Open | CB10: Olympics | CC10: WCS | CD10: Open | CE10: Open | CF10: GS | CG10: Open | CH10: Open | CI10: Open | CJ10: GS | CK10: GS | CL10: Open | CM10: GS | CN10: Open | CO10: GS | CP10: Open | CQ10: Open | CR10: Open | CS10: GS | CT10: Open | CU10: Open | CV10: GS | CW10: Open | CX10: GS | CY10: Open | CZ10: GP | DA10: Open | DB10: GS | DC10: Open | DD10: Open | DE10: Open | DF10: GS | DG10: WCS | DH10: Open | DI10: GS | DJ10: Open | DK10: GP | DL10: Open | DM10: WCS | DN10: Open | DO10: GP | DP10: Open | DQ10: GP | DR10: GP | DS10: Open | DT10: Open | DU10: GP | DV10: GS | DW10: GP | DX10: GP | DY10: Open | DZ10: Open | EA10: GS | EB10: Open | EC10: GP | ED10: Open | EE10: GS | EF10: Open | EG10: GS | EH10: Open | EI10: GP | EJ10: Open | EK10: Open | EL10: GS | EM10: Open | EN10: Open | EO10: GP | EP10: GP | EQ10: Open | ER10: GS | ES10: WCS | ET10: GP | EU10: Open | EV10: WCS | EW10: Open | EX10: Open | EY10: GP | EZ10: GP | FA10: Open | FB10: Open | FC10: GP | FD10: GP | FE10: GP | FF10: Open | FG10: Open | FH10: GS | FI10: Open | FJ10: GP | FK10: Open | FL10: GS | FM10: Open | FN10: GS | FO10: Open | FP10: GP | FQ10: Open | FR10: GS | FS10: Open | FT10: Open | FU10: GP | FV10: Open | FW10: GS | FX10: WCS | FY10: Open | FZ10: GP | GA10: GP | GB10: Open | GC10: WCS | GD10: Open | GE10: Open | GF10: GP | GG10: GP | GH10: Open | GI10: GS | GJ10: GP | GK10: GP | GL10: Open | GM10: Open | GN10: Open | GO10: Open | GP10: GS | GQ10: Open | GR10: GP | GS10: Open | GT10: GS | GU10: Open | GV10: Open | GW10: GS | GX10: GP | GY10: GP | GZ10: GS | HA10: Open | HB10: Open | HC10: GP | HD10: GP | HE10: Open | HF10: Open | HG10: Olympics | HH10: GS | HI10: Open | HJ10: GP | HK10: GP | HL10: Open | HM10: GP | HN10: GS | HO10: GP | HP10: GP | HQ10: Open | HR10: Open | HS10: Open | HT10: Open | HU10: Open | HV10: GP | HW10: Open | HX10: GS | HY10: Open | HZ10: GP | IA10: Open | IB10: Open
AQ11: 2022-04-17 | AR11: 2022-01-11 | AS11: 2021-04-26 | AT11: 2021-01-11 | AU11: 2020-04-26 | AV11: 2019-12-12 | AW11: 2019-04-28 | AX11: 2018-12-15 | AY11: 2018-04-29 | AZ11: 2017-12-17 | BA11: 2017-04-29 | BB11: 2016-05-27 | BC11: 2016-04-30 | BD11: 2015-05-24 | BE11: 2015-04-25 | BF11: 2014-05-24 | BG11: 2014-04-26 | BH11: 2013-05-25 | BI11: 2013-04-27 | BJ11: 2022-04-01 | BK11: 2022-03-19 | BL11: 2022-03-12 | BM11: 2022-03-05 | BN11: 2022-02-26 | BO11: 2022-02-17 | BP11: 2022-02-12 | BQ11: 2022-02-05 | BR11: 2022-01-28 | BS11: 2021-11-26 | BT11: 2021-11-13 | BU11: 2021-11-06 | BV11: 2021-11-05 | BW11: 2021-10-23 | BX11: 2021-10-16 | BY11: 2021-10-06 | BZ11: 2021-09-24 | CA11: 2021-09-18 | CB11: 2021-07-24 | CC11: 2021-06-06 | CD11: 2021-05-22 | CE11: 2021-05-14 | CF11: 2021-05-05 | CG11: 2021-05-01 | CH11: 2021-04-24 | CI11: 2021-04-17 | CJ11: 2021-04-01 | CK11: 2021-03-26 | CL11: 2021-03-13 | CM11: 2021-03-04 | CN11: 2021-02-27 | CO11: 2021-02-18 | CP11: 2020-12-05 | CQ11: 2020-11-14 | CR11: 2020-11-07 | CS11: 2020-10-23 | CT11: 2020-03-07 | CU11: 2020-02-29 | CV11: 2020-02-21 | CW11: 2020-02-15 | CX11: 2020-02-08 | CY11: 2020-02-01 | CZ11: 2020-01-23 | DA11: 2019-11-30 | DB11: 2019-11-22 | DC11: 2019-11-16 | DD11: 2019-11-09 | DE11: 2019-11-03 | DF11: 2019-10-24 | DG11: 2019-10-16 | DH11: 2019-10-12 | DI11: 2019-10-06 | DJ11: 2019-09-28 | DK11: 2019-09-20 | DL11: 2019-09-07 | DM11: 2019-08-25 | DN11: 2019-08-03 | DO11: 2019-07-26 | DP11: 2019-07-18 | DQ11: 2019-07-12 | DR11: 2019-07-05 | DS11: 2019-06-15 | DT11: 2019-06-01 | DU11: 2019-05-27 | DV11: 2019-05-10 | DW11: 2019-04-05 | DX11: 2019-03-29 | DY11: 2019-03-23 | DZ11: 2019-03-16 | EA11: 2019-03-15 | EB11: 2019-03-09 | EC11: 2019-03-08 | ED11: 2019-03-02 | EE11: 2019-02-22 | EF11: 2019-02-16 | EG11: 2019-02-09 | EH11: 2019-02-02 | EI11: 2019-01-24 | EJ11: 2018-12-01 | EK11: 2018-11-24 | EL11: 2018-11-23 | EM11: 2018-11-17 | EN11: 2018-11-17 | EO11: 2018-11-16 | EP11: 2018-11-09 | EQ11: 2018-11-03 | ER11: 2018-10-27 | ES11: 2018-10-17 | ET11: 2018-10-10 | EU11: 2018-10-06 | EV11: 2018-09-20 | EW11: 2018-09-01 | EX11: 2018-08-18 | EY11: 2018-08-10 | EZ11: 2018-07-27 | FA11: 2018-07-07 | FB11: 2018-06-02 | FC11: 2018-05-28 | FD11: 2018-04-06 | FE11: 2018-03-30 | FF11: 2018-03-24 | FG11: 2018-03-17 | FH11: 2018-03-17 | FI11: 2018-03-10 | FJ11: 2018-03-09 | FK11: 2018-03-03 | FL11: 2018-02-23 | FM11: 2018-02-17 | FN11: 2018-02-10 | FO11: 2018-02-03 | FP11: 2018-01-19 | FQ11: 2017-12-09 | FR11: 2017-12-02 | FS11: 2017-11-25 | FT11: 2017-11-18 | FU11: 2017-11-17 | FV11: 2017-11-11 | FW11: 2017-10-27 | FX11: 2017-10-18 | FY11: 2017-10-07 | FZ11: 2017-10-06 | GA11: 2017-09-29 | GB11: 2017-09-23 | GC11: 2017-08-28 | GD11: 2017-07-22 | GE11: 2017-07-08 | GF11: 2017-06-30 | GG11: 2017-06-16 | GH11: 2017-06-03 | GI11: 2017-05-20 | GJ11: 2017-04-07 | GK11: 2017-03-31 | GL11: 2017-03-25 | GM11: 2017-03-18 | GN11: 2017-03-18 | GO11: 2017-03-11 | GP11: 2017-03-10 | GQ11: 2017-03-04 | GR11: 2017-02-25 | GS11: 2017-02-18 | GT11: 2017-02-11 | GU11: 2017-02-04 | GV11: 2017-01-14 | GW11: 2016-12-02 | GX11: 2016-11-24 | GY11: 2016-11-18 | GZ11: 2016-10-28 | HA11: 2016-10-15 | HB11: 2016-10-15 | HC11: 2016-10-06 | HD11: 2016-09-25 | HE11: 2016-09-10 | HF11: 2016-09-03 | HG11: 2016-08-06 | HH11: 2016-07-16 | HI11: 2016-07-02 | HJ11: 2016-07-01 | HK11: 2016-06-25 | HL11: 2016-06-04 | HM11: 2016-05-13 | HN11: 2016-05-06 | HO11: 2016-04-01 | HP11: 2016-03-25 | HQ11: 2016-03-19 | HR11: 2016-03-12 | HS11: 2016-03-12 | HT11: 2016-03-05 | HU11: 2016-02-27 | HV11: 2016-02-19 | HW11: 2016-02-13 | HX11: 2016-02-06 | HY11: 2016-01-30 | HZ11: 2016-01-22 | IA11: 2016-01-16 | IB11: 2013-02-02
J12: =RateYear1 -> 1 | K12: =J12 -> 1 | L12: =J12 -> 1 | M12: =J12 -> 1 | N12: =J12 -> 1 | O12: =J12 -> 1 | P12: =RateYear2 -> 0.5 | Q12: =P12 -> 0.5 | R12: =P12 -> 0.5 | S12: =P12 -> 0.5 | T12: =P12 -> 0.5 | U12: =P12 -> 0.5 | V12: 0 | AK12: =RateYear1 -> 1 | AL12: =AK12 -> 1 | AM12: =AK12 -> 1 | AN12: =RateYear2 -> 0.5 | AO12: =AN12 -> 0.5 | AP12: =AN12 -> 0.5 | AQ12: =IF(AQ11="","",IF(AQ11>version,RateYear3,IF(OR(AND(YEAR(AQ11)=YEAR(version),CurWeekNum>=WEEKNUM(AQ11,21)),AND(YEAR(version)-YEAR(AQ11)=1,CurWeekNum<=WEEKNUM(AQ11,21))),RateYear1,IF(OR(AND(YEAR(version)-YEAR(AQ11)=1,CurWeekNum>WEEKNUM(AQ11,21)),AND(YEAR(version)-YEAR(AQ11)=2,CurWeekNum<=WEEKNUM(AQ11,21))),RateYear2,RateYear3)))) -> 1 | AR12: 1 | AS12: =IF(AS11="","",IF(AS11>version,RateYear3,IF(OR(AND(YEAR(AS11)=YEAR(version),CurWeekNum>=WEEKNUM(AS11,21)),AND(YEAR(version)-YEAR(AS11)=1,CurWeekNum<=WEEKNUM(AS11,21))),RateYear1,IF(OR(AND(YEAR(version)-YEAR(AS11)=1,CurWeekNum>WEEKNUM(AS11,21)),AND(YEAR(version)-YEAR(AS11)=2,CurWeekNum<=WEEKNUM(AS11,21))),RateYear2,RateYear3)))) -> 0.5 | AT12: 0.5 | AU12: 0.5 | AV12: 0 | AW12: 0 | AX12: 0 | AY12: 0 | AZ12: 0 | BA12: 0 | BB12: 0 | BC12: =IF(BC11="","",IF(BC11>version,RateYear3,IF(OR(AND(YEAR(BC11)=YEAR(version),CurWeekNum>=WEEKNUM(BC11,21)),AND(YEAR(version)-YEAR(BC11)=1,CurWeekNum<=WEEKNUM(BC11,21))),RateYear1,IF(OR(AND(YEAR(version)-YEAR(BC11)=1,CurWeekNum>WEEKNUM(BC11,21)),AND(YEAR(version)-YEAR(BC11)=2,CurWeekNum<=WEEKNUM(BC11,21))),RateYear2,RateYear3)))) -> 0 | BD12: 0 | BE12: 0 | BF12: 0 | BG12: 0 | BH12: 0 | BI12: 0 | BJ12: =IF(BJ11="","",IF(BJ11>version,RateYear3,IF(OR(AND(YEAR(BJ11)=YEAR(version),CurWeekNum>=WEEKNUM(BJ11,21)),AND(YEAR(version)-YEAR(BJ11)=1,CurWeekNum<=WEEKNUM(BJ11,21))),RateYear1,IF(OR(AND(YEAR(version)-YEAR(BJ11)=1,CurWeekNum>WEEKNUM(BJ11,21)),AND(YEAR(version)-YEAR(BJ11)=2,CurWeekNum<=WEEKNUM(BJ11,21))),RateYear2,RateYear3)))) -> 1 | BK12: 1 | BL12: 1 | BM12: =IF(BM11="","",IF(BM11>version,RateYear3,IF(OR(AND(YEAR(BM11)=YEAR(version),CurWeekNum>=WEEKNUM(BM11,21)),AND(YEAR(version)-YEAR(BM11)=1,CurWeekNum<=WEEKNUM(BM11,21))),RateYear1,IF(OR(AND(YEAR(version)-YEAR(BM11)=1,CurWeekNum>WEEKNUM(BM11,21)),AND(YEAR(version)-YEAR(BM11)=2,CurWeekNum<=WEEKNUM(BM11,21))),RateYear2,RateYear3)))) -> 1 | BN12: 1 | BO12: 1 | BP12: =IF(BP11="","",IF(BP11>version,RateYear3,IF(OR(AND(YEAR(BP11)=YEAR(version),CurWeekNum>=WEEKNUM(BP11,21)),AND(YEAR(version)-YEAR(BP11)=1,CurWeekNum<=WEEKNUM(BP11,21))),RateYear1,IF(OR(AND(YEAR(version)-YEAR(BP11)=1,CurWeekNum>WEEKNUM(BP11,21)),AND(YEAR(version)-YEAR(BP11)=2,CurWeekNum<=WEEKNUM(BP11,21))),RateYear2,RateYear3)))) -> 1 | BQ12: 1 | BR12: 1 | BS12: =IF(BS11="","",IF(BS11>version,RateYear3,IF(OR(AND(YEAR(BS11)=YEAR(version),CurWeekNum>=WEEKNUM(BS11,21)),AND(YEAR(version)-YEAR(BS11)=1,CurWeekNum<=WEEKNUM(BS11,21))),RateYear1,IF(OR(AND(YEAR(version)-YEAR(BS11)=1,CurWeekNum>WEEKNUM(BS11,21)),AND(YEAR(version)-YEAR(BS11)=2,CurWeekNum<=WEEKNUM(BS11,21))),RateYear2,RateYear3)))) -> 1 | BT12: 1 | BU12: 1 | BV12: =IF(BV11="","",IF(BV11>version,RateYear3,IF(OR(AND(YEAR(BV11)=YEAR(version),CurWeekNum>=WEEKNUM(BV11,21)),AND(YEAR(version)-YEAR(BV11)=1,CurWeekNum<=WEEKNUM(BV11,21))),RateYear1,IF(OR(AND(YEAR(version)-YEAR(BV11)=1,CurWeekNum>WEEKNUM(BV11,21)),AND(YEAR(version)-YEAR(BV11)=2,CurWeekNum<=WEEKNUM(BV11,21))),RateYear2,RateYear3)))) -> 1 | BW12: 1 | BX12: 1 | BY12: =IF(BY11="","",IF(BY11>version,RateYear3,IF(OR(AND(YEAR(BY11)=YEAR(version),CurWeekNum>=WEEKNUM(BY11,21)),AND(YEAR(version)-YEAR(BY11)=1,CurWeekNum<=WEEKNUM(BY11,21))),RateYear1,IF(OR(AND(YEAR(version)-YEAR(BY11)=1,CurWeekNum>WEEKNUM(BY11,21)),AND(YEAR(version)-YEAR(BY11)=2,CurWeekNum<=WEEKNUM(BY11,21))),RateYear2,RateYear3)))) -> 1 | BZ12: 1 | CA12: 1 | CB12: =IF(CB11="","",IF(CB11>version,RateYear3,IF(OR(AND(YEAR(CB11)=YEAR(version),CurWeekNum>=WEEKNUM(CB11,21)),AND(YEAR(version)-YEAR(CB11)=1,CurWeekNum<=WEEKNUM(CB11,21))),RateYear1,IF(OR(AND(YEAR(version)-YEAR(CB11)=1,CurWeekNum>WEEKNUM(CB11,21)),AND(YEAR(version)-YEAR(CB11)=2,CurWeekNum<=WEEKNUM(CB11,21))),RateYear2,RateYear3)))) -> 1 | CC12: 1 | CD12: 1 | CE12: 1 | CF12: 1 | CG12: 0.5 | CH12: 0.5 | CI12: 0.5 | CJ12: 0.5 | CK12: 0.5 | CL12: 0.5 | CM12: 0.5 | CN12: 0.5 | CO12: 0.5 | CP12: 0.5 | CQ12: 0.5 | CR12: 0.5 | CS12: 0.5 | CT12: 0 | CU12: 0 | CV12: 0 | CW12: 0 | CX12: 0 | CY12: 0 | CZ12: 0 | DA12: 0 | DB12: 0 | DC12: 0 | DD12: 0 | DE12: 0 | DF12: 0 | DG12: 0 | DH12: 0 | DI12: 0 | DJ12: 0 | DK12: 0 | DL12: 0 | DM12: 0 | DN12: 0 | DO12: 0 | DP12: 0 | DQ12: 0 | DR12: 0 | DS12: 0 | DT12: 0 | DU12: 0 | DV12: 0 | DW12: 0 | DX12: 0 | DY12: 0 | DZ12: 0 | EA12: 0 | EB12: 0 | EC12: 0 | ED12: 0 | EE12: 0 | EF12: 0 | EG12: 0 | EH12: 0 | EI12: 0 | EJ12: 0 | EK12: 0 | EL12: 0 | EM12: 0 | EN12: =IF(EN11="","",IF(EN11>version,RateYear3,IF(OR(AND(YEAR(EN11)=YEAR(version),CurWeekNum>=WEEKNUM(EN11,21)),AND(YEAR(version)-YEAR(EN11)=1,CurWeekNum<=WEEKNUM(EN11,21))),RateYear1,IF(OR(AND(YEAR(version)-YEAR(EN11)=1,CurWeekNum>WEEKNUM(EN11,21)),AND(YEAR(version)-YEAR(EN11)=2,CurWeekNum<=WEEKNUM(EN11,21))),RateYear2,RateYear3)))) -> 0 | EO12: 0 | EP12: 0 | EQ12: 0 | ER12: 0 | ES12: 0 | ET12: 0 | EU12: 0 | EV12: 0 | EW12: 0 | EX12: 0 | EY12: 0 | EZ12: 0 | FA12: 0 | FB12: 0 | FC12: 0 | FD12: 0 | FE12: =IF(FE11="","",IF(FE11>version,RateYear3,IF(OR(AND(YEAR(FE11)=YEAR(version),CurWeekNum>=WEEKNUM(FE11,21)),AND(YEAR(version)-YEAR(FE11)=1,CurWeekNum<=WEEKNUM(FE11,21))),RateYear1,IF(OR(AND(YEAR(version)-YEAR(FE11)=1,CurWeekNum>WEEKNUM(FE11,21)),AND(YEAR(version)-YEAR(FE11)=2,CurWeekNum<=WEEKNUM(FE11,21))),RateYear2,RateYear3)))) -> 0 | FF12: 0 | FG12: 0 | FH12: 0 | FI12: 0 | FJ12: 0 | FK12: 0 | FL12: 0 | FM12: 0 | FN12: 0 | FO12: 0 | FP12: 0 | FQ12: 0 | FR12: 0 | FS12: 0 | FT12: 0 | FU12: 0 | FV12: 0 | FW12: 0 | FX12: 0 | FY12: 0 | FZ12: 0 | GA12: 0 | GB12: 0 | GC12: 0 | GD12: 0 | GE12: 0 | GF12: 0 | GG12: 0 | GH12: 0 | GI12: =IF(GI11="","",IF(GI11>version,RateYear3,IF(OR(AND(YEAR(GI11)=YEAR(version),CurWeekNum>=WEEKNUM(GI11,21)),AND(YEAR(version)-YEAR(GI11)=1,CurWeekNum<=WEEKNUM(GI11,21))),RateYear1,IF(OR(AND(YEAR(version)-YEAR(GI11)=1,CurWeekNum>WEEKNUM(GI11,21)),AND(YEAR(version)-YEAR(GI11)=2,CurWeekNum<=WEEKNUM(GI11,21))),RateYear2,RateYear3)))) -> 0 | GJ12: 0 | GK12: 0 | GL12: 0 | GM12: 0 | GN12: 0 | GO12: 0 | GP12: 0 | GQ12: 0 | GR12: 0 | GS12: 0 | GT12: 0 | GU12: 0 | GV12: 0 | GW12: 0 | GX12: 0 | GY12: 0 | GZ12: 0 | HA12: 0 | HB12: 0 | HC12: 0 | HD12: 0 | HE12: 0 | HF12: 0 | HG12: 0 | HH12: 0 | HI12: 0 | HJ12: 0 | HK12: 0 | HL12: 0 | HM12: 0 | HN12: 0 | HO12: =IF(HO11="","",IF(HO11>version,RateYear3,IF(OR(AND(YEAR(HO11)=YEAR(version),CurWeekNum>=WEEKNUM(HO11,21)),AND(YEAR(version)-YEAR(HO11)=1,CurWeekNum<=WEEKNUM(HO11,21))),RateYear1,IF(OR(AND(YEAR(version)-YEAR(HO11)=1,CurWeekNum>WEEKNUM(HO11,21)),AND(YEAR(version)-YEAR(HO11)=2,CurWeekNum<=WEEKNUM(HO11,21))),RateYear2,RateYear3)))) -> 0 | HP12: 0 | HQ12: 0 | HR12: 0 | HS12: 0 | HT12: 0 | HU12: 0 | HV12: 0 | HW12: 0 | HX12: 0 | HY12: 0 | HZ12: 0 | IA12: 0 | IB12: =IF(IB11="","",IF(AND(IB10="CCS",LEFT(IB11,3)="PJC"),Parameters!FH22,IF(OR(YEAR(IB11)=YEAR(version),AND(YEAR(version)-YEAR(IB11)=1,CurWeekNum<=INT(MOD(INT((IB11-2)/7)+0.6,52+5/28))+1),YEAR(version)<YEAR(IB11)),RateYear1,IF(OR(AND(YEAR(version)-YEAR(IB11)=1,CurWeekNum>INT(MOD(INT((IB11-2)/7)+0.6,52+5/28))+1 ),AND(YEAR(version)-YEAR(IB11)=2,CurWeekNum<=INT(MOD(INT((IB11-2)/7)+0.6,52+5/28))+1)),RateYear2,RateYear3)))) -> 0
B14: =IF(G14="","",IF(ROW()=FirstEntryLine,1,IF(AND(I14=OFFSET(I14,-1,0),V14=OFFSET(V14,-1,0),W14=OFFSET(W14,-1,0),X14=OFFSET(X14,-1,0),Y14=OFFSET(Y14,-1,0),Z14=OFFSET(Z14,-1,0),AA14=OFFSET(AA14,-1,0),AB14=OFFSET(AB14,-1,0),AC14=OFFSET(AC14,-1,0),AD14=OFFSET(AD14,-1,0),AE14=OFFSET(AE14,-1,0),AF14=OFFSET(AF14,-1,0),AG14=OFFSET(AG14,-1,0),AH14=OFFSET(AH14,-1,0),AI14=OFFSET(AI14,-1,0)),OFFSET(B14,-1,0),ROW()-FirstEntryLine+1))) -> 1 | C14: TPE | D14: =IF(C14="", "", VLOOKUP(C14, ContinentShorts, 2, FALSE)) -> JUA | E14: ddc3f753 | G14: YANG | H14: Yung Wei | I14: =SUM(J14:U14) -> 4665 | J14: =IF(ISNUMBER(LARGE((OFFSET($A$1,ROW()-1,FirstExtraEventColumn-2*(NbExtraEvents+1),1,NbExtraEvents-1+COVID_patch),OFFSET($A$1,ROW()-1,FirstEventColumn+IndexEventsRate1-2,1,NbEventsRate1)),Rank1)), IF(LARGE((OFFSET($A$1,ROW()-1,FirstExtraEventColumn-2*(NbExtraEvents+1),1,NbExtraEvents-1+COVID_patch),OFFSET($A$1,ROW()-1,FirstEventColumn+IndexEventsRate1-2,1,NbEventsRate1)),Rank1)>0, J$12*LARGE((OFFSET($A$1,ROW()-1,FirstExtraEventColumn-2*(NbExtraEvents+1),1,NbExtraEvents-1+COVID_patch),OFFSET($A$1,ROW()-1,FirstEventColumn+IndexEventsRate1-2,1,NbEventsRate1)),Rank1),""), "") -> 1540 | K14: =IF(ISNUMBER(LARGE((OFFSET($A$1,ROW()-1,FirstExtraEventColumn-2*(NbExtraEvents+1),1,NbExtraEvents-1+COVID_patch),OFFSET($A$1,ROW()-1,FirstEventColumn+IndexEventsRate1-2,1,NbEventsRate1)),Rank2)), IF(LARGE((OFFSET($A$1,ROW()-1,FirstExtraEventColumn-2*(NbExtraEvents+1),1,NbExtraEvents-1+COVID_patch),OFFSET($A$1,ROW()-1,FirstEventColumn+IndexEventsRate1-2,1,NbEventsRate1)),Rank2)>0, K$12*LARGE((OFFSET($A$1,ROW()-1,FirstExtraEventColumn-2*(NbExtraEvents+1),1,NbExtraEvents-1+COVID_patch),OFFSET($A$1,ROW()-1,FirstEventColumn+IndexEventsRate1-2,1,NbEventsRate1)),Rank2),""), "") -> 1000 | L14: =IF(ISNUMBER(LARGE((OFFSET($A$1,ROW()-1,FirstExtraEventColumn-2*(NbExtraEvents+1),1,NbExtraEvents-1+COVID_patch),OFFSET($A$1,ROW()-1,FirstEventColumn+IndexEventsRate1-2,1,NbEventsRate1)),Rank3)), IF(LARGE((OFFSET($A$1,ROW()-1,FirstExtraEventColumn-2*(NbExtraEvents+1),1,NbExtraEvents-1+COVID_patch),OFFSET($A$1,ROW()-1,FirstEventColumn+IndexEventsRate1-2,1,NbEventsRate1)),Rank3)>0, L$12*LARGE((OFFSET($A$1,ROW()-1,FirstExtraEventColumn-2*(NbExtraEvents+1),1,NbExtraEvents-1+COVID_patch),OFFSET($A$1,ROW()-1,FirstEventColumn+IndexEventsRate1-2,1,NbEventsRate1)),Rank3),""), "") -> 1000 | M14: =IF(ISNUMBER(LARGE((OFFSET($A$1,ROW()-1,FirstExtraEventColumn-2*(NbExtraEvents+1),1,NbExtraEvents-1+COVID_patch),OFFSET($A$1,ROW()-1,FirstEventColumn+IndexEventsRate1-2,1,NbEventsRate1)),Rank4)), IF(LARGE((OFFSET($A$1,ROW()-1,FirstExtraEventColumn-2*(NbExtraEvents+1),1,NbExtraEvents-1+COVID_patch),OFFSET($A$1,ROW()-1,FirstEventColumn+IndexEventsRate1-2,1,NbEventsRate1)),Rank4)>0, M$12*LARGE((OFFSET($A$1,ROW()-1,FirstExtraEventColumn-2*(NbExtraEvents+1),1,NbExtraEvents-1+COVID_patch),OFFSET($A$1,ROW()-1,FirstEventColumn+IndexEventsRate1-2,1,NbEventsRate1)),Rank4),""), "") ->  | N14: =IF(ISNUMBER(LARGE((OFFSET($A$1,ROW()-1,FirstExtraEventColumn-2*(NbExtraEvents+1),1,NbExtraEvents-1+COVID_patch),OFFSET($A$1,ROW()-1,FirstEventColumn+IndexEventsRate1-2,1,NbEventsRate1)),Rank5)), IF(LARGE((OFFSET($A$1,ROW()-1,FirstExtraEventColumn-2*(NbExtraEvents+1),1,NbExtraEvents-1+COVID_patch),OFFSET($A$1,ROW()-1,FirstEventColumn+IndexEventsRate1-2,1,NbEventsRate1)),Rank5)>0, N$12*LARGE((OFFSET($A$1,ROW()-1,FirstExtraEventColumn-2*(NbExtraEvents+1),1,NbExtraEvents-1+COVID_patch),OFFSET($A$1,ROW()-1,FirstEventColumn+IndexEventsRate1-2,1,NbEventsRate1)),Rank5),""), "") ->  | O14: =IF($AK14<>0,$AK$12*$AK14,"") ->  | P14: =IF(ISNUMBER(LARGE((OFFSET($A$1,ROW()-1,FirstExtraEventColumn-(NbExtraEvents+1),1,NbExtraEvents-1),OFFSET($A$1,ROW()-1,FirstEventColumn+IndexEventsRate2-2,1,NbEventsRate2)),Rank1)), IF(LARGE((OFFSET($A$1,ROW()-1,FirstExtraEventColumn-(NbExtraEvents+1),1,NbExtraEvents-1),OFFSET($A$1,ROW()-1,FirstEventColumn+IndexEventsRate2-2,1,NbEventsRate2)),Rank1)>0, P$12*LARGE((OFFSET($A$1,ROW()-1,FirstExtraEventColumn-(NbExtraEvents+1),1,NbExtraEvents-1),OFFSET($A$1,ROW()-1,FirstEventColumn+IndexEventsRate2-2,1,NbEventsRate2)),Rank1),""), "") -> 250 | Q14: =IF(ISNUMBER(LARGE((OFFSET($A$1,ROW()-1,FirstExtraEventColumn-(NbExtraEvents+1),1,NbExtraEvents-1),OFFSET($A$1,ROW()-1,FirstEventColumn+IndexEventsRate2-2,1,NbEventsRate2)),Rank2)), IF(LARGE((OFFSET($A$1,ROW()-1,FirstExtraEventColumn-(NbExtraEvents+1),1,NbExtraEvents-1),OFFSET($A$1,ROW()-1,FirstEventColumn+IndexEventsRate2-2,1,NbEventsRate2)),Rank2)>0, Q$12*LARGE((OFFSET($A$1,ROW()-1,FirstExtraEventColumn-(NbExtraEvents+1),1,NbExtraEvents-1),OFFSET($A$1,ROW()-1,FirstEventColumn+IndexEventsRate2-2,1,NbEventsRate2)),Rank2),""), "") -> 245 | R14: =IF(ISNUMBER(LARGE((OFFSET($A$1,ROW()-1,FirstExtraEventColumn-(NbExtraEvents+1),1,NbExtraEvents-1),OFFSET($A$1,ROW()-1,FirstEventColumn+IndexEventsRate2-2,1,NbEventsRate2)),Rank3)), IF(LARGE((OFFSET($A$1,ROW()-1,FirstExtraEventColumn-(NbExtraEvents+1),1,NbExtraEvents-1),OFFSET($A$1,ROW()-1,FirstEventColumn+IndexEventsRate2-2,1,NbEventsRate2)),Rank3)>0, R$12*LARGE((OFFSET($A$1,ROW()-1,FirstExtraEventColumn-(NbExtraEvents+1),1,NbExtraEvents-1),OFFSET($A$1,ROW()-1,FirstEventColumn+IndexEventsRate2-2,1,NbEventsRate2)),Rank3),""), "") ->  | S14: =IF(ISNUMBER(LARGE((OFFSET($A$1,ROW()-1,FirstExtraEventColumn-(NbExtraEvents+1),1,NbExtraEvents-1),OFFSET($A$1,ROW()-1,FirstEventColumn+IndexEventsRate2-2,1,NbEventsRate2)),Rank4)), IF(LARGE((OFFSET($A$1,ROW()-1,FirstExtraEventColumn-(NbExtraEvents+1),1,NbExtraEvents-1),OFFSET($A$1,ROW()-1,FirstEventColumn+IndexEventsRate2-2,1,NbEventsRate2)),Rank4)>0, S$12*LARGE((OFFSET($A$1,ROW()-1,FirstExtraEventColumn-(NbExtraEvents+1),1,NbExtraEvents-1),OFFSET($A$1,ROW()-1,FirstEventColumn+IndexEventsRate2-2,1,NbEventsRate2)),Rank4),""), "") ->  | T14: =IF(ISNUMBER(LARGE((OFFSET($A$1,ROW()-1,FirstExtraEventColumn-(NbExtraEvents+1),1,NbExtraEvents-1),OFFSET($A$1,ROW()-1,FirstEventColumn+IndexEventsRate2-2,1,NbEventsRate2)),Rank5)), IF(LARGE((OFFSET($A$1,ROW()-1,FirstExtraEventColumn-(NbExtraEvents+1),1,NbExtraEvents-1),OFFSET($A$1,ROW()-1,FirstEventColumn+IndexEventsRate2-2,1,NbEventsRate2)),Rank5)>0, T$12*LARGE((OFFSET($A$1,ROW()-1,FirstExtraEventColumn-(NbExtraEvents+1),1,NbExtraEvents-1),OFFSET($A$1,ROW()-1,FirstEventColumn+IndexEventsRate2-2,1,NbEventsRate2)),Rank5),""), "") ->  | U14: =IF($AN14<>0,$AN$12*$AN14,"") -> 630 | V14: =RateYear1*SUMIFS(OFFSET($A$1,ROW()-1,FirstExtraEventColumn-1,1,IndexExtraEventEnd+IndexEventEnd-2),OFFSET($A$1,RateLine-1,FirstExtraEventColumn-1,1,IndexExtraEventEnd+IndexEventEnd-2),RateYear1,OFFSET($A$1,RateLine-3,FirstExtraEventColumn-1,1,IndexExtraEventEnd+IndexEventEnd-2),"WCS") +RateYear2*SUMIFS(OFFSET($A$1,ROW()-1,FirstExtraEventColumn-1,1,IndexExtraEventEnd+IndexEventEnd-2),OFFSET($A$1,RateLine-1,FirstExtraEventColumn-1,1,IndexExtraEventEnd+IndexEventEnd-2),RateYear2,OFFSET($A$1,RateLine-3,FirstExtraEventColumn-1,1,IndexExtraEventEnd+IndexEventEnd-2),"WCS") -> 0 | W14: =RateYear1* (SUMIFS(OFFSET($A$1,ROW()-1,FirstExtraEventColumn-1,1,IndexExtraEventEnd+IndexEventEnd-2),OFFSET($A$1,RateLine-1,FirstExtraEventColumn-1,1,IndexExtraEventEnd+IndexEventEnd-2),RateYear1,OFFSET($A$1,RateLine-3,FirstExtraEventColumn-1,1,IndexExtraEventEnd+IndexEventEnd-2),"GP") +SUMIFS(OFFSET($A$1,ROW()-1,FirstExtraEventColumn-1,1,IndexExtraEventEnd+IndexEventEnd-2),OFFSET($A$1,RateLine-1,FirstExtraEventColumn-1,1,IndexExtraEventEnd+IndexEventEnd-2),RateYear1,OFFSET($A$1,RateLine-3,FirstExtraEventColumn-1,1,IndexExtraEventEnd+IndexEventEnd-2),"GS") +SUMIFS(OFFSET($A$1,ROW()-1,FirstExtraEventColumn-1,1,IndexExtraEventEnd+IndexEventEnd-2),OFFSET($A$1,RateLine-1,FirstExtraEventColumn-1,1,IndexExtraEventEnd+IndexEventEnd-2),RateYear1,OFFSET($A$1,RateLine-3,FirstExtraEventColumn-1,1,IndexExtraEventEnd+IndexEventEnd-2),"Masters")) +RateYear2* (SUMIFS(OFFSET($A$1,ROW()-1,FirstExtraEventColumn-1,1,IndexExtraEventEnd+IndexEventEnd-2),OFFSET($A$1,RateLine-1,FirstExtraEventColumn-1,1,IndexExtraEventEnd+IndexEventEnd-2),RateYear2,OFFSET($A$1,RateLine-3,FirstExtraEventColumn-1,1,IndexExtraEventEnd+IndexEventEnd-2),"GP") +SUMIFS(OFFSET($A$1,ROW()-1,FirstExtraEventColumn-1,1,IndexExtraEventEnd+IndexEventEnd-2),OFFSET($A$1,RateLine-1,FirstExtraEventColumn-1,1,IndexExtraEventEnd+IndexEventEnd-2),RateYear2,OFFSET($A$1,RateLine-3,FirstExtraEventColumn-1,1,IndexExtraEventEnd+IndexEventEnd-2),"GS") +SUMIFS(OFFSET($A$1,ROW()-1,FirstExtraEventColumn-1,1,IndexExtraEventEnd+IndexEventEnd-2),OFFSET($A$1,RateLine-1,FirstExtraEventColumn-1,1,IndexExtraEventEnd+IndexEventEnd-2),RateYear2,OFFSET($A$1,RateLine-3,FirstExtraEventColumn-1,1,IndexExtraEventEnd+IndexEventEnd-2),"Masters")) -> 2880 | X14: =IF(ISNUMBER(LARGE($J14:$U14,Rank1)),LARGE($J14:$U14,Rank1),"") -> 1540 | Y14: =IF(ISNUMBER(LARGE($J14:$U14,Rank2)),LARGE($J14:$U14,Rank2),"") -> 1000 | Z14: =IF(ISNUMBER(LARGE($J14:$U14,Rank3)),LARGE($J14:$U14,Rank3),"") -> 1000 | AA14: =IF(ISNUMBER(LARGE($J14:$U14,Rank4)),LARGE($J14:$U14,Rank4),"") -> 630 | AB14: =IF(ISNUMBER(LARGE($J14:$U14,Rank5)),LARGE($J14:$U14,Rank5),"") -> 250 | AC14: =IF(ISNUMBER(LARGE($J14:$U14,Rank6)),LARGE($J14:$U14,Rank6),"") -> 245 | AD14: =IF(ISNUMBER(LARGE($J14:$U14,Rank7)),LARGE($J14:$U14,Rank7),"") ->  | AE14: =IF(ISNUMBER(LARGE($J14:$U14,Rank8)),LARGE($J14:$U14,Rank8),"") ->  | AF14: =IF(ISNUMBER(LARGE($J14:$U14,Rank9)),LARGE($J14:$U14,Rank9),"") ->  | AG14: =IF(ISNUMBER(LARGE($J14:$U14,Rank10)),LARGE($J14:$U14,Rank10),"") ->  | AH14: =IF(ISNUMBER(LARGE($J14:$U14,Rank11)),LARGE($J14:$U14,Rank11),"") ->  | AI14: =IF(ISNUMBER(LARGE($J14:$U14,Rank12)),LARGE($J14:$U14,Rank12),"") ->  | AJ14: =RateYear1*SUM(AK14:AM14)+RateYear2*SUM(AN14:AP14)+ IF(NbEventsRate1<>0,RateYear1*SUM(OFFSET($A$1,ROW()-1,FirstEventColumn+IndexEventsRate1-2,1,NbEventsRate1)),0)+ IF(NbEventsRate2<>0,RateYear2*SUM(OFFSET($A$1,ROW()-1,FirstEventColumn+IndexEventsRate2-2,1,NbEventsRate2)),0) -> 4665 | AK14: =IF(ISNUMBER(LARGE(IF(OFFSET($A$1,FirstEntryLine-3,FirstExtraEventColumn-1,1,FirstEventColumn-FirstExtraEventColumn)=AK$12,OFFSET($A$1,ROW()-1,FirstExtraEventColumn-1,1,FirstEventColumn-FirstExtraEventColumn)),Rank1)), LARGE(IF(OFFSET($A$1,FirstEntryLine-3,FirstExtraEventColumn-1,1,FirstEventColumn-FirstExtraEventColumn)=AK$12,OFFSET($A$1,ROW()-1,FirstExtraEventColumn-1,1,FirstEventColumn-FirstExtraEventColumn)),Rank1), "") -> 0 | AL14: =IF(ISNUMBER(LARGE(IF(OFFSET($A$1,FirstEntryLine-3,FirstExtraEventColumn-1,1,FirstEventColumn-FirstExtraEventColumn)=AL$12,OFFSET($A$1,ROW()-1,FirstExtraEventColumn-1,1,FirstEventColumn-FirstExtraEventColumn)),Rank2)), LARGE(IF(OFFSET($A$1,FirstEntryLine-3,FirstExtraEventColumn-1,1,FirstEventColumn-FirstExtraEventColumn)=AL$12,OFFSET($A$1,ROW()-1,FirstExtraEventColumn-1,1,FirstEventColumn-FirstExtraEventColumn)),Rank2), "") -> 0 | AN14: =IF(AT14>MAX(AS14,AU14),AT14,MAX(AS14,AU14)) -> 1260 | AO14: =IF(AT14>MAX(AS14,AU14),MAX(AS14,AU14),AT14) -> 490 | AS14: 490 | AT14: 1260 | AV14: 200 | AW14: 490 | AY14: 350 | BA14: 6 | BC14: 2 | BJ14: 1000 | BS14: 1000 | CB14: 1540 | CJ14: 500 | CV14: 700 | DB14: 500 | DF14: 160 | DK14: 350 | DM14: 520 | DN14: 50 | DQ14: 350 | DU14: 490 | DW14: 112 | EA14: 160 | EJ14: 100 | EL14: 10 | EP14: 350 | EV14: 20 | FA14: 100 | FC14: 112 | FD14: 252 | FQ14: 100 | FR14: 10 | FX14: 6 | GJ14: 252 | GR14: 112 | GW14: 2 | GY14: 120 | HF14: 0
B15: =IF(G15="","",IF(ROW()=FirstEntryLine,1,IF(AND(I15=OFFSET(I15,-1,0),V15=OFFSET(V15,-1,0),W15=OFFSET(W15,-1,0),X15=OFFSET(X15,-1,0),Y15=OFFSET(Y15,-1,0),Z15=OFFSET(Z15,-1,0),AA15=OFFSET(AA15,-1,0),AB15=OFFSET(AB15,-1,0),AC15=OFFSET(AC15,-1,0),AD15=OFFSET(AD15,-1,0),AE15=OFFSET(AE15,-1,0),AF15=OFFSET(AF15,-1,0),AG15=OFFSET(AG15,-1,0),AH15=OFFSET(AH15,-1,0),AI15=OFFSET(AI15,-1,0)),OFFSET(B15,-1,0),ROW()-FirstEntryLine+1))) -> 2 | C15: RUS | D15: =IF(C15="", "", VLOOKUP(C15, ContinentShorts, 2, FALSE)) -> EJU | E15: 175da4bb | G15: ABULADZE | H15: Yago | I15: =SUM(J15:U15) -> 3069 | J15: =IF(ISNUMBER(LARGE((OFFSET($A$1,ROW()-1,FirstExtraEventColumn-2*(NbExtraEvents+1),1,NbExtraEvents-1+COVID_patch),OFFSET($A$1,ROW()-1,FirstEventColumn+IndexEventsRate1-2,1,NbEventsRate1)),Rank1)), IF(LARGE((OFFSET($A$1,ROW()-1,FirstExtraEventColumn-2*(NbExtraEvents+1),1,NbExtraEvents-1+COVID_patch),OFFSET($A$1,ROW()-1,FirstEventColumn+IndexEventsRate1-2,1,NbEventsRate1)),Rank1)>0, J$12*LARGE((OFFSET($A$1,ROW()-1,FirstExtraEventColumn-2*(NbExtraEvents+1),1,NbExtraEvents-1+COVID_patch),OFFSET($A$1,ROW()-1,FirstEventColumn+IndexEventsRate1-2,1,NbEventsRate1)),Rank1),""), "") -> 2000 | K15: =IF(ISNUMBER(LARGE((OFFSET($A$1,ROW()-1,FirstExtraEventColumn-2*(NbExtraEvents+1),1,NbExtraEvents-1+COVID_patch),OFFSET($A$1,ROW()-1,FirstEventColumn+IndexEventsRate1-2,1,NbEventsRate1)),Rank2)), IF(LARGE((OFFSET($A$1,ROW()-1,FirstExtraEventColumn-2*(NbExtraEvents+1),1,NbExtraEvents-1+COVID_patch),OFFSET($A$1,ROW()-1,FirstEventColumn+IndexEventsRate1-2,1,NbEventsRate1)),Rank2)>0, K$12*LARGE((OFFSET($A$1,ROW()-1,FirstExtraEventColumn-2*(NbExtraEvents+1),1,NbExtraEvents-1+COVID_patch),OFFSET($A$1,ROW()-1,FirstEventColumn+IndexEventsRate1-2,1,NbEventsRate1)),Rank2),""), "") ->  | L15: =IF(ISNUMBER(LARGE((OFFSET($A$1,ROW()-1,FirstExtraEventColumn-2*(NbExtraEvents+1),1,NbExtraEvents-1+COVID_patch),OFFSET($A$1,ROW()-1,FirstEventColumn+IndexEventsRate1-2,1,NbEventsRate1)),Rank3)), IF(LARGE((OFFSET($A$1,ROW()-1,FirstExtraEventColumn-2*(NbExtraEvents+1),1,NbExtraEvents-1+COVID_patch),OFFSET($A$1,ROW()-1,FirstEventColumn+IndexEventsRate1-2,1,NbEventsRate1)),Rank3)>0, L$12*LARGE((OFFSET($A$1,ROW()-1,FirstExtraEventColumn-2*(NbExtraEvents+1),1,NbExtraEvents-1+COVID_patch),OFFSET($A$1,ROW()-1,FirstEventColumn+IndexEventsRate1-2,1,NbEventsRate1)),Rank3),""), "") ->  | M15: =IF(ISNUMBER(LARGE((OFFSET($A$1,ROW()-1,FirstExtraEventColumn-2*(NbExtraEvents+1),1,NbExtraEvents-1+COVID_patch),OFFSET($A$1,ROW()-1,FirstEventColumn+IndexEventsRate1-2,1,NbEventsRate1)),Rank4)), IF(LARGE((OFFSET($A$1,ROW()-1,FirstExtraEventColumn-2*(NbExtraEvents+1),1,NbExtraEvents-1+COVID_patch),OFFSET($A$1,ROW()-1,FirstEventColumn+IndexEventsRate1-2,1,NbEventsRate1)),Rank4)>0, M$12*LARGE((OFFSET($A$1,ROW()-1,FirstExtraEventColumn-2*(NbExtraEvents+1),1,NbExtraEvents-1+COVID_patch),OFFSET($A$1,ROW()-1,FirstEventColumn+IndexEventsRate1-2,1,NbEventsRate1)),Rank4),""), "") ->  | N15: =IF(ISNUMBER(LARGE((OFFSET($A$1,ROW()-1,FirstExtraEventColumn-2*(NbExtraEvents+1),1,NbExtraEvents-1+COVID_patch),OFFSET($A$1,ROW()-1,FirstEventColumn+IndexEventsRate1-2,1,NbEventsRate1)),Rank5)), IF(LARGE((OFFSET($A$1,ROW()-1,FirstExtraEventColumn-2*(NbExtraEvents+1),1,NbExtraEvents-1+COVID_patch),OFFSET($A$1,ROW()-1,FirstEventColumn+IndexEventsRate1-2,1,NbEventsRate1)),Rank5)>0, N$12*LARGE((OFFSET($A$1,ROW()-1,FirstExtraEventColumn-2*(NbExtraEvents+1),1,NbExtraEvents-1+COVID_patch),OFFSET($A$1,ROW()-1,FirstEventColumn+IndexEventsRate1-2,1,NbEventsRate1)),Rank5),""), "") ->  | O15: =IF($AK15<>0,$AK$12*$AK15,"") ->  | P15: =IF(ISNUMBER(LARGE((OFFSET($A$1,ROW()-1,FirstExtraEventColumn-(NbExtraEvents+1),1,NbExtraEvents-1),OFFSET($A$1,ROW()-1,FirstEventColumn+IndexEventsRate2-2,1,NbEventsRate2)),Rank1)), IF(LARGE((OFFSET($A$1,ROW()-1,FirstExtraEventColumn-(NbExtraEvents+1),1,NbExtraEvents-1),OFFSET($A$1,ROW()-1,FirstEventColumn+IndexEventsRate2-2,1,NbEventsRate2)),Rank1)>0, P$12*LARGE((OFFSET($A$1,ROW()-1,FirstExtraEventColumn-(NbExtraEvents+1),1,NbExtraEvents-1),OFFSET($A$1,ROW()-1,FirstEventColumn+IndexEventsRate2-2,1,NbEventsRate2)),Rank1),""), "") -> 500 | Q15: =IF(ISNUMBER(LARGE((OFFSET($A$1,ROW()-1,FirstExtraEventColumn-(NbExtraEvents+1),1,NbExtraEvents-1),OFFSET($A$1,ROW()-1,FirstEventColumn+IndexEventsRate2-2,1,NbEventsRate2)),Rank2)), IF(LARGE((OFFSET($A$1,ROW()-1,FirstExtraEventColumn-(NbExtraEvents+1),1,NbExtraEvents-1),OFFSET($A$1,ROW()-1,FirstEventColumn+IndexEventsRate2-2,1,NbEventsRate2)),Rank2)>0, Q$12*LARGE((OFFSET($A$1,ROW()-1,FirstExtraEventColumn-(NbExtraEvents+1),1,NbExtraEvents-1),OFFSET($A$1,ROW()-1,FirstEventColumn+IndexEventsRate2-2,1,NbEventsRate2)),Rank2),""), "") -> 245 | R15: =IF(ISNUMBER(LARGE((OFFSET($A$1,ROW()-1,FirstExtraEventColumn-(NbExtraEvents+1),1,NbExtraEvents-1),OFFSET($A$1,ROW()-1,FirstEventColumn+IndexEventsRate2-2,1,NbEventsRate2)),Rank3)), IF(LARGE((OFFSET($A$1,ROW()-1,FirstExtraEventColumn-(NbExtraEvents+1),1,NbExtraEvents-1),OFFSET($A$1,ROW()-1,FirstEventColumn+IndexEventsRate2-2,1,NbEventsRate2)),Rank3)>0, R$12*LARGE((OFFSET($A$1,ROW()-1,FirstExtraEventColumn-(NbExtraEvents+1),1,NbExtraEvents-1),OFFSET($A$1,ROW()-1,FirstEventColumn+IndexEventsRate2-2,1,NbEventsRate2)),Rank3),""), "") ->  | S15: =IF(ISNUMBER(LARGE((OFFSET($A$1,ROW()-1,FirstExtraEventColumn-(NbExtraEvents+1),1,NbExtraEvents-1),OFFSET($A$1,ROW()-1,FirstEventColumn+IndexEventsRate2-2,1,NbEventsRate2)),Rank4)), IF(LARGE((OFFSET($A$1,ROW()-1,FirstExtraEventColumn-(NbExtraEvents+1),1,NbExtraEvents-1),OFFSET($A$1,ROW()-1,FirstEventColumn+IndexEventsRate2-2,1,NbEventsRate2)),Rank4)>0, S$12*LARGE((OFFSET($A$1,ROW()-1,FirstExtraEventColumn-(NbExtraEvents+1),1,NbExtraEvents-1),OFFSET($A$1,ROW()-1,FirstEventColumn+IndexEventsRate2-2,1,NbEventsRate2)),Rank4),""), "") ->  | T15: =IF(ISNUMBER(LARGE((OFFSET($A$1,ROW()-1,FirstExtraEventColumn-(NbExtraEvents+1),1,NbExtraEvents-1),OFFSET($A$1,ROW()-1,FirstEventColumn+IndexEventsRate2-2,1,NbEventsRate2)),Rank5)), IF(LARGE((OFFSET($A$1,ROW()-1,FirstExtraEventColumn-(NbExtraEvents+1),1,NbExtraEvents-1),OFFSET($A$1,ROW()-1,FirstEventColumn+IndexEventsRate2-2,1,NbEventsRate2)),Rank5)>0, T$12*LARGE((OFFSET($A$1,ROW()-1,FirstExtraEventColumn-(NbExtraEvents+1),1,NbExtraEvents-1),OFFSET($A$1,ROW()-1,FirstEventColumn+IndexEventsRate2-2,1,NbEventsRate2)),Rank5),""), "") ->  | U15: =IF($AN15<>0,$AN$12*$AN15,"") -> 324 | V15: =RateYear1*SUMIFS(OFFSET($A$1,ROW()-1,FirstExtraEventColumn-1,1,IndexExtraEventEnd+IndexEventEnd-2),OFFSET($A$1,RateLine-1,FirstExtraEventColumn-1,1,IndexExtraEventEnd+IndexEventEnd-2),RateYear1,OFFSET($A$1,RateLine-3,FirstExtraEventColumn-1,1,IndexExtraEventEnd+IndexEventEnd-2),"WCS") +RateYear2*SUMIFS(OFFSET($A$1,ROW()-1,FirstExtraEventColumn-1,1,IndexExtraEventEnd+IndexEventEnd-2),OFFSET($A$1,RateLine-1,FirstExtraEventColumn-1,1,IndexExtraEventEnd+IndexEventEnd-2),RateYear2,OFFSET($A$1,RateLine-3,FirstExtraEventColumn-1,1,IndexExtraEventEnd+IndexEventEnd-2),"WCS") -> 2000 | W15: =RateYear1* (SUMIFS(OFFSET($A$1,ROW()-1,FirstExtraEventColumn-1,1,IndexExtraEventEnd+IndexEventEnd-2),OFFSET($A$1,RateLine-1,FirstExtraEventColumn-1,1,IndexExtraEventEnd+IndexEventEnd-2),RateYear1,OFFSET($A$1,RateLine-3,FirstExtraEventColumn-1,1,IndexExtraEventEnd+IndexEventEnd-2),"GP") +SUMIFS(OFFSET($A$1,ROW()-1,FirstExtraEventColumn-1,1,IndexExtraEventEnd+IndexEventEnd-2),OFFSET($A$1,RateLine-1,FirstExtraEventColumn-1,1,IndexExtraEventEnd+IndexEventEnd-2),RateYear1,OFFSET($A$1,RateLine-3,FirstExtraEventColumn-1,1,IndexExtraEventEnd+IndexEventEnd-2),"GS") +SUMIFS(OFFSET($A$1,ROW()-1,FirstExtraEventColumn-1,1,IndexExtraEventEnd+IndexEventEnd-2),OFFSET($A$1,RateLine-1,FirstExtraEventColumn-1,1,IndexExtraEventEnd+IndexEventEnd-2),RateYear1,OFFSET($A$1,RateLine-3,FirstExtraEventColumn-1,1,IndexExtraEventEnd+IndexEventEnd-2),"Masters")) +RateYear2* (SUMIFS(OFFSET($A$1,ROW()-1,FirstExtraEventColumn-1,1,IndexExtraEventEnd+IndexEventEnd-2),OFFSET($A$1,RateLine-1,FirstExtraEventColumn-1,1,IndexExtraEventEnd+IndexEventEnd-2),RateYear2,OFFSET($A$1,RateLine-3,FirstExtraEventColumn-1,1,IndexExtraEventEnd+IndexEventEnd-2),"GP") +SUMIFS(OFFSET($A$1,ROW()-1,FirstExtraEventColumn-1,1,IndexExtraEventEnd+IndexEventEnd-2),OFFSET($A$1,RateLine-1,FirstExtraEventColumn-1,1,IndexExtraEventEnd+IndexEventEnd-2),RateYear2,OFFSET($A$1,RateLine-3,FirstExtraEventColumn-1,1,IndexExtraEventEnd+IndexEventEnd-2),"GS") +SUMIFS(OFFSET($A$1,ROW()-1,FirstExtraEventColumn-1,1,IndexExtraEventEnd+IndexEventEnd-2),OFFSET($A$1,RateLine-1,FirstExtraEventColumn-1,1,IndexExtraEventEnd+IndexEventEnd-2),RateYear2,OFFSET($A$1,RateLine-3,FirstExtraEventColumn-1,1,IndexExtraEventEnd+IndexEventEnd-2),"Masters")) -> 824 | X15: =IF(ISNUMBER(LARGE($J15:$U15,Rank1)),LARGE($J15:$U15,Rank1),"") -> 2000 | Y15: =IF(ISNUMBER(LARGE($J15:$U15,Rank2)),LARGE($J15:$U15,Rank2),"") -> 500 | Z15: =IF(ISNUMBER(LARGE($J15:$U15,Rank3)),LARGE($J15:$U15,Rank3),"") -> 324 | AA15: =IF(ISNUMBER(LARGE($J15:$U15,Rank4)),LARGE($J15:$U15,Rank4),"") -> 245 | AB15: =IF(ISNUMBER(LARGE($J15:$U15,Rank5)),LARGE($J15:$U15,Rank5),"") ->  | AC15: =IF(ISNUMBER(LARGE($J15:$U15,Rank6)),LARGE($J15:$U15,Rank6),"") ->  | AD15: =IF(ISNUMBER(LARGE($J15:$U15,Rank7)),LARGE($J15:$U15,Rank7),"") ->  | AE15: =IF(ISNUMBER(LARGE($J15:$U15,Rank8)),LARGE($J15:$U15,Rank8),"") ->  | AF15: =IF(ISNUMBER(LARGE($J15:$U15,Rank9)),LARGE($J15:$U15,Rank9),"") ->  | AG15: =IF(ISNUMBER(LARGE($J15:$U15,Rank10)),LARGE($J15:$U15,Rank10),"") ->  | AH15: =IF(ISNUMBER(LARGE($J15:$U15,Rank11)),LARGE($J15:$U15,Rank11),"") ->  | AI15: =IF(ISNUMBER(LARGE($J15:$U15,Rank12)),LARGE($J15:$U15,Rank12),"") ->  | AJ15: =RateYear1*SUM(AK15:AM15)+RateYear2*SUM(AN15:AP15)+ IF(NbEventsRate1<>0,RateYear1*SUM(OFFSET($A$1,ROW()-1,FirstEventColumn+IndexEventsRate1-2,1,NbEventsRate1)),0)+ IF(NbEventsRate2<>0,RateYear2*SUM(OFFSET($A$1,ROW()-1,FirstEventColumn+IndexEventsRate2-2,1,NbEventsRate2)),0) -> 3069 | AK15: =IF(ISNUMBER(LARGE(IF(OFFSET($A$1,FirstEntryLine-3,FirstExtraEventColumn-1,1,FirstEventColumn-FirstExtraEventColumn)=AK$12,OFFSET($A$1,ROW()-1,FirstExtraEventColumn-1,1,FirstEventColumn-FirstExtraEventColumn)),Rank1)), LARGE(IF(OFFSET($A$1,FirstEntryLine-3,FirstExtraEventColumn-1,1,FirstEventColumn-FirstExtraEventColumn)=AK$12,OFFSET($A$1,ROW()-1,FirstExtraEventColumn-1,1,FirstEventColumn-FirstExtraEventColumn)),Rank1), "") -> 0 | AL15: =IF(ISNUMBER(LARGE(IF(OFFSET($A$1,FirstEntryLine-3,FirstExtraEventColumn-1,1,FirstEventColumn-FirstExtraEventColumn)=AL$12,OFFSET($A$1,ROW()-1,FirstExtraEventColumn-1,1,FirstEventColumn-FirstExtraEventColumn)),Rank2)), LARGE(IF(OFFSET($A$1,FirstEntryLine-3,FirstExtraEventColumn-1,1,FirstEventColumn-FirstExtraEventColumn)=AL$12,OFFSET($A$1,ROW()-1,FirstExtraEventColumn-1,1,FirstEventColumn-FirstExtraEventColumn)),Rank2), "") -> 0 | AN15: =IF(AT15>MAX(AS15,AU15),AT15,MAX(AS15,AU15)) -> 648 | AO15: =IF(AT15>MAX(AS15,AU15),MAX(AS15,AU15),AT15) -> 490 | AS15: 350 | AT15: 648 | AU15: 490 | AV15: 200 | CC15: 2000 | CS15: 1000 | CX15: 700 | CZ15: 6 | DF15: 500 | DK15: 700 | DQ15: 6 | DV15: 500 | DX15: 182 | EL15: 700 | FD15: 112
B16: =IF(G16="","",IF(ROW()=FirstEntryLine,1,IF(AND(I16=OFFSET(I16,-1,0),V16=OFFSET(V16,-1,0),W16=OFFSET(W16,-1,0),X16=OFFSET(X16,-1,0),Y16=OFFSET(Y16,-1,0),Z16=OFFSET(Z16,-1,0),AA16=OFFSET(AA16,-1,0),AB16=OFFSET(AB16,-1,0),AC16=OFFSET(AC16,-1,0),AD16=OFFSET(AD16,-1,0),AE16=OFFSET(AE16,-1,0),AF16=OFFSET(AF16,-1,0),AG16=OFFSET(AG16,-1,0),AH16=OFFSET(AH16,-1,0),AI16=OFFSET(AI16,-1,0)),OFFSET(B16,-1,0),ROW()-FirstEntryLine+1))) -> 3 | C16: ESP | D16: =IF(C16="", "", VLOOKUP(C16, ContinentShorts, 2, FALSE)) -> EJU | E16: 77ddbcc1 | G16: GARRIGOS | H16: Francisco | I16: =SUM(J16:U16) -> 2886 | J16: =IF(ISNUMBER(LARGE((OFFSET($A$1,ROW()-1,FirstExtraEventColumn-2*(NbExtraEvents+1),1,NbExtraEvents-1+COVID_patch),OFFSET($A$1,ROW()-1,FirstEventColumn+IndexEventsRate1-2,1,NbEventsRate1)),Rank1)), IF(LARGE((OFFSET($A$1,ROW()-1,FirstExtraEventColumn-2*(NbExtraEvents+1),1,NbExtraEvents-1+COVID_patch),OFFSET($A$1,ROW()-1,FirstEventColumn+IndexEventsRate1-2,1,NbEventsRate1)),Rank1)>0, J$12*LARGE((OFFSET($A$1,ROW()-1,FirstExtraEventColumn-2*(NbExtraEvents+1),1,NbExtraEvents-1+COVID_patch),OFFSET($A$1,ROW()-1,FirstEventColumn+IndexEventsRate1-2,1,NbEventsRate1)),Rank1),""), "") -> 1000 | K16: =IF(ISNUMBER(LARGE((OFFSET($A$1,ROW()-1,FirstExtraEventColumn-2*(NbExtraEvents+1),1,NbExtraEvents-1+COVID_patch),OFFSET($A$1,ROW()-1,FirstEventColumn+IndexEventsRate1-2,1,NbEventsRate1)),Rank2)), IF(LARGE((OFFSET($A$1,ROW()-1,FirstExtraEventColumn-2*(NbExtraEvents+1),1,NbExtraEvents-1+COVID_patch),OFFSET($A$1,ROW()-1,FirstEventColumn+IndexEventsRate1-2,1,NbEventsRate1)),Rank2)>0, K$12*LARGE((OFFSET($A$1,ROW()-1,FirstExtraEventColumn-2*(NbExtraEvents+1),1,NbExtraEvents-1+COVID_patch),OFFSET($A$1,ROW()-1,FirstEventColumn+IndexEventsRate1-2,1,NbEventsRate1)),Rank2),""), "") -> 500 | L16: =IF(ISNUMBER(LARGE((OFFSET($A$1,ROW()-1,FirstExtraEventColumn-2*(NbExtraEvents+1),1,NbExtraEvents-1+COVID_patch),OFFSET($A$1,ROW()-1,FirstEventColumn+IndexEventsRate1-2,1,NbEventsRate1)),Rank3)), IF(LARGE((OFFSET($A$1,ROW()-1,FirstExtraEventColumn-2*(NbExtraEvents+1),1,NbExtraEvents-1+COVID_patch),OFFSET($A$1,ROW()-1,FirstEventColumn+IndexEventsRate1-2,1,NbEventsRate1)),Rank3)>0, L$12*LARGE((OFFSET($A$1,ROW()-1,FirstExtraEventColumn-2*(NbExtraEvents+1),1,NbExtraEvents-1+COVID_patch),OFFSET($A$1,ROW()-1,FirstEventColumn+IndexEventsRate1-2,1,NbEventsRate1)),Rank3),""), "") -> 182 | M16: =IF(ISNUMBER(LARGE((OFFSET($A$1,ROW()-1,FirstExtraEventColumn-2*(NbExtraEvents+1),1,NbExtraEvents-1+COVID_patch),OFFSET($A$1,ROW()-1,FirstEventColumn+IndexEventsRate1-2,1,NbEventsRate1)),Rank4)), IF(LARGE((OFFSET($A$1,ROW()-1,FirstExtraEventColumn-2*(NbExtraEvents+1),1,NbExtraEvents-1+COVID_patch),OFFSET($A$1,ROW()-1,FirstEventColumn+IndexEventsRate1-2,1,NbEventsRate1)),Rank4)>0, M$12*LARGE((OFFSET($A$1,ROW()-1,FirstExtraEventColumn-2*(NbExtraEvents+1),1,NbExtraEvents-1+COVID_patch),OFFSET($A$1,ROW()-1,FirstEventColumn+IndexEventsRate1-2,1,NbEventsRate1)),Rank4),""), "") -> 10 | N16: =IF(ISNUMBER(LARGE((OFFSET($A$1,ROW()-1,FirstExtraEventColumn-2*(NbExtraEvents+1),1,NbExtraEvents-1+COVID_patch),OFFSET($A$1,ROW()-1,FirstEventColumn+IndexEventsRate1-2,1,NbEventsRate1)),Rank5)), IF(LARGE((OFFSET($A$1,ROW()-1,FirstExtraEventColumn-2*(NbExtraEvents+1),1,NbExtraEvents-1+COVID_patch),OFFSET($A$1,ROW()-1,FirstEventColumn+IndexEventsRate1-2,1,NbEventsRate1)),Rank5)>0, N$12*LARGE((OFFSET($A$1,ROW()-1,FirstExtraEventColumn-2*(NbExtraEvents+1),1,NbExtraEvents-1+COVID_patch),OFFSET($A$1,ROW()-1,FirstEventColumn+IndexEventsRate1-2,1,NbEventsRate1)),Rank5),""), "") ->  | O16: =IF($AK16<>0,$AK$12*$AK16,"") -> 700 | P16: =IF(ISNUMBER(LARGE((OFFSET($A$1,ROW()-1,FirstExtraEventColumn-(NbExtraEvents+1),1,NbExtraEvents-1),OFFSET($A$1,ROW()-1,FirstEventColumn+IndexEventsRate2-2,1,NbEventsRate2)),Rank1)), IF(LARGE((OFFSET($A$1,ROW()-1,FirstExtraEventColumn-(NbExtraEvents+1),1,NbExtraEvents-1),OFFSET($A$1,ROW()-1,FirstEventColumn+IndexEventsRate2-2,1,NbEventsRate2)),Rank1)>0, P$12*LARGE((OFFSET($A$1,ROW()-1,FirstExtraEventColumn-(NbExtraEvents+1),1,NbExtraEvents-1),OFFSET($A$1,ROW()-1,FirstEventColumn+IndexEventsRate2-2,1,NbEventsRate2)),Rank1),""), "") -> 144 | Q16: =IF(ISNUMBER(LARGE((OFFSET($A$1,ROW()-1,FirstExtraEventColumn-(NbExtraEvents+1),1,NbExtraEvents-1),OFFSET($A$1,ROW()-1,FirstEventColumn+IndexEventsRate2-2,1,NbEventsRate2)),Rank2)), IF(LARGE((OFFSET($A$1,ROW()-1,FirstExtraEventColumn-(NbExtraEvents+1),1,NbExtraEvents-1),OFFSET($A$1,ROW()-1,FirstEventColumn+IndexEventsRate2-2,1,NbEventsRate2)),Rank2)>0, Q$12*LARGE((OFFSET($A$1,ROW()-1,FirstExtraEventColumn-(NbExtraEvents+1),1,NbExtraEvents-1),OFFSET($A$1,ROW()-1,FirstEventColumn+IndexEventsRate2-2,1,NbEventsRate2)),Rank2),""), "") ->  | R16: =IF(ISNUMBER(LARGE((OFFSET($A$1,ROW()-1,FirstExtraEventColumn-(NbExtraEvents+1),1,NbExtraEvents-1),OFFSET($A$1,ROW()-1,FirstEventColumn+IndexEventsRate2-2,1,NbEventsRate2)),Rank3)), IF(LARGE((OFFSET($A$1,ROW()-1,FirstExtraEventColumn-(NbExtraEvents+1),1,NbExtraEvents-1),OFFSET($A$1,ROW()-1,FirstEventColumn+IndexEventsRate2-2,1,NbEventsRate2)),Rank3)>0, R$12*LARGE((OFFSET($A$1,ROW()-1,FirstExtraEventColumn-(NbExtraEvents+1),1,NbExtraEvents-1),OFFSET($A$1,ROW()-1,FirstEventColumn+IndexEventsRate2-2,1,NbEventsRate2)),Rank3),""), "") ->  | S16: =IF(ISNUMBER(LARGE((OFFSET($A$1,ROW()-1,FirstExtraEventColumn-(NbExtraEvents+1),1,NbExtraEvents-1),OFFSET($A$1,ROW()-1,FirstEventColumn+IndexEventsRate2-2,1,NbEventsRate2)),Rank4)), IF(LARGE((OFFSET($A$1,ROW()-1,FirstExtraEventColumn-(NbExtraEvents+1),1,NbExtraEvents-1),OFFSET($A$1,ROW()-1,FirstEventColumn+IndexEventsRate2-2,1,NbEventsRate2)),Rank4)>0, S$12*LARGE((OFFSET($A$1,ROW()-1,FirstExtraEventColumn-(NbExtraEvents+1),1,NbExtraEvents-1),OFFSET($A$1,ROW()-1,FirstEventColumn+IndexEventsRate2-2,1,NbEventsRate2)),Rank4),""), "") ->  | T16: =IF(ISNUMBER(LARGE((OFFSET($A$1,ROW()-1,FirstExtraEventColumn-(NbExtraEvents+1),1,NbExtraEvents-1),OFFSET($A$1,ROW()-1,FirstEventColumn+IndexEventsRate2-2,1,NbEventsRate2)),Rank5)), IF(LARGE((OFFSET($A$1,ROW()-1,FirstExtraEventColumn-(NbExtraEvents+1),1,NbExtraEvents-1),OFFSET($A$1,ROW()-1,FirstEventColumn+IndexEventsRate2-2,1,NbEventsRate2)),Rank5)>0, T$12*LARGE((OFFSET($A$1,ROW()-1,FirstExtraEventColumn-(NbExtraEvents+1),1,NbExtraEvents-1),OFFSET($A$1,ROW()-1,FirstEventColumn+IndexEventsRate2-2,1,NbEventsRate2)),Rank5),""), "") ->  | U16: =IF($AN16<>0,$AN$12*$AN16,"") -> 350 | V16: =RateYear1*SUMIFS(OFFSET($A$1,ROW()-1,FirstExtraEventColumn-1,1,IndexExtraEventEnd+IndexEventEnd-2),OFFSET($A$1,RateLine-1,FirstExtraEventColumn-1,1,IndexExtraEventEnd+IndexEventEnd-2),RateYear1,OFFSET($A$1,RateLine-3,FirstExtraEventColumn-1,1,IndexExtraEventEnd+IndexEventEnd-2),"WCS") +RateYear2*SUMIFS(OFFSET($A$1,ROW()-1,FirstExtraEventColumn-1,1,IndexExtraEventEnd+IndexEventEnd-2),OFFSET($A$1,RateLine-1,FirstExtraEventColumn-1,1,IndexExtraEventEnd+IndexEventEnd-2),RateYear2,OFFSET($A$1,RateLine-3,FirstExtraEventColumn-1,1,IndexExtraEventEnd+IndexEventEnd-2),"WCS") -> 1000 | W16: =RateYear1* (SUMIFS(OFFSET($A$1,ROW()-1,FirstExtraEventColumn-1,1,IndexExtraEventEnd+IndexEventEnd-2),OFFSET($A$1,RateLine-1,FirstExtraEventColumn-1,1,IndexExtraEventEnd+IndexEventEnd-2),RateYear1,OFFSET($A$1,RateLine-3,FirstExtraEventColumn-1,1,IndexExtraEventEnd+IndexEventEnd-2),"GP") +SUMIFS(OFFSET($A$1,ROW()-1,FirstExtraEventColumn-1,1,IndexExtraEventEnd+IndexEventEnd-2),OFFSET($A$1,RateLine-1,FirstExtraEventColumn-1,1,IndexExtraEventEnd+IndexEventEnd-2),RateYear1,OFFSET($A$1,RateLine-3,FirstExtraEventColumn-1,1,IndexExtraEventEnd+IndexEventEnd-2),"GS") +SUMIFS(OFFSET($A$1,ROW()-1,FirstExtraEventColumn-1,1,IndexExtraEventEnd+IndexEventEnd-2),OFFSET($A$1,RateLine-1,FirstExtraEventColumn-1,1,IndexExtraEventEnd+IndexEventEnd-2),RateYear1,OFFSET($A$1,RateLine-3,FirstExtraEventColumn-1,1,IndexExtraEventEnd+IndexEventEnd-2),"Masters")) +RateYear2* (SUMIFS(OFFSET($A$1,ROW()-1,FirstExtraEventColumn-1,1,IndexExtraEventEnd+IndexEventEnd-2),OFFSET($A$1,RateLine-1,FirstExtraEventColumn-1,1,IndexExtraEventEnd+IndexEventEnd-2),RateYear2,OFFSET($A$1,RateLine-3,FirstExtraEventColumn-1,1,IndexExtraEventEnd+IndexEventEnd-2),"GP") +SUMIFS(OFFSET($A$1,ROW()-1,FirstExtraEventColumn-1,1,IndexExtraEventEnd+IndexEventEnd-2),OFFSET($A$1,RateLine-1,FirstExtraEventColumn-1,1,IndexExtraEventEnd+IndexEventEnd-2),RateYear2,OFFSET($A$1,RateLine-3,FirstExtraEventColumn-1,1,IndexExtraEventEnd+IndexEventEnd-2),"GS") +SUMIFS(OFFSET($A$1,ROW()-1,FirstExtraEventColumn-1,1,IndexExtraEventEnd+IndexEventEnd-2),OFFSET($A$1,RateLine-1,FirstExtraEventColumn-1,1,IndexExtraEventEnd+IndexEventEnd-2),RateYear2,OFFSET($A$1,RateLine-3,FirstExtraEventColumn-1,1,IndexExtraEventEnd+IndexEventEnd-2),"Masters")) -> 836 | X16: =IF(ISNUMBER(LARGE($J16:$U16,Rank1)),LARGE($J16:$U16,Rank1),"") -> 1000 | Y16: =IF(ISNUMBER(LARGE($J16:$U16,Rank2)),LARGE($J16:$U16,Rank2),"") -> 700 | Z16: =IF(ISNUMBER(LARGE($J16:$U16,Rank3)),LARGE($J16:$U16,Rank3),"") -> 500 | AA16: =IF(ISNUMBER(LARGE($J16:$U16,Rank4)),LARGE($J16:$U16,Rank4),"") -> 350 | AB16: =IF(ISNUMBER(LARGE($J16:$U16,Rank5)),LARGE($J16:$U16,Rank5),"") -> 182 | AC16: =IF(ISNUMBER(LARGE($J16:$U16,Rank6)),LARGE($J16:$U16,Rank6),"") -> 144 | AD16: =IF(ISNUMBER(LARGE($J16:$U16,Rank7)),LARGE($J16:$U16,Rank7),"") -> 10 | AE16: =IF(ISNUMBER(LARGE($J16:$U16,Rank8)),LARGE($J16:$U16,Rank8),"") ->  | AF16: =IF(ISNUMBER(LARGE($J16:$U16,Rank9)),LARGE($J16:$U16,Rank9),"") ->  | AG16: =IF(ISNUMBER(LARGE($J16:$U16,Rank10)),LARGE($J16:$U16,Rank10),"") ->  | AH16: =IF(ISNUMBER(LARGE($J16:$U16,Rank11)),LARGE($J16:$U16,Rank11),"") ->  | AI16: =IF(ISNUMBER(LARGE($J16:$U16,Rank12)),LARGE($J16:$U16,Rank12),"") ->  | AJ16: =RateYear1*SUM(AK16:AM16)+RateYear2*SUM(AN16:AP16)+ IF(NbEventsRate1<>0,RateYear1*SUM(OFFSET($A$1,ROW()-1,FirstEventColumn+IndexEventsRate1-2,1,NbEventsRate1)),0)+ IF(NbEventsRate2<>0,RateYear2*SUM(OFFSET($A$1,ROW()-1,FirstEventColumn+IndexEventsRate2-2,1,NbEventsRate2)),0) -> 2886 | AK16: =IF(ISNUMBER(LARGE(IF(OFFSET($A$1,FirstEntryLine-3,FirstExtraEventColumn-1,1,FirstEventColumn-FirstExtraEventColumn)=AK$12,OFFSET($A$1,ROW()-1,FirstExtraEventColumn-1,1,FirstEventColumn-FirstExtraEventColumn)),Rank1)), LARGE(IF(OFFSET($A$1,FirstEntryLine-3,FirstExtraEventColumn-1,1,FirstEventColumn-FirstExtraEventColumn)=AK$12,OFFSET($A$1,ROW()-1,FirstExtraEventColumn-1,1,FirstEventColumn-FirstExtraEventColumn)),Rank1), "") -> 700 | AL16: =IF(ISNUMBER(LARGE(IF(OFFSET($A$1,FirstEntryLine-3,FirstExtraEventColumn-1,1,FirstEventColumn-FirstExtraEventColumn)=AL$12,OFFSET($A$1,ROW()-1,FirstExtraEventColumn-1,1,FirstEventColumn-FirstExtraEventColumn)),Rank2)), LARGE(IF(OFFSET($A$1,FirstEntryLine-3,FirstExtraEventColumn-1,1,FirstEventColumn-FirstExtraEventColumn)=AL$12,OFFSET($A$1,ROW()-1,FirstExtraEventColumn-1,1,FirstEventColumn-FirstExtraEventColumn)),Rank2), "") -> 0 | AN16: =IF(AT16>MAX(AS16,AU16),AT16,MAX(AS16,AU16)) -> 700 | AO16: =IF(AT16>MAX(AS16,AU16),MAX(AS16,AU16),AT16) -> 288 | AQ16: 700 | AS16: 700 | AT16: 288 | AU16: 350 | AV16: 1260 | AW16: 490 | AX16: 200 | AY16: 182 | AZ16: 1260 | BA16: 350 | BC16: 2 | BE16: 80 | BJ16: 500 | BO16: 10 | BR16: 182 | CB16: 0 | CC16: 1000 | CV16: 260 | CX16: 260 | DE16: 700 | DF16: 160 | DI16: 500 | DM16: 20 | DQ16: 252 | DV16: 360 | EE16: 360 | EG16: 10 | EO16: 6 | ER16: 700 | ET16: 252 | EV16: 320 | EY16: 252 | FL16: 10 | FU16: 252 | FW16: 500 | GC16: 20 | GG16: 700 | GI16: 360 | GR16: 252 | GT16: 10 | GU16: 100 | GZ16: 500 | HG16: 0 | HL16: 40 | HM16: 2 | HN16: 60 | HO16: 36 | HP16: 2 | HV16: 36 | HX16: 2
B17: =IF(G17="","",IF(ROW()=FirstEntryLine,1,IF(AND(I17=OFFSET(I17,-1,0),V17=OFFSET(V17,-1,0),W17=OFFSET(W17,-1,0),X17=OFFSET(X17,-1,0),Y17=OFFSET(Y17,-1,0),Z17=OFFSET(Z17,-1,0),AA17=OFFSET(AA17,-1,0),AB17=OFFSET(AB17,-1,0),AC17=OFFSET(AC17,-1,0),AD17=OFFSET(AD17,-1,0),AE17=OFFSET(AE17,-1,0),AF17=OFFSET(AF17,-1,0),AG17=OFFSET(AG17,-1,0),AH17=OFFSET(AH17,-1,0),AI17=OFFSET(AI17,-1,0)),OFFSET(B17,-1,0),ROW()-FirstEntryLine+1))) -> 4 | C17: AZE | D17: =IF(C17="", "", VLOOKUP(C17, ContinentShorts, 2, FALSE)) -> EJU | E17: efc2bba8 | G17: HUSEYNOV | H17: Karamat | I17: =SUM(J17:U17) -> 2767 | J17: =IF(ISNUMBER(LARGE((OFFSET($A$1,ROW()-1,FirstExtraEventColumn-2*(NbExtraEvents+1),1,NbExtraEvents-1+COVID_patch),OFFSET($A$1,ROW()-1,FirstEventColumn+IndexEventsRate1-2,1,NbEventsRate1)),Rank1)), IF(LARGE((OFFSET($A$1,ROW()-1,FirstExtraEventColumn-2*(NbExtraEvents+1),1,NbExtraEvents-1+COVID_patch),OFFSET($A$1,ROW()-1,FirstEventColumn+IndexEventsRate1-2,1,NbEventsRate1)),Rank1)>0, J$12*LARGE((OFFSET($A$1,ROW()-1,FirstExtraEventColumn-2*(NbExtraEvents+1),1,NbExtraEvents-1+COVID_patch),OFFSET($A$1,ROW()-1,FirstEventColumn+IndexEventsRate1-2,1,NbEventsRate1)),Rank1),""), "") -> 1000 | K17: =IF(ISNUMBER(LARGE((OFFSET($A$1,ROW()-1,FirstExtraEventColumn-2*(NbExtraEvents+1),1,NbExtraEvents-1+COVID_patch),OFFSET($A$1,ROW()-1,FirstEventColumn+IndexEventsRate1-2,1,NbEventsRate1)),Rank2)), IF(LARGE((OFFSET($A$1,ROW()-1,FirstExtraEventColumn-2*(NbExtraEvents+1),1,NbExtraEvents-1+COVID_patch),OFFSET($A$1,ROW()-1,FirstEventColumn+IndexEventsRate1-2,1,NbEventsRate1)),Rank2)>0, K$12*LARGE((OFFSET($A$1,ROW()-1,FirstExtraEventColumn-2*(NbExtraEvents+1),1,NbExtraEvents-1+COVID_patch),OFFSET($A$1,ROW()-1,FirstEventColumn+IndexEventsRate1-2,1,NbEventsRate1)),Rank2),""), "") -> 360 | L17: =IF(ISNUMBER(LARGE((OFFSET($A$1,ROW()-1,FirstExtraEventColumn-2*(NbExtraEvents+1),1,NbExtraEvents-1+COVID_patch),OFFSET($A$1,ROW()-1,FirstEventColumn+IndexEventsRate1-2,1,NbEventsRate1)),Rank3)), IF(LARGE((OFFSET($A$1,ROW()-1,FirstExtraEventColumn-2*(NbExtraEvents+1),1,NbExtraEvents-1+COVID_patch),OFFSET($A$1,ROW()-1,FirstEventColumn+IndexEventsRate1-2,1,NbEventsRate1)),Rank3)>0, L$12*LARGE((OFFSET($A$1,ROW()-1,FirstExtraEventColumn-2*(NbExtraEvents+1),1,NbExtraEvents-1+COVID_patch),OFFSET($A$1,ROW()-1,FirstEventColumn+IndexEventsRate1-2,1,NbEventsRate1)),Rank3),""), "") -> 360 | M17: =IF(ISNUMBER(LARGE((OFFSET($A$1,ROW()-1,FirstExtraEventColumn-2*(NbExtraEvents+1),1,NbExtraEvents-1+COVID_patch),OFFSET($A$1,ROW()-1,FirstEventColumn+IndexEventsRate1-2,1,NbEventsRate1)),Rank4)), IF(LARGE((OFFSET($A$1,ROW()-1,FirstExtraEventColumn-2*(NbExtraEvents+1),1,NbExtraEvents-1+COVID_patch),OFFSET($A$1,ROW()-1,FirstEventColumn+IndexEventsRate1-2,1,NbEventsRate1)),Rank4)>0, M$12*LARGE((OFFSET($A$1,ROW()-1,FirstExtraEventColumn-2*(NbExtraEvents+1),1,NbExtraEvents-1+COVID_patch),OFFSET($A$1,ROW()-1,FirstEventColumn+IndexEventsRate1-2,1,NbEventsRate1)),Rank4),""), "") -> 352 | N17: =IF(ISNUMBER(LARGE((OFFSET($A$1,ROW()-1,FirstExtraEventColumn-2*(NbExtraEvents+1),1,NbExtraEvents-1+COVID_patch),OFFSET($A$1,ROW()-1,FirstEventColumn+IndexEventsRate1-2,1,NbEventsRate1)),Rank5)), IF(LARGE((OFFSET($A$1,ROW()-1,FirstExtraEventColumn-2*(NbExtraEvents+1),1,NbExtraEvents-1+COVID_patch),OFFSET($A$1,ROW()-1,FirstEventColumn+IndexEventsRate1-2,1,NbEventsRate1)),Rank5)>0, N$12*LARGE((OFFSET($A$1,ROW()-1,FirstExtraEventColumn-2*(NbExtraEvents+1),1,NbExtraEvents-1+COVID_patch),OFFSET($A$1,ROW()-1,FirstEventColumn+IndexEventsRate1-2,1,NbEventsRate1)),Rank5),""), "") ->  | O17: =IF($AK17<>0,$AK$12*$AK17,"") ->  | P17: =IF(ISNUMBER(LARGE((OFFSET($A$1,ROW()-1,FirstExtraEventColumn-(NbExtraEvents+1),1,NbExtraEvents-1),OFFSET($A$1,ROW()-1,FirstEventColumn+IndexEventsRate2-2,1,NbEventsRate2)),Rank1)), IF(LARGE((OFFSET($A$1,ROW()-1,FirstExtraEventColumn-(NbExtraEvents+1),1,NbExtraEvents-1),OFFSET($A$1,ROW()-1,FirstEventColumn+IndexEventsRate2-2,1,NbEventsRate2)),Rank1)>0, P$12*LARGE((OFFSET($A$1,ROW()-1,FirstExtraEventColumn-(NbExtraEvents+1),1,NbExtraEvents-1),OFFSET($A$1,ROW()-1,FirstEventColumn+IndexEventsRate2-2,1,NbEventsRate2)),Rank1),""), "") -> 250 | Q17: =IF(ISNUMBER(LARGE((OFFSET($A$1,ROW()-1,FirstExtraEventColumn-(NbExtraEvents+1),1,NbExtraEvents-1),OFFSET($A$1,ROW()-1,FirstEventColumn+IndexEventsRate2-2,1,NbEventsRate2)),Rank2)), IF(LARGE((OFFSET($A$1,ROW()-1,FirstExtraEventColumn-(NbExtraEvents+1),1,NbExtraEvents-1),OFFSET($A$1,ROW()-1,FirstEventColumn+IndexEventsRate2-2,1,NbEventsRate2)),Rank2)>0, Q$12*LARGE((OFFSET($A$1,ROW()-1,FirstExtraEventColumn-(NbExtraEvents+1),1,NbExtraEvents-1),OFFSET($A$1,ROW()-1,FirstEventColumn+IndexEventsRate2-2,1,NbEventsRate2)),Rank2),""), "") -> 180 | R17: =IF(ISNUMBER(LARGE((OFFSET($A$1,ROW()-1,FirstExtraEventColumn-(NbExtraEvents+1),1,NbExtraEvents-1),OFFSET($A$1,ROW()-1,FirstEventColumn+IndexEventsRate2-2,1,NbEventsRate2)),Rank3)), IF(LARGE((OFFSET($A$1,ROW()-1,FirstExtraEventColumn-(NbExtraEvents+1),1,NbExtraEvents-1),OFFSET($A$1,ROW()-1,FirstEventColumn+IndexEventsRate2-2,1,NbEventsRate2)),Rank3)>0, R$12*LARGE((OFFSET($A$1,ROW()-1,FirstExtraEventColumn-(NbExtraEvents+1),1,NbExtraEvents-1),OFFSET($A$1,ROW()-1,FirstEventColumn+IndexEventsRate2-2,1,NbEventsRate2)),Rank3),""), "") -> 80 | S17: =IF(ISNUMBER(LARGE((OFFSET($A$1,ROW()-1,FirstExtraEventColumn-(NbExtraEvents+1),1,NbExtraEvents-1),OFFSET($A$1,ROW()-1,FirstEventColumn+IndexEventsRate2-2,1,NbEventsRate2)),Rank4)), IF(LARGE((OFFSET($A$1,ROW()-1,FirstExtraEventColumn-(NbExtraEvents+1),1,NbExtraEvents-1),OFFSET($A$1,ROW()-1,FirstEventColumn+IndexEventsRate2-2,1,NbEventsRate2)),Rank4)>0, S$12*LARGE((OFFSET($A$1,ROW()-1,FirstExtraEventColumn-(NbExtraEvents+1),1,NbExtraEvents-1),OFFSET($A$1,ROW()-1,FirstEventColumn+IndexEventsRate2-2,1,NbEventsRate2)),Rank4),""), "") -> 5 | T17: =IF(ISNUMBER(LARGE((OFFSET($A$1,ROW()-1,FirstExtraEventColumn-(NbExtraEvents+1),1,NbExtraEvents-1),OFFSET($A$1,ROW()-1,FirstEventColumn+IndexEventsRate2-2,1,NbEventsRate2)),Rank5)), IF(LARGE((OFFSET($A$1,ROW()-1,FirstExtraEventColumn-(NbExtraEvents+1),1,NbExtraEvents-1),OFFSET($A$1,ROW()-1,FirstEventColumn+IndexEventsRate2-2,1,NbEventsRate2)),Rank5)>0, T$12*LARGE((OFFSET($A$1,ROW()-1,FirstExtraEventColumn-(NbExtraEvents+1),1,NbExtraEvents-1),OFFSET($A$1,ROW()-1,FirstEventColumn+IndexEventsRate2-2,1,NbEventsRate2)),Rank5),""), "") -> 5 | U17: =IF($AN17<>0,$AN$12*$AN17,"") -> 175 | V17: =RateYear1*SUMIFS(OFFSET($A$1,ROW()-1,FirstExtraEventColumn-1,1,IndexExtraEventEnd+IndexEventEnd-2),OFFSET($A$1,RateLine-1,FirstExtraEventColumn-1,1,IndexExtraEventEnd+IndexEventEnd-2),RateYear1,OFFSET($A$1,RateLine-3,FirstExtraEventColumn-1,1,IndexExtraEventEnd+IndexEventEnd-2),"WCS") +RateYear2*SUMIFS(OFFSET($A$1,ROW()-1,FirstExtraEventColumn-1,1,IndexExtraEventEnd+IndexEventEnd-2),OFFSET($A$1,RateLine-1,FirstExtraEventColumn-1,1,IndexExtraEventEnd+IndexEventEnd-2),RateYear2,OFFSET($A$1,RateLine-3,FirstExtraEventColumn-1,1,IndexExtraEventEnd+IndexEventEnd-2),"WCS") -> 1000 | W17: =RateYear1* (SUMIFS(OFFSET($A$1,ROW()-1,FirstExtraEventColumn-1,1,IndexExtraEventEnd+IndexEventEnd-2),OFFSET($A$1,RateLine-1,FirstExtraEventColumn-1,1,IndexExtraEventEnd+IndexEventEnd-2),RateYear1,OFFSET($A$1,RateLine-3,FirstExtraEventColumn-1,1,IndexExtraEventEnd+IndexEventEnd-2),"GP") +SUMIFS(OFFSET($A$1,ROW()-1,FirstExtraEventColumn-1,1,IndexExtraEventEnd+IndexEventEnd-2),OFFSET($A$1,RateLine-1,FirstExtraEventColumn-1,1,IndexExtraEventEnd+IndexEventEnd-2),RateYear1,OFFSET($A$1,RateLine-3,FirstExtraEventColumn-1,1,IndexExtraEventEnd+IndexEventEnd-2),"GS") +SUMIFS(OFFSET($A$1,ROW()-1,FirstExtraEventColumn-1,1,IndexExtraEventEnd+IndexEventEnd-2),OFFSET($A$1,RateLine-1,FirstExtraEventColumn-1,1,IndexExtraEventEnd+IndexEventEnd-2),RateYear1,OFFSET($A$1,RateLine-3,FirstExtraEventColumn-1,1,IndexExtraEventEnd+IndexEventEnd-2),"Masters")) +RateYear2* (SUMIFS(OFFSET($A$1,ROW()-1,FirstExtraEventColumn-1,1,IndexExtraEventEnd+IndexEventEnd-2),OFFSET($A$1,RateLine-1,FirstExtraEventColumn-1,1,IndexExtraEventEnd+IndexEventEnd-2),RateYear2,OFFSET($A$1,RateLine-3,FirstExtraEventColumn-1,1,IndexExtraEventEnd+IndexEventEnd-2),"GP") +SUMIFS(OFFSET($A$1,ROW()-1,FirstExtraEventColumn-1,1,IndexExtraEventEnd+IndexEventEnd-2),OFFSET($A$1,RateLine-1,FirstExtraEventColumn-1,1,IndexExtraEventEnd+IndexEventEnd-2),RateYear2,OFFSET($A$1,RateLine-3,FirstExtraEventColumn-1,1,IndexExtraEventEnd+IndexEventEnd-2),"GS") +SUMIFS(OFFSET($A$1,ROW()-1,FirstExtraEventColumn-1,1,IndexExtraEventEnd+IndexEventEnd-2),OFFSET($A$1,RateLine-1,FirstExtraEventColumn-1,1,IndexExtraEventEnd+IndexEventEnd-2),RateYear2,OFFSET($A$1,RateLine-3,FirstExtraEventColumn-1,1,IndexExtraEventEnd+IndexEventEnd-2),"Masters")) -> 1240 | X17: =IF(ISNUMBER(LARGE($J17:$U17,Rank1)),LARGE($J17:$U17,Rank1),"") -> 1000 | Y17: =IF(ISNUMBER(LARGE($J17:$U17,Rank2)),LARGE($J17:$U17,Rank2),"") -> 360 | Z17: =IF(ISNUMBER(LARGE($J17:$U17,Rank3)),LARGE($J17:$U17,Rank3),"") -> 360 | AA17: =IF(ISNUMBER(LARGE($J17:$U17,Rank4)),LARGE($J17:$U17,Rank4),"") -> 352 | AB17: =IF(ISNUMBER(LARGE($J17:$U17,Rank5)),LARGE($J17:$U17,Rank5),"") -> 250 | AC17: =IF(ISNUMBER(LARGE($J17:$U17,Rank6)),LARGE($J17:$U17,Rank6),"") -> 180 | AD17: =IF(ISNUMBER(LARGE($J17:$U17,Rank7)),LARGE($J17:$U17,Rank7),"") -> 175 | AE17: =IF(ISNUMBER(LARGE($J17:$U17,Rank8)),LARGE($J17:$U17,Rank8),"") -> 80 | AF17: =IF(ISNUMBER(LARGE($J17:$U17,Rank9)),LARGE($J17:$U17,Rank9),"") -> 5 | AG17: =IF(ISNUMBER(LARGE($J17:$U17,Rank10)),LARGE($J17:$U17,Rank10),"") -> 5 | AH17: =IF(ISNUMBER(LARGE($J17:$U17,Rank11)),LARGE($J17:$U17,Rank11),"") ->  | AI17: =IF(ISNUMBER(LARGE($J17:$U17,Rank12)),LARGE($J17:$U17,Rank12),"") ->  | AJ17: =RateYear1*SUM(AK17:AM17)+RateYear2*SUM(AN17:AP17)+ IF(NbEventsRate1<>0,RateYear1*SUM(OFFSET($A$1,ROW()-1,FirstEventColumn+IndexEventsRate1-2,1,NbEventsRate1)),0)+ IF(NbEventsRate2<>0,RateYear2*SUM(OFFSET($A$1,ROW()-1,FirstEventColumn+IndexEventsRate2-2,1,NbEventsRate2)),0) -> 2767 | AK17: =IF(ISNUMBER(LARGE(IF(OFFSET($A$1,FirstEntryLine-3,FirstExtraEventColumn-1,1,FirstEventColumn-FirstExtraEventColumn)=AK$12,OFFSET($A$1,ROW()-1,FirstExtraEventColumn-1,1,FirstEventColumn-FirstExtraEventColumn)),Rank1)), LARGE(IF(OFFSET($A$1,FirstEntryLine-3,FirstExtraEventColumn-1,1,FirstEventColumn-FirstExtraEventColumn)=AK$12,OFFSET($A$1,ROW()-1,FirstExtraEventColumn-1,1,FirstEventColumn-FirstExtraEventColumn)),Rank1), "") -> 0 | AL17: =IF(ISNUMBER(LARGE(IF(OFFSET($A$1,FirstEntryLine-3,FirstExtraEventColumn-1,1,FirstEventColumn-FirstExtraEventColumn)=AL$12,OFFSET($A$1,ROW()-1,FirstExtraEventColumn-1,1,FirstEventColumn-FirstExtraEventColumn)),Rank2)), LARGE(IF(OFFSET($A$1,FirstEntryLine-3,FirstExtraEventColumn-1,1,FirstEventColumn-FirstExtraEventColumn)=AL$12,OFFSET($A$1,ROW()-1,FirstExtraEventColumn-1,1,FirstEventColumn-FirstExtraEventColumn)),Rank2), "") -> 0 | AN17: =IF(AT17>MAX(AS17,AU17),AT17,MAX(AS17,AU17)) -> 350 | AO17: =IF(AT17>MAX(AS17,AU17),MAX(AS17,AU17),AT17) -> 0 | AS17: 350 | AW17: 112 | BO17: 360 | BQ17: 360 | CB17: 352 | CC17: 1000 | CJ17: 160 | CK17: 500 | CM17: 360 | CO17: 10 | CS17: 10 | CV17: 10 | CX17: 120 | CZ17: 6 | DB17: 160 | DE17: 182 | DF17: 120 | DK17: 112 | DO17: 6 | DQ17: 84 | DU17: 6 | ES17: 112 | EV17: 720 | EZ17: 112 | FM17: 0 | FX17: 490
B18: =IF(G18="","",IF(ROW()=FirstEntryLine,1,IF(AND(I18=OFFSET(I18,-1,0),V18=OFFSET(V18,-1,0),W18=OFFSET(W18,-1,0),X18=OFFSET(X18,-1,0),Y18=OFFSET(Y18,-1,0),Z18=OFFSET(Z18,-1,0),AA18=OFFSET(AA18,-1,0),AB18=OFFSET(AB18,-1,0),AC18=OFFSET(AC18,-1,0),AD18=OFFSET(AD18,-1,0),AE18=OFFSET(AE18,-1,0),AF18=OFFSET(AF18,-1,0),AG18=OFFSET(AG18,-1,0),AH18=OFFSET(AH18,-1,0),AI18=OFFSET(AI18,-1,0)),OFFSET(B18,-1,0),ROW()-FirstEntryLine+1))) -> 5 | C18: GEO | D18: =IF(C18="", "", VLOOKUP(C18, ContinentShorts, 2, FALSE)) -> EJU | E18: 71454548 | G18: CHKHVIMIANI | H18: Lukhumi | I18: =SUM(J18:U18) -> 2627 | J18: =IF(ISNUMBER(LARGE((OFFSET($A$1,ROW()-1,FirstExtraEventColumn-2*(NbExtraEvents+1),1,NbExtraEvents-1+COVID_patch),OFFSET($A$1,ROW()-1,FirstEventColumn+IndexEventsRate1-2,1,NbEventsRate1)),Rank1)), IF(LARGE((OFFSET($A$1,ROW()-1,FirstExtraEventColumn-2*(NbExtraEvents+1),1,NbExtraEvents-1+COVID_patch),OFFSET($A$1,ROW()-1,FirstEventColumn+IndexEventsRate1-2,1,NbEventsRate1)),Rank1)>0, J$12*LARGE((OFFSET($A$1,ROW()-1,FirstExtraEventColumn-2*(NbExtraEvents+1),1,NbExtraEvents-1+COVID_patch),OFFSET($A$1,ROW()-1,FirstEventColumn+IndexEventsRate1-2,1,NbEventsRate1)),Rank1),""), "") -> 1000 | K18: =IF(ISNUMBER(LARGE((OFFSET($A$1,ROW()-1,FirstExtraEventColumn-2*(NbExtraEvents+1),1,NbExtraEvents-1+COVID_patch),OFFSET($A$1,ROW()-1,FirstEventColumn+IndexEventsRate1-2,1,NbEventsRate1)),Rank2)), IF(LARGE((OFFSET($A$1,ROW()-1,FirstExtraEventColumn-2*(NbExtraEvents+1),1,NbExtraEvents-1+COVID_patch),OFFSET($A$1,ROW()-1,FirstEventColumn+IndexEventsRate1-2,1,NbEventsRate1)),Rank2)>0, K$12*LARGE((OFFSET($A$1,ROW()-1,FirstExtraEventColumn-2*(NbExtraEvents+1),1,NbExtraEvents-1+COVID_patch),OFFSET($A$1,ROW()-1,FirstEventColumn+IndexEventsRate1-2,1,NbEventsRate1)),Rank2),""), "") -> 700 | L18: =IF(ISNUMBER(LARGE((OFFSET($A$1,ROW()-1,FirstExtraEventColumn-2*(NbExtraEvents+1),1,NbExtraEvents-1+COVID_patch),OFFSET($A$1,ROW()-1,FirstEventColumn+IndexEventsRate1-2,1,NbEventsRate1)),Rank3)), IF(LARGE((OFFSET($A$1,ROW()-1,FirstExtraEventColumn-2*(NbExtraEvents+1),1,NbExtraEvents-1+COVID_patch),OFFSET($A$1,ROW()-1,FirstEventColumn+IndexEventsRate1-2,1,NbEventsRate1)),Rank3)>0, L$12*LARGE((OFFSET($A$1,ROW()-1,FirstExtraEventColumn-2*(NbExtraEvents+1),1,NbExtraEvents-1+COVID_patch),OFFSET($A$1,ROW()-1,FirstEventColumn+IndexEventsRate1-2,1,NbEventsRate1)),Rank3),""), "") -> 572 | M18: =IF(ISNUMBER(LARGE((OFFSET($A$1,ROW()-1,FirstExtraEventColumn-2*(NbExtraEvents+1),1,NbExtraEvents-1+COVID_patch),OFFSET($A$1,ROW()-1,FirstEventColumn+IndexEventsRate1-2,1,NbEventsRate1)),Rank4)), IF(LARGE((OFFSET($A$1,ROW()-1,FirstExtraEventColumn-2*(NbExtraEvents+1),1,NbExtraEvents-1+COVID_patch),OFFSET($A$1,ROW()-1,FirstEventColumn+IndexEventsRate1-2,1,NbEventsRate1)),Rank4)>0, M$12*LARGE((OFFSET($A$1,ROW()-1,FirstExtraEventColumn-2*(NbExtraEvents+1),1,NbExtraEvents-1+COVID_patch),OFFSET($A$1,ROW()-1,FirstEventColumn+IndexEventsRate1-2,1,NbEventsRate1)),Rank4),""), "") ->  | N18: =IF(ISNUMBER(LARGE((OFFSET($A$1,ROW()-1,FirstExtraEventColumn-2*(NbExtraEvents+1),1,NbExtraEvents-1+COVID_patch),OFFSET($A$1,ROW()-1,FirstEventColumn+IndexEventsRate1-2,1,NbEventsRate1)),Rank5)), IF(LARGE((OFFSET($A$1,ROW()-1,FirstExtraEventColumn-2*(NbExtraEvents+1),1,NbExtraEvents-1+COVID_patch),OFFSET($A$1,ROW()-1,FirstEventColumn+IndexEventsRate1-2,1,NbEventsRate1)),Rank5)>0, N$12*LARGE((OFFSET($A$1,ROW()-1,FirstExtraEventColumn-2*(NbExtraEvents+1),1,NbExtraEvents-1+COVID_patch),OFFSET($A$1,ROW()-1,FirstEventColumn+IndexEventsRate1-2,1,NbEventsRate1)),Rank5),""), "") ->  | O18: =IF($AK18<>0,$AK$12*$AK18,"") -> 252 | P18: =IF(ISNUMBER(LARGE((OFFSET($A$1,ROW()-1,FirstExtraEventColumn-(NbExtraEvents+1),1,NbExtraEvents-1),OFFSET($A$1,ROW()-1,FirstEventColumn+IndexEventsRate2-2,1,NbEventsRate2)),Rank1)), IF(LARGE((OFFSET($A$1,ROW()-1,FirstExtraEventColumn-(NbExtraEvents+1),1,NbExtraEvents-1),OFFSET($A$1,ROW()-1,FirstEventColumn+IndexEventsRate2-2,1,NbEventsRate2)),Rank1)>0, P$12*LARGE((OFFSET($A$1,ROW()-1,FirstExtraEventColumn-(NbExtraEvents+1),1,NbExtraEvents-1),OFFSET($A$1,ROW()-1,FirstEventColumn+IndexEventsRate2-2,1,NbEventsRate2)),Rank1),""), "") -> 3 | Q18: =IF(ISNUMBER(LARGE((OFFSET($A$1,ROW()-1,FirstExtraEventColumn-(NbExtraEvents+1),1,NbExtraEvents-1),OFFSET($A$1,ROW()-1,FirstEventColumn+IndexEventsRate2-2,1,NbEventsRate2)),Rank2)), IF(LARGE((OFFSET($A$1,ROW()-1,FirstExtraEventColumn-(NbExtraEvents+1),1,NbExtraEvents-1),OFFSET($A$1,ROW()-1,FirstEventColumn+IndexEventsRate2-2,1,NbEventsRate2)),Rank2)>0, Q$12*LARGE((OFFSET($A$1,ROW()-1,FirstExtraEventColumn-(NbExtraEvents+1),1,NbExtraEvents-1),OFFSET($A$1,ROW()-1,FirstEventColumn+IndexEventsRate2-2,1,NbEventsRate2)),Rank2),""), "") ->  | R18: =IF(ISNUMBER(LARGE((OFFSET($A$1,ROW()-1,FirstExtraEventColumn-(NbExtraEvents+1),1,NbExtraEvents-1),OFFSET($A$1,ROW()-1,FirstEventColumn+IndexEventsRate2-2,1,NbEventsRate2)),Rank3)), IF(LARGE((OFFSET($A$1,ROW()-1,FirstExtraEventColumn-(NbExtraEvents+1),1,NbExtraEvents-1),OFFSET($A$1,ROW()-1,FirstEventColumn+IndexEventsRate2-2,1,NbEventsRate2)),Rank3)>0, R$12*LARGE((OFFSET($A$1,ROW()-1,FirstExtraEventColumn-(NbExtraEvents+1),1,NbExtraEvents-1),OFFSET($A$1,ROW()-1,FirstEventColumn+IndexEventsRate2-2,1,NbEventsRate2)),Rank3),""), "") ->  | S18: =IF(ISNUMBER(LARGE((OFFSET($A$1,ROW()-1,FirstExtraEventColumn-(NbExtraEvents+1),1,NbExtraEvents-1),OFFSET($A$1,ROW()-1,FirstEventColumn+IndexEventsRate2-2,1,NbEventsRate2)),Rank4)), IF(LARGE((OFFSET($A$1,ROW()-1,FirstExtraEventColumn-(NbExtraEvents+1),1,NbExtraEvents-1),OFFSET($A$1,ROW()-1,FirstEventColumn+IndexEventsRate2-2,1,NbEventsRate2)),Rank4)>0, S$12*LARGE((OFFSET($A$1,ROW()-1,FirstExtraEventColumn-(NbExtraEvents+1),1,NbExtraEvents-1),OFFSET($A$1,ROW()-1,FirstEventColumn+IndexEventsRate2-2,1,NbEventsRate2)),Rank4),""), "") ->  | T18: =IF(ISNUMBER(LARGE((OFFSET($A$1,ROW()-1,FirstExtraEventColumn-(NbExtraEvents+1),1,NbExtraEvents-1),OFFSET($A$1,ROW()-1,FirstEventColumn+IndexEventsRate2-2,1,NbEventsRate2)),Rank5)), IF(LARGE((OFFSET($A$1,ROW()-1,FirstExtraEventColumn-(NbExtraEvents+1),1,NbExtraEvents-1),OFFSET($A$1,ROW()-1,FirstEventColumn+IndexEventsRate2-2,1,NbEventsRate2)),Rank5)>0, T$12*LARGE((OFFSET($A$1,ROW()-1,FirstExtraEventColumn-(NbExtraEvents+1),1,NbExtraEvents-1),OFFSET($A$1,ROW()-1,FirstEventColumn+IndexEventsRate2-2,1,NbEventsRate2)),Rank5),""), "") ->  | U18: =IF($AN18<>0,$AN$12*$AN18,"") -> 100 | V18: =RateYear1*SUMIFS(OFFSET($A$1,ROW()-1,FirstExtraEventColumn-1,1,IndexExtraEventEnd+IndexEventEnd-2),OFFSET($A$1,RateLine-1,FirstExtraEventColumn-1,1,IndexExtraEventEnd+IndexEventEnd-2),RateYear1,OFFSET($A$1,RateLine-3,FirstExtraEventColumn-1,1,IndexExtraEventEnd+IndexEventEnd-2),"WCS") +RateYear2*SUMIFS(OFFSET($A$1,ROW()-1,FirstExtraEventColumn-1,1,IndexExtraEventEnd+IndexEventEnd-2),OFFSET($A$1,RateLine-1,FirstExtraEventColumn-1,1,IndexExtraEventEnd+IndexEventEnd-2),RateYear2,OFFSET($A$1,RateLine-3,FirstExtraEventColumn-1,1,IndexExtraEventEnd+IndexEventEnd-2),"WCS") -> 0 | W18: =RateYear1* (SUMIFS(OFFSET($A$1,ROW()-1,FirstExtraEventColumn-1,1,IndexExtraEventEnd+IndexEventEnd-2),OFFSET($A$1,RateLine-1,FirstExtraEventColumn-1,1,IndexExtraEventEnd+IndexEventEnd-2),RateYear1,OFFSET($A$1,RateLine-3,FirstExtraEventColumn-1,1,IndexExtraEventEnd+IndexEventEnd-2),"GP") +SUMIFS(OFFSET($A$1,ROW()-1,FirstExtraEventColumn-1,1,IndexExtraEventEnd+IndexEventEnd-2),OFFSET($A$1,RateLine-1,FirstExtraEventColumn-1,1,IndexExtraEventEnd+IndexEventEnd-2),RateYear1,OFFSET($A$1,RateLine-3,FirstExtraEventColumn-1,1,IndexExtraEventEnd+IndexEventEnd-2),"GS") +SUMIFS(OFFSET($A$1,ROW()-1,FirstExtraEventColumn-1,1,IndexExtraEventEnd+IndexEventEnd-2),OFFSET($A$1,RateLine-1,FirstExtraEventColumn-1,1,IndexExtraEventEnd+IndexEventEnd-2),RateYear1,OFFSET($A$1,RateLine-3,FirstExtraEventColumn-1,1,IndexExtraEventEnd+IndexEventEnd-2),"Masters")) +RateYear2* (SUMIFS(OFFSET($A$1,ROW()-1,FirstExtraEventColumn-1,1,IndexExtraEventEnd+IndexEventEnd-2),OFFSET($A$1,RateLine-1,FirstExtraEventColumn-1,1,IndexExtraEventEnd+IndexEventEnd-2),RateYear2,OFFSET($A$1,RateLine-3,FirstExtraEventColumn-1,1,IndexExtraEventEnd+IndexEventEnd-2),"GP") +SUMIFS(OFFSET($A$1,ROW()-1,FirstExtraEventColumn-1,1,IndexExtraEventEnd+IndexEventEnd-2),OFFSET($A$1,RateLine-1,FirstExtraEventColumn-1,1,IndexExtraEventEnd+IndexEventEnd-2),RateYear2,OFFSET($A$1,RateLine-3,FirstExtraEventColumn-1,1,IndexExtraEventEnd+IndexEventEnd-2),"GS") +SUMIFS(OFFSET($A$1,ROW()-1,FirstExtraEventColumn-1,1,IndexExtraEventEnd+IndexEventEnd-2),OFFSET($A$1,RateLine-1,FirstExtraEventColumn-1,1,IndexExtraEventEnd+IndexEventEnd-2),RateYear2,OFFSET($A$1,RateLine-3,FirstExtraEventColumn-1,1,IndexExtraEventEnd+IndexEventEnd-2),"Masters")) -> 1800 | X18: =IF(ISNUMBER(LARGE($J18:$U18,Rank1)),LARGE($J18:$U18,Rank1),"") -> 1000 | Y18: =IF(ISNUMBER(LARGE($J18:$U18,Rank2)),LARGE($J18:$U18,Rank2),"") -> 700 | Z18: =IF(ISNUMBER(LARGE($J18:$U18,Rank3)),LARGE($J18:$U18,Rank3),"") -> 572 | AA18: =IF(ISNUMBER(LARGE($J18:$U18,Rank4)),LARGE($J18:$U18,Rank4),"") -> 252 | AB18: =IF(ISNUMBER(LARGE($J18:$U18,Rank5)),LARGE($J18:$U18,Rank5),"") -> 100 | AC18: =IF(ISNUMBER(LARGE($J18:$U18,Rank6)),LARGE($J18:$U18,Rank6),"") -> 3 | AD18: =IF(ISNUMBER(LARGE($J18:$U18,Rank7)),LARGE($J18:$U18,Rank7),"") ->  | AE18: =IF(ISNUMBER(LARGE($J18:$U18,Rank8)),LARGE($J18:$U18,Rank8),"") ->  | AF18: =IF(ISNUMBER(LARGE($J18:$U18,Rank9)),LARGE($J18:$U18,Rank9),"") ->  | AG18: =IF(ISNUMBER(LARGE($J18:$U18,Rank10)),LARGE($J18:$U18,Rank10),"") ->  | AH18: =IF(ISNUMBER(LARGE($J18:$U18,Rank11)),LARGE($J18:$U18,Rank11),"") ->  | AI18: =IF(ISNUMBER(LARGE($J18:$U18,Rank12)),LARGE($J18:$U18,Rank12),"") ->  | AJ18: =RateYear1*SUM(AK18:AM18)+RateYear2*SUM(AN18:AP18)+ IF(NbEventsRate1<>0,RateYear1*SUM(OFFSET($A$1,ROW()-1,FirstEventColumn+IndexEventsRate1-2,1,NbEventsRate1)),0)+ IF(NbEventsRate2<>0,RateYear2*SUM(OFFSET($A$1,ROW()-1,FirstEventColumn+IndexEventsRate2-2,1,NbEventsRate2)),0) -> 2627 | AK18: =IF(ISNUMBER(LARGE(IF(OFFSET($A$1,FirstEntryLine-3,FirstExtraEventColumn-1,1,FirstEventColumn-FirstExtraEventColumn)=AK$12,OFFSET($A$1,ROW()-1,FirstExtraEventColumn-1,1,FirstEventColumn-FirstExtraEventColumn)),Rank1)), LARGE(IF(OFFSET($A$1,FirstEntryLine-3,FirstExtraEventColumn-1,1,FirstEventColumn-FirstExtraEventColumn)=AK$12,OFFSET($A$1,ROW()-1,FirstExtraEventColumn-1,1,FirstEventColumn-FirstExtraEventColumn)),Rank1), "") -> 252 | AL18: =IF(ISNUMBER(LARGE(IF(OFFSET($A$1,FirstEntryLine-3,FirstExtraEventColumn-1,1,FirstEventColumn-FirstExtraEventColumn)=AL$12,OFFSET($A$1,ROW()-1,FirstExtraEventColumn-1,1,FirstEventColumn-FirstExtraEventColumn)),Rank2)), LARGE(IF(OFFSET($A$1,FirstEntryLine-3,FirstExtraEventColumn-1,1,FirstEventColumn-FirstExtraEventColumn)=AL$12,OFFSET($A$1,ROW()-1,FirstExtraEventColumn-1,1,FirstEventColumn-FirstExtraEventColumn)),Rank2), "") -> 0 | AN18: =IF(AT18>MAX(AS18,AU18),AT18,MAX(AS18,AU18)) -> 200 | AO18: =IF(AT18>MAX(AS18,AU18),MAX(AS18,AU18),AT18) -> 6 | AQ18: 252 | AT18: 200 | AU18: 6 | AV18: 200 | AW18: 700 | AX18: 200 | AY18: 6 | BA18: 252 | BJ18: 700 | CB18: 572 | CF18: 1000 | DM18: 2000 | DX18: 700 | EA18: 360 | EE18: 500 | ER18: 260 | EV18: 240 | EY18: 252 | FE18: 700 | FL18: 500 | FN18: 260 | GI18: 260 | GK18: 700 | GR18: 6 | GT18: 160 | HN18: 2 | HO18: 36 | HP18: 2 | HV18: 2 | HX18: 2
B19: =IF(G19="","",IF(ROW()=FirstEntryLine,1,IF(AND(I19=OFFSET(I19,-1,0),V19=OFFSET(V19,-1,0),W19=OFFSET(W19,-1,0),X19=OFFSET(X19,-1,0),Y19=OFFSET(Y19,-1,0),Z19=OFFSET(Z19,-1,0),AA19=OFFSET(AA19,-1,0),AB19=OFFSET(AB19,-1,0),AC19=OFFSET(AC19,-1,0),AD19=OFFSET(AD19,-1,0),AE19=OFFSET(AE19,-1,0),AF19=OFFSET(AF19,-1,0),AG19=OFFSET(AG19,-1,0),AH19=OFFSET(AH19,-1,0),AI19=OFFSET(AI19,-1,0)),OFFSET(B19,-1,0),ROW()-FirstEntryLine+1))) -> 6 | C19: UKR | D19: =IF(C19="", "", VLOOKUP(C19, ContinentShorts, 2, FALSE)) -> EJU | E19: 5eaa85a7 | G19: LESIUK | H19: Artem | I19: =SUM(J19:U19) -> 2597 | J19: =IF(ISNUMBER(LARGE((OFFSET($A$1,ROW()-1,FirstExtraEventColumn-2*(NbExtraEvents+1),1,NbExtraEvents-1+COVID_patch),OFFSET($A$1,ROW()-1,FirstEventColumn+IndexEventsRate1-2,1,NbEventsRate1)),Rank1)), IF(LARGE((OFFSET($A$1,ROW()-1,FirstExtraEventColumn-2*(NbExtraEvents+1),1,NbExtraEvents-1+COVID_patch),OFFSET($A$1,ROW()-1,FirstEventColumn+IndexEventsRate1-2,1,NbEventsRate1)),Rank1)>0, J$12*LARGE((OFFSET($A$1,ROW()-1,FirstExtraEventColumn-2*(NbExtraEvents+1),1,NbExtraEvents-1+COVID_patch),OFFSET($A$1,ROW()-1,FirstEventColumn+IndexEventsRate1-2,1,NbEventsRate1)),Rank1),""), "") -> 1000 | K19: =IF(ISNUMBER(LARGE((OFFSET($A$1,ROW()-1,FirstExtraEventColumn-2*(NbExtraEvents+1),1,NbExtraEvents-1+COVID_patch),OFFSET($A$1,ROW()-1,FirstEventColumn+IndexEventsRate1-2,1,NbEventsRate1)),Rank2)), IF(LARGE((OFFSET($A$1,ROW()-1,FirstExtraEventColumn-2*(NbExtraEvents+1),1,NbExtraEvents-1+COVID_patch),OFFSET($A$1,ROW()-1,FirstEventColumn+IndexEventsRate1-2,1,NbEventsRate1)),Rank2)>0, K$12*LARGE((OFFSET($A$1,ROW()-1,FirstExtraEventColumn-2*(NbExtraEvents+1),1,NbExtraEvents-1+COVID_patch),OFFSET($A$1,ROW()-1,FirstEventColumn+IndexEventsRate1-2,1,NbEventsRate1)),Rank2),""), "") -> 572 | L19: =IF(ISNUMBER(LARGE((OFFSET($A$1,ROW()-1,FirstExtraEventColumn-2*(NbExtraEvents+1),1,NbExtraEvents-1+COVID_patch),OFFSET($A$1,ROW()-1,FirstEventColumn+IndexEventsRate1-2,1,NbEventsRate1)),Rank3)), IF(LARGE((OFFSET($A$1,ROW()-1,FirstExtraEventColumn-2*(NbExtraEvents+1),1,NbExtraEvents-1+COVID_patch),OFFSET($A$1,ROW()-1,FirstEventColumn+IndexEventsRate1-2,1,NbEventsRate1)),Rank3)>0, L$12*LARGE((OFFSET($A$1,ROW()-1,FirstExtraEventColumn-2*(NbExtraEvents+1),1,NbExtraEvents-1+COVID_patch),OFFSET($A$1,ROW()-1,FirstEventColumn+IndexEventsRate1-2,1,NbEventsRate1)),Rank3),""), "") -> 240 | M19: =IF(ISNUMBER(LARGE((OFFSET($A$1,ROW()-1,FirstExtraEventColumn-2*(NbExtraEvents+1),1,NbExtraEvents-1+COVID_patch),OFFSET($A$1,ROW()-1,FirstEventColumn+IndexEventsRate1-2,1,NbEventsRate1)),Rank4)), IF(LARGE((OFFSET($A$1,ROW()-1,FirstExtraEventColumn-2*(NbExtraEvents+1),1,NbExtraEvents-1+COVID_patch),OFFSET($A$1,ROW()-1,FirstEventColumn+IndexEventsRate1-2,1,NbEventsRate1)),Rank4)>0, M$12*LARGE((OFFSET($A$1,ROW()-1,FirstExtraEventColumn-2*(NbExtraEvents+1),1,NbExtraEvents-1+COVID_patch),OFFSET($A$1,ROW()-1,FirstEventColumn+IndexEventsRate1-2,1,NbEventsRate1)),Rank4),""), "") -> 112 | N19: =IF(ISNUMBER(LARGE((OFFSET($A$1,ROW()-1,FirstExtraEventColumn-2*(NbExtraEvents+1),1,NbExtraEvents-1+COVID_patch),OFFSET($A$1,ROW()-1,FirstEventColumn+IndexEventsRate1-2,1,NbEventsRate1)),Rank5)), IF(LARGE((OFFSET($A$1,ROW()-1,FirstExtraEventColumn-2*(NbExtraEvents+1),1,NbExtraEvents-1+COVID_patch),OFFSET($A$1,ROW()-1,FirstEventColumn+IndexEventsRate1-2,1,NbEventsRate1)),Rank5)>0, N$12*LARGE((OFFSET($A$1,ROW()-1,FirstExtraEventColumn-2*(NbExtraEvents+1),1,NbExtraEvents-1+COVID_patch),OFFSET($A$1,ROW()-1,FirstEventColumn+IndexEventsRate1-2,1,NbEventsRate1)),Rank5),""), "") ->  | O19: =IF($AK19<>0,$AK$12*$AK19,"") -> 182 | P19: =IF(ISNUMBER(LARGE((OFFSET($A$1,ROW()-1,FirstExtraEventColumn-(NbExtraEvents+1),1,NbExtraEvents-1),OFFSET($A$1,ROW()-1,FirstEventColumn+IndexEventsRate2-2,1,NbEventsRate2)),Rank1)), IF(LARGE((OFFSET($A$1,ROW()-1,FirstExtraEventColumn-(NbExtraEvents+1),1,NbExtraEvents-1),OFFSET($A$1,ROW()-1,FirstEventColumn+IndexEventsRate2-2,1,NbEventsRate2)),Rank1)>0, P$12*LARGE((OFFSET($A$1,ROW()-1,FirstExtraEventColumn-(NbExtraEvents+1),1,NbExtraEvents-1),OFFSET($A$1,ROW()-1,FirstEventColumn+IndexEventsRate2-2,1,NbEventsRate2)),Rank1),""), "") -> 180 | Q19: =IF(ISNUMBER(LARGE((OFFSET($A$1,ROW()-1,FirstExtraEventColumn-(NbExtraEvents+1),1,NbExtraEvents-1),OFFSET($A$1,ROW()-1,FirstEventColumn+IndexEventsRate2-2,1,NbEventsRate2)),Rank2)), IF(LARGE((OFFSET($A$1,ROW()-1,FirstExtraEventColumn-(NbExtraEvents+1),1,NbExtraEvents-1),OFFSET($A$1,ROW()-1,FirstEventColumn+IndexEventsRate2-2,1,NbEventsRate2)),Rank2)>0, Q$12*LARGE((OFFSET($A$1,ROW()-1,FirstExtraEventColumn-(NbExtraEvents+1),1,NbExtraEvents-1),OFFSET($A$1,ROW()-1,FirstEventColumn+IndexEventsRate2-2,1,NbEventsRate2)),Rank2),""), "") -> 100 | R19: =IF(ISNUMBER(LARGE((OFFSET($A$1,ROW()-1,FirstExtraEventColumn-(NbExtraEvents+1),1,NbExtraEvents-1),OFFSET($A$1,ROW()-1,FirstEventColumn+IndexEventsRate2-2,1,NbEventsRate2)),Rank3)), IF(LARGE((OFFSET($A$1,ROW()-1,FirstExtraEventColumn-(NbExtraEvents+1),1,NbExtraEvents-1),OFFSET($A$1,ROW()-1,FirstEventColumn+IndexEventsRate2-2,1,NbEventsRate2)),Rank3)>0, R$12*LARGE((OFFSET($A$1,ROW()-1,FirstExtraEventColumn-(NbExtraEvents+1),1,NbExtraEvents-1),OFFSET($A$1,ROW()-1,FirstEventColumn+IndexEventsRate2-2,1,NbEventsRate2)),Rank3),""), "") -> 80 | S19: =IF(ISNUMBER(LARGE((OFFSET($A$1,ROW()-1,FirstExtraEventColumn-(NbExtraEvents+1),1,NbExtraEvents-1),OFFSET($A$1,ROW()-1,FirstEventColumn+IndexEventsRate2-2,1,NbEventsRate2)),Rank4)), IF(LARGE((OFFSET($A$1,ROW()-1,FirstExtraEventColumn-(NbExtraEvents+1),1,NbExtraEvents-1),OFFSET($A$1,ROW()-1,FirstEventColumn+IndexEventsRate2-2,1,NbEventsRate2)),Rank4)>0, S$12*LARGE((OFFSET($A$1,ROW()-1,FirstExtraEventColumn-(NbExtraEvents+1),1,NbExtraEvents-1),OFFSET($A$1,ROW()-1,FirstEventColumn+IndexEventsRate2-2,1,NbEventsRate2)),Rank4),""), "") -> 5 | T19: =IF(ISNUMBER(LARGE((OFFSET($A$1,ROW()-1,FirstExtraEventColumn-(NbExtraEvents+1),1,NbExtraEvents-1),OFFSET($A$1,ROW()-1,FirstEventColumn+IndexEventsRate2-2,1,NbEventsRate2)),Rank5)), IF(LARGE((OFFSET($A$1,ROW()-1,FirstExtraEventColumn-(NbExtraEvents+1),1,NbExtraEvents-1),OFFSET($A$1,ROW()-1,FirstEventColumn+IndexEventsRate2-2,1,NbEventsRate2)),Rank5)>0, T$12*LARGE((OFFSET($A$1,ROW()-1,FirstExtraEventColumn-(NbExtraEvents+1),1,NbExtraEvents-1),OFFSET($A$1,ROW()-1,FirstEventColumn+IndexEventsRate2-2,1,NbEventsRate2)),Rank5),""), "") ->  | U19: =IF($AN19<>0,$AN$12*$AN19,"") -> 126 | V19: =RateYear1*SUMIFS(OFFSET($A$1,ROW()-1,FirstExtraEventColumn-1,1,IndexExtraEventEnd+IndexEventEnd-2),OFFSET($A$1,RateLine-1,FirstExtraEventColumn-1,1,IndexExtraEventEnd+IndexEventEnd-2),RateYear1,OFFSET($A$1,RateLine-3,FirstExtraEventColumn-1,1,IndexExtraEventEnd+IndexEventEnd-2),"WCS") +RateYear2*SUMIFS(OFFSET($A$1,ROW()-1,FirstExtraEventColumn-1,1,IndexExtraEventEnd+IndexEventEnd-2),OFFSET($A$1,RateLine-1,FirstExtraEventColumn-1,1,IndexExtraEventEnd+IndexEventEnd-2),RateYear2,OFFSET($A$1,RateLine-3,FirstExtraEventColumn-1,1,IndexExtraEventEnd+IndexEventEnd-2),"WCS") -> 240 | W19: =RateYear1* (SUMIFS(OFFSET($A$1,ROW()-1,FirstExtraEventColumn-1,1,IndexExtraEventEnd+IndexEventEnd-2),OFFSET($A$1,RateLine-1,FirstExtraEventColumn-1,1,IndexExtraEventEnd+IndexEventEnd-2),RateYear1,OFFSET($A$1,RateLine-3,FirstExtraEventColumn-1,1,IndexExtraEventEnd+IndexEventEnd-2),"GP") +SUMIFS(OFFSET($A$1,ROW()-1,FirstExtraEventColumn-1,1,IndexExtraEventEnd+IndexEventEnd-2),OFFSET($A$1,RateLine-1,FirstExtraEventColumn-1,1,IndexExtraEventEnd+IndexEventEnd-2),RateYear1,OFFSET($A$1,RateLine-3,FirstExtraEventColumn-1,1,IndexExtraEventEnd+IndexEventEnd-2),"GS") +SUMIFS(OFFSET($A$1,ROW()-1,FirstExtraEventColumn-1,1,IndexExtraEventEnd+IndexEventEnd-2),OFFSET($A$1,RateLine-1,FirstExtraEventColumn-1,1,IndexExtraEventEnd+IndexEventEnd-2),RateYear1,OFFSET($A$1,RateLine-3,FirstExtraEventColumn-1,1,IndexExtraEventEnd+IndexEventEnd-2),"Masters")) +RateYear2* (SUMIFS(OFFSET($A$1,ROW()-1,FirstExtraEventColumn-1,1,IndexExtraEventEnd+IndexEventEnd-2),OFFSET($A$1,RateLine-1,FirstExtraEventColumn-1,1,IndexExtraEventEnd+IndexEventEnd-2),RateYear2,OFFSET($A$1,RateLine-3,FirstExtraEventColumn-1,1,IndexExtraEventEnd+IndexEventEnd-2),"GP") +SUMIFS(OFFSET($A$1,ROW()-1,FirstExtraEventColumn-1,1,IndexExtraEventEnd+IndexEventEnd-2),OFFSET($A$1,RateLine-1,FirstExtraEventColumn-1,1,IndexExtraEventEnd+IndexEventEnd-2),RateYear2,OFFSET($A$1,RateLine-3,FirstExtraEventColumn-1,1,IndexExtraEventEnd+IndexEventEnd-2),"GS") +SUMIFS(OFFSET($A$1,ROW()-1,FirstExtraEventColumn-1,1,IndexExtraEventEnd+IndexEventEnd-2),OFFSET($A$1,RateLine-1,FirstExtraEventColumn-1,1,IndexExtraEventEnd+IndexEventEnd-2),RateYear2,OFFSET($A$1,RateLine-3,FirstExtraEventColumn-1,1,IndexExtraEventEnd+IndexEventEnd-2),"Masters")) -> 1477 | X19: =IF(ISNUMBER(LARGE($J19:$U19,Rank1)),LARGE($J19:$U19,Rank1),"") -> 1000 | Y19: =IF(ISNUMBER(LARGE($J19:$U19,Rank2)),LARGE($J19:$U19,Rank2),"") -> 572 | Z19: =IF(ISNUMBER(LARGE($J19:$U19,Rank3)),LARGE($J19:$U19,Rank3),"") -> 240 | AA19: =IF(ISNUMBER(LARGE($J19:$U19,Rank4)),LARGE($J19:$U19,Rank4),"") -> 182 | AB19: =IF(ISNUMBER(LARGE($J19:$U19,Rank5)),LARGE($J19:$U19,Rank5),"") -> 180 | AC19: =IF(ISNUMBER(LARGE($J19:$U19,Rank6)),LARGE($J19:$U19,Rank6),"") -> 126 | AD19: =IF(ISNUMBER(LARGE($J19:$U19,Rank7)),LARGE($J19:$U19,Rank7),"") -> 112 | AE19: =IF(ISNUMBER(LARGE($J19:$U19,Rank8)),LARGE($J19:$U19,Rank8),"") -> 100 | AF19: =IF(ISNUMBER(LARGE($J19:$U19,Rank9)),LARGE($J19:$U19,Rank9),"") -> 80 | AG19: =IF(ISNUMBER(LARGE($J19:$U19,Rank10)),LARGE($J19:$U19,Rank10),"") -> 5 | AH19: =IF(ISNUMBER(LARGE($J19:$U19,Rank11)),LARGE($J19:$U19,Rank11),"") ->  | AI19: =IF(ISNUMBER(LARGE($J19:$U19,Rank12)),LARGE($J19:$U19,Rank12),"") ->  | AJ19: =RateYear1*SUM(AK19:AM19)+RateYear2*SUM(AN19:AP19)+ IF(NbEventsRate1<>0,RateYear1*SUM(OFFSET($A$1,ROW()-1,FirstEventColumn+IndexEventsRate1-2,1,NbEventsRate1)),0)+ IF(NbEventsRate2<>0,RateYear2*SUM(OFFSET($A$1,ROW()-1,FirstEventColumn+IndexEventsRate2-2,1,NbEventsRate2)),0) -> 2597 | AK19: =IF(ISNUMBER(LARGE(IF(OFFSET($A$1,FirstEntryLine-3,FirstExtraEventColumn-1,1,FirstEventColumn-FirstExtraEventColumn)=AK$12,OFFSET($A$1,ROW()-1,FirstExtraEventColumn-1,1,FirstEventColumn-FirstExtraEventColumn)),Rank1)), LARGE(IF(OFFSET($A$1,FirstEntryLine-3,FirstExtraEventColumn-1,1,FirstEventColumn-FirstExtraEventColumn)=AK$12,OFFSET($A$1,ROW()-1,FirstExtraEventColumn-1,1,FirstEventColumn-FirstExtraEventColumn)),Rank1), "") -> 182 | AL19: =IF(ISNUMBER(LARGE(IF(OFFSET($A$1,FirstEntryLine-3,FirstExtraEventColumn-1,1,FirstEventColumn-FirstExtraEventColumn)=AL$12,OFFSET($A$1,ROW()-1,FirstExtraEventColumn-1,1,FirstEventColumn-FirstExtraEventColumn)),Rank2)), LARGE(IF(OFFSET($A$1,FirstEntryLine-3,FirstExtraEventColumn-1,1,FirstEventColumn-FirstExtraEventColumn)=AL$12,OFFSET($A$1,ROW()-1,FirstExtraEventColumn-1,1,FirstEventColumn-FirstExtraEventColumn)),Rank2), "") -> 0 | AN19: =IF(AT19>MAX(AS19,AU19),AT19,MAX(AS19,AU19)) -> 252 | AO19: =IF(AT19>MAX(AS19,AU19),MAX(AS19,AU19),AT19) -> 200 | AQ19: 182 | AS19: 6 | AT19: 200 | AU19: 252 | AV19: 288 | AW19: 6 | AY19: 252 | BO19: 1000 | BR19: 112 | CB19: 572 | CC19: 240 | CM19: 10 | CO19: 360 | CS19: 160 | CX19: 160 | CZ19: 112 | DB19: 160 | DE19: 350 | DI19: 10 | DK19: 6 | DM19: 320 | DV19: 10 | DW19: 252 | DX19: 252 | EC19: 490 | EG19: 120 | EI19: 6 | EL19: 120 | EO19: 252 | ER19: 160 | EV19: 20 | EZ19: 182 | FL19: 10 | FO19: 50 | FP19: 6 | GC19: 20 | GD19: 36 | GH19: 16 | HU19: 0
B20: =IF(G20="","",IF(ROW()=FirstEntryLine,1,IF(AND(I20=OFFSET(I20,-1,0),V20=OFFSET(V20,-1,0),W20=OFFSET(W20,-1,0),X20=OFFSET(X20,-1,0),Y20=OFFSET(Y20,-1,0),Z20=OFFSET(Z20,-1,0),AA20=OFFSET(AA20,-1,0),AB20=OFFSET(AB20,-1,0),AC20=OFFSET(AC20,-1,0),AD20=OFFSET(AD20,-1,0),AE20=OFFSET(AE20,-1,0),AF20=OFFSET(AF20,-1,0),AG20=OFFSET(AG20,-1,0),AH20=OFFSET(AH20,-1,0),AI20=OFFSET(AI20,-1,0)),OFFSET(B20,-1,0),ROW()-FirstEntryLine+1))) -> 7 | C20: JPN | D20: =IF(C20="", "", VLOOKUP(C20, ContinentShorts, 2, FALSE)) -> JUA | E20: 21476dc7 | G20: TAKATO | H20: Naohisa | I20: =SUM(J20:U20) -> 2550 | J20: =IF(ISNUMBER(LARGE((OFFSET($A$1,ROW()-1,FirstExtraEventColumn-2*(NbExtraEvents+1),1,NbExtraEvents-1+COVID_patch),OFFSET($A$1,ROW()-1,FirstEventColumn+IndexEventsRate1-2,1,NbEventsRate1)),Rank1)), IF(LARGE((OFFSET($A$1,ROW()-1,FirstExtraEventColumn-2*(NbExtraEvents+1),1,NbExtraEvents-1+COVID_patch),OFFSET($A$1,ROW()-1,FirstEventColumn+IndexEventsRate1-2,1,NbEventsRate1)),Rank1)>0, J$12*LARGE((OFFSET($A$1,ROW()-1,FirstExtraEventColumn-2*(NbExtraEvents+1),1,NbExtraEvents-1+COVID_patch),OFFSET($A$1,ROW()-1,FirstEventColumn+IndexEventsRate1-2,1,NbEventsRate1)),Rank1),""), "") -> 2200 | K20: =IF(ISNUMBER(LARGE((OFFSET($A$1,ROW()-1,FirstExtraEventColumn-2*(NbExtraEvents+1),1,NbExtraEvents-1+COVID_patch),OFFSET($A$1,ROW()-1,FirstEventColumn+IndexEventsRate1-2,1,NbEventsRate1)),Rank2)), IF(LARGE((OFFSET($A$1,ROW()-1,FirstExtraEventColumn-2*(NbExtraEvents+1),1,NbExtraEvents-1+COVID_patch),OFFSET($A$1,ROW()-1,FirstEventColumn+IndexEventsRate1-2,1,NbEventsRate1)),Rank2)>0, K$12*LARGE((OFFSET($A$1,ROW()-1,FirstExtraEventColumn-2*(NbExtraEvents+1),1,NbExtraEvents-1+COVID_patch),OFFSET($A$1,ROW()-1,FirstEventColumn+IndexEventsRate1-2,1,NbEventsRate1)),Rank2),""), "") ->  | L20: =IF(ISNUMBER(LARGE((OFFSET($A$1,ROW()-1,FirstExtraEventColumn-2*(NbExtraEvents+1),1,NbExtraEvents-1+COVID_patch),OFFSET($A$1,ROW()-1,FirstEventColumn+IndexEventsRate1-2,1,NbEventsRate1)),Rank3)), IF(LARGE((OFFSET($A$1,ROW()-1,FirstExtraEventColumn-2*(NbExtraEvents+1),1,NbExtraEvents-1+COVID_patch),OFFSET($A$1,ROW()-1,FirstEventColumn+IndexEventsRate1-2,1,NbEventsRate1)),Rank3)>0, L$12*LARGE((OFFSET($A$1,ROW()-1,FirstExtraEventColumn-2*(NbExtraEvents+1),1,NbExtraEvents-1+COVID_patch),OFFSET($A$1,ROW()-1,FirstEventColumn+IndexEventsRate1-2,1,NbEventsRate1)),Rank3),""), "") ->  | M20: =IF(ISNUMBER(LARGE((OFFSET($A$1,ROW()-1,FirstExtraEventColumn-2*(NbExtraEvents+1),1,NbExtraEvents-1+COVID_patch),OFFSET($A$1,ROW()-1,FirstEventColumn+IndexEventsRate1-2,1,NbEventsRate1)),Rank4)), IF(LARGE((OFFSET($A$1,ROW()-1,FirstExtraEventColumn-2*(NbExtraEvents+1),1,NbExtraEvents-1+COVID_patch),OFFSET($A$1,ROW()-1,FirstEventColumn+IndexEventsRate1-2,1,NbEventsRate1)),Rank4)>0, M$12*LARGE((OFFSET($A$1,ROW()-1,FirstExtraEventColumn-2*(NbExtraEvents+1),1,NbExtraEvents-1+COVID_patch),OFFSET($A$1,ROW()-1,FirstEventColumn+IndexEventsRate1-2,1,NbEventsRate1)),Rank4),""), "") ->  | N20: =IF(ISNUMBER(LARGE((OFFSET($A$1,ROW()-1,FirstExtraEventColumn-2*(NbExtraEvents+1),1,NbExtraEvents-1+COVID_patch),OFFSET($A$1,ROW()-1,FirstEventColumn+IndexEventsRate1-2,1,NbEventsRate1)),Rank5)), IF(LARGE((OFFSET($A$1,ROW()-1,FirstExtraEventColumn-2*(NbExtraEvents+1),1,NbExtraEvents-1+COVID_patch),OFFSET($A$1,ROW()-1,FirstEventColumn+IndexEventsRate1-2,1,NbEventsRate1)),Rank5)>0, N$12*LARGE((OFFSET($A$1,ROW()-1,FirstExtraEventColumn-2*(NbExtraEvents+1),1,NbExtraEvents-1+COVID_patch),OFFSET($A$1,ROW()-1,FirstEventColumn+IndexEventsRate1-2,1,NbEventsRate1)),Rank5),""), "") ->  | O20: =IF($AK20<>0,$AK$12*$AK20,"") ->  | P20: =IF(ISNUMBER(LARGE((OFFSET($A$1,ROW()-1,FirstExtraEventColumn-(NbExtraEvents+1),1,NbExtraEvents-1),OFFSET($A$1,ROW()-1,FirstEventColumn+IndexEventsRate2-2,1,NbEventsRate2)),Rank1)), IF(LARGE((OFFSET($A$1,ROW()-1,FirstExtraEventColumn-(NbExtraEvents+1),1,NbExtraEvents-1),OFFSET($A$1,ROW()-1,FirstEventColumn+IndexEventsRate2-2,1,NbEventsRate2)),Rank1)>0, P$12*LARGE((OFFSET($A$1,ROW()-1,FirstExtraEventColumn-(NbExtraEvents+1),1,NbExtraEvents-1),OFFSET($A$1,ROW()-1,FirstEventColumn+IndexEventsRate2-2,1,NbEventsRate2)),Rank1),""), "") ->  | Q20: =IF(ISNUMBER(LARGE((OFFSET($A$1,ROW()-1,FirstExtraEventColumn-(NbExtraEvents+1),1,NbExtraEvents-1),OFFSET($A$1,ROW()-1,FirstEventColumn+IndexEventsRate2-2,1,NbEventsRate2)),Rank2)), IF(LARGE((OFFSET($A$1,ROW()-1,FirstExtraEventColumn-(NbExtraEvents+1),1,NbExtraEvents-1),OFFSET($A$1,ROW()-1,FirstEventColumn+IndexEventsRate2-2,1,NbEventsRate2)),Rank2)>0, Q$12*LARGE((OFFSET($A$1,ROW()-1,FirstExtraEventColumn-(NbExtraEvents+1),1,NbExtraEvents-1),OFFSET($A$1,ROW()-1,FirstEventColumn+IndexEventsRate2-2,1,NbEventsRate2)),Rank2),""), "") ->  | R20: =IF(ISNUMBER(LARGE((OFFSET($A$1,ROW()-1,FirstExtraEventColumn-(NbExtraEvents+1),1,NbExtraEvents-1),OFFSET($A$1,ROW()-1,FirstEventColumn+IndexEventsRate2-2,1,NbEventsRate2)),Rank3)), IF(LARGE((OFFSET($A$1,ROW()-1,FirstExtraEventColumn-(NbExtraEvents+1),1,NbExtraEvents-1),OFFSET($A$1,ROW()-1,FirstEventColumn+IndexEventsRate2-2,1,NbEventsRate2)),Rank3)>0, R$12*LARGE((OFFSET($A$1,ROW()-1,FirstExtraEventColumn-(NbExtraEvents+1),1,NbExtraEvents-1),OFFSET($A$1,ROW()-1,FirstEventColumn+IndexEventsRate2-2,1,NbEventsRate2)),Rank3),""), "") ->  | S20: =IF(ISNUMBER(LARGE((OFFSET($A$1,ROW()-1,FirstExtraEventColumn-(NbExtraEvents+1),1,NbExtraEvents-1),OFFSET($A$1,ROW()-1,FirstEventColumn+IndexEventsRate2-2,1,NbEventsRate2)),Rank4)), IF(LARGE((OFFSET($A$1,ROW()-1,FirstExtraEventColumn-(NbExtraEvents+1),1,NbExtraEvents-1),OFFSET($A$1,ROW()-1,FirstEventColumn+IndexEventsRate2-2,1,NbEventsRate2)),Rank4)>0, S$12*LARGE((OFFSET($A$1,ROW()-1,FirstExtraEventColumn-(NbExtraEvents+1),1,NbExtraEvents-1),OFFSET($A$1,ROW()-1,FirstEventColumn+IndexEventsRate2-2,1,NbEventsRate2)),Rank4),""), "") ->  | T20: =IF(ISNUMBER(LARGE((OFFSET($A$1,ROW()-1,FirstExtraEventColumn-(NbExtraEvents+1),1,NbExtraEvents-1),OFFSET($A$1,ROW()-1,FirstEventColumn+IndexEventsRate2-2,1,NbEventsRate2)),Rank5)), IF(LARGE((OFFSET($A$1,ROW()-1,FirstExtraEventColumn-(NbExtraEvents+1),1,NbExtraEvents-1),OFFSET($A$1,ROW()-1,FirstEventColumn+IndexEventsRate2-2,1,NbEventsRate2)),Rank5)>0, T$12*LARGE((OFFSET($A$1,ROW()-1,FirstExtraEventColumn-(NbExtraEvents+1),1,NbExtraEvents-1),OFFSET($A$1,ROW()-1,FirstEventColumn+IndexEventsRate2-2,1,NbEventsRate2)),Rank5),""), "") ->  | U20: =IF($AN20<>0,$AN$12*$AN20,"") -> 350 | V20: =RateYear1*SUMIFS(OFFSET($A$1,ROW()-1,FirstExtraEventColumn-1,1,IndexExtraEventEnd+IndexEventEnd-2),OFFSET($A$1,RateLine-1,FirstExtraEventColumn-1,1,IndexExtraEventEnd+IndexEventEnd-2),RateYear1,OFFSET($A$1,RateLine-3,FirstExtraEventColumn-1,1,IndexExtraEventEnd+IndexEventEnd-2),"WCS") +RateYear2*SUMIFS(OFFSET($A$1,ROW()-1,FirstExtraEventColumn-1,1,IndexExtraEventEnd+IndexEventEnd-2),OFFSET($A$1,RateLine-1,FirstExtraEventColumn-1,1,IndexExtraEventEnd+IndexEventEnd-2),RateYear2,OFFSET($A$1,RateLine-3,FirstExtraEventColumn-1,1,IndexExtraEventEnd+IndexEventEnd-2),"WCS") -> 0 | W20: =RateYear1* (SUMIFS(OFFSET($A$1,ROW()-1,FirstExtraEventColumn-1,1,IndexExtraEventEnd+IndexEventEnd-2),OFFSET($A$1,RateLine-1,FirstExtraEventColumn-1,1,IndexExtraEventEnd+IndexEventEnd-2),RateYear1,OFFSET($A$1,RateLine-3,FirstExtraEventColumn-1,1,IndexExtraEventEnd+IndexEventEnd-2),"GP") +SUMIFS(OFFSET($A$1,ROW()-1,FirstExtraEventColumn-1,1,IndexExtraEventEnd+IndexEventEnd-2),OFFSET($A$1,RateLine-1,FirstExtraEventColumn-1,1,IndexExtraEventEnd+IndexEventEnd-2),RateYear1,OFFSET($A$1,RateLine-3,FirstExtraEventColumn-1,1,IndexExtraEventEnd+IndexEventEnd-2),"GS") +SUMIFS(OFFSET($A$1,ROW()-1,FirstExtraEventColumn-1,1,IndexExtraEventEnd+IndexEventEnd-2),OFFSET($A$1,RateLine-1,FirstExtraEventColumn-1,1,IndexExtraEventEnd+IndexEventEnd-2),RateYear1,OFFSET($A$1,RateLine-3,FirstExtraEventColumn-1,1,IndexExtraEventEnd+IndexEventEnd-2),"Masters")) +RateYear2* (SUMIFS(OFFSET($A$1,ROW()-1,FirstExtraEventColumn-1,1,IndexExtraEventEnd+IndexEventEnd-2),OFFSET($A$1,RateLine-1,FirstExtraEventColumn-1,1,IndexExtraEventEnd+IndexEventEnd-2),RateYear2,OFFSET($A$1,RateLine-3,FirstExtraEventColumn-1,1,IndexExtraEventEnd+IndexEventEnd-2),"GP") +SUMIFS(OFFSET($A$1,ROW()-1,FirstExtraEventColumn-1,1,IndexExtraEventEnd+IndexEventEnd-2),OFFSET($A$1,RateLine-1,FirstExtraEventColumn-1,1,IndexExtraEventEnd+IndexEventEnd-2),RateYear2,OFFSET($A$1,RateLine-3,FirstExtraEventColumn-1,1,IndexExtraEventEnd+IndexEventEnd-2),"GS") +SUMIFS(OFFSET($A$1,ROW()-1,FirstExtraEventColumn-1,1,IndexExtraEventEnd+IndexEventEnd-2),OFFSET($A$1,RateLine-1,FirstExtraEventColumn-1,1,IndexExtraEventEnd+IndexEventEnd-2),RateYear2,OFFSET($A$1,RateLine-3,FirstExtraEventColumn-1,1,IndexExtraEventEnd+IndexEventEnd-2),"Masters")) -> 0 | X20: =IF(ISNUMBER(LARGE($J20:$U20,Rank1)),LARGE($J20:$U20,Rank1),"") -> 2200 | Y20: =IF(ISNUMBER(LARGE($J20:$U20,Rank2)),LARGE($J20:$U20,Rank2),"") -> 350 | Z20: =IF(ISNUMBER(LARGE($J20:$U20,Rank3)),LARGE($J20:$U20,Rank3),"") ->  | AA20: =IF(ISNUMBER(LARGE($J20:$U20,Rank4)),LARGE($J20:$U20,Rank4),"") ->  | AB20: =IF(ISNUMBER(LARGE($J20:$U20,Rank5)),LARGE($J20:$U20,Rank5),"") ->  | AC20: =IF(ISNUMBER(LARGE($J20:$U20,Rank6)),LARGE($J20:$U20,Rank6),"") ->  | AD20: =IF(ISNUMBER(LARGE($J20:$U20,Rank7)),LARGE($J20:$U20,Rank7),"") ->  | AE20: =IF(ISNUMBER(LARGE($J20:$U20,Rank8)),LARGE($J20:$U20,Rank8),"") ->  | AF20: =IF(ISNUMBER(LARGE($J20:$U20,Rank9)),LARGE($J20:$U20,Rank9),"") ->  | AG20: =IF(ISNUMBER(LARGE($J20:$U20,Rank10)),LARGE($J20:$U20,Rank10),"") ->  | AH20: =IF(ISNUMBER(LARGE($J20:$U20,Rank11)),LARGE($J20:$U20,Rank11),"") ->  | AI20: =IF(ISNUMBER(LARGE($J20:$U20,Rank12)),LARGE($J20:$U20,Rank12),"") ->  | AJ20: =RateYear1*SUM(AK20:AM20)+RateYear2*SUM(AN20:AP20)+ IF(NbEventsRate1<>0,RateYear1*SUM(OFFSET($A$1,ROW()-1,FirstEventColumn+IndexEventsRate1-2,1,NbEventsRate1)),0)+ IF(NbEventsRate2<>0,RateYear2*SUM(OFFSET($A$1,ROW()-1,FirstEventColumn+IndexEventsRate2-2,1,NbEventsRate2)),0) -> 2550 | AK20: =IF(ISNUMBER(LARGE(IF(OFFSET($A$1,FirstEntryLine-3,FirstExtraEventColumn-1,1,FirstEventColumn-FirstExtraEventColumn)=AK$12,OFFSET($A$1,ROW()-1,FirstExtraEventColumn-1,1,FirstEventColumn-FirstExtraEventColumn)),Rank1)), LARGE(IF(OFFSET($A$1,FirstEntryLine-3,FirstExtraEventColumn-1,1,FirstEventColumn-FirstExtraEventColumn)=AK$12,OFFSET($A$1,ROW()-1,FirstExtraEventColumn-1,1,FirstEventColumn-FirstExtraEventColumn)),Rank1), "") -> 0 | AL20: =IF(ISNUMBER(LARGE(IF(OFFSET($A$1,FirstEntryLine-3,FirstExtraEventColumn-1,1,FirstEventColumn-FirstExtraEventColumn)=AL$12,OFFSET($A$1,ROW()-1,FirstExtraEventColumn-1,1,FirstEventColumn-FirstExtraEventColumn)),Rank2)), LARGE(IF(OFFSET($A$1,FirstEntryLine-3,FirstExtraEventColumn-1,1,FirstEventColumn-FirstExtraEventColumn)=AL$12,OFFSET($A$1,ROW()-1,FirstExtraEventColumn-1,1,FirstEventColumn-FirstExtraEventColumn)),Rank2), "") -> 0 | AN20: =IF(AT20>MAX(AS20,AU20),AT20,MAX(AS20,AU20)) -> 700 | AO20: =IF(AT20>MAX(AS20,AU20),MAX(AS20,AU20),AT20) -> 0 | AS20: 700 | BA20: 700 | BB20: 0 | BD20: 700 | BH20: 700 | CB20: 2200 | CV20: 1000 | DB20: 1000 | DM20: 720 | DR20: 700 | EG20: 1000 | EL20: 0 | EV20: 2000 | EZ20: 700 | FR20: 1000 | GC20: 2000 | GT20: 1000 | GW20: 300 | HG20: 400
B21: =IF(G21="","",IF(ROW()=FirstEntryLine,1,IF(AND(I21=OFFSET(I21,-1,0),V21=OFFSET(V21,-1,0),W21=OFFSET(W21,-1,0),X21=OFFSET(X21,-1,0),Y21=OFFSET(Y21,-1,0),Z21=OFFSET(Z21,-1,0),AA21=OFFSET(AA21,-1,0),AB21=OFFSET(AB21,-1,0),AC21=OFFSET(AC21,-1,0),AD21=OFFSET(AD21,-1,0),AE21=OFFSET(AE21,-1,0),AF21=OFFSET(AF21,-1,0),AG21=OFFSET(AG21,-1,0),AH21=OFFSET(AH21,-1,0),AI21=OFFSET(AI21,-1,0)),OFFSET(B21,-1,0),ROW()-FirstEntryLine+1))) -> 8 | C21: FRA | D21: =IF(C21="", "", VLOOKUP(C21, ContinentShorts, 2, FALSE)) -> EJU | E21: 8dac776b | G21: MKHEIDZE | H21: Luka | I21: =SUM(J21:U21) -> 2445 | J21: =IF(ISNUMBER(LARGE((OFFSET($A$1,ROW()-1,FirstExtraEventColumn-2*(NbExtraEvents+1),1,NbExtraEvents-1+COVID_patch),OFFSET($A$1,ROW()-1,FirstEventColumn+IndexEventsRate1-2,1,NbEventsRate1)),Rank1)), IF(LARGE((OFFSET($A$1,ROW()-1,FirstExtraEventColumn-2*(NbExtraEvents+1),1,NbExtraEvents-1+COVID_patch),OFFSET($A$1,ROW()-1,FirstEventColumn+IndexEventsRate1-2,1,NbEventsRate1)),Rank1)>0, J$12*LARGE((OFFSET($A$1,ROW()-1,FirstExtraEventColumn-2*(NbExtraEvents+1),1,NbExtraEvents-1+COVID_patch),OFFSET($A$1,ROW()-1,FirstEventColumn+IndexEventsRate1-2,1,NbEventsRate1)),Rank1),""), "") -> 1100 | K21: =IF(ISNUMBER(LARGE((OFFSET($A$1,ROW()-1,FirstExtraEventColumn-2*(NbExtraEvents+1),1,NbExtraEvents-1+COVID_patch),OFFSET($A$1,ROW()-1,FirstEventColumn+IndexEventsRate1-2,1,NbEventsRate1)),Rank2)), IF(LARGE((OFFSET($A$1,ROW()-1,FirstExtraEventColumn-2*(NbExtraEvents+1),1,NbExtraEvents-1+COVID_patch),OFFSET($A$1,ROW()-1,FirstEventColumn+IndexEventsRate1-2,1,NbEventsRate1)),Rank2)>0, K$12*LARGE((OFFSET($A$1,ROW()-1,FirstExtraEventColumn-2*(NbExtraEvents+1),1,NbExtraEvents-1+COVID_patch),OFFSET($A$1,ROW()-1,FirstEventColumn+IndexEventsRate1-2,1,NbEventsRate1)),Rank2),""), "") -> 500 | L21: =IF(ISNUMBER(LARGE((OFFSET($A$1,ROW()-1,FirstExtraEventColumn-2*(NbExtraEvents+1),1,NbExtraEvents-1+COVID_patch),OFFSET($A$1,ROW()-1,FirstEventColumn+IndexEventsRate1-2,1,NbEventsRate1)),Rank3)), IF(LARGE((OFFSET($A$1,ROW()-1,FirstExtraEventColumn-2*(NbExtraEvents+1),1,NbExtraEvents-1+COVID_patch),OFFSET($A$1,ROW()-1,FirstEventColumn+IndexEventsRate1-2,1,NbEventsRate1)),Rank3)>0, L$12*LARGE((OFFSET($A$1,ROW()-1,FirstExtraEventColumn-2*(NbExtraEvents+1),1,NbExtraEvents-1+COVID_patch),OFFSET($A$1,ROW()-1,FirstEventColumn+IndexEventsRate1-2,1,NbEventsRate1)),Rank3),""), "") ->  | M21: =IF(ISNUMBER(LARGE((OFFSET($A$1,ROW()-1,FirstExtraEventColumn-2*(NbExtraEvents+1),1,NbExtraEvents-1+COVID_patch),OFFSET($A$1,ROW()-1,FirstEventColumn+IndexEventsRate1-2,1,NbEventsRate1)),Rank4)), IF(LARGE((OFFSET($A$1,ROW()-1,FirstExtraEventColumn-2*(NbExtraEvents+1),1,NbExtraEvents-1+COVID_patch),OFFSET($A$1,ROW()-1,FirstEventColumn+IndexEventsRate1-2,1,NbEventsRate1)),Rank4)>0, M$12*LARGE((OFFSET($A$1,ROW()-1,FirstExtraEventColumn-2*(NbExtraEvents+1),1,NbExtraEvents-1+COVID_patch),OFFSET($A$1,ROW()-1,FirstEventColumn+IndexEventsRate1-2,1,NbEventsRate1)),Rank4),""), "") ->  | N21: =IF(ISNUMBER(LARGE((OFFSET($A$1,ROW()-1,FirstExtraEventColumn-2*(NbExtraEvents+1),1,NbExtraEvents-1+COVID_patch),OFFSET($A$1,ROW()-1,FirstEventColumn+IndexEventsRate1-2,1,NbEventsRate1)),Rank5)), IF(LARGE((OFFSET($A$1,ROW()-1,FirstExtraEventColumn-2*(NbExtraEvents+1),1,NbExtraEvents-1+COVID_patch),OFFSET($A$1,ROW()-1,FirstEventColumn+IndexEventsRate1-2,1,NbEventsRate1)),Rank5)>0, N$12*LARGE((OFFSET($A$1,ROW()-1,FirstExtraEventColumn-2*(NbExtraEvents+1),1,NbExtraEvents-1+COVID_patch),OFFSET($A$1,ROW()-1,FirstEventColumn+IndexEventsRate1-2,1,NbEventsRate1)),Rank5),""), "") ->  | O21: =IF($AK21<>0,$AK$12*$AK21,"") ->  | P21: =IF(ISNUMBER(LARGE((OFFSET($A$1,ROW()-1,FirstExtraEventColumn-(NbExtraEvents+1),1,NbExtraEvents-1),OFFSET($A$1,ROW()-1,FirstEventColumn+IndexEventsRate2-2,1,NbEventsRate2)),Rank1)), IF(LARGE((OFFSET($A$1,ROW()-1,FirstExtraEventColumn-(NbExtraEvents+1),1,NbExtraEvents-1),OFFSET($A$1,ROW()-1,FirstEventColumn+IndexEventsRate2-2,1,NbEventsRate2)),Rank1)>0, P$12*LARGE((OFFSET($A$1,ROW()-1,FirstExtraEventColumn-(NbExtraEvents+1),1,NbExtraEvents-1),OFFSET($A$1,ROW()-1,FirstEventColumn+IndexEventsRate2-2,1,NbEventsRate2)),Rank1),""), "") -> 250 | Q21: =IF(ISNUMBER(LARGE((OFFSET($A$1,ROW()-1,FirstExtraEventColumn-(NbExtraEvents+1),1,NbExtraEvents-1),OFFSET($A$1,ROW()-1,FirstEventColumn+IndexEventsRate2-2,1,NbEventsRate2)),Rank2)), IF(LARGE((OFFSET($A$1,ROW()-1,FirstExtraEventColumn-(NbExtraEvents+1),1,NbExtraEvents-1),OFFSET($A$1,ROW()-1,FirstEventColumn+IndexEventsRate2-2,1,NbEventsRate2)),Rank2)>0, Q$12*LARGE((OFFSET($A$1,ROW()-1,FirstExtraEventColumn-(NbExtraEvents+1),1,NbExtraEvents-1),OFFSET($A$1,ROW()-1,FirstEventColumn+IndexEventsRate2-2,1,NbEventsRate2)),Rank2),""), "") -> 250 | R21: =IF(ISNUMBER(LARGE((OFFSET($A$1,ROW()-1,FirstExtraEventColumn-(NbExtraEvents+1),1,NbExtraEvents-1),OFFSET($A$1,ROW()-1,FirstEventColumn+IndexEventsRate2-2,1,NbEventsRate2)),Rank3)), IF(LARGE((OFFSET($A$1,ROW()-1,FirstExtraEventColumn-(NbExtraEvents+1),1,NbExtraEvents-1),OFFSET($A$1,ROW()-1,FirstEventColumn+IndexEventsRate2-2,1,NbEventsRate2)),Rank3)>0, R$12*LARGE((OFFSET($A$1,ROW()-1,FirstExtraEventColumn-(NbExtraEvents+1),1,NbExtraEvents-1),OFFSET($A$1,ROW()-1,FirstEventColumn+IndexEventsRate2-2,1,NbEventsRate2)),Rank3),""), "") -> 100 | S21: =IF(ISNUMBER(LARGE((OFFSET($A$1,ROW()-1,FirstExtraEventColumn-(NbExtraEvents+1),1,NbExtraEvents-1),OFFSET($A$1,ROW()-1,FirstEventColumn+IndexEventsRate2-2,1,NbEventsRate2)),Rank4)), IF(LARGE((OFFSET($A$1,ROW()-1,FirstExtraEventColumn-(NbExtraEvents+1),1,NbExtraEvents-1),OFFSET($A$1,ROW()-1,FirstEventColumn+IndexEventsRate2-2,1,NbEventsRate2)),Rank4)>0, S$12*LARGE((OFFSET($A$1,ROW()-1,FirstExtraEventColumn-(NbExtraEvents+1),1,NbExtraEvents-1),OFFSET($A$1,ROW()-1,FirstEventColumn+IndexEventsRate2-2,1,NbEventsRate2)),Rank4),""), "") ->  | T21: =IF(ISNUMBER(LARGE((OFFSET($A$1,ROW()-1,FirstExtraEventColumn-(NbExtraEvents+1),1,NbExtraEvents-1),OFFSET($A$1,ROW()-1,FirstEventColumn+IndexEventsRate2-2,1,NbEventsRate2)),Rank5)), IF(LARGE((OFFSET($A$1,ROW()-1,FirstExtraEventColumn-(NbExtraEvents+1),1,NbExtraEvents-1),OFFSET($A$1,ROW()-1,FirstEventColumn+IndexEventsRate2-2,1,NbEventsRate2)),Rank5)>0, T$12*LARGE((OFFSET($A$1,ROW()-1,FirstExtraEventColumn-(NbExtraEvents+1),1,NbExtraEvents-1),OFFSET($A$1,ROW()-1,FirstEventColumn+IndexEventsRate2-2,1,NbEventsRate2)),Rank5),""), "") ->  | U21: =IF($AN21<>0,$AN$12*$AN21,"") -> 245 | V21: =RateYear1*SUMIFS(OFFSET($A$1,ROW()-1,FirstExtraEventColumn-1,1,IndexExtraEventEnd+IndexEventEnd-2),OFFSET($A$1,RateLine-1,FirstExtraEventColumn-1,1,IndexExtraEventEnd+IndexEventEnd-2),RateYear1,OFFSET($A$1,RateLine-3,FirstExtraEventColumn-1,1,IndexExtraEventEnd+IndexEventEnd-2),"WCS") +RateYear2*SUMIFS(OFFSET($A$1,ROW()-1,FirstExtraEventColumn-1,1,IndexExtraEventEnd+IndexEventEnd-2),OFFSET($A$1,RateLine-1,FirstExtraEventColumn-1,1,IndexExtraEventEnd+IndexEventEnd-2),RateYear2,OFFSET($A$1,RateLine-3,FirstExtraEventColumn-1,1,IndexExtraEventEnd+IndexEventEnd-2),"WCS") -> 0 | W21: =RateYear1* (SUMIFS(OFFSET($A$1,ROW()-1,FirstExtraEventColumn-1,1,IndexExtraEventEnd+IndexEventEnd-2),OFFSET($A$1,RateLine-1,FirstExtraEventColumn-1,1,IndexExtraEventEnd+IndexEventEnd-2),RateYear1,OFFSET($A$1,RateLine-3,FirstExtraEventColumn-1,1,IndexExtraEventEnd+IndexEventEnd-2),"GP") +SUMIFS(OFFSET($A$1,ROW()-1,FirstExtraEventColumn-1,1,IndexExtraEventEnd+IndexEventEnd-2),OFFSET($A$1,RateLine-1,FirstExtraEventColumn-1,1,IndexExtraEventEnd+IndexEventEnd-2),RateYear1,OFFSET($A$1,RateLine-3,FirstExtraEventColumn-1,1,IndexExtraEventEnd+IndexEventEnd-2),"GS") +SUMIFS(OFFSET($A$1,ROW()-1,FirstExtraEventColumn-1,1,IndexExtraEventEnd+IndexEventEnd-2),OFFSET($A$1,RateLine-1,FirstExtraEventColumn-1,1,IndexExtraEventEnd+IndexEventEnd-2),RateYear1,OFFSET($A$1,RateLine-3,FirstExtraEventColumn-1,1,IndexExtraEventEnd+IndexEventEnd-2),"Masters")) +RateYear2* (SUMIFS(OFFSET($A$1,ROW()-1,FirstExtraEventColumn-1,1,IndexExtraEventEnd+IndexEventEnd-2),OFFSET($A$1,RateLine-1,FirstExtraEventColumn-1,1,IndexExtraEventEnd+IndexEventEnd-2),RateYear2,OFFSET($A$1,RateLine-3,FirstExtraEventColumn-1,1,IndexExtraEventEnd+IndexEventEnd-2),"GP") +SUMIFS(OFFSET($A$1,ROW()-1,FirstExtraEventColumn-1,1,IndexExtraEventEnd+IndexEventEnd-2),OFFSET($A$1,RateLine-1,FirstExtraEventColumn-1,1,IndexExtraEventEnd+IndexEventEnd-2),RateYear2,OFFSET($A$1,RateLine-3,FirstExtraEventColumn-1,1,IndexExtraEventEnd+IndexEventEnd-2),"GS") +SUMIFS(OFFSET($A$1,ROW()-1,FirstExtraEventColumn-1,1,IndexExtraEventEnd+IndexEventEnd-2),OFFSET($A$1,RateLine-1,FirstExtraEventColumn-1,1,IndexExtraEventEnd+IndexEventEnd-2),RateYear2,OFFSET($A$1,RateLine-3,FirstExtraEventColumn-1,1,IndexExtraEventEnd+IndexEventEnd-2),"Masters")) -> 1100 | X21: =IF(ISNUMBER(LARGE($J21:$U21,Rank1)),LARGE($J21:$U21,Rank1),"") -> 1100 | Y21: =IF(ISNUMBER(LARGE($J21:$U21,Rank2)),LARGE($J21:$U21,Rank2),"") -> 500 | Z21: =IF(ISNUMBER(LARGE($J21:$U21,Rank3)),LARGE($J21:$U21,Rank3),"") -> 250 | AA21: =IF(ISNUMBER(LARGE($J21:$U21,Rank4)),LARGE($J21:$U21,Rank4),"") -> 250 | AB21: =IF(ISNUMBER(LARGE($J21:$U21,Rank5)),LARGE($J21:$U21,Rank5),"") -> 245 | AC21: =IF(ISNUMBER(LARGE($J21:$U21,Rank6)),LARGE($J21:$U21,Rank6),"") -> 100 | AD21: =IF(ISNUMBER(LARGE($J21:$U21,Rank7)),LARGE($J21:$U21,Rank7),"") ->  | AE21: =IF(ISNUMBER(LARGE($J21:$U21,Rank8)),LARGE($J21:$U21,Rank8),"") ->  | AF21: =IF(ISNUMBER(LARGE($J21:$U21,Rank9)),LARGE($J21:$U21,Rank9),"") ->  | AG21: =IF(ISNUMBER(LARGE($J21:$U21,Rank10)),LARGE($J21:$U21,Rank10),"") ->  | AH21: =IF(ISNUMBER(LARGE($J21:$U21,Rank11)),LARGE($J21:$U21,Rank11),"") ->  | AI21: =IF(ISNUMBER(LARGE($J21:$U21,Rank12)),LARGE($J21:$U21,Rank12),"") ->  | AJ21: =RateYear1*SUM(AK21:AM21)+RateYear2*SUM(AN21:AP21)+ IF(NbEventsRate1<>0,RateYear1*SUM(OFFSET($A$1,ROW()-1,FirstEventColumn+IndexEventsRate1-2,1,NbEventsRate1)),0)+ IF(NbEventsRate2<>0,RateYear2*SUM(OFFSET($A$1,ROW()-1,FirstEventColumn+IndexEventsRate2-2,1,NbEventsRate2)),0) -> 2445 | AK21: =IF(ISNUMBER(LARGE(IF(OFFSET($A$1,FirstEntryLine-3,FirstExtraEventColumn-1,1,FirstEventColumn-FirstExtraEventColumn)=AK$12,OFFSET($A$1,ROW()-1,FirstExtraEventColumn-1,1,FirstEventColumn-FirstExtraEventColumn)),Rank1)), LARGE(IF(OFFSET($A$1,FirstEntryLine-3,FirstExtraEventColumn-1,1,FirstEventColumn-FirstExtraEventColumn)=AK$12,OFFSET($A$1,ROW()-1,FirstExtraEventColumn-1,1,FirstEventColumn-FirstExtraEventColumn)),Rank1), "") -> 0 | AL21: =IF(ISNUMBER(LARGE(IF(OFFSET($A$1,FirstEntryLine-3,FirstExtraEventColumn-1,1,FirstEventColumn-FirstExtraEventColumn)=AL$12,OFFSET($A$1,ROW()-1,FirstExtraEventColumn-1,1,FirstEventColumn-FirstExtraEventColumn)),Rank2)), LARGE(IF(OFFSET($A$1,FirstEntryLine-3,FirstExtraEventColumn-1,1,FirstEventColumn-FirstExtraEventColumn)=AL$12,OFFSET($A$1,ROW()-1,FirstExtraEventColumn-1,1,FirstEventColumn-FirstExtraEventColumn)),Rank2), "") -> 0 | AN21: =IF(AT21>MAX(AS21,AU21),AT21,MAX(AS21,AU21)) -> 490 | AO21: =IF(AT21>MAX(AS21,AU21),MAX(AS21,AU21),AT21) -> 200 | AS21: 490 | AT21: 200 | AU21: 6 | AV21: 288 | AW21: 182 | BQ21: 500 | CB21: 1100 | CM21: 500 | CS21: 500 | CX21: 0 | DE21: 252 | DF21: 120 | DJ21: 50 | DM21: 240 | DO21: 84 | DT21: 50 | DU21: 6 | EE21: 260 | EG21: 0 | EL21: 10 | EP21: 252 | ET21: 490 | EV21: 240 | EX21: 70 | FB21: 100 | FM21: 36 | FO21: 50 | GA21: 112 | GH21: 50 | GN21: 70
B22: =IF(G22="","",IF(ROW()=FirstEntryLine,1,IF(AND(I22=OFFSET(I22,-1,0),V22=OFFSET(V22,-1,0),W22=OFFSET(W22,-1,0),X22=OFFSET(X22,-1,0),Y22=OFFSET(Y22,-1,0),Z22=OFFSET(Z22,-1,0),AA22=OFFSET(AA22,-1,0),AB22=OFFSET(AB22,-1,0),AC22=OFFSET(AC22,-1,0),AD22=OFFSET(AD22,-1,0),AE22=OFFSET(AE22,-1,0),AF22=OFFSET(AF22,-1,0),AG22=OFFSET(AG22,-1,0),AH22=OFFSET(AH22,-1,0),AI22=OFFSET(AI22,-1,0)),OFFSET(B22,-1,0),ROW()-FirstEntryLine+1))) -> 9 | C22: BEL | D22: =IF(C22="", "", VLOOKUP(C22, ContinentShorts, 2, FALSE)) -> EJU | E22: a5dd74bb | G22: VERSTRAETEN | H22: Jorre | I22: =SUM(J22:U22) -> 2411 | J22: =IF(ISNUMBER(LARGE((OFFSET($A$1,ROW()-1,FirstExtraEventColumn-2*(NbExtraEvents+1),1,NbExtraEvents-1+COVID_patch),OFFSET($A$1,ROW()-1,FirstEventColumn+IndexEventsRate1-2,1,NbEventsRate1)),Rank1)), IF(LARGE((OFFSET($A$1,ROW()-1,FirstExtraEventColumn-2*(NbExtraEvents+1),1,NbExtraEvents-1+COVID_patch),OFFSET($A$1,ROW()-1,FirstEventColumn+IndexEventsRate1-2,1,NbEventsRate1)),Rank1)>0, J$12*LARGE((OFFSET($A$1,ROW()-1,FirstExtraEventColumn-2*(NbExtraEvents+1),1,NbExtraEvents-1+COVID_patch),OFFSET($A$1,ROW()-1,FirstEventColumn+IndexEventsRate1-2,1,NbEventsRate1)),Rank1),""), "") -> 352 | K22: =IF(ISNUMBER(LARGE((OFFSET($A$1,ROW()-1,FirstExtraEventColumn-2*(NbExtraEvents+1),1,NbExtraEvents-1+COVID_patch),OFFSET($A$1,ROW()-1,FirstEventColumn+IndexEventsRate1-2,1,NbEventsRate1)),Rank2)), IF(LARGE((OFFSET($A$1,ROW()-1,FirstExtraEventColumn-2*(NbExtraEvents+1),1,NbExtraEvents-1+COVID_patch),OFFSET($A$1,ROW()-1,FirstEventColumn+IndexEventsRate1-2,1,NbEventsRate1)),Rank2)>0, K$12*LARGE((OFFSET($A$1,ROW()-1,FirstExtraEventColumn-2*(NbExtraEvents+1),1,NbExtraEvents-1+COVID_patch),OFFSET($A$1,ROW()-1,FirstEventColumn+IndexEventsRate1-2,1,NbEventsRate1)),Rank2),""), "") -> 320 | L22: =IF(ISNUMBER(LARGE((OFFSET($A$1,ROW()-1,FirstExtraEventColumn-2*(NbExtraEvents+1),1,NbExtraEvents-1+COVID_patch),OFFSET($A$1,ROW()-1,FirstEventColumn+IndexEventsRate1-2,1,NbEventsRate1)),Rank3)), IF(LARGE((OFFSET($A$1,ROW()-1,FirstExtraEventColumn-2*(NbExtraEvents+1),1,NbExtraEvents-1+COVID_patch),OFFSET($A$1,ROW()-1,FirstEventColumn+IndexEventsRate1-2,1,NbEventsRate1)),Rank3)>0, L$12*LARGE((OFFSET($A$1,ROW()-1,FirstExtraEventColumn-2*(NbExtraEvents+1),1,NbExtraEvents-1+COVID_patch),OFFSET($A$1,ROW()-1,FirstEventColumn+IndexEventsRate1-2,1,NbEventsRate1)),Rank3),""), "") -> 260 | M22: =IF(ISNUMBER(LARGE((OFFSET($A$1,ROW()-1,FirstExtraEventColumn-2*(NbExtraEvents+1),1,NbExtraEvents-1+COVID_patch),OFFSET($A$1,ROW()-1,FirstEventColumn+IndexEventsRate1-2,1,NbEventsRate1)),Rank4)), IF(LARGE((OFFSET($A$1,ROW()-1,FirstExtraEventColumn-2*(NbExtraEvents+1),1,NbExtraEvents-1+COVID_patch),OFFSET($A$1,ROW()-1,FirstEventColumn+IndexEventsRate1-2,1,NbEventsRate1)),Rank4)>0, M$12*LARGE((OFFSET($A$1,ROW()-1,FirstExtraEventColumn-2*(NbExtraEvents+1),1,NbExtraEvents-1+COVID_patch),OFFSET($A$1,ROW()-1,FirstEventColumn+IndexEventsRate1-2,1,NbEventsRate1)),Rank4),""), "") -> 160 | N22: =IF(ISNUMBER(LARGE((OFFSET($A$1,ROW()-1,FirstExtraEventColumn-2*(NbExtraEvents+1),1,NbExtraEvents-1+COVID_patch),OFFSET($A$1,ROW()-1,FirstEventColumn+IndexEventsRate1-2,1,NbEventsRate1)),Rank5)), IF(LARGE((OFFSET($A$1,ROW()-1,FirstExtraEventColumn-2*(NbExtraEvents+1),1,NbExtraEvents-1+COVID_patch),OFFSET($A$1,ROW()-1,FirstEventColumn+IndexEventsRate1-2,1,NbEventsRate1)),Rank5)>0, N$12*LARGE((OFFSET($A$1,ROW()-1,FirstExtraEventColumn-2*(NbExtraEvents+1),1,NbExtraEvents-1+COVID_patch),OFFSET($A$1,ROW()-1,FirstEventColumn+IndexEventsRate1-2,1,NbEventsRate1)),Rank5),""), "") -> 10 | O22: =IF($AK22<>0,$AK$12*$AK22,"") -> 350 | P22: =IF(ISNUMBER(LARGE((OFFSET($A$1,ROW()-1,FirstExtraEventColumn-(NbExtraEvents+1),1,NbExtraEvents-1),OFFSET($A$1,ROW()-1,FirstEventColumn+IndexEventsRate2-2,1,NbEventsRate2)),Rank1)), IF(LARGE((OFFSET($A$1,ROW()-1,FirstExtraEventColumn-(NbExtraEvents+1),1,NbExtraEvents-1),OFFSET($A$1,ROW()-1,FirstEventColumn+IndexEventsRate2-2,1,NbEventsRate2)),Rank1)>0, P$12*LARGE((OFFSET($A$1,ROW()-1,FirstExtraEventColumn-(NbExtraEvents+1),1,NbExtraEvents-1),OFFSET($A$1,ROW()-1,FirstEventColumn+IndexEventsRate2-2,1,NbEventsRate2)),Rank1),""), "") -> 500 | Q22: =IF(ISNUMBER(LARGE((OFFSET($A$1,ROW()-1,FirstExtraEventColumn-(NbExtraEvents+1),1,NbExtraEvents-1),OFFSET($A$1,ROW()-1,FirstEventColumn+IndexEventsRate2-2,1,NbEventsRate2)),Rank2)), IF(LARGE((OFFSET($A$1,ROW()-1,FirstExtraEventColumn-(NbExtraEvents+1),1,NbExtraEvents-1),OFFSET($A$1,ROW()-1,FirstEventColumn+IndexEventsRate2-2,1,NbEventsRate2)),Rank2)>0, Q$12*LARGE((OFFSET($A$1,ROW()-1,FirstExtraEventColumn-(NbExtraEvents+1),1,NbExtraEvents-1),OFFSET($A$1,ROW()-1,FirstEventColumn+IndexEventsRate2-2,1,NbEventsRate2)),Rank2),""), "") -> 144 | R22: =IF(ISNUMBER(LARGE((OFFSET($A$1,ROW()-1,FirstExtraEventColumn-(NbExtraEvents+1),1,NbExtraEvents-1),OFFSET($A$1,ROW()-1,FirstEventColumn+IndexEventsRate2-2,1,NbEventsRate2)),Rank3)), IF(LARGE((OFFSET($A$1,ROW()-1,FirstExtraEventColumn-(NbExtraEvents+1),1,NbExtraEvents-1),OFFSET($A$1,ROW()-1,FirstEventColumn+IndexEventsRate2-2,1,NbEventsRate2)),Rank3)>0, R$12*LARGE((OFFSET($A$1,ROW()-1,FirstExtraEventColumn-(NbExtraEvents+1),1,NbExtraEvents-1),OFFSET($A$1,ROW()-1,FirstEventColumn+IndexEventsRate2-2,1,NbEventsRate2)),Rank3),""), "") -> 130 | S22: =IF(ISNUMBER(LARGE((OFFSET($A$1,ROW()-1,FirstExtraEventColumn-(NbExtraEvents+1),1,NbExtraEvents-1),OFFSET($A$1,ROW()-1,FirstEventColumn+IndexEventsRate2-2,1,NbEventsRate2)),Rank4)), IF(LARGE((OFFSET($A$1,ROW()-1,FirstExtraEventColumn-(NbExtraEvents+1),1,NbExtraEvents-1),OFFSET($A$1,ROW()-1,FirstEventColumn+IndexEventsRate2-2,1,NbEventsRate2)),Rank4)>0, S$12*LARGE((OFFSET($A$1,ROW()-1,FirstExtraEventColumn-(NbExtraEvents+1),1,NbExtraEvents-1),OFFSET($A$1,ROW()-1,FirstEventColumn+IndexEventsRate2-2,1,NbEventsRate2)),Rank4),""), "") -> 5 | T22: =IF(ISNUMBER(LARGE((OFFSET($A$1,ROW()-1,FirstExtraEventColumn-(NbExtraEvents+1),1,NbExtraEvents-1),OFFSET($A$1,ROW()-1,FirstEventColumn+IndexEventsRate2-2,1,NbEventsRate2)),Rank5)), IF(LARGE((OFFSET($A$1,ROW()-1,FirstExtraEventColumn-(NbExtraEvents+1),1,NbExtraEvents-1),OFFSET($A$1,ROW()-1,FirstEventColumn+IndexEventsRate2-2,1,NbEventsRate2)),Rank5)>0, T$12*LARGE((OFFSET($A$1,ROW()-1,FirstExtraEventColumn-(NbExtraEvents+1),1,NbExtraEvents-1),OFFSET($A$1,ROW()-1,FirstEventColumn+IndexEventsRate2-2,1,NbEventsRate2)),Rank5),""), "") -> 5 | U22: =IF($AN22<>0,$AN$12*$AN22,"") -> 175 | V22: =RateYear1*SUMIFS(OFFSET($A$1,ROW()-1,FirstExtraEventColumn-1,1,IndexExtraEventEnd+IndexEventEnd-2),OFFSET($A$1,RateLine-1,FirstExtraEventColumn-1,1,IndexExtraEventEnd+IndexEventEnd-2),RateYear1,OFFSET($A$1,RateLine-3,FirstExtraEventColumn-1,1,IndexExtraEventEnd+IndexEventEnd-2),"WCS") +RateYear2*SUMIFS(OFFSET($A$1,ROW()-1,FirstExtraEventColumn-1,1,IndexExtraEventEnd+IndexEventEnd-2),OFFSET($A$1,RateLine-1,FirstExtraEventColumn-1,1,IndexExtraEventEnd+IndexEventEnd-2),RateYear2,OFFSET($A$1,RateLine-3,FirstExtraEventColumn-1,1,IndexExtraEventEnd+IndexEventEnd-2),"WCS") -> 320 | W22: =RateYear1* (SUMIFS(OFFSET($A$1,ROW()-1,FirstExtraEventColumn-1,1,IndexExtraEventEnd+IndexEventEnd-2),OFFSET($A$1,RateLine-1,FirstExtraEventColumn-1,1,IndexExtraEventEnd+IndexEventEnd-2),RateYear1,OFFSET($A$1,RateLine-3,FirstExtraEventColumn-1,1,IndexExtraEventEnd+IndexEventEnd-2),"GP") +SUMIFS(OFFSET($A$1,ROW()-1,FirstExtraEventColumn-1,1,IndexExtraEventEnd+IndexEventEnd-2),OFFSET($A$1,RateLine-1,FirstExtraEventColumn-1,1,IndexExtraEventEnd+IndexEventEnd-2),RateYear1,OFFSET($A$1,RateLine-3,FirstExtraEventColumn-1,1,IndexExtraEventEnd+IndexEventEnd-2),"GS") +SUMIFS(OFFSET($A$1,ROW()-1,FirstExtraEventColumn-1,1,IndexExtraEventEnd+IndexEventEnd-2),OFFSET($A$1,RateLine-1,FirstExtraEventColumn-1,1,IndexExtraEventEnd+IndexEventEnd-2),RateYear1,OFFSET($A$1,RateLine-3,FirstExtraEventColumn-1,1,IndexExtraEventEnd+IndexEventEnd-2),"Masters")) +RateYear2* (SUMIFS(OFFSET($A$1,ROW()-1,FirstExtraEventColumn-1,1,IndexExtraEventEnd+IndexEventEnd-2),OFFSET($A$1,RateLine-1,FirstExtraEventColumn-1,1,IndexExtraEventEnd+IndexEventEnd-2),RateYear2,OFFSET($A$1,RateLine-3,FirstExtraEventColumn-1,1,IndexExtraEventEnd+IndexEventEnd-2),"GP") +SUMIFS(OFFSET($A$1,ROW()-1,FirstExtraEventColumn-1,1,IndexExtraEventEnd+IndexEventEnd-2),OFFSET($A$1,RateLine-1,FirstExtraEventColumn-1,1,IndexExtraEventEnd+IndexEventEnd-2),RateYear2,OFFSET($A$1,RateLine-3,FirstExtraEventColumn-1,1,IndexExtraEventEnd+IndexEventEnd-2),"GS") +SUMIFS(OFFSET($A$1,ROW()-1,FirstExtraEventColumn-1,1,IndexExtraEventEnd+IndexEventEnd-2),OFFSET($A$1,RateLine-1,FirstExtraEventColumn-1,1,IndexExtraEventEnd+IndexEventEnd-2),RateYear2,OFFSET($A$1,RateLine-3,FirstExtraEventColumn-1,1,IndexExtraEventEnd+IndexEventEnd-2),"Masters")) -> 1214 | X22: =IF(ISNUMBER(LARGE($J22:$U22,Rank1)),LARGE($J22:$U22,Rank1),"") -> 500 | Y22: =IF(ISNUMBER(LARGE($J22:$U22,Rank2)),LARGE($J22:$U22,Rank2),"") -> 352 | Z22: =IF(ISNUMBER(LARGE($J22:$U22,Rank3)),LARGE($J22:$U22,Rank3),"") -> 350 | AA22: =IF(ISNUMBER(LARGE($J22:$U22,Rank4)),LARGE($J22:$U22,Rank4),"") -> 320 | AB22: =IF(ISNUMBER(LARGE($J22:$U22,Rank5)),LARGE($J22:$U22,Rank5),"") -> 260 | AC22: =IF(ISNUMBER(LARGE($J22:$U22,Rank6)),LARGE($J22:$U22,Rank6),"") -> 175 | AD22: =IF(ISNUMBER(LARGE($J22:$U22,Rank7)),LARGE($J22:$U22,Rank7),"") -> 160 | AE22: =IF(ISNUMBER(LARGE($J22:$U22,Rank8)),LARGE($J22:$U22,Rank8),"") -> 144 | AF22: =IF(ISNUMBER(LARGE($J22:$U22,Rank9)),LARGE($J22:$U22,Rank9),"") -> 130 | AG22: =IF(ISNUMBER(LARGE($J22:$U22,Rank10)),LARGE($J22:$U22,Rank10),"") -> 10 | AH22: =IF(ISNUMBER(LARGE($J22:$U22,Rank11)),LARGE($J22:$U22,Rank11),"") -> 5 | AI22: =IF(ISNUMBER(LARGE($J22:$U22,Rank12)),LARGE($J22:$U22,Rank12),"") -> 5 | AJ22: =RateYear1*SUM(AK22:AM22)+RateYear2*SUM(AN22:AP22)+ IF(NbEventsRate1<>0,RateYear1*SUM(OFFSET($A$1,ROW()-1,FirstEventColumn+IndexEventsRate1-2,1,NbEventsRate1)),0)+ IF(NbEventsRate2<>0,RateYear2*SUM(OFFSET($A$1,ROW()-1,FirstEventColumn+IndexEventsRate2-2,1,NbEventsRate2)),0) -> 2411 | AK22: =IF(ISNUMBER(LARGE(IF(OFFSET($A$1,FirstEntryLine-3,FirstExtraEventColumn-1,1,FirstEventColumn-FirstExtraEventColumn)=AK$12,OFFSET($A$1,ROW()-1,FirstExtraEventColumn-1,1,FirstEventColumn-FirstExtraEventColumn)),Rank1)), LARGE(IF(OFFSET($A$1,FirstEntryLine-3,FirstExtraEventColumn-1,1,FirstEventColumn-FirstExtraEventColumn)=AK$12,OFFSET($A$1,ROW()-1,FirstExtraEventColumn-1,1,FirstEventColumn-FirstExtraEventColumn)),Rank1), "") -> 350 | AL22: =IF(ISNUMBER(LARGE(IF(OFFSET($A$1,FirstEntryLine-3,FirstExtraEventColumn-1,1,FirstEventColumn-FirstExtraEventColumn)=AL$12,OFFSET($A$1,ROW()-1,FirstExtraEventColumn-1,1,FirstEventColumn-FirstExtraEventColumn)),Rank2)), LARGE(IF(OFFSET($A$1,FirstEntryLine-3,FirstExtraEventColumn-1,1,FirstEventColumn-FirstExtraEventColumn)=AL$12,OFFSET($A$1,ROW()-1,FirstExtraEventColumn-1,1,FirstEventColumn-FirstExtraEventColumn)),Rank2), "") -> 0 | AN22: =IF(AT22>MAX(AS22,AU22),AT22,MAX(AS22,AU22)) -> 350 | AO22: =IF(AT22>MAX(AS22,AU22),MAX(AS22,AU22),AT22) -> 288 | AQ22: 350 | AT22: 288 | AU22: 350 | AV22: 200 | AW22: 350 | AY22: 112 | BA22: 112 | BO22: 10 | BQ22: 260 | CB22: 352 | CC22: 320 | CF22: 160 | CJ22: 1000 | CM22: 260 | CO22: 10 | CS22: 10 | CV22: 360 | CX22: 10 | CZ22: 182 | DF22: 120 | DK22: 6 | DM22: 240 | DO22: 6 | DR22: 182 | DV22: 10 | EA22: 10 | EC22: 252 | EG22: 10 | EI22: 700 | EO22: 182 | ER22: 360 | ET22: 6 | EV22: 240 | EX22: 50 | FB22: 26 | FJ22: 6 | FN22: 10 | FP22: 182 | FU22: 6 | FX22: 6 | GA22: 6 | GG22: 350 | GK22: 6 | GQ22: 0 | GU22: 50
B23: =IF(G23="","",IF(ROW()=FirstEntryLine,1,IF(AND(I23=OFFSET(I23,-1,0),V23=OFFSET(V23,-1,0),W23=OFFSET(W23,-1,0),X23=OFFSET(X23,-1,0),Y23=OFFSET(Y23,-1,0),Z23=OFFSET(Z23,-1,0),AA23=OFFSET(AA23,-1,0),AB23=OFFSET(AB23,-1,0),AC23=OFFSET(AC23,-1,0),AD23=OFFSET(AD23,-1,0),AE23=OFFSET(AE23,-1,0),AF23=OFFSET(AF23,-1,0),AG23=OFFSET(AG23,-1,0),AH23=OFFSET(AH23,-1,0),AI23=OFFSET(AI23,-1,0)),OFFSET(B23,-1,0),ROW()-FirstEntryLine+1))) -> 10 | C23: RUS | D23: =IF(C23="", "", VLOOKUP(C23, ContinentShorts, 2, FALSE)) -> EJU | E23: b175aca8 | G23: ABDULAEV | H23: Ramazan | I23: =SUM(J23:U23) -> 2230 | J23: =IF(ISNUMBER(LARGE((OFFSET($A$1,ROW()-1,FirstExtraEventColumn-2*(NbExtraEvents+1),1,NbExtraEvents-1+COVID_patch),OFFSET($A$1,ROW()-1,FirstEventColumn+IndexEventsRate1-2,1,NbEventsRate1)),Rank1)), IF(LARGE((OFFSET($A$1,ROW()-1,FirstExtraEventColumn-2*(NbExtraEvents+1),1,NbExtraEvents-1+COVID_patch),OFFSET($A$1,ROW()-1,FirstEventColumn+IndexEventsRate1-2,1,NbEventsRate1)),Rank1)>0, J$12*LARGE((OFFSET($A$1,ROW()-1,FirstExtraEventColumn-2*(NbExtraEvents+1),1,NbExtraEvents-1+COVID_patch),OFFSET($A$1,ROW()-1,FirstEventColumn+IndexEventsRate1-2,1,NbEventsRate1)),Rank1),""), "") -> 700 | K23: =IF(ISNUMBER(LARGE((OFFSET($A$1,ROW()-1,FirstExtraEventColumn-2*(NbExtraEvents+1),1,NbExtraEvents-1+COVID_patch),OFFSET($A$1,ROW()-1,FirstEventColumn+IndexEventsRate1-2,1,NbEventsRate1)),Rank2)), IF(LARGE((OFFSET($A$1,ROW()-1,FirstExtraEventColumn-2*(NbExtraEvents+1),1,NbExtraEvents-1+COVID_patch),OFFSET($A$1,ROW()-1,FirstEventColumn+IndexEventsRate1-2,1,NbEventsRate1)),Rank2)>0, K$12*LARGE((OFFSET($A$1,ROW()-1,FirstExtraEventColumn-2*(NbExtraEvents+1),1,NbExtraEvents-1+COVID_patch),OFFSET($A$1,ROW()-1,FirstEventColumn+IndexEventsRate1-2,1,NbEventsRate1)),Rank2),""), "") -> 700 | L23: =IF(ISNUMBER(LARGE((OFFSET($A$1,ROW()-1,FirstExtraEventColumn-2*(NbExtraEvents+1),1,NbExtraEvents-1+COVID_patch),OFFSET($A$1,ROW()-1,FirstEventColumn+IndexEventsRate1-2,1,NbEventsRate1)),Rank3)), IF(LARGE((OFFSET($A$1,ROW()-1,FirstExtraEventColumn-2*(NbExtraEvents+1),1,NbExtraEvents-1+COVID_patch),OFFSET($A$1,ROW()-1,FirstEventColumn+IndexEventsRate1-2,1,NbEventsRate1)),Rank3)>0, L$12*LARGE((OFFSET($A$1,ROW()-1,FirstExtraEventColumn-2*(NbExtraEvents+1),1,NbExtraEvents-1+COVID_patch),OFFSET($A$1,ROW()-1,FirstEventColumn+IndexEventsRate1-2,1,NbEventsRate1)),Rank3),""), "") -> 500 | M23: =IF(ISNUMBER(LARGE((OFFSET($A$1,ROW()-1,FirstExtraEventColumn-2*(NbExtraEvents+1),1,NbExtraEvents-1+COVID_patch),OFFSET($A$1,ROW()-1,FirstEventColumn+IndexEventsRate1-2,1,NbEventsRate1)),Rank4)), IF(LARGE((OFFSET($A$1,ROW()-1,FirstExtraEventColumn-2*(NbExtraEvents+1),1,NbExtraEvents-1+COVID_patch),OFFSET($A$1,ROW()-1,FirstEventColumn+IndexEventsRate1-2,1,NbEventsRate1)),Rank4)>0, M$12*LARGE((OFFSET($A$1,ROW()-1,FirstExtraEventColumn-2*(NbExtraEvents+1),1,NbExtraEvents-1+COVID_patch),OFFSET($A$1,ROW()-1,FirstEventColumn+IndexEventsRate1-2,1,NbEventsRate1)),Rank4),""), "") ->  | N23: =IF(ISNUMBER(LARGE((OFFSET($A$1,ROW()-1,FirstExtraEventColumn-2*(NbExtraEvents+1),1,NbExtraEvents-1+COVID_patch),OFFSET($A$1,ROW()-1,FirstEventColumn+IndexEventsRate1-2,1,NbEventsRate1)),Rank5)), IF(LARGE((OFFSET($A$1,ROW()-1,FirstExtraEventColumn-2*(NbExtraEvents+1),1,NbExtraEvents-1+COVID_patch),OFFSET($A$1,ROW()-1,FirstEventColumn+IndexEventsRate1-2,1,NbEventsRate1)),Rank5)>0, N$12*LARGE((OFFSET($A$1,ROW()-1,FirstExtraEventColumn-2*(NbExtraEvents+1),1,NbExtraEvents-1+COVID_patch),OFFSET($A$1,ROW()-1,FirstEventColumn+IndexEventsRate1-2,1,NbEventsRate1)),Rank5),""), "") ->  | O23: =IF($AK23<>0,$AK$12*$AK23,"") ->  | P23: =IF(ISNUMBER(LARGE((OFFSET($A$1,ROW()-1,FirstExtraEventColumn-(NbExtraEvents+1),1,NbExtraEvents-1),OFFSET($A$1,ROW()-1,FirstEventColumn+IndexEventsRate2-2,1,NbEventsRate2)),Rank1)), IF(LARGE((OFFSET($A$1,ROW()-1,FirstExtraEventColumn-(NbExtraEvents+1),1,NbExtraEvents-1),OFFSET($A$1,ROW()-1,FirstEventColumn+IndexEventsRate2-2,1,NbEventsRate2)),Rank1)>0, P$12*LARGE((OFFSET($A$1,ROW()-1,FirstExtraEventColumn-(NbExtraEvents+1),1,NbExtraEvents-1),OFFSET($A$1,ROW()-1,FirstEventColumn+IndexEventsRate2-2,1,NbEventsRate2)),Rank1),""), "") -> 250 | Q23: =IF(ISNUMBER(LARGE((OFFSET($A$1,ROW()-1,FirstExtraEventColumn-(NbExtraEvents+1),1,NbExtraEvents-1),OFFSET($A$1,ROW()-1,FirstEventColumn+IndexEventsRate2-2,1,NbEventsRate2)),Rank2)), IF(LARGE((OFFSET($A$1,ROW()-1,FirstExtraEventColumn-(NbExtraEvents+1),1,NbExtraEvents-1),OFFSET($A$1,ROW()-1,FirstEventColumn+IndexEventsRate2-2,1,NbEventsRate2)),Rank2)>0, Q$12*LARGE((OFFSET($A$1,ROW()-1,FirstExtraEventColumn-(NbExtraEvents+1),1,NbExtraEvents-1),OFFSET($A$1,ROW()-1,FirstEventColumn+IndexEventsRate2-2,1,NbEventsRate2)),Rank2),""), "") -> 80 | R23: =IF(ISNUMBER(LARGE((OFFSET($A$1,ROW()-1,FirstExtraEventColumn-(NbExtraEvents+1),1,NbExtraEvents-1),OFFSET($A$1,ROW()-1,FirstEventColumn+IndexEventsRate2-2,1,NbEventsRate2)),Rank3)), IF(LARGE((OFFSET($A$1,ROW()-1,FirstExtraEventColumn-(NbExtraEvents+1),1,NbExtraEvents-1),OFFSET($A$1,ROW()-1,FirstEventColumn+IndexEventsRate2-2,1,NbEventsRate2)),Rank3)>0, R$12*LARGE((OFFSET($A$1,ROW()-1,FirstExtraEventColumn-(NbExtraEvents+1),1,NbExtraEvents-1),OFFSET($A$1,ROW()-1,FirstEventColumn+IndexEventsRate2-2,1,NbEventsRate2)),Rank3),""), "") ->  | S23: =IF(ISNUMBER(LARGE((OFFSET($A$1,ROW()-1,FirstExtraEventColumn-(NbExtraEvents+1),1,NbExtraEvents-1),OFFSET($A$1,ROW()-1,FirstEventColumn+IndexEventsRate2-2,1,NbEventsRate2)),Rank4)), IF(LARGE((OFFSET($A$1,ROW()-1,FirstExtraEventColumn-(NbExtraEvents+1),1,NbExtraEvents-1),OFFSET($A$1,ROW()-1,FirstEventColumn+IndexEventsRate2-2,1,NbEventsRate2)),Rank4)>0, S$12*LARGE((OFFSET($A$1,ROW()-1,FirstExtraEventColumn-(NbExtraEvents+1),1,NbExtraEvents-1),OFFSET($A$1,ROW()-1,FirstEventColumn+IndexEventsRate2-2,1,NbEventsRate2)),Rank4),""), "") ->  | T23: =IF(ISNUMBER(LARGE((OFFSET($A$1,ROW()-1,FirstExtraEventColumn-(NbExtraEvents+1),1,NbExtraEvents-1),OFFSET($A$1,ROW()-1,FirstEventColumn+IndexEventsRate2-2,1,NbEventsRate2)),Rank5)), IF(LARGE((OFFSET($A$1,ROW()-1,FirstExtraEventColumn-(NbExtraEvents+1),1,NbExtraEvents-1),OFFSET($A$1,ROW()-1,FirstEventColumn+IndexEventsRate2-2,1,NbEventsRate2)),Rank5)>0, T$12*LARGE((OFFSET($A$1,ROW()-1,FirstExtraEventColumn-(NbExtraEvents+1),1,NbExtraEvents-1),OFFSET($A$1,ROW()-1,FirstEventColumn+IndexEventsRate2-2,1,NbEventsRate2)),Rank5),""), "") ->  | U23: =IF($AN23<>0,$AN$12*$AN23,"") ->  | V23: =RateYear1*SUMIFS(OFFSET($A$1,ROW()-1,FirstExtraEventColumn-1,1,IndexExtraEventEnd+IndexEventEnd-2),OFFSET($A$1,RateLine-1,FirstExtraEventColumn-1,1,IndexExtraEventEnd+IndexEventEnd-2),RateYear1,OFFSET($A$1,RateLine-3,FirstExtraEventColumn-1,1,IndexExtraEventEnd+IndexEventEnd-2),"WCS") +RateYear2*SUMIFS(OFFSET($A$1,ROW()-1,FirstExtraEventColumn-1,1,IndexExtraEventEnd+IndexEventEnd-2),OFFSET($A$1,RateLine-1,FirstExtraEventColumn-1,1,IndexExtraEventEnd+IndexEventEnd-2),RateYear2,OFFSET($A$1,RateLine-3,FirstExtraEventColumn-1,1,IndexExtraEventEnd+IndexEventEnd-2),"WCS") -> 0 | W23: =RateYear1* (SUMIFS(OFFSET($A$1,ROW()-1,FirstExtraEventColumn-1,1,IndexExtraEventEnd+IndexEventEnd-2),OFFSET($A$1,RateLine-1,FirstExtraEventColumn-1,1,IndexExtraEventEnd+IndexEventEnd-2),RateYear1,OFFSET($A$1,RateLine-3,FirstExtraEventColumn-1,1,IndexExtraEventEnd+IndexEventEnd-2),"GP") +SUMIFS(OFFSET($A$1,ROW()-1,FirstExtraEventColumn-1,1,IndexExtraEventEnd+IndexEventEnd-2),OFFSET($A$1,RateLine-1,FirstExtraEventColumn-1,1,IndexExtraEventEnd+IndexEventEnd-2),RateYear1,OFFSET($A$1,RateLine-3,FirstExtraEventColumn-1,1,IndexExtraEventEnd+IndexEventEnd-2),"GS") +SUMIFS(OFFSET($A$1,ROW()-1,FirstExtraEventColumn-1,1,IndexExtraEventEnd+IndexEventEnd-2),OFFSET($A$1,RateLine-1,FirstExtraEventColumn-1,1,IndexExtraEventEnd+IndexEventEnd-2),RateYear1,OFFSET($A$1,RateLine-3,FirstExtraEventColumn-1,1,IndexExtraEventEnd+IndexEventEnd-2),"Masters")) +RateYear2* (SUMIFS(OFFSET($A$1,ROW()-1,FirstExtraEventColumn-1,1,IndexExtraEventEnd+IndexEventEnd-2),OFFSET($A$1,RateLine-1,FirstExtraEventColumn-1,1,IndexExtraEventEnd+IndexEventEnd-2),RateYear2,OFFSET($A$1,RateLine-3,FirstExtraEventColumn-1,1,IndexExtraEventEnd+IndexEventEnd-2),"GP") +SUMIFS(OFFSET($A$1,ROW()-1,FirstExtraEventColumn-1,1,IndexExtraEventEnd+IndexEventEnd-2),OFFSET($A$1,RateLine-1,FirstExtraEventColumn-1,1,IndexExtraEventEnd+IndexEventEnd-2),RateYear2,OFFSET($A$1,RateLine-3,FirstExtraEventColumn-1,1,IndexExtraEventEnd+IndexEventEnd-2),"GS") +SUMIFS(OFFSET($A$1,ROW()-1,FirstExtraEventColumn-1,1,IndexExtraEventEnd+IndexEventEnd-2),OFFSET($A$1,RateLine-1,FirstExtraEventColumn-1,1,IndexExtraEventEnd+IndexEventEnd-2),RateYear2,OFFSET($A$1,RateLine-3,FirstExtraEventColumn-1,1,IndexExtraEventEnd+IndexEventEnd-2),"Masters")) -> 2230 | X23: =IF(ISNUMBER(LARGE($J23:$U23,Rank1)),LARGE($J23:$U23,Rank1),"") -> 700 | Y23: =IF(ISNUMBER(LARGE($J23:$U23,Rank2)),LARGE($J23:$U23,Rank2),"") -> 700 | Z23: =IF(ISNUMBER(LARGE($J23:$U23,Rank3)),LARGE($J23:$U23,Rank3),"") -> 500 | AA23: =IF(ISNUMBER(LARGE($J23:$U23,Rank4)),LARGE($J23:$U23,Rank4),"") -> 250 | AB23: =IF(ISNUMBER(LARGE($J23:$U23,Rank5)),LARGE($J23:$U23,Rank5),"") -> 80 | AC23: =IF(ISNUMBER(LARGE($J23:$U23,Rank6)),LARGE($J23:$U23,Rank6),"") ->  | AD23: =IF(ISNUMBER(LARGE($J23:$U23,Rank7)),LARGE($J23:$U23,Rank7),"") ->  | AE23: =IF(ISNUMBER(LARGE($J23:$U23,Rank8)),LARGE($J23:$U23,Rank8),"") ->  | AF23: =IF(ISNUMBER(LARGE($J23:$U23,Rank9)),LARGE($J23:$U23,Rank9),"") ->  | AG23: =IF(ISNUMBER(LARGE($J23:$U23,Rank10)),LARGE($J23:$U23,Rank10),"") ->  | AH23: =IF(ISNUMBER(LARGE($J23:$U23,Rank11)),LARGE($J23:$U23,Rank11),"") ->  | AI23: =IF(ISNUMBER(LARGE($J23:$U23,Rank12)),LARGE($J23:$U23,Rank12),"") ->  | AJ23: =RateYear1*SUM(AK23:AM23)+RateYear2*SUM(AN23:AP23)+ IF(NbEventsRate1<>0,RateYear1*SUM(OFFSET($A$1,ROW()-1,FirstEventColumn+IndexEventsRate1-2,1,NbEventsRate1)),0)+ IF(NbEventsRate2<>0,RateYear2*SUM(OFFSET($A$1,ROW()-1,FirstEventColumn+IndexEventsRate2-2,1,NbEventsRate2)),0) -> 2230 | AK23: =IF(ISNUMBER(LARGE(IF(OFFSET($A$1,FirstEntryLine-3,FirstExtraEventColumn-1,1,FirstEventColumn-FirstExtraEventColumn)=AK$12,OFFSET($A$1,ROW()-1,FirstExtraEventColumn-1,1,FirstEventColumn-FirstExtraEventColumn)),Rank1)), LARGE(IF(OFFSET($A$1,FirstEntryLine-3,FirstExtraEventColumn-1,1,FirstEventColumn-FirstExtraEventColumn)=AK$12,OFFSET($A$1,ROW()-1,FirstExtraEventColumn-1,1,FirstEventColumn-FirstExtraEventColumn)),Rank1), "") -> 0 | AL23: =IF(ISNUMBER(LARGE(IF(OFFSET($A$1,FirstEntryLine-3,FirstExtraEventColumn-1,1,FirstEventColumn-FirstExtraEventColumn)=AL$12,OFFSET($A$1,ROW()-1,FirstExtraEventColumn-1,1,FirstEventColumn-FirstExtraEventColumn)),Rank2)), LARGE(IF(OFFSET($A$1,FirstEntryLine-3,FirstExtraEventColumn-1,1,FirstEventColumn-FirstExtraEventColumn)=AL$12,OFFSET($A$1,ROW()-1,FirstExtraEventColumn-1,1,FirstEventColumn-FirstExtraEventColumn)),Rank2), "") -> 0 | AN23: =IF(AT23>MAX(AS23,AU23),AT23,MAX(AS23,AU23)) -> 0 | AO23: =IF(AT23>MAX(AS23,AU23),MAX(AS23,AU23),AT23) -> 0 | BS23: 700 | BX23: 700 | CF23: 500 | CK23: 160 | CO23: 500 | CY23: 50 | DB23: 160 | DP23: 70 | ES23: 112 | FX23: 112
B24: =IF(G24="","",IF(ROW()=FirstEntryLine,1,IF(AND(I24=OFFSET(I24,-1,0),V24=OFFSET(V24,-1,0),W24=OFFSET(W24,-1,0),X24=OFFSET(X24,-1,0),Y24=OFFSET(Y24,-1,0),Z24=OFFSET(Z24,-1,0),AA24=OFFSET(AA24,-1,0),AB24=OFFSET(AB24,-1,0),AC24=OFFSET(AC24,-1,0),AD24=OFFSET(AD24,-1,0),AE24=OFFSET(AE24,-1,0),AF24=OFFSET(AF24,-1,0),AG24=OFFSET(AG24,-1,0),AH24=OFFSET(AH24,-1,0),AI24=OFFSET(AI24,-1,0)),OFFSET(B24,-1,0),ROW()-FirstEntryLine+1))) -> 11 | C24: NED | D24: =IF(C24="", "", VLOOKUP(C24, ContinentShorts, 2, FALSE)) -> EJU | E24: 51929313 | G24: TSJAKADOEA | H24: Tornike | I24: =SUM(J24:U24) -> 2077 | J24: =IF(ISNUMBER(LARGE((OFFSET($A$1,ROW()-1,FirstExtraEventColumn-2*(NbExtraEvents+1),1,NbExtraEvents-1+COVID_patch),OFFSET($A$1,ROW()-1,FirstEventColumn+IndexEventsRate1-2,1,NbEventsRate1)),Rank1)), IF(LARGE((OFFSET($A$1,ROW()-1,FirstExtraEventColumn-2*(NbExtraEvents+1),1,NbExtraEvents-1+COVID_patch),OFFSET($A$1,ROW()-1,FirstEventColumn+IndexEventsRate1-2,1,NbEventsRate1)),Rank1)>0, J$12*LARGE((OFFSET($A$1,ROW()-1,FirstExtraEventColumn-2*(NbExtraEvents+1),1,NbExtraEvents-1+COVID_patch),OFFSET($A$1,ROW()-1,FirstEventColumn+IndexEventsRate1-2,1,NbEventsRate1)),Rank1),""), "") -> 792 | K24: =IF(ISNUMBER(LARGE((OFFSET($A$1,ROW()-1,FirstExtraEventColumn-2*(NbExtraEvents+1),1,NbExtraEvents-1+COVID_patch),OFFSET($A$1,ROW()-1,FirstEventColumn+IndexEventsRate1-2,1,NbEventsRate1)),Rank2)), IF(LARGE((OFFSET($A$1,ROW()-1,FirstExtraEventColumn-2*(NbExtraEvents+1),1,NbExtraEvents-1+COVID_patch),OFFSET($A$1,ROW()-1,FirstEventColumn+IndexEventsRate1-2,1,NbEventsRate1)),Rank2)>0, K$12*LARGE((OFFSET($A$1,ROW()-1,FirstExtraEventColumn-2*(NbExtraEvents+1),1,NbExtraEvents-1+COVID_patch),OFFSET($A$1,ROW()-1,FirstEventColumn+IndexEventsRate1-2,1,NbEventsRate1)),Rank2),""), "") -> 360 | L24: =IF(ISNUMBER(LARGE((OFFSET($A$1,ROW()-1,FirstExtraEventColumn-2*(NbExtraEvents+1),1,NbExtraEvents-1+COVID_patch),OFFSET($A$1,ROW()-1,FirstEventColumn+IndexEventsRate1-2,1,NbEventsRate1)),Rank3)), IF(LARGE((OFFSET($A$1,ROW()-1,FirstExtraEventColumn-2*(NbExtraEvents+1),1,NbExtraEvents-1+COVID_patch),OFFSET($A$1,ROW()-1,FirstEventColumn+IndexEventsRate1-2,1,NbEventsRate1)),Rank3)>0, L$12*LARGE((OFFSET($A$1,ROW()-1,FirstExtraEventColumn-2*(NbExtraEvents+1),1,NbExtraEvents-1+COVID_patch),OFFSET($A$1,ROW()-1,FirstEventColumn+IndexEventsRate1-2,1,NbEventsRate1)),Rank3),""), "") -> 20 | M24: =IF(ISNUMBER(LARGE((OFFSET($A$1,ROW()-1,FirstExtraEventColumn-2*(NbExtraEvents+1),1,NbExtraEvents-1+COVID_patch),OFFSET($A$1,ROW()-1,FirstEventColumn+IndexEventsRate1-2,1,NbEventsRate1)),Rank4)), IF(LARGE((OFFSET($A$1,ROW()-1,FirstExtraEventColumn-2*(NbExtraEvents+1),1,NbExtraEvents-1+COVID_patch),OFFSET($A$1,ROW()-1,FirstEventColumn+IndexEventsRate1-2,1,NbEventsRate1)),Rank4)>0, M$12*LARGE((OFFSET($A$1,ROW()-1,FirstExtraEventColumn-2*(NbExtraEvents+1),1,NbExtraEvents-1+COVID_patch),OFFSET($A$1,ROW()-1,FirstEventColumn+IndexEventsRate1-2,1,NbEventsRate1)),Rank4),""), "") -> 10 | N24: =IF(ISNUMBER(LARGE((OFFSET($A$1,ROW()-1,FirstExtraEventColumn-2*(NbExtraEvents+1),1,NbExtraEvents-1+COVID_patch),OFFSET($A$1,ROW()-1,FirstEventColumn+IndexEventsRate1-2,1,NbEventsRate1)),Rank5)), IF(LARGE((OFFSET($A$1,ROW()-1,FirstExtraEventColumn-2*(NbExtraEvents+1),1,NbExtraEvents-1+COVID_patch),OFFSET($A$1,ROW()-1,FirstEventColumn+IndexEventsRate1-2,1,NbEventsRate1)),Rank5)>0, N$12*LARGE((OFFSET($A$1,ROW()-1,FirstExtraEventColumn-2*(NbExtraEvents+1),1,NbExtraEvents-1+COVID_patch),OFFSET($A$1,ROW()-1,FirstEventColumn+IndexEventsRate1-2,1,NbEventsRate1)),Rank5),""), "") ->  | O24: =IF($AK24<>0,$AK$12*$AK24,"") -> 182 | P24: =IF(ISNUMBER(LARGE((OFFSET($A$1,ROW()-1,FirstExtraEventColumn-(NbExtraEvents+1),1,NbExtraEvents-1),OFFSET($A$1,ROW()-1,FirstEventColumn+IndexEventsRate2-2,1,NbEventsRate2)),Rank1)), IF(LARGE((OFFSET($A$1,ROW()-1,FirstExtraEventColumn-(NbExtraEvents+1),1,NbExtraEvents-1),OFFSET($A$1,ROW()-1,FirstEventColumn+IndexEventsRate2-2,1,NbEventsRate2)),Rank1)>0, P$12*LARGE((OFFSET($A$1,ROW()-1,FirstExtraEventColumn-(NbExtraEvents+1),1,NbExtraEvents-1),OFFSET($A$1,ROW()-1,FirstEventColumn+IndexEventsRate2-2,1,NbEventsRate2)),Rank1),""), "") -> 180 | Q24: =IF(ISNUMBER(LARGE((OFFSET($A$1,ROW()-1,FirstExtraEventColumn-(NbExtraEvents+1),1,NbExtraEvents-1),OFFSET($A$1,ROW()-1,FirstEventColumn+IndexEventsRate2-2,1,NbEventsRate2)),Rank2)), IF(LARGE((OFFSET($A$1,ROW()-1,FirstExtraEventColumn-(NbExtraEvents+1),1,NbExtraEvents-1),OFFSET($A$1,ROW()-1,FirstEventColumn+IndexEventsRate2-2,1,NbEventsRate2)),Rank2)>0, Q$12*LARGE((OFFSET($A$1,ROW()-1,FirstExtraEventColumn-(NbExtraEvents+1),1,NbExtraEvents-1),OFFSET($A$1,ROW()-1,FirstEventColumn+IndexEventsRate2-2,1,NbEventsRate2)),Rank2),""), "") -> 80 | R24: =IF(ISNUMBER(LARGE((OFFSET($A$1,ROW()-1,FirstExtraEventColumn-(NbExtraEvents+1),1,NbExtraEvents-1),OFFSET($A$1,ROW()-1,FirstEventColumn+IndexEventsRate2-2,1,NbEventsRate2)),Rank3)), IF(LARGE((OFFSET($A$1,ROW()-1,FirstExtraEventColumn-(NbExtraEvents+1),1,NbExtraEvents-1),OFFSET($A$1,ROW()-1,FirstEventColumn+IndexEventsRate2-2,1,NbEventsRate2)),Rank3)>0, R$12*LARGE((OFFSET($A$1,ROW()-1,FirstExtraEventColumn-(NbExtraEvents+1),1,NbExtraEvents-1),OFFSET($A$1,ROW()-1,FirstEventColumn+IndexEventsRate2-2,1,NbEventsRate2)),Rank3),""), "") -> 3 | S24: =IF(ISNUMBER(LARGE((OFFSET($A$1,ROW()-1,FirstExtraEventColumn-(NbExtraEvents+1),1,NbExtraEvents-1),OFFSET($A$1,ROW()-1,FirstEventColumn+IndexEventsRate2-2,1,NbEventsRate2)),Rank4)), IF(LARGE((OFFSET($A$1,ROW()-1,FirstExtraEventColumn-(NbExtraEvents+1),1,NbExtraEvents-1),OFFSET($A$1,ROW()-1,FirstEventColumn+IndexEventsRate2-2,1,NbEventsRate2)),Rank4)>0, S$12*LARGE((OFFSET($A$1,ROW()-1,FirstExtraEventColumn-(NbExtraEvents+1),1,NbExtraEvents-1),OFFSET($A$1,ROW()-1,FirstEventColumn+IndexEventsRate2-2,1,NbEventsRate2)),Rank4),""), "") ->  | T24: =IF(ISNUMBER(LARGE((OFFSET($A$1,ROW()-1,FirstExtraEventColumn-(NbExtraEvents+1),1,NbExtraEvents-1),OFFSET($A$1,ROW()-1,FirstEventColumn+IndexEventsRate2-2,1,NbEventsRate2)),Rank5)), IF(LARGE((OFFSET($A$1,ROW()-1,FirstExtraEventColumn-(NbExtraEvents+1),1,NbExtraEvents-1),OFFSET($A$1,ROW()-1,FirstEventColumn+IndexEventsRate2-2,1,NbEventsRate2)),Rank5)>0, T$12*LARGE((OFFSET($A$1,ROW()-1,FirstExtraEventColumn-(NbExtraEvents+1),1,NbExtraEvents-1),OFFSET($A$1,ROW()-1,FirstEventColumn+IndexEventsRate2-2,1,NbEventsRate2)),Rank5),""), "") ->  | U24: =IF($AN24<>0,$AN$12*$AN24,"") -> 450 | V24: =RateYear1*SUMIFS(OFFSET($A$1,ROW()-1,FirstExtraEventColumn-1,1,IndexExtraEventEnd+IndexEventEnd-2),OFFSET($A$1,RateLine-1,FirstExtraEventColumn-1,1,IndexExtraEventEnd+IndexEventEnd-2),RateYear1,OFFSET($A$1,RateLine-3,FirstExtraEventColumn-1,1,IndexExtraEventEnd+IndexEventEnd-2),"WCS") +RateYear2*SUMIFS(OFFSET($A$1,ROW()-1,FirstExtraEventColumn-1,1,IndexExtraEventEnd+IndexEventEnd-2),OFFSET($A$1,RateLine-1,FirstExtraEventColumn-1,1,IndexExtraEventEnd+IndexEventEnd-2),RateYear2,OFFSET($A$1,RateLine-3,FirstExtraEventColumn-1,1,IndexExtraEventEnd+IndexEventEnd-2),"WCS") -> 20 | W24: =RateYear1* (SUMIFS(OFFSET($A$1,ROW()-1,FirstExtraEventColumn-1,1,IndexExtraEventEnd+IndexEventEnd-2),OFFSET($A$1,RateLine-1,FirstExtraEventColumn-1,1,IndexExtraEventEnd+IndexEventEnd-2),RateYear1,OFFSET($A$1,RateLine-3,FirstExtraEventColumn-1,1,IndexExtraEventEnd+IndexEventEnd-2),"GP") +SUMIFS(OFFSET($A$1,ROW()-1,FirstExtraEventColumn-1,1,IndexExtraEventEnd+IndexEventEnd-2),OFFSET($A$1,RateLine-1,FirstExtraEventColumn-1,1,IndexExtraEventEnd+IndexEventEnd-2),RateYear1,OFFSET($A$1,RateLine-3,FirstExtraEventColumn-1,1,IndexExtraEventEnd+IndexEventEnd-2),"GS") +SUMIFS(OFFSET($A$1,ROW()-1,FirstExtraEventColumn-1,1,IndexExtraEventEnd+IndexEventEnd-2),OFFSET($A$1,RateLine-1,FirstExtraEventColumn-1,1,IndexExtraEventEnd+IndexEventEnd-2),RateYear1,OFFSET($A$1,RateLine-3,FirstExtraEventColumn-1,1,IndexExtraEventEnd+IndexEventEnd-2),"Masters")) +RateYear2* (SUMIFS(OFFSET($A$1,ROW()-1,FirstExtraEventColumn-1,1,IndexExtraEventEnd+IndexEventEnd-2),OFFSET($A$1,RateLine-1,FirstExtraEventColumn-1,1,IndexExtraEventEnd+IndexEventEnd-2),RateYear2,OFFSET($A$1,RateLine-3,FirstExtraEventColumn-1,1,IndexExtraEventEnd+IndexEventEnd-2),"GP") +SUMIFS(OFFSET($A$1,ROW()-1,FirstExtraEventColumn-1,1,IndexExtraEventEnd+IndexEventEnd-2),OFFSET($A$1,RateLine-1,FirstExtraEventColumn-1,1,IndexExtraEventEnd+IndexEventEnd-2),RateYear2,OFFSET($A$1,RateLine-3,FirstExtraEventColumn-1,1,IndexExtraEventEnd+IndexEventEnd-2),"GS") +SUMIFS(OFFSET($A$1,ROW()-1,FirstExtraEventColumn-1,1,IndexExtraEventEnd+IndexEventEnd-2),OFFSET($A$1,RateLine-1,FirstExtraEventColumn-1,1,IndexExtraEventEnd+IndexEventEnd-2),RateYear2,OFFSET($A$1,RateLine-3,FirstExtraEventColumn-1,1,IndexExtraEventEnd+IndexEventEnd-2),"Masters")) -> 1080 | X24: =IF(ISNUMBER(LARGE($J24:$U24,Rank1)),LARGE($J24:$U24,Rank1),"") -> 792 | Y24: =IF(ISNUMBER(LARGE($J24:$U24,Rank2)),LARGE($J24:$U24,Rank2),"") -> 450 | Z24: =IF(ISNUMBER(LARGE($J24:$U24,Rank3)),LARGE($J24:$U24,Rank3),"") -> 360 | AA24: =IF(ISNUMBER(LARGE($J24:$U24,Rank4)),LARGE($J24:$U24,Rank4),"") -> 182 | AB24: =IF(ISNUMBER(LARGE($J24:$U24,Rank5)),LARGE($J24:$U24,Rank5),"") -> 180 | AC24: =IF(ISNUMBER(LARGE($J24:$U24,Rank6)),LARGE($J24:$U24,Rank6),"") -> 80 | AD24: =IF(ISNUMBER(LARGE($J24:$U24,Rank7)),LARGE($J24:$U24,Rank7),"") -> 20 | AE24: =IF(ISNUMBER(LARGE($J24:$U24,Rank8)),LARGE($J24:$U24,Rank8),"") -> 10 | AF24: =IF(ISNUMBER(LARGE($J24:$U24,Rank9)),LARGE($J24:$U24,Rank9),"") -> 3 | AG24: =IF(ISNUMBER(LARGE($J24:$U24,Rank10)),LARGE($J24:$U24,Rank10),"") ->  | AH24: =IF(ISNUMBER(LARGE($J24:$U24,Rank11)),LARGE($J24:$U24,Rank11),"") ->  | AI24: =IF(ISNUMBER(LARGE($J24:$U24,Rank12)),LARGE($J24:$U24,Rank12),"") ->  | AJ24: =RateYear1*SUM(AK24:AM24)+RateYear2*SUM(AN24:AP24)+ IF(NbEventsRate1<>0,RateYear1*SUM(OFFSET($A$1,ROW()-1,FirstEventColumn+IndexEventsRate1-2,1,NbEventsRate1)),0)+ IF(NbEventsRate2<>0,RateYear2*SUM(OFFSET($A$1,ROW()-1,FirstEventColumn+IndexEventsRate2-2,1,NbEventsRate2)),0) -> 2077 | AK24: =IF(ISNUMBER(LARGE(IF(OFFSET($A$1,FirstEntryLine-3,FirstExtraEventColumn-1,1,FirstEventColumn-FirstExtraEventColumn)=AK$12,OFFSET($A$1,ROW()-1,FirstExtraEventColumn-1,1,FirstEventColumn-FirstExtraEventColumn)),Rank1)), LARGE(IF(OFFSET($A$1,FirstEntryLine-3,FirstExtraEventColumn-1,1,FirstEventColumn-FirstExtraEventColumn)=AK$12,OFFSET($A$1,ROW()-1,FirstExtraEventColumn-1,1,FirstEventColumn-FirstExtraEventColumn)),Rank1), "") -> 182 | AL24: =IF(ISNUMBER(LARGE(IF(OFFSET($A$1,FirstEntryLine-3,FirstExtraEventColumn-1,1,FirstEventColumn-FirstExtraEventColumn)=AL$12,OFFSET($A$1,ROW()-1,FirstExtraEventColumn-1,1,FirstEventColumn-FirstExtraEventColumn)),Rank2)), LARGE(IF(OFFSET($A$1,FirstEntryLine-3,FirstExtraEventColumn-1,1,FirstEventColumn-FirstExtraEventColumn)=AL$12,OFFSET($A$1,ROW()-1,FirstExtraEventColumn-1,1,FirstEventColumn-FirstExtraEventColumn)),Rank2), "") -> 0 | AN24: =IF(AT24>MAX(AS24,AU24),AT24,MAX(AS24,AU24)) -> 900 | AO24: =IF(AT24>MAX(AS24,AU24),MAX(AS24,AU24),AT24) -> 6 | AQ24: 182 | AT24: 900 | AU24: 6 | AW24: 182 | AY24: 112 | BO24: 360 | BX24: 10 | CB24: 792 | CC24: 20 | CK24: 360 | CS24: 160 | CV24: 500 | CX24: 10 | CZ24: 6 | DB24: 260 | DF24: 160 | DM24: 20 | DQ24: 350 | EA24: 500 | EE24: 500 | EG24: 360 | EI24: 490 | EL24: 10 | EO24: 112 | ET24: 700 | EV24: 240 | EX24: 36 | EY24: 112 | EZ24: 112 | FB24: 16 | FC24: 112 | FE24: 182 | FK24: 16 | FP24: 6 | FU24: 0 | GD24: 50 | GF24: 112 | GK24: 6 | GR24: 6 | GT24: 10 | HB24: 40 | HL24: 12 | HY24: 0
B25: =IF(G25="","",IF(ROW()=FirstEntryLine,1,IF(AND(I25=OFFSET(I25,-1,0),V25=OFFSET(V25,-1,0),W25=OFFSET(W25,-1,0),X25=OFFSET(X25,-1,0),Y25=OFFSET(Y25,-1,0),Z25=OFFSET(Z25,-1,0),AA25=OFFSET(AA25,-1,0),AB25=OFFSET(AB25,-1,0),AC25=OFFSET(AC25,-1,0),AD25=OFFSET(AD25,-1,0),AE25=OFFSET(AE25,-1,0),AF25=OFFSET(AF25,-1,0),AG25=OFFSET(AG25,-1,0),AH25=OFFSET(AH25,-1,0),AI25=OFFSET(AI25,-1,0)),OFFSET(B25,-1,0),ROW()-FirstEntryLine+1))) -> 12 | C25: AZE | D25: =IF(C25="", "", VLOOKUP(C25, ContinentShorts, 2, FALSE)) -> EJU | E25: 9e2af699 | G25: AGHAYEV | H25: Balabay | I25: =SUM(J25:U25) -> 2002 | J25: =IF(ISNUMBER(LARGE((OFFSET($A$1,ROW()-1,FirstExtraEventColumn-2*(NbExtraEvents+1),1,NbExtraEvents-1+COVID_patch),OFFSET($A$1,ROW()-1,FirstEventColumn+IndexEventsRate1-2,1,NbEventsRate1)),Rank1)), IF(LARGE((OFFSET($A$1,ROW()-1,FirstExtraEventColumn-2*(NbExtraEvents+1),1,NbExtraEvents-1+COVID_patch),OFFSET($A$1,ROW()-1,FirstEventColumn+IndexEventsRate1-2,1,NbEventsRate1)),Rank1)>0, J$12*LARGE((OFFSET($A$1,ROW()-1,FirstExtraEventColumn-2*(NbExtraEvents+1),1,NbExtraEvents-1+COVID_patch),OFFSET($A$1,ROW()-1,FirstEventColumn+IndexEventsRate1-2,1,NbEventsRate1)),Rank1),""), "") -> 1000 | K25: =IF(ISNUMBER(LARGE((OFFSET($A$1,ROW()-1,FirstExtraEventColumn-2*(NbExtraEvents+1),1,NbExtraEvents-1+COVID_patch),OFFSET($A$1,ROW()-1,FirstEventColumn+IndexEventsRate1-2,1,NbEventsRate1)),Rank2)), IF(LARGE((OFFSET($A$1,ROW()-1,FirstExtraEventColumn-2*(NbExtraEvents+1),1,NbExtraEvents-1+COVID_patch),OFFSET($A$1,ROW()-1,FirstEventColumn+IndexEventsRate1-2,1,NbEventsRate1)),Rank2)>0, K$12*LARGE((OFFSET($A$1,ROW()-1,FirstExtraEventColumn-2*(NbExtraEvents+1),1,NbExtraEvents-1+COVID_patch),OFFSET($A$1,ROW()-1,FirstEventColumn+IndexEventsRate1-2,1,NbEventsRate1)),Rank2),""), "") -> 490 | L25: =IF(ISNUMBER(LARGE((OFFSET($A$1,ROW()-1,FirstExtraEventColumn-2*(NbExtraEvents+1),1,NbExtraEvents-1+COVID_patch),OFFSET($A$1,ROW()-1,FirstEventColumn+IndexEventsRate1-2,1,NbEventsRate1)),Rank3)), IF(LARGE((OFFSET($A$1,ROW()-1,FirstExtraEventColumn-2*(NbExtraEvents+1),1,NbExtraEvents-1+COVID_patch),OFFSET($A$1,ROW()-1,FirstEventColumn+IndexEventsRate1-2,1,NbEventsRate1)),Rank3)>0, L$12*LARGE((OFFSET($A$1,ROW()-1,FirstExtraEventColumn-2*(NbExtraEvents+1),1,NbExtraEvents-1+COVID_patch),OFFSET($A$1,ROW()-1,FirstEventColumn+IndexEventsRate1-2,1,NbEventsRate1)),Rank3),""), "") -> 260 | M25: =IF(ISNUMBER(LARGE((OFFSET($A$1,ROW()-1,FirstExtraEventColumn-2*(NbExtraEvents+1),1,NbExtraEvents-1+COVID_patch),OFFSET($A$1,ROW()-1,FirstEventColumn+IndexEventsRate1-2,1,NbEventsRate1)),Rank4)), IF(LARGE((OFFSET($A$1,ROW()-1,FirstExtraEventColumn-2*(NbExtraEvents+1),1,NbExtraEvents-1+COVID_patch),OFFSET($A$1,ROW()-1,FirstEventColumn+IndexEventsRate1-2,1,NbEventsRate1)),Rank4)>0, M$12*LARGE((OFFSET($A$1,ROW()-1,FirstExtraEventColumn-2*(NbExtraEvents+1),1,NbExtraEvents-1+COVID_patch),OFFSET($A$1,ROW()-1,FirstEventColumn+IndexEventsRate1-2,1,NbEventsRate1)),Rank4),""), "") ->  | N25: =IF(ISNUMBER(LARGE((OFFSET($A$1,ROW()-1,FirstExtraEventColumn-2*(NbExtraEvents+1),1,NbExtraEvents-1+COVID_patch),OFFSET($A$1,ROW()-1,FirstEventColumn+IndexEventsRate1-2,1,NbEventsRate1)),Rank5)), IF(LARGE((OFFSET($A$1,ROW()-1,FirstExtraEventColumn-2*(NbExtraEvents+1),1,NbExtraEvents-1+COVID_patch),OFFSET($A$1,ROW()-1,FirstEventColumn+IndexEventsRate1-2,1,NbEventsRate1)),Rank5)>0, N$12*LARGE((OFFSET($A$1,ROW()-1,FirstExtraEventColumn-2*(NbExtraEvents+1),1,NbExtraEvents-1+COVID_patch),OFFSET($A$1,ROW()-1,FirstEventColumn+IndexEventsRate1-2,1,NbEventsRate1)),Rank5),""), "") ->  | O25: =IF($AK25<>0,$AK$12*$AK25,"") -> 252 | P25: =IF(ISNUMBER(LARGE((OFFSET($A$1,ROW()-1,FirstExtraEventColumn-(NbExtraEvents+1),1,NbExtraEvents-1),OFFSET($A$1,ROW()-1,FirstEventColumn+IndexEventsRate2-2,1,NbEventsRate2)),Rank1)), IF(LARGE((OFFSET($A$1,ROW()-1,FirstExtraEventColumn-(NbExtraEvents+1),1,NbExtraEvents-1),OFFSET($A$1,ROW()-1,FirstEventColumn+IndexEventsRate2-2,1,NbEventsRate2)),Rank1)>0, P$12*LARGE((OFFSET($A$1,ROW()-1,FirstExtraEventColumn-(NbExtraEvents+1),1,NbExtraEvents-1),OFFSET($A$1,ROW()-1,FirstEventColumn+IndexEventsRate2-2,1,NbEventsRate2)),Rank1),""), "") ->  | Q25: =IF(ISNUMBER(LARGE((OFFSET($A$1,ROW()-1,FirstExtraEventColumn-(NbExtraEvents+1),1,NbExtraEvents-1),OFFSET($A$1,ROW()-1,FirstEventColumn+IndexEventsRate2-2,1,NbEventsRate2)),Rank2)), IF(LARGE((OFFSET($A$1,ROW()-1,FirstExtraEventColumn-(NbExtraEvents+1),1,NbExtraEvents-1),OFFSET($A$1,ROW()-1,FirstEventColumn+IndexEventsRate2-2,1,NbEventsRate2)),Rank2)>0, Q$12*LARGE((OFFSET($A$1,ROW()-1,FirstExtraEventColumn-(NbExtraEvents+1),1,NbExtraEvents-1),OFFSET($A$1,ROW()-1,FirstEventColumn+IndexEventsRate2-2,1,NbEventsRate2)),Rank2),""), "") ->  | R25: =IF(ISNUMBER(LARGE((OFFSET($A$1,ROW()-1,FirstExtraEventColumn-(NbExtraEvents+1),1,NbExtraEvents-1),OFFSET($A$1,ROW()-1,FirstEventColumn+IndexEventsRate2-2,1,NbEventsRate2)),Rank3)), IF(LARGE((OFFSET($A$1,ROW()-1,FirstExtraEventColumn-(NbExtraEvents+1),1,NbExtraEvents-1),OFFSET($A$1,ROW()-1,FirstEventColumn+IndexEventsRate2-2,1,NbEventsRate2)),Rank3)>0, R$12*LARGE((OFFSET($A$1,ROW()-1,FirstExtraEventColumn-(NbExtraEvents+1),1,NbExtraEvents-1),OFFSET($A$1,ROW()-1,FirstEventColumn+IndexEventsRate2-2,1,NbEventsRate2)),Rank3),""), "") ->  | S25: =IF(ISNUMBER(LARGE((OFFSET($A$1,ROW()-1,FirstExtraEventColumn-(NbExtraEvents+1),1,NbExtraEvents-1),OFFSET($A$1,ROW()-1,FirstEventColumn+IndexEventsRate2-2,1,NbEventsRate2)),Rank4)), IF(LARGE((OFFSET($A$1,ROW()-1,FirstExtraEventColumn-(NbExtraEvents+1),1,NbExtraEvents-1),OFFSET($A$1,ROW()-1,FirstEventColumn+IndexEventsRate2-2,1,NbEventsRate2)),Rank4)>0, S$12*LARGE((OFFSET($A$1,ROW()-1,FirstExtraEventColumn-(NbExtraEvents+1),1,NbExtraEvents-1),OFFSET($A$1,ROW()-1,FirstEventColumn+IndexEventsRate2-2,1,NbEventsRate2)),Rank4),""), "") ->  | T25: =IF(ISNUMBER(LARGE((OFFSET($A$1,ROW()-1,FirstExtraEventColumn-(NbExtraEvents+1),1,NbExtraEvents-1),OFFSET($A$1,ROW()-1,FirstEventColumn+IndexEventsRate2-2,1,NbEventsRate2)),Rank5)), IF(LARGE((OFFSET($A$1,ROW()-1,FirstExtraEventColumn-(NbExtraEvents+1),1,NbExtraEvents-1),OFFSET($A$1,ROW()-1,FirstEventColumn+IndexEventsRate2-2,1,NbEventsRate2)),Rank5)>0, T$12*LARGE((OFFSET($A$1,ROW()-1,FirstExtraEventColumn-(NbExtraEvents+1),1,NbExtraEvents-1),OFFSET($A$1,ROW()-1,FirstEventColumn+IndexEventsRate2-2,1,NbEventsRate2)),Rank5),""), "") ->  | U25: =IF($AN25<>0,$AN$12*$AN25,"") ->  | V25: =RateYear1*SUMIFS(OFFSET($A$1,ROW()-1,FirstExtraEventColumn-1,1,IndexExtraEventEnd+IndexEventEnd-2),OFFSET($A$1,RateLine-1,FirstExtraEventColumn-1,1,IndexExtraEventEnd+IndexEventEnd-2),RateYear1,OFFSET($A$1,RateLine-3,FirstExtraEventColumn-1,1,IndexExtraEventEnd+IndexEventEnd-2),"WCS") +RateYear2*SUMIFS(OFFSET($A$1,ROW()-1,FirstExtraEventColumn-1,1,IndexExtraEventEnd+IndexEventEnd-2),OFFSET($A$1,RateLine-1,FirstExtraEventColumn-1,1,IndexExtraEventEnd+IndexEventEnd-2),RateYear2,OFFSET($A$1,RateLine-3,FirstExtraEventColumn-1,1,IndexExtraEventEnd+IndexEventEnd-2),"WCS") -> 0 | W25: =RateYear1* (SUMIFS(OFFSET($A$1,ROW()-1,FirstExtraEventColumn-1,1,IndexExtraEventEnd+IndexEventEnd-2),OFFSET($A$1,RateLine-1,FirstExtraEventColumn-1,1,IndexExtraEventEnd+IndexEventEnd-2),RateYear1,OFFSET($A$1,RateLine-3,FirstExtraEventColumn-1,1,IndexExtraEventEnd+IndexEventEnd-2),"GP") +SUMIFS(OFFSET($A$1,ROW()-1,FirstExtraEventColumn-1,1,IndexExtraEventEnd+IndexEventEnd-2),OFFSET($A$1,RateLine-1,FirstExtraEventColumn-1,1,IndexExtraEventEnd+IndexEventEnd-2),RateYear1,OFFSET($A$1,RateLine-3,FirstExtraEventColumn-1,1,IndexExtraEventEnd+IndexEventEnd-2),"GS") +SUMIFS(OFFSET($A$1,ROW()-1,FirstExtraEventColumn-1,1,IndexExtraEventEnd+IndexEventEnd-2),OFFSET($A$1,RateLine-1,FirstExtraEventColumn-1,1,IndexExtraEventEnd+IndexEventEnd-2),RateYear1,OFFSET($A$1,RateLine-3,FirstExtraEventColumn-1,1,IndexExtraEventEnd+IndexEventEnd-2),"Masters")) +RateYear2* (SUMIFS(OFFSET($A$1,ROW()-1,FirstExtraEventColumn-1,1,IndexExtraEventEnd+IndexEventEnd-2),OFFSET($A$1,RateLine-1,FirstExtraEventColumn-1,1,IndexExtraEventEnd+IndexEventEnd-2),RateYear2,OFFSET($A$1,RateLine-3,FirstExtraEventColumn-1,1,IndexExtraEventEnd+IndexEventEnd-2),"GP") +SUMIFS(OFFSET($A$1,ROW()-1,FirstExtraEventColumn-1,1,IndexExtraEventEnd+IndexEventEnd-2),OFFSET($A$1,RateLine-1,FirstExtraEventColumn-1,1,IndexExtraEventEnd+IndexEventEnd-2),RateYear2,OFFSET($A$1,RateLine-3,FirstExtraEventColumn-1,1,IndexExtraEventEnd+IndexEventEnd-2),"GS") +SUMIFS(OFFSET($A$1,ROW()-1,FirstExtraEventColumn-1,1,IndexExtraEventEnd+IndexEventEnd-2),OFFSET($A$1,RateLine-1,FirstExtraEventColumn-1,1,IndexExtraEventEnd+IndexEventEnd-2),RateYear2,OFFSET($A$1,RateLine-3,FirstExtraEventColumn-1,1,IndexExtraEventEnd+IndexEventEnd-2),"Masters")) -> 1750 | X25: =IF(ISNUMBER(LARGE($J25:$U25,Rank1)),LARGE($J25:$U25,Rank1),"") -> 1000 | Y25: =IF(ISNUMBER(LARGE($J25:$U25,Rank2)),LARGE($J25:$U25,Rank2),"") -> 490 | Z25: =IF(ISNUMBER(LARGE($J25:$U25,Rank3)),LARGE($J25:$U25,Rank3),"") -> 260 | AA25: =IF(ISNUMBER(LARGE($J25:$U25,Rank4)),LARGE($J25:$U25,Rank4),"") -> 252 | AB25: =IF(ISNUMBER(LARGE($J25:$U25,Rank5)),LARGE($J25:$U25,Rank5),"") ->  | AC25: =IF(ISNUMBER(LARGE($J25:$U25,Rank6)),LARGE($J25:$U25,Rank6),"") ->  | AD25: =IF(ISNUMBER(LARGE($J25:$U25,Rank7)),LARGE($J25:$U25,Rank7),"") ->  | AE25: =IF(ISNUMBER(LARGE($J25:$U25,Rank8)),LARGE($J25:$U25,Rank8),"") ->  | AF25: =IF(ISNUMBER(LARGE($J25:$U25,Rank9)),LARGE($J25:$U25,Rank9),"") ->  | AG25: =IF(ISNUMBER(LARGE($J25:$U25,Rank10)),LARGE($J25:$U25,Rank10),"") ->  | AH25: =IF(ISNUMBER(LARGE($J25:$U25,Rank11)),LARGE($J25:$U25,Rank11),"") ->  | AI25: =IF(ISNUMBER(LARGE($J25:$U25,Rank12)),LARGE($J25:$U25,Rank12),"") ->  | AJ25: =RateYear1*SUM(AK25:AM25)+RateYear2*SUM(AN25:AP25)+ IF(NbEventsRate1<>0,RateYear1*SUM(OFFSET($A$1,ROW()-1,FirstEventColumn+IndexEventsRate1-2,1,NbEventsRate1)),0)+ IF(NbEventsRate2<>0,RateYear2*SUM(OFFSET($A$1,ROW()-1,FirstEventColumn+IndexEventsRate2-2,1,NbEventsRate2)),0) -> 2002 | AK25: =IF(ISNUMBER(LARGE(IF(OFFSET($A$1,FirstEntryLine-3,FirstExtraEventColumn-1,1,FirstEventColumn-FirstExtraEventColumn)=AK$12,OFFSET($A$1,ROW()-1,FirstExtraEventColumn-1,1,FirstEventColumn-FirstExtraEventColumn)),Rank1)), LARGE(IF(OFFSET($A$1,FirstEntryLine-3,FirstExtraEventColumn-1,1,FirstEventColumn-FirstExtraEventColumn)=AK$12,OFFSET($A$1,ROW()-1,FirstExtraEventColumn-1,1,FirstEventColumn-FirstExtraEventColumn)),Rank1), "") -> 252 | AL25: =IF(ISNUMBER(LARGE(IF(OFFSET($A$1,FirstEntryLine-3,FirstExtraEventColumn-1,1,FirstEventColumn-FirstExtraEventColumn)=AL$12,OFFSET($A$1,ROW()-1,FirstExtraEventColumn-1,1,FirstEventColumn-FirstExtraEventColumn)),Rank2)), LARGE(IF(OFFSET($A$1,FirstEntryLine-3,FirstExtraEventColumn-1,1,FirstEventColumn-FirstExtraEventColumn)=AL$12,OFFSET($A$1,ROW()-1,FirstExtraEventColumn-1,1,FirstEventColumn-FirstExtraEventColumn)),Rank2), "") -> 0 | AN25: =IF(AT25>MAX(AS25,AU25),AT25,MAX(AS25,AU25)) -> 0 | AO25: =IF(AT25>MAX(AS25,AU25),MAX(AS25,AU25),AT25) -> 0 | AQ25: 252 | BO25: 260 | BR25: 490 | BV25: 0 | BX25: 1000 | DP25: 26 | DX25: 6 | ED25: 0 | EH25: 36
B26: =IF(G26="","",IF(ROW()=FirstEntryLine,1,IF(AND(I26=OFFSET(I26,-1,0),V26=OFFSET(V26,-1,0),W26=OFFSET(W26,-1,0),X26=OFFSET(X26,-1,0),Y26=OFFSET(Y26,-1,0),Z26=OFFSET(Z26,-1,0),AA26=OFFSET(AA26,-1,0),AB26=OFFSET(AB26,-1,0),AC26=OFFSET(AC26,-1,0),AD26=OFFSET(AD26,-1,0),AE26=OFFSET(AE26,-1,0),AF26=OFFSET(AF26,-1,0),AG26=OFFSET(AG26,-1,0),AH26=OFFSET(AH26,-1,0),AI26=OFFSET(AI26,-1,0)),OFFSET(B26,-1,0),ROW()-FirstEntryLine+1))) -> 13 | C26: GEO | D26: =IF(C26="", "", VLOOKUP(C26, ContinentShorts, 2, FALSE)) -> EJU | E26: 76da7f7f | G26: PAPINASHVILI | H26: Jaba | I26: =SUM(J26:U26) -> 1996 | J26: =IF(ISNUMBER(LARGE((OFFSET($A$1,ROW()-1,FirstExtraEventColumn-2*(NbExtraEvents+1),1,NbExtraEvents-1+COVID_patch),OFFSET($A$1,ROW()-1,FirstEventColumn+IndexEventsRate1-2,1,NbEventsRate1)),Rank1)), IF(LARGE((OFFSET($A$1,ROW()-1,FirstExtraEventColumn-2*(NbExtraEvents+1),1,NbExtraEvents-1+COVID_patch),OFFSET($A$1,ROW()-1,FirstEventColumn+IndexEventsRate1-2,1,NbEventsRate1)),Rank1)>0, J$12*LARGE((OFFSET($A$1,ROW()-1,FirstExtraEventColumn-2*(NbExtraEvents+1),1,NbExtraEvents-1+COVID_patch),OFFSET($A$1,ROW()-1,FirstEventColumn+IndexEventsRate1-2,1,NbEventsRate1)),Rank1),""), "") -> 1000 | K26: =IF(ISNUMBER(LARGE((OFFSET($A$1,ROW()-1,FirstExtraEventColumn-2*(NbExtraEvents+1),1,NbExtraEvents-1+COVID_patch),OFFSET($A$1,ROW()-1,FirstEventColumn+IndexEventsRate1-2,1,NbEventsRate1)),Rank2)), IF(LARGE((OFFSET($A$1,ROW()-1,FirstExtraEventColumn-2*(NbExtraEvents+1),1,NbExtraEvents-1+COVID_patch),OFFSET($A$1,ROW()-1,FirstEventColumn+IndexEventsRate1-2,1,NbEventsRate1)),Rank2)>0, K$12*LARGE((OFFSET($A$1,ROW()-1,FirstExtraEventColumn-2*(NbExtraEvents+1),1,NbExtraEvents-1+COVID_patch),OFFSET($A$1,ROW()-1,FirstEventColumn+IndexEventsRate1-2,1,NbEventsRate1)),Rank2),""), "") -> 500 | L26: =IF(ISNUMBER(LARGE((OFFSET($A$1,ROW()-1,FirstExtraEventColumn-2*(NbExtraEvents+1),1,NbExtraEvents-1+COVID_patch),OFFSET($A$1,ROW()-1,FirstEventColumn+IndexEventsRate1-2,1,NbEventsRate1)),Rank3)), IF(LARGE((OFFSET($A$1,ROW()-1,FirstExtraEventColumn-2*(NbExtraEvents+1),1,NbExtraEvents-1+COVID_patch),OFFSET($A$1,ROW()-1,FirstEventColumn+IndexEventsRate1-2,1,NbEventsRate1)),Rank3)>0, L$12*LARGE((OFFSET($A$1,ROW()-1,FirstExtraEventColumn-2*(NbExtraEvents+1),1,NbExtraEvents-1+COVID_patch),OFFSET($A$1,ROW()-1,FirstEventColumn+IndexEventsRate1-2,1,NbEventsRate1)),Rank3),""), "") -> 360 | M26: =IF(ISNUMBER(LARGE((OFFSET($A$1,ROW()-1,FirstExtraEventColumn-2*(NbExtraEvents+1),1,NbExtraEvents-1+COVID_patch),OFFSET($A$1,ROW()-1,FirstEventColumn+IndexEventsRate1-2,1,NbEventsRate1)),Rank4)), IF(LARGE((OFFSET($A$1,ROW()-1,FirstExtraEventColumn-2*(NbExtraEvents+1),1,NbExtraEvents-1+COVID_patch),OFFSET($A$1,ROW()-1,FirstEventColumn+IndexEventsRate1-2,1,NbEventsRate1)),Rank4)>0, M$12*LARGE((OFFSET($A$1,ROW()-1,FirstExtraEventColumn-2*(NbExtraEvents+1),1,NbExtraEvents-1+COVID_patch),OFFSET($A$1,ROW()-1,FirstEventColumn+IndexEventsRate1-2,1,NbEventsRate1)),Rank4),""), "") ->  | N26: =IF(ISNUMBER(LARGE((OFFSET($A$1,ROW()-1,FirstExtraEventColumn-2*(NbExtraEvents+1),1,NbExtraEvents-1+COVID_patch),OFFSET($A$1,ROW()-1,FirstEventColumn+IndexEventsRate1-2,1,NbEventsRate1)),Rank5)), IF(LARGE((OFFSET($A$1,ROW()-1,FirstExtraEventColumn-2*(NbExtraEvents+1),1,NbExtraEvents-1+COVID_patch),OFFSET($A$1,ROW()-1,FirstEventColumn+IndexEventsRate1-2,1,NbEventsRate1)),Rank5)>0, N$12*LARGE((OFFSET($A$1,ROW()-1,FirstExtraEventColumn-2*(NbExtraEvents+1),1,NbExtraEvents-1+COVID_patch),OFFSET($A$1,ROW()-1,FirstEventColumn+IndexEventsRate1-2,1,NbEventsRate1)),Rank5),""), "") ->  | O26: =IF($AK26<>0,$AK$12*$AK26,"") -> 6 | P26: =IF(ISNUMBER(LARGE((OFFSET($A$1,ROW()-1,FirstExtraEventColumn-(NbExtraEvents+1),1,NbExtraEvents-1),OFFSET($A$1,ROW()-1,FirstEventColumn+IndexEventsRate2-2,1,NbEventsRate2)),Rank1)), IF(LARGE((OFFSET($A$1,ROW()-1,FirstExtraEventColumn-(NbExtraEvents+1),1,NbExtraEvents-1),OFFSET($A$1,ROW()-1,FirstEventColumn+IndexEventsRate2-2,1,NbEventsRate2)),Rank1)>0, P$12*LARGE((OFFSET($A$1,ROW()-1,FirstExtraEventColumn-(NbExtraEvents+1),1,NbExtraEvents-1),OFFSET($A$1,ROW()-1,FirstEventColumn+IndexEventsRate2-2,1,NbEventsRate2)),Rank1),""), "") -> 130 | Q26: =IF(ISNUMBER(LARGE((OFFSET($A$1,ROW()-1,FirstExtraEventColumn-(NbExtraEvents+1),1,NbExtraEvents-1),OFFSET($A$1,ROW()-1,FirstEventColumn+IndexEventsRate2-2,1,NbEventsRate2)),Rank2)), IF(LARGE((OFFSET($A$1,ROW()-1,FirstExtraEventColumn-(NbExtraEvents+1),1,NbExtraEvents-1),OFFSET($A$1,ROW()-1,FirstEventColumn+IndexEventsRate2-2,1,NbEventsRate2)),Rank2)>0, Q$12*LARGE((OFFSET($A$1,ROW()-1,FirstExtraEventColumn-(NbExtraEvents+1),1,NbExtraEvents-1),OFFSET($A$1,ROW()-1,FirstEventColumn+IndexEventsRate2-2,1,NbEventsRate2)),Rank2),""), "") ->  | R26: =IF(ISNUMBER(LARGE((OFFSET($A$1,ROW()-1,FirstExtraEventColumn-(NbExtraEvents+1),1,NbExtraEvents-1),OFFSET($A$1,ROW()-1,FirstEventColumn+IndexEventsRate2-2,1,NbEventsRate2)),Rank3)), IF(LARGE((OFFSET($A$1,ROW()-1,FirstExtraEventColumn-(NbExtraEvents+1),1,NbExtraEvents-1),OFFSET($A$1,ROW()-1,FirstEventColumn+IndexEventsRate2-2,1,NbEventsRate2)),Rank3)>0, R$12*LARGE((OFFSET($A$1,ROW()-1,FirstExtraEventColumn-(NbExtraEvents+1),1,NbExtraEvents-1),OFFSET($A$1,ROW()-1,FirstEventColumn+IndexEventsRate2-2,1,NbEventsRate2)),Rank3),""), "") ->  | S26: =IF(ISNUMBER(LARGE((OFFSET($A$1,ROW()-1,FirstExtraEventColumn-(NbExtraEvents+1),1,NbExtraEvents-1),OFFSET($A$1,ROW()-1,FirstEventColumn+IndexEventsRate2-2,1,NbEventsRate2)),Rank4)), IF(LARGE((OFFSET($A$1,ROW()-1,FirstExtraEventColumn-(NbExtraEvents+1),1,NbExtraEvents-1),OFFSET($A$1,ROW()-1,FirstEventColumn+IndexEventsRate2-2,1,NbEventsRate2)),Rank4)>0, S$12*LARGE((OFFSET($A$1,ROW()-1,FirstExtraEventColumn-(NbExtraEvents+1),1,NbExtraEvents-1),OFFSET($A$1,ROW()-1,FirstEventColumn+IndexEventsRate2-2,1,NbEventsRate2)),Rank4),""), "") ->  | T26: =IF(ISNUMBER(LARGE((OFFSET($A$1,ROW()-1,FirstExtraEventColumn-(NbExtraEvents+1),1,NbExtraEvents-1),OFFSET($A$1,ROW()-1,FirstEventColumn+IndexEventsRate2-2,1,NbEventsRate2)),Rank5)), IF(LARGE((OFFSET($A$1,ROW()-1,FirstExtraEventColumn-(NbExtraEvents+1),1,NbExtraEvents-1),OFFSET($A$1,ROW()-1,FirstEventColumn+IndexEventsRate2-2,1,NbEventsRate2)),Rank5)>0, T$12*LARGE((OFFSET($A$1,ROW()-1,FirstExtraEventColumn-(NbExtraEvents+1),1,NbExtraEvents-1),OFFSET($A$1,ROW()-1,FirstEventColumn+IndexEventsRate2-2,1,NbEventsRate2)),Rank5),""), "") ->  | U26: =IF($AN26<>0,$AN$12*$AN26,"") ->  | V26: =RateYear1*SUMIFS(OFFSET($A$1,ROW()-1,FirstExtraEventColumn-1,1,IndexExtraEventEnd+IndexEventEnd-2),OFFSET($A$1,RateLine-1,FirstExtraEventColumn-1,1,IndexExtraEventEnd+IndexEventEnd-2),RateYear1,OFFSET($A$1,RateLine-3,FirstExtraEventColumn-1,1,IndexExtraEventEnd+IndexEventEnd-2),"WCS") +RateYear2*SUMIFS(OFFSET($A$1,ROW()-1,FirstExtraEventColumn-1,1,IndexExtraEventEnd+IndexEventEnd-2),OFFSET($A$1,RateLine-1,FirstExtraEventColumn-1,1,IndexExtraEventEnd+IndexEventEnd-2),RateYear2,OFFSET($A$1,RateLine-3,FirstExtraEventColumn-1,1,IndexExtraEventEnd+IndexEventEnd-2),"WCS") -> 0 | W26: =RateYear1* (SUMIFS(OFFSET($A$1,ROW()-1,FirstExtraEventColumn-1,1,IndexExtraEventEnd+IndexEventEnd-2),OFFSET($A$1,RateLine-1,FirstExtraEventColumn-1,1,IndexExtraEventEnd+IndexEventEnd-2),RateYear1,OFFSET($A$1,RateLine-3,FirstExtraEventColumn-1,1,IndexExtraEventEnd+IndexEventEnd-2),"GP") +SUMIFS(OFFSET($A$1,ROW()-1,FirstExtraEventColumn-1,1,IndexExtraEventEnd+IndexEventEnd-2),OFFSET($A$1,RateLine-1,FirstExtraEventColumn-1,1,IndexExtraEventEnd+IndexEventEnd-2),RateYear1,OFFSET($A$1,RateLine-3,FirstExtraEventColumn-1,1,IndexExtraEventEnd+IndexEventEnd-2),"GS") +SUMIFS(OFFSET($A$1,ROW()-1,FirstExtraEventColumn-1,1,IndexExtraEventEnd+IndexEventEnd-2),OFFSET($A$1,RateLine-1,FirstExtraEventColumn-1,1,IndexExtraEventEnd+IndexEventEnd-2),RateYear1,OFFSET($A$1,RateLine-3,FirstExtraEventColumn-1,1,IndexExtraEventEnd+IndexEventEnd-2),"Masters")) +RateYear2* (SUMIFS(OFFSET($A$1,ROW()-1,FirstExtraEventColumn-1,1,IndexExtraEventEnd+IndexEventEnd-2),OFFSET($A$1,RateLine-1,FirstExtraEventColumn-1,1,IndexExtraEventEnd+IndexEventEnd-2),RateYear2,OFFSET($A$1,RateLine-3,FirstExtraEventColumn-1,1,IndexExtraEventEnd+IndexEventEnd-2),"GP") +SUMIFS(OFFSET($A$1,ROW()-1,FirstExtraEventColumn-1,1,IndexExtraEventEnd+IndexEventEnd-2),OFFSET($A$1,RateLine-1,FirstExtraEventColumn-1,1,IndexExtraEventEnd+IndexEventEnd-2),RateYear2,OFFSET($A$1,RateLine-3,FirstExtraEventColumn-1,1,IndexExtraEventEnd+IndexEventEnd-2),"GS") +SUMIFS(OFFSET($A$1,ROW()-1,FirstExtraEventColumn-1,1,IndexExtraEventEnd+IndexEventEnd-2),OFFSET($A$1,RateLine-1,FirstExtraEventColumn-1,1,IndexExtraEventEnd+IndexEventEnd-2),RateYear2,OFFSET($A$1,RateLine-3,FirstExtraEventColumn-1,1,IndexExtraEventEnd+IndexEventEnd-2),"Masters")) -> 1990 | X26: =IF(ISNUMBER(LARGE($J26:$U26,Rank1)),LARGE($J26:$U26,Rank1),"") -> 1000 | Y26: =IF(ISNUMBER(LARGE($J26:$U26,Rank2)),LARGE($J26:$U26,Rank2),"") -> 500 | Z26: =IF(ISNUMBER(LARGE($J26:$U26,Rank3)),LARGE($J26:$U26,Rank3),"") -> 360 | AA26: =IF(ISNUMBER(LARGE($J26:$U26,Rank4)),LARGE($J26:$U26,Rank4),"") -> 130 | AB26: =IF(ISNUMBER(LARGE($J26:$U26,Rank5)),LARGE($J26:$U26,Rank5),"") -> 6 | AC26: =IF(ISNUMBER(LARGE($J26:$U26,Rank6)),LARGE($J26:$U26,Rank6),"") ->  | AD26: =IF(ISNUMBER(LARGE($J26:$U26,Rank7)),LARGE($J26:$U26,Rank7),"") ->  | AE26: =IF(ISNUMBER(LARGE($J26:$U26,Rank8)),LARGE($J26:$U26,Rank8),"") ->  | AF26: =IF(ISNUMBER(LARGE($J26:$U26,Rank9)),LARGE($J26:$U26,Rank9),"") ->  | AG26: =IF(ISNUMBER(LARGE($J26:$U26,Rank10)),LARGE($J26:$U26,Rank10),"") ->  | AH26: =IF(ISNUMBER(LARGE($J26:$U26,Rank11)),LARGE($J26:$U26,Rank11),"") ->  | AI26: =IF(ISNUMBER(LARGE($J26:$U26,Rank12)),LARGE($J26:$U26,Rank12),"") ->  | AJ26: =RateYear1*SUM(AK26:AM26)+RateYear2*SUM(AN26:AP26)+ IF(NbEventsRate1<>0,RateYear1*SUM(OFFSET($A$1,ROW()-1,FirstEventColumn+IndexEventsRate1-2,1,NbEventsRate1)),0)+ IF(NbEventsRate2<>0,RateYear2*SUM(OFFSET($A$1,ROW()-1,FirstEventColumn+IndexEventsRate2-2,1,NbEventsRate2)),0) -> 1996 | AK26: =IF(ISNUMBER(LARGE(IF(OFFSET($A$1,FirstEntryLine-3,FirstExtraEventColumn-1,1,FirstEventColumn-FirstExtraEventColumn)=AK$12,OFFSET($A$1,ROW()-1,FirstExtraEventColumn-1,1,FirstEventColumn-FirstExtraEventColumn)),Rank1)), LARGE(IF(OFFSET($A$1,FirstEntryLine-3,FirstExtraEventColumn-1,1,FirstEventColumn-FirstExtraEventColumn)=AK$12,OFFSET($A$1,ROW()-1,FirstExtraEventColumn-1,1,FirstEventColumn-FirstExtraEventColumn)),Rank1), "") -> 6 | AL26: =IF(ISNUMBER(LARGE(IF(OFFSET($A$1,FirstEntryLine-3,FirstExtraEventColumn-1,1,FirstEventColumn-FirstExtraEventColumn)=AL$12,OFFSET($A$1,ROW()-1,FirstExtraEventColumn-1,1,FirstEventColumn-FirstExtraEventColumn)),Rank2)), LARGE(IF(OFFSET($A$1,FirstEntryLine-3,FirstExtraEventColumn-1,1,FirstEventColumn-FirstExtraEventColumn)=AL$12,OFFSET($A$1,ROW()-1,FirstExtraEventColumn-1,1,FirstEventColumn-FirstExtraEventColumn)),Rank2), "") -> 0 | AN26: =IF(AT26>MAX(AS26,AU26),AT26,MAX(AS26,AU26)) -> 0 | AO26: =IF(AT26>MAX(AS26,AU26),MAX(AS26,AU26),AT26) -> 0 | AQ26: 6 | BJ26: 360 | BQ26: 500 | BV26: 1000 | CM26: 260 | CV26: 120 | DQ26: 6 | DV26: 260 | DW26: 6 | DX26: 350 | EE26: 160 | EG26: 160 | ES26: 350 | FD26: 490 | FK26: 16
B27: =IF(G27="","",IF(ROW()=FirstEntryLine,1,IF(AND(I27=OFFSET(I27,-1,0),V27=OFFSET(V27,-1,0),W27=OFFSET(W27,-1,0),X27=OFFSET(X27,-1,0),Y27=OFFSET(Y27,-1,0),Z27=OFFSET(Z27,-1,0),AA27=OFFSET(AA27,-1,0),AB27=OFFSET(AB27,-1,0),AC27=OFFSET(AC27,-1,0),AD27=OFFSET(AD27,-1,0),AE27=OFFSET(AE27,-1,0),AF27=OFFSET(AF27,-1,0),AG27=OFFSET(AG27,-1,0),AH27=OFFSET(AH27,-1,0),AI27=OFFSET(AI27,-1,0)),OFFSET(B27,-1,0),ROW()-FirstEntryLine+1))) -> 14 | C27: KAZ | D27: =IF(C27="", "", VLOOKUP(C27, ContinentShorts, 2, FALSE)) -> JUA | E27: a8d6fa5c | G27: KYRGYZBAYEV | H27: Gusman | I27: =SUM(J27:U27) -> 1927 | J27: =IF(ISNUMBER(LARGE((OFFSET($A$1,ROW()-1,FirstExtraEventColumn-2*(NbExtraEvents+1),1,NbExtraEvents-1+COVID_patch),OFFSET($A$1,ROW()-1,FirstEventColumn+IndexEventsRate1-2,1,NbEventsRate1)),Rank1)), IF(LARGE((OFFSET($A$1,ROW()-1,FirstExtraEventColumn-2*(NbExtraEvents+1),1,NbExtraEvents-1+COVID_patch),OFFSET($A$1,ROW()-1,FirstEventColumn+IndexEventsRate1-2,1,NbEventsRate1)),Rank1)>0, J$12*LARGE((OFFSET($A$1,ROW()-1,FirstExtraEventColumn-2*(NbExtraEvents+1),1,NbExtraEvents-1+COVID_patch),OFFSET($A$1,ROW()-1,FirstEventColumn+IndexEventsRate1-2,1,NbEventsRate1)),Rank1),""), "") -> 1400 | K27: =IF(ISNUMBER(LARGE((OFFSET($A$1,ROW()-1,FirstExtraEventColumn-2*(NbExtraEvents+1),1,NbExtraEvents-1+COVID_patch),OFFSET($A$1,ROW()-1,FirstEventColumn+IndexEventsRate1-2,1,NbEventsRate1)),Rank2)), IF(LARGE((OFFSET($A$1,ROW()-1,FirstExtraEventColumn-2*(NbExtraEvents+1),1,NbExtraEvents-1+COVID_patch),OFFSET($A$1,ROW()-1,FirstEventColumn+IndexEventsRate1-2,1,NbEventsRate1)),Rank2)>0, K$12*LARGE((OFFSET($A$1,ROW()-1,FirstExtraEventColumn-2*(NbExtraEvents+1),1,NbExtraEvents-1+COVID_patch),OFFSET($A$1,ROW()-1,FirstEventColumn+IndexEventsRate1-2,1,NbEventsRate1)),Rank2),""), "") ->  | L27: =IF(ISNUMBER(LARGE((OFFSET($A$1,ROW()-1,FirstExtraEventColumn-2*(NbExtraEvents+1),1,NbExtraEvents-1+COVID_patch),OFFSET($A$1,ROW()-1,FirstEventColumn+IndexEventsRate1-2,1,NbEventsRate1)),Rank3)), IF(LARGE((OFFSET($A$1,ROW()-1,FirstExtraEventColumn-2*(NbExtraEvents+1),1,NbExtraEvents-1+COVID_patch),OFFSET($A$1,ROW()-1,FirstEventColumn+IndexEventsRate1-2,1,NbEventsRate1)),Rank3)>0, L$12*LARGE((OFFSET($A$1,ROW()-1,FirstExtraEventColumn-2*(NbExtraEvents+1),1,NbExtraEvents-1+COVID_patch),OFFSET($A$1,ROW()-1,FirstEventColumn+IndexEventsRate1-2,1,NbEventsRate1)),Rank3),""), "") ->  | M27: =IF(ISNUMBER(LARGE((OFFSET($A$1,ROW()-1,FirstExtraEventColumn-2*(NbExtraEvents+1),1,NbExtraEvents-1+COVID_patch),OFFSET($A$1,ROW()-1,FirstEventColumn+IndexEventsRate1-2,1,NbEventsRate1)),Rank4)), IF(LARGE((OFFSET($A$1,ROW()-1,FirstExtraEventColumn-2*(NbExtraEvents+1),1,NbExtraEvents-1+COVID_patch),OFFSET($A$1,ROW()-1,FirstEventColumn+IndexEventsRate1-2,1,NbEventsRate1)),Rank4)>0, M$12*LARGE((OFFSET($A$1,ROW()-1,FirstExtraEventColumn-2*(NbExtraEvents+1),1,NbExtraEvents-1+COVID_patch),OFFSET($A$1,ROW()-1,FirstEventColumn+IndexEventsRate1-2,1,NbEventsRate1)),Rank4),""), "") ->  | N27: =IF(ISNUMBER(LARGE((OFFSET($A$1,ROW()-1,FirstExtraEventColumn-2*(NbExtraEvents+1),1,NbExtraEvents-1+COVID_patch),OFFSET($A$1,ROW()-1,FirstEventColumn+IndexEventsRate1-2,1,NbEventsRate1)),Rank5)), IF(LARGE((OFFSET($A$1,ROW()-1,FirstExtraEventColumn-2*(NbExtraEvents+1),1,NbExtraEvents-1+COVID_patch),OFFSET($A$1,ROW()-1,FirstEventColumn+IndexEventsRate1-2,1,NbEventsRate1)),Rank5)>0, N$12*LARGE((OFFSET($A$1,ROW()-1,FirstExtraEventColumn-2*(NbExtraEvents+1),1,NbExtraEvents-1+COVID_patch),OFFSET($A$1,ROW()-1,FirstEventColumn+IndexEventsRate1-2,1,NbEventsRate1)),Rank5),""), "") ->  | O27: =IF($AK27<>0,$AK$12*$AK27,"") ->  | P27: =IF(ISNUMBER(LARGE((OFFSET($A$1,ROW()-1,FirstExtraEventColumn-(NbExtraEvents+1),1,NbExtraEvents-1),OFFSET($A$1,ROW()-1,FirstEventColumn+IndexEventsRate2-2,1,NbEventsRate2)),Rank1)), IF(LARGE((OFFSET($A$1,ROW()-1,FirstExtraEventColumn-(NbExtraEvents+1),1,NbExtraEvents-1),OFFSET($A$1,ROW()-1,FirstEventColumn+IndexEventsRate2-2,1,NbEventsRate2)),Rank1)>0, P$12*LARGE((OFFSET($A$1,ROW()-1,FirstExtraEventColumn-(NbExtraEvents+1),1,NbExtraEvents-1),OFFSET($A$1,ROW()-1,FirstEventColumn+IndexEventsRate2-2,1,NbEventsRate2)),Rank1),""), "") -> 250 | Q27: =IF(ISNUMBER(LARGE((OFFSET($A$1,ROW()-1,FirstExtraEventColumn-(NbExtraEvents+1),1,NbExtraEvents-1),OFFSET($A$1,ROW()-1,FirstEventColumn+IndexEventsRate2-2,1,NbEventsRate2)),Rank2)), IF(LARGE((OFFSET($A$1,ROW()-1,FirstExtraEventColumn-(NbExtraEvents+1),1,NbExtraEvents-1),OFFSET($A$1,ROW()-1,FirstEventColumn+IndexEventsRate2-2,1,NbEventsRate2)),Rank2)>0, Q$12*LARGE((OFFSET($A$1,ROW()-1,FirstExtraEventColumn-(NbExtraEvents+1),1,NbExtraEvents-1),OFFSET($A$1,ROW()-1,FirstEventColumn+IndexEventsRate2-2,1,NbEventsRate2)),Rank2),""), "") -> 130 | R27: =IF(ISNUMBER(LARGE((OFFSET($A$1,ROW()-1,FirstExtraEventColumn-(NbExtraEvents+1),1,NbExtraEvents-1),OFFSET($A$1,ROW()-1,FirstEventColumn+IndexEventsRate2-2,1,NbEventsRate2)),Rank3)), IF(LARGE((OFFSET($A$1,ROW()-1,FirstExtraEventColumn-(NbExtraEvents+1),1,NbExtraEvents-1),OFFSET($A$1,ROW()-1,FirstEventColumn+IndexEventsRate2-2,1,NbEventsRate2)),Rank3)>0, R$12*LARGE((OFFSET($A$1,ROW()-1,FirstExtraEventColumn-(NbExtraEvents+1),1,NbExtraEvents-1),OFFSET($A$1,ROW()-1,FirstEventColumn+IndexEventsRate2-2,1,NbEventsRate2)),Rank3),""), "") -> 3 | S27: =IF(ISNUMBER(LARGE((OFFSET($A$1,ROW()-1,FirstExtraEventColumn-(NbExtraEvents+1),1,NbExtraEvents-1),OFFSET($A$1,ROW()-1,FirstEventColumn+IndexEventsRate2-2,1,NbEventsRate2)),Rank4)), IF(LARGE((OFFSET($A$1,ROW()-1,FirstExtraEventColumn-(NbExtraEvents+1),1,NbExtraEvents-1),OFFSET($A$1,ROW()-1,FirstEventColumn+IndexEventsRate2-2,1,NbEventsRate2)),Rank4)>0, S$12*LARGE((OFFSET($A$1,ROW()-1,FirstExtraEventColumn-(NbExtraEvents+1),1,NbExtraEvents-1),OFFSET($A$1,ROW()-1,FirstEventColumn+IndexEventsRate2-2,1,NbEventsRate2)),Rank4),""), "") ->  | T27: =IF(ISNUMBER(LARGE((OFFSET($A$1,ROW()-1,FirstExtraEventColumn-(NbExtraEvents+1),1,NbExtraEvents-1),OFFSET($A$1,ROW()-1,FirstEventColumn+IndexEventsRate2-2,1,NbEventsRate2)),Rank5)), IF(LARGE((OFFSET($A$1,ROW()-1,FirstExtraEventColumn-(NbExtraEvents+1),1,NbExtraEvents-1),OFFSET($A$1,ROW()-1,FirstEventColumn+IndexEventsRate2-2,1,NbEventsRate2)),Rank5)>0, T$12*LARGE((OFFSET($A$1,ROW()-1,FirstExtraEventColumn-(NbExtraEvents+1),1,NbExtraEvents-1),OFFSET($A$1,ROW()-1,FirstEventColumn+IndexEventsRate2-2,1,NbEventsRate2)),Rank5),""), "") ->  | U27: =IF($AN27<>0,$AN$12*$AN27,"") -> 144 | V27: =RateYear1*SUMIFS(OFFSET($A$1,ROW()-1,FirstExtraEventColumn-1,1,IndexExtraEventEnd+IndexEventEnd-2),OFFSET($A$1,RateLine-1,FirstExtraEventColumn-1,1,IndexExtraEventEnd+IndexEventEnd-2),RateYear1,OFFSET($A$1,RateLine-3,FirstExtraEventColumn-1,1,IndexExtraEventEnd+IndexEventEnd-2),"WCS") +RateYear2*SUMIFS(OFFSET($A$1,ROW()-1,FirstExtraEventColumn-1,1,IndexExtraEventEnd+IndexEventEnd-2),OFFSET($A$1,RateLine-1,FirstExtraEventColumn-1,1,IndexExtraEventEnd+IndexEventEnd-2),RateYear2,OFFSET($A$1,RateLine-3,FirstExtraEventColumn-1,1,IndexExtraEventEnd+IndexEventEnd-2),"WCS") -> 1400 | W27: =RateYear1* (SUMIFS(OFFSET($A$1,ROW()-1,FirstExtraEventColumn-1,1,IndexExtraEventEnd+IndexEventEnd-2),OFFSET($A$1,RateLine-1,FirstExtraEventColumn-1,1,IndexExtraEventEnd+IndexEventEnd-2),RateYear1,OFFSET($A$1,RateLine-3,FirstExtraEventColumn-1,1,IndexExtraEventEnd+IndexEventEnd-2),"GP") +SUMIFS(OFFSET($A$1,ROW()-1,FirstExtraEventColumn-1,1,IndexExtraEventEnd+IndexEventEnd-2),OFFSET($A$1,RateLine-1,FirstExtraEventColumn-1,1,IndexExtraEventEnd+IndexEventEnd-2),RateYear1,OFFSET($A$1,RateLine-3,FirstExtraEventColumn-1,1,IndexExtraEventEnd+IndexEventEnd-2),"GS") +SUMIFS(OFFSET($A$1,ROW()-1,FirstExtraEventColumn-1,1,IndexExtraEventEnd+IndexEventEnd-2),OFFSET($A$1,RateLine-1,FirstExtraEventColumn-1,1,IndexExtraEventEnd+IndexEventEnd-2),RateYear1,OFFSET($A$1,RateLine-3,FirstExtraEventColumn-1,1,IndexExtraEventEnd+IndexEventEnd-2),"Masters")) +RateYear2* (SUMIFS(OFFSET($A$1,ROW()-1,FirstExtraEventColumn-1,1,IndexExtraEventEnd+IndexEventEnd-2),OFFSET($A$1,RateLine-1,FirstExtraEventColumn-1,1,IndexExtraEventEnd+IndexEventEnd-2),RateYear2,OFFSET($A$1,RateLine-3,FirstExtraEventColumn-1,1,IndexExtraEventEnd+IndexEventEnd-2),"GP") +SUMIFS(OFFSET($A$1,ROW()-1,FirstExtraEventColumn-1,1,IndexExtraEventEnd+IndexEventEnd-2),OFFSET($A$1,RateLine-1,FirstExtraEventColumn-1,1,IndexExtraEventEnd+IndexEventEnd-2),RateYear2,OFFSET($A$1,RateLine-3,FirstExtraEventColumn-1,1,IndexExtraEventEnd+IndexEventEnd-2),"GS") +SUMIFS(OFFSET($A$1,ROW()-1,FirstExtraEventColumn-1,1,IndexExtraEventEnd+IndexEventEnd-2),OFFSET($A$1,RateLine-1,FirstExtraEventColumn-1,1,IndexExtraEventEnd+IndexEventEnd-2),RateYear2,OFFSET($A$1,RateLine-3,FirstExtraEventColumn-1,1,IndexExtraEventEnd+IndexEventEnd-2),"Masters")) -> 524 | X27: =IF(ISNUMBER(LARGE($J27:$U27,Rank1)),LARGE($J27:$U27,Rank1),"") -> 1400 | Y27: =IF(ISNUMBER(LARGE($J27:$U27,Rank2)),LARGE($J27:$U27,Rank2),"") -> 250 | Z27: =IF(ISNUMBER(LARGE($J27:$U27,Rank3)),LARGE($J27:$U27,Rank3),"") -> 144 | AA27: =IF(ISNUMBER(LARGE($J27:$U27,Rank4)),LARGE($J27:$U27,Rank4),"") -> 130 | AB27: =IF(ISNUMBER(LARGE($J27:$U27,Rank5)),LARGE($J27:$U27,Rank5),"") -> 3 | AC27: =IF(ISNUMBER(LARGE($J27:$U27,Rank6)),LARGE($J27:$U27,Rank6),"") ->  | AD27: =IF(ISNUMBER(LARGE($J27:$U27,Rank7)),LARGE($J27:$U27,Rank7),"") ->  | AE27: =IF(ISNUMBER(LARGE($J27:$U27,Rank8)),LARGE($J27:$U27,Rank8),"") ->  | AF27: =IF(ISNUMBER(LARGE($J27:$U27,Rank9)),LARGE($J27:$U27,Rank9),"") ->  | AG27: =IF(ISNUMBER(LARGE($J27:$U27,Rank10)),LARGE($J27:$U27,Rank10),"") ->  | AH27: =IF(ISNUMBER(LARGE($J27:$U27,Rank11)),LARGE($J27:$U27,Rank11),"") ->  | AI27: =IF(ISNUMBER(LARGE($J27:$U27,Rank12)),LARGE($J27:$U27,Rank12),"") ->  | AJ27: =RateYear1*SUM(AK27:AM27)+RateYear2*SUM(AN27:AP27)+ IF(NbEventsRate1<>0,RateYear1*SUM(OFFSET($A$1,ROW()-1,FirstEventColumn+IndexEventsRate1-2,1,NbEventsRate1)),0)+ IF(NbEventsRate2<>0,RateYear2*SUM(OFFSET($A$1,ROW()-1,FirstEventColumn+IndexEventsRate2-2,1,NbEventsRate2)),0) -> 1927 | AK27: =IF(ISNUMBER(LARGE(IF(OFFSET($A$1,FirstEntryLine-3,FirstExtraEventColumn-1,1,FirstEventColumn-FirstExtraEventColumn)=AK$12,OFFSET($A$1,ROW()-1,FirstExtraEventColumn-1,1,FirstEventColumn-FirstExtraEventColumn)),Rank1)), LARGE(IF(OFFSET($A$1,FirstEntryLine-3,FirstExtraEventColumn-1,1,FirstEventColumn-FirstExtraEventColumn)=AK$12,OFFSET($A$1,ROW()-1,FirstExtraEventColumn-1,1,FirstEventColumn-FirstExtraEventColumn)),Rank1), "") -> 0 | AL27: =IF(ISNUMBER(LARGE(IF(OFFSET($A$1,FirstEntryLine-3,FirstExtraEventColumn-1,1,FirstEventColumn-FirstExtraEventColumn)=AL$12,OFFSET($A$1,ROW()-1,FirstExtraEventColumn-1,1,FirstEventColumn-FirstExtraEventColumn)),Rank2)), LARGE(IF(OFFSET($A$1,FirstEntryLine-3,FirstExtraEventColumn-1,1,FirstEventColumn-FirstExtraEventColumn)=AL$12,OFFSET($A$1,ROW()-1,FirstExtraEventColumn-1,1,FirstEventColumn-FirstExtraEventColumn)),Rank2), "") -> 0 | AN27: =IF(AT27>MAX(AS27,AU27),AT27,MAX(AS27,AU27)) -> 288 | AO27: =IF(AT27>MAX(AS27,AU27),MAX(AS27,AU27),AT27) -> 6 | AS27: 6 | AT27: 288 | AV27: 648 | AW27: 350 | AX27: 200 | AZ27: 468 | BA27: 6 | CC27: 1400 | CO27: 500 | CS27: 260 | CX27: 260 | CZ27: 112 | DF27: 1000 | DM27: 720 | DQ27: 182 | EA27: 10 | EG27: 160 | EL27: 10 | ER27: 500 | EV27: 320 | FC27: 490 | FJ27: 700 | FP27: 350 | FW27: 360 | GC27: 520 | GJ27: 700 | GP27: 360 | GT27: 160
B28: =IF(G28="","",IF(ROW()=FirstEntryLine,1,IF(AND(I28=OFFSET(I28,-1,0),V28=OFFSET(V28,-1,0),W28=OFFSET(W28,-1,0),X28=OFFSET(X28,-1,0),Y28=OFFSET(Y28,-1,0),Z28=OFFSET(Z28,-1,0),AA28=OFFSET(AA28,-1,0),AB28=OFFSET(AB28,-1,0),AC28=OFFSET(AC28,-1,0),AD28=OFFSET(AD28,-1,0),AE28=OFFSET(AE28,-1,0),AF28=OFFSET(AF28,-1,0),AG28=OFFSET(AG28,-1,0),AH28=OFFSET(AH28,-1,0),AI28=OFFSET(AI28,-1,0)),OFFSET(B28,-1,0),ROW()-FirstEntryLine+1))) -> 15 | C28: JPN | D28: =IF(C28="", "", VLOOKUP(C28, ContinentShorts, 2, FALSE)) -> JUA | E28: e2c2ab3a | G28: NAGAYAMA | H28: Ryuju | I28: =SUM(J28:U28) -> 1820 | J28: =IF(ISNUMBER(LARGE((OFFSET($A$1,ROW()-1,FirstExtraEventColumn-2*(NbExtraEvents+1),1,NbExtraEvents-1+COVID_patch),OFFSET($A$1,ROW()-1,FirstEventColumn+IndexEventsRate1-2,1,NbEventsRate1)),Rank1)), IF(LARGE((OFFSET($A$1,ROW()-1,FirstExtraEventColumn-2*(NbExtraEvents+1),1,NbExtraEvents-1+COVID_patch),OFFSET($A$1,ROW()-1,FirstEventColumn+IndexEventsRate1-2,1,NbEventsRate1)),Rank1)>0, J$12*LARGE((OFFSET($A$1,ROW()-1,FirstExtraEventColumn-2*(NbExtraEvents+1),1,NbExtraEvents-1+COVID_patch),OFFSET($A$1,ROW()-1,FirstEventColumn+IndexEventsRate1-2,1,NbEventsRate1)),Rank1),""), "") -> 1000 | K28: =IF(ISNUMBER(LARGE((OFFSET($A$1,ROW()-1,FirstExtraEventColumn-2*(NbExtraEvents+1),1,NbExtraEvents-1+COVID_patch),OFFSET($A$1,ROW()-1,FirstEventColumn+IndexEventsRate1-2,1,NbEventsRate1)),Rank2)), IF(LARGE((OFFSET($A$1,ROW()-1,FirstExtraEventColumn-2*(NbExtraEvents+1),1,NbExtraEvents-1+COVID_patch),OFFSET($A$1,ROW()-1,FirstEventColumn+IndexEventsRate1-2,1,NbEventsRate1)),Rank2)>0, K$12*LARGE((OFFSET($A$1,ROW()-1,FirstExtraEventColumn-2*(NbExtraEvents+1),1,NbExtraEvents-1+COVID_patch),OFFSET($A$1,ROW()-1,FirstEventColumn+IndexEventsRate1-2,1,NbEventsRate1)),Rank2),""), "") -> 320 | L28: =IF(ISNUMBER(LARGE((OFFSET($A$1,ROW()-1,FirstExtraEventColumn-2*(NbExtraEvents+1),1,NbExtraEvents-1+COVID_patch),OFFSET($A$1,ROW()-1,FirstEventColumn+IndexEventsRate1-2,1,NbEventsRate1)),Rank3)), IF(LARGE((OFFSET($A$1,ROW()-1,FirstExtraEventColumn-2*(NbExtraEvents+1),1,NbExtraEvents-1+COVID_patch),OFFSET($A$1,ROW()-1,FirstEventColumn+IndexEventsRate1-2,1,NbEventsRate1)),Rank3)>0, L$12*LARGE((OFFSET($A$1,ROW()-1,FirstExtraEventColumn-2*(NbExtraEvents+1),1,NbExtraEvents-1+COVID_patch),OFFSET($A$1,ROW()-1,FirstEventColumn+IndexEventsRate1-2,1,NbEventsRate1)),Rank3),""), "") ->  | M28: =IF(ISNUMBER(LARGE((OFFSET($A$1,ROW()-1,FirstExtraEventColumn-2*(NbExtraEvents+1),1,NbExtraEvents-1+COVID_patch),OFFSET($A$1,ROW()-1,FirstEventColumn+IndexEventsRate1-2,1,NbEventsRate1)),Rank4)), IF(LARGE((OFFSET($A$1,ROW()-1,FirstExtraEventColumn-2*(NbExtraEvents+1),1,NbExtraEvents-1+COVID_patch),OFFSET($A$1,ROW()-1,FirstEventColumn+IndexEventsRate1-2,1,NbEventsRate1)),Rank4)>0, M$12*LARGE((OFFSET($A$1,ROW()-1,FirstExtraEventColumn-2*(NbExtraEvents+1),1,NbExtraEvents-1+COVID_patch),OFFSET($A$1,ROW()-1,FirstEventColumn+IndexEventsRate1-2,1,NbEventsRate1)),Rank4),""), "") ->  | N28: =IF(ISNUMBER(LARGE((OFFSET($A$1,ROW()-1,FirstExtraEventColumn-2*(NbExtraEvents+1),1,NbExtraEvents-1+COVID_patch),OFFSET($A$1,ROW()-1,FirstEventColumn+IndexEventsRate1-2,1,NbEventsRate1)),Rank5)), IF(LARGE((OFFSET($A$1,ROW()-1,FirstExtraEventColumn-2*(NbExtraEvents+1),1,NbExtraEvents-1+COVID_patch),OFFSET($A$1,ROW()-1,FirstEventColumn+IndexEventsRate1-2,1,NbEventsRate1)),Rank5)>0, N$12*LARGE((OFFSET($A$1,ROW()-1,FirstExtraEventColumn-2*(NbExtraEvents+1),1,NbExtraEvents-1+COVID_patch),OFFSET($A$1,ROW()-1,FirstEventColumn+IndexEventsRate1-2,1,NbEventsRate1)),Rank5),""), "") ->  | O28: =IF($AK28<>0,$AK$12*$AK28,"") ->  | P28: =IF(ISNUMBER(LARGE((OFFSET($A$1,ROW()-1,FirstExtraEventColumn-(NbExtraEvents+1),1,NbExtraEvents-1),OFFSET($A$1,ROW()-1,FirstEventColumn+IndexEventsRate2-2,1,NbEventsRate2)),Rank1)), IF(LARGE((OFFSET($A$1,ROW()-1,FirstExtraEventColumn-(NbExtraEvents+1),1,NbExtraEvents-1),OFFSET($A$1,ROW()-1,FirstEventColumn+IndexEventsRate2-2,1,NbEventsRate2)),Rank1)>0, P$12*LARGE((OFFSET($A$1,ROW()-1,FirstExtraEventColumn-(NbExtraEvents+1),1,NbExtraEvents-1),OFFSET($A$1,ROW()-1,FirstEventColumn+IndexEventsRate2-2,1,NbEventsRate2)),Rank1),""), "") -> 500 | Q28: =IF(ISNUMBER(LARGE((OFFSET($A$1,ROW()-1,FirstExtraEventColumn-(NbExtraEvents+1),1,NbExtraEvents-1),OFFSET($A$1,ROW()-1,FirstEventColumn+IndexEventsRate2-2,1,NbEventsRate2)),Rank2)), IF(LARGE((OFFSET($A$1,ROW()-1,FirstExtraEventColumn-(NbExtraEvents+1),1,NbExtraEvents-1),OFFSET($A$1,ROW()-1,FirstEventColumn+IndexEventsRate2-2,1,NbEventsRate2)),Rank2)>0, Q$12*LARGE((OFFSET($A$1,ROW()-1,FirstExtraEventColumn-(NbExtraEvents+1),1,NbExtraEvents-1),OFFSET($A$1,ROW()-1,FirstEventColumn+IndexEventsRate2-2,1,NbEventsRate2)),Rank2),""), "") ->  | R28: =IF(ISNUMBER(LARGE((OFFSET($A$1,ROW()-1,FirstExtraEventColumn-(NbExtraEvents+1),1,NbExtraEvents-1),OFFSET($A$1,ROW()-1,FirstEventColumn+IndexEventsRate2-2,1,NbEventsRate2)),Rank3)), IF(LARGE((OFFSET($A$1,ROW()-1,FirstExtraEventColumn-(NbExtraEvents+1),1,NbExtraEvents-1),OFFSET($A$1,ROW()-1,FirstEventColumn+IndexEventsRate2-2,1,NbEventsRate2)),Rank3)>0, R$12*LARGE((OFFSET($A$1,ROW()-1,FirstExtraEventColumn-(NbExtraEvents+1),1,NbExtraEvents-1),OFFSET($A$1,ROW()-1,FirstEventColumn+IndexEventsRate2-2,1,NbEventsRate2)),Rank3),""), "") ->  | S28: =IF(ISNUMBER(LARGE((OFFSET($A$1,ROW()-1,FirstExtraEventColumn-(NbExtraEvents+1),1,NbExtraEvents-1),OFFSET($A$1,ROW()-1,FirstEventColumn+IndexEventsRate2-2,1,NbEventsRate2)),Rank4)), IF(LARGE((OFFSET($A$1,ROW()-1,FirstExtraEventColumn-(NbExtraEvents+1),1,NbExtraEvents-1),OFFSET($A$1,ROW()-1,FirstEventColumn+IndexEventsRate2-2,1,NbEventsRate2)),Rank4)>0, S$12*LARGE((OFFSET($A$1,ROW()-1,FirstExtraEventColumn-(NbExtraEvents+1),1,NbExtraEvents-1),OFFSET($A$1,ROW()-1,FirstEventColumn+IndexEventsRate2-2,1,NbEventsRate2)),Rank4),""), "") ->  | T28: =IF(ISNUMBER(LARGE((OFFSET($A$1,ROW()-1,FirstExtraEventColumn-(NbExtraEvents+1),1,NbExtraEvents-1),OFFSET($A$1,ROW()-1,FirstEventColumn+IndexEventsRate2-2,1,NbEventsRate2)),Rank5)), IF(LARGE((OFFSET($A$1,ROW()-1,FirstExtraEventColumn-(NbExtraEvents+1),1,NbExtraEvents-1),OFFSET($A$1,ROW()-1,FirstEventColumn+IndexEventsRate2-2,1,NbEventsRate2)),Rank5)>0, T$12*LARGE((OFFSET($A$1,ROW()-1,FirstExtraEventColumn-(NbExtraEvents+1),1,NbExtraEvents-1),OFFSET($A$1,ROW()-1,FirstEventColumn+IndexEventsRate2-2,1,NbEventsRate2)),Rank5),""), "") ->  | U28: =IF($AN28<>0,$AN$12*$AN28,"") ->  | V28: =RateYear1*SUMIFS(OFFSET($A$1,ROW()-1,FirstExtraEventColumn-1,1,IndexExtraEventEnd+IndexEventEnd-2),OFFSET($A$1,RateLine-1,FirstExtraEventColumn-1,1,IndexExtraEventEnd+IndexEventEnd-2),RateYear1,OFFSET($A$1,RateLine-3,FirstExtraEventColumn-1,1,IndexExtraEventEnd+IndexEventEnd-2),"WCS") +RateYear2*SUMIFS(OFFSET($A$1,ROW()-1,FirstExtraEventColumn-1,1,IndexExtraEventEnd+IndexEventEnd-2),OFFSET($A$1,RateLine-1,FirstExtraEventColumn-1,1,IndexExtraEventEnd+IndexEventEnd-2),RateYear2,OFFSET($A$1,RateLine-3,FirstExtraEventColumn-1,1,IndexExtraEventEnd+IndexEventEnd-2),"WCS") -> 320 | W28: =RateYear1* (SUMIFS(OFFSET($A$1,ROW()-1,FirstExtraEventColumn-1,1,IndexExtraEventEnd+IndexEventEnd-2),OFFSET($A$1,RateLine-1,FirstExtraEventColumn-1,1,IndexExtraEventEnd+IndexEventEnd-2),RateYear1,OFFSET($A$1,RateLine-3,FirstExtraEventColumn-1,1,IndexExtraEventEnd+IndexEventEnd-2),"GP") +SUMIFS(OFFSET($A$1,ROW()-1,FirstExtraEventColumn-1,1,IndexExtraEventEnd+IndexEventEnd-2),OFFSET($A$1,RateLine-1,FirstExtraEventColumn-1,1,IndexExtraEventEnd+IndexEventEnd-2),RateYear1,OFFSET($A$1,RateLine-3,FirstExtraEventColumn-1,1,IndexExtraEventEnd+IndexEventEnd-2),"GS") +SUMIFS(OFFSET($A$1,ROW()-1,FirstExtraEventColumn-1,1,IndexExtraEventEnd+IndexEventEnd-2),OFFSET($A$1,RateLine-1,FirstExtraEventColumn-1,1,IndexExtraEventEnd+IndexEventEnd-2),RateYear1,OFFSET($A$1,RateLine-3,FirstExtraEventColumn-1,1,IndexExtraEventEnd+IndexEventEnd-2),"Masters")) +RateYear2* (SUMIFS(OFFSET($A$1,ROW()-1,FirstExtraEventColumn-1,1,IndexExtraEventEnd+IndexEventEnd-2),OFFSET($A$1,RateLine-1,FirstExtraEventColumn-1,1,IndexExtraEventEnd+IndexEventEnd-2),RateYear2,OFFSET($A$1,RateLine-3,FirstExtraEventColumn-1,1,IndexExtraEventEnd+IndexEventEnd-2),"GP") +SUMIFS(OFFSET($A$1,ROW()-1,FirstExtraEventColumn-1,1,IndexExtraEventEnd+IndexEventEnd-2),OFFSET($A$1,RateLine-1,FirstExtraEventColumn-1,1,IndexExtraEventEnd+IndexEventEnd-2),RateYear2,OFFSET($A$1,RateLine-3,FirstExtraEventColumn-1,1,IndexExtraEventEnd+IndexEventEnd-2),"GS") +SUMIFS(OFFSET($A$1,ROW()-1,FirstExtraEventColumn-1,1,IndexExtraEventEnd+IndexEventEnd-2),OFFSET($A$1,RateLine-1,FirstExtraEventColumn-1,1,IndexExtraEventEnd+IndexEventEnd-2),RateYear2,OFFSET($A$1,RateLine-3,FirstExtraEventColumn-1,1,IndexExtraEventEnd+IndexEventEnd-2),"Masters")) -> 1500 | X28: =IF(ISNUMBER(LARGE($J28:$U28,Rank1)),LARGE($J28:$U28,Rank1),"") -> 1000 | Y28: =IF(ISNUMBER(LARGE($J28:$U28,Rank2)),LARGE($J28:$U28,Rank2),"") -> 500 | Z28: =IF(ISNUMBER(LARGE($J28:$U28,Rank3)),LARGE($J28:$U28,Rank3),"") -> 320 | AA28: =IF(ISNUMBER(LARGE($J28:$U28,Rank4)),LARGE($J28:$U28,Rank4),"") ->  | AB28: =IF(ISNUMBER(LARGE($J28:$U28,Rank5)),LARGE($J28:$U28,Rank5),"") ->  | AC28: =IF(ISNUMBER(LARGE($J28:$U28,Rank6)),LARGE($J28:$U28,Rank6),"") ->  | AD28: =IF(ISNUMBER(LARGE($J28:$U28,Rank7)),LARGE($J28:$U28,Rank7),"") ->  | AE28: =IF(ISNUMBER(LARGE($J28:$U28,Rank8)),LARGE($J28:$U28,Rank8),"") ->  | AF28: =IF(ISNUMBER(LARGE($J28:$U28,Rank9)),LARGE($J28:$U28,Rank9),"") ->  | AG28: =IF(ISNUMBER(LARGE($J28:$U28,Rank10)),LARGE($J28:$U28,Rank10),"") ->  | AH28: =IF(ISNUMBER(LARGE($J28:$U28,Rank11)),LARGE($J28:$U28,Rank11),"") ->  | AI28: =IF(ISNUMBER(LARGE($J28:$U28,Rank12)),LARGE($J28:$U28,Rank12),"") ->  | AJ28: =RateYear1*SUM(AK28:AM28)+RateYear2*SUM(AN28:AP28)+ IF(NbEventsRate1<>0,RateYear1*SUM(OFFSET($A$1,ROW()-1,FirstEventColumn+IndexEventsRate1-2,1,NbEventsRate1)),0)+ IF(NbEventsRate2<>0,RateYear2*SUM(OFFSET($A$1,ROW()-1,FirstEventColumn+IndexEventsRate2-2,1,NbEventsRate2)),0) -> 1820 | AK28: =IF(ISNUMBER(LARGE(IF(OFFSET($A$1,FirstEntryLine-3,FirstExtraEventColumn-1,1,FirstEventColumn-FirstExtraEventColumn)=AK$12,OFFSET($A$1,ROW()-1,FirstExtraEventColumn-1,1,FirstEventColumn-FirstExtraEventColumn)),Rank1)), LARGE(IF(OFFSET($A$1,FirstEntryLine-3,FirstExtraEventColumn-1,1,FirstEventColumn-FirstExtraEventColumn)=AK$12,OFFSET($A$1,ROW()-1,FirstExtraEventColumn-1,1,FirstEventColumn-FirstExtraEventColumn)),Rank1), "") -> 0 | AL28: =IF(ISNUMBER(LARGE(IF(OFFSET($A$1,FirstEntryLine-3,FirstExtraEventColumn-1,1,FirstEventColumn-FirstExtraEventColumn)=AL$12,OFFSET($A$1,ROW()-1,FirstExtraEventColumn-1,1,FirstEventColumn-FirstExtraEventColumn)),Rank2)), LARGE(IF(OFFSET($A$1,FirstEntryLine-3,FirstExtraEventColumn-1,1,FirstEventColumn-FirstExtraEventColumn)=AL$12,OFFSET($A$1,ROW()-1,FirstExtraEventColumn-1,1,FirstEventColumn-FirstExtraEventColumn)),Rank2), "") -> 0 | AN28: =IF(AT28>MAX(AS28,AU28),AT28,MAX(AS28,AU28)) -> 0 | AO28: =IF(AT28>MAX(AS28,AU28),MAX(AS28,AU28),AT28) -> 0 | AV28: 1800 | AZ28: 1800 | BQ28: 1000 | CC28: 320 | CM28: 1000 | CX28: 1000 | DB28: 700 | DM28: 1000 | EE28: 1000 | EL28: 1000 | EV28: 1000 | EY28: 700 | FL28: 1000 | FR28: 500 | GC28: 320 | GI28: 1000 | GT28: 120 | GW28: 500 | HN28: 300
B29: =IF(G29="","",IF(ROW()=FirstEntryLine,1,IF(AND(I29=OFFSET(I29,-1,0),V29=OFFSET(V29,-1,0),W29=OFFSET(W29,-1,0),X29=OFFSET(X29,-1,0),Y29=OFFSET(Y29,-1,0),Z29=OFFSET(Z29,-1,0),AA29=OFFSET(AA29,-1,0),AB29=OFFSET(AB29,-1,0),AC29=OFFSET(AC29,-1,0),AD29=OFFSET(AD29,-1,0),AE29=OFFSET(AE29,-1,0),AF29=OFFSET(AF29,-1,0),AG29=OFFSET(AG29,-1,0),AH29=OFFSET(AH29,-1,0),AI29=OFFSET(AI29,-1,0)),OFFSET(B29,-1,0),ROW()-FirstEntryLine+1))) -> 16 | C29: BUL | D29: =IF(C29="", "", VLOOKUP(C29, ContinentShorts, 2, FALSE)) -> EJU | E29: 52dbb996 | G29: GERCHEV | H29: Yanislav | I29: =SUM(J29:U29) -> 1787 | J29: =IF(ISNUMBER(LARGE((OFFSET($A$1,ROW()-1,FirstExtraEventColumn-2*(NbExtraEvents+1),1,NbExtraEvents-1+COVID_patch),OFFSET($A$1,ROW()-1,FirstEventColumn+IndexEventsRate1-2,1,NbEventsRate1)),Rank1)), IF(LARGE((OFFSET($A$1,ROW()-1,FirstExtraEventColumn-2*(NbExtraEvents+1),1,NbExtraEvents-1+COVID_patch),OFFSET($A$1,ROW()-1,FirstEventColumn+IndexEventsRate1-2,1,NbEventsRate1)),Rank1)>0, J$12*LARGE((OFFSET($A$1,ROW()-1,FirstExtraEventColumn-2*(NbExtraEvents+1),1,NbExtraEvents-1+COVID_patch),OFFSET($A$1,ROW()-1,FirstEventColumn+IndexEventsRate1-2,1,NbEventsRate1)),Rank1),""), "") -> 520 | K29: =IF(ISNUMBER(LARGE((OFFSET($A$1,ROW()-1,FirstExtraEventColumn-2*(NbExtraEvents+1),1,NbExtraEvents-1+COVID_patch),OFFSET($A$1,ROW()-1,FirstEventColumn+IndexEventsRate1-2,1,NbEventsRate1)),Rank2)), IF(LARGE((OFFSET($A$1,ROW()-1,FirstExtraEventColumn-2*(NbExtraEvents+1),1,NbExtraEvents-1+COVID_patch),OFFSET($A$1,ROW()-1,FirstEventColumn+IndexEventsRate1-2,1,NbEventsRate1)),Rank2)>0, K$12*LARGE((OFFSET($A$1,ROW()-1,FirstExtraEventColumn-2*(NbExtraEvents+1),1,NbExtraEvents-1+COVID_patch),OFFSET($A$1,ROW()-1,FirstEventColumn+IndexEventsRate1-2,1,NbEventsRate1)),Rank2),""), "") -> 352 | L29: =IF(ISNUMBER(LARGE((OFFSET($A$1,ROW()-1,FirstExtraEventColumn-2*(NbExtraEvents+1),1,NbExtraEvents-1+COVID_patch),OFFSET($A$1,ROW()-1,FirstEventColumn+IndexEventsRate1-2,1,NbEventsRate1)),Rank3)), IF(LARGE((OFFSET($A$1,ROW()-1,FirstExtraEventColumn-2*(NbExtraEvents+1),1,NbExtraEvents-1+COVID_patch),OFFSET($A$1,ROW()-1,FirstEventColumn+IndexEventsRate1-2,1,NbEventsRate1)),Rank3)>0, L$12*LARGE((OFFSET($A$1,ROW()-1,FirstExtraEventColumn-2*(NbExtraEvents+1),1,NbExtraEvents-1+COVID_patch),OFFSET($A$1,ROW()-1,FirstEventColumn+IndexEventsRate1-2,1,NbEventsRate1)),Rank3),""), "") -> 10 | M29: =IF(ISNUMBER(LARGE((OFFSET($A$1,ROW()-1,FirstExtraEventColumn-2*(NbExtraEvents+1),1,NbExtraEvents-1+COVID_patch),OFFSET($A$1,ROW()-1,FirstEventColumn+IndexEventsRate1-2,1,NbEventsRate1)),Rank4)), IF(LARGE((OFFSET($A$1,ROW()-1,FirstExtraEventColumn-2*(NbExtraEvents+1),1,NbExtraEvents-1+COVID_patch),OFFSET($A$1,ROW()-1,FirstEventColumn+IndexEventsRate1-2,1,NbEventsRate1)),Rank4)>0, M$12*LARGE((OFFSET($A$1,ROW()-1,FirstExtraEventColumn-2*(NbExtraEvents+1),1,NbExtraEvents-1+COVID_patch),OFFSET($A$1,ROW()-1,FirstEventColumn+IndexEventsRate1-2,1,NbEventsRate1)),Rank4),""), "") ->  | N29: =IF(ISNUMBER(LARGE((OFFSET($A$1,ROW()-1,FirstExtraEventColumn-2*(NbExtraEvents+1),1,NbExtraEvents-1+COVID_patch),OFFSET($A$1,ROW()-1,FirstEventColumn+IndexEventsRate1-2,1,NbEventsRate1)),Rank5)), IF(LARGE((OFFSET($A$1,ROW()-1,FirstExtraEventColumn-2*(NbExtraEvents+1),1,NbExtraEvents-1+COVID_patch),OFFSET($A$1,ROW()-1,FirstEventColumn+IndexEventsRate1-2,1,NbEventsRate1)),Rank5)>0, N$12*LARGE((OFFSET($A$1,ROW()-1,FirstExtraEventColumn-2*(NbExtraEvents+1),1,NbExtraEvents-1+COVID_patch),OFFSET($A$1,ROW()-1,FirstEventColumn+IndexEventsRate1-2,1,NbEventsRate1)),Rank5),""), "") ->  | O29: =IF($AK29<>0,$AK$12*$AK29,"") -> 490 | P29: =IF(ISNUMBER(LARGE((OFFSET($A$1,ROW()-1,FirstExtraEventColumn-(NbExtraEvents+1),1,NbExtraEvents-1),OFFSET($A$1,ROW()-1,FirstEventColumn+IndexEventsRate2-2,1,NbEventsRate2)),Rank1)), IF(LARGE((OFFSET($A$1,ROW()-1,FirstExtraEventColumn-(NbExtraEvents+1),1,NbExtraEvents-1),OFFSET($A$1,ROW()-1,FirstEventColumn+IndexEventsRate2-2,1,NbEventsRate2)),Rank1)>0, P$12*LARGE((OFFSET($A$1,ROW()-1,FirstExtraEventColumn-(NbExtraEvents+1),1,NbExtraEvents-1),OFFSET($A$1,ROW()-1,FirstEventColumn+IndexEventsRate2-2,1,NbEventsRate2)),Rank1),""), "") -> 130 | Q29: =IF(ISNUMBER(LARGE((OFFSET($A$1,ROW()-1,FirstExtraEventColumn-(NbExtraEvents+1),1,NbExtraEvents-1),OFFSET($A$1,ROW()-1,FirstEventColumn+IndexEventsRate2-2,1,NbEventsRate2)),Rank2)), IF(LARGE((OFFSET($A$1,ROW()-1,FirstExtraEventColumn-(NbExtraEvents+1),1,NbExtraEvents-1),OFFSET($A$1,ROW()-1,FirstEventColumn+IndexEventsRate2-2,1,NbEventsRate2)),Rank2)>0, Q$12*LARGE((OFFSET($A$1,ROW()-1,FirstExtraEventColumn-(NbExtraEvents+1),1,NbExtraEvents-1),OFFSET($A$1,ROW()-1,FirstEventColumn+IndexEventsRate2-2,1,NbEventsRate2)),Rank2),""), "") -> 126 | R29: =IF(ISNUMBER(LARGE((OFFSET($A$1,ROW()-1,FirstExtraEventColumn-(NbExtraEvents+1),1,NbExtraEvents-1),OFFSET($A$1,ROW()-1,FirstEventColumn+IndexEventsRate2-2,1,NbEventsRate2)),Rank3)), IF(LARGE((OFFSET($A$1,ROW()-1,FirstExtraEventColumn-(NbExtraEvents+1),1,NbExtraEvents-1),OFFSET($A$1,ROW()-1,FirstEventColumn+IndexEventsRate2-2,1,NbEventsRate2)),Rank3)>0, R$12*LARGE((OFFSET($A$1,ROW()-1,FirstExtraEventColumn-(NbExtraEvents+1),1,NbExtraEvents-1),OFFSET($A$1,ROW()-1,FirstEventColumn+IndexEventsRate2-2,1,NbEventsRate2)),Rank3),""), "") -> 5 | S29: =IF(ISNUMBER(LARGE((OFFSET($A$1,ROW()-1,FirstExtraEventColumn-(NbExtraEvents+1),1,NbExtraEvents-1),OFFSET($A$1,ROW()-1,FirstEventColumn+IndexEventsRate2-2,1,NbEventsRate2)),Rank4)), IF(LARGE((OFFSET($A$1,ROW()-1,FirstExtraEventColumn-(NbExtraEvents+1),1,NbExtraEvents-1),OFFSET($A$1,ROW()-1,FirstEventColumn+IndexEventsRate2-2,1,NbEventsRate2)),Rank4)>0, S$12*LARGE((OFFSET($A$1,ROW()-1,FirstExtraEventColumn-(NbExtraEvents+1),1,NbExtraEvents-1),OFFSET($A$1,ROW()-1,FirstEventColumn+IndexEventsRate2-2,1,NbEventsRate2)),Rank4),""), "") -> 5 | T29: =IF(ISNUMBER(LARGE((OFFSET($A$1,ROW()-1,FirstExtraEventColumn-(NbExtraEvents+1),1,NbExtraEvents-1),OFFSET($A$1,ROW()-1,FirstEventColumn+IndexEventsRate2-2,1,NbEventsRate2)),Rank5)), IF(LARGE((OFFSET($A$1,ROW()-1,FirstExtraEventColumn-(NbExtraEvents+1),1,NbExtraEvents-1),OFFSET($A$1,ROW()-1,FirstEventColumn+IndexEventsRate2-2,1,NbEventsRate2)),Rank5)>0, T$12*LARGE((OFFSET($A$1,ROW()-1,FirstExtraEventColumn-(NbExtraEvents+1),1,NbExtraEvents-1),OFFSET($A$1,ROW()-1,FirstEventColumn+IndexEventsRate2-2,1,NbEventsRate2)),Rank5),""), "") -> 5 | U29: =IF($AN29<>0,$AN$12*$AN29,"") -> 144 | V29: =RateYear1*SUMIFS(OFFSET($A$1,ROW()-1,FirstExtraEventColumn-1,1,IndexExtraEventEnd+IndexEventEnd-2),OFFSET($A$1,RateLine-1,FirstExtraEventColumn-1,1,IndexExtraEventEnd+IndexEventEnd-2),RateYear1,OFFSET($A$1,RateLine-3,FirstExtraEventColumn-1,1,IndexExtraEventEnd+IndexEventEnd-2),"WCS") +RateYear2*SUMIFS(OFFSET($A$1,ROW()-1,FirstExtraEventColumn-1,1,IndexExtraEventEnd+IndexEventEnd-2),OFFSET($A$1,RateLine-1,FirstExtraEventColumn-1,1,IndexExtraEventEnd+IndexEventEnd-2),RateYear2,OFFSET($A$1,RateLine-3,FirstExtraEventColumn-1,1,IndexExtraEventEnd+IndexEventEnd-2),"WCS") -> 520 | W29: =RateYear1* (SUMIFS(OFFSET($A$1,ROW()-1,FirstExtraEventColumn-1,1,IndexExtraEventEnd+IndexEventEnd-2),OFFSET($A$1,RateLine-1,FirstExtraEventColumn-1,1,IndexExtraEventEnd+IndexEventEnd-2),RateYear1,OFFSET($A$1,RateLine-3,FirstExtraEventColumn-1,1,IndexExtraEventEnd+IndexEventEnd-2),"GP") +SUMIFS(OFFSET($A$1,ROW()-1,FirstExtraEventColumn-1,1,IndexExtraEventEnd+IndexEventEnd-2),OFFSET($A$1,RateLine-1,FirstExtraEventColumn-1,1,IndexExtraEventEnd+IndexEventEnd-2),RateYear1,OFFSET($A$1,RateLine-3,FirstExtraEventColumn-1,1,IndexExtraEventEnd+IndexEventEnd-2),"GS") +SUMIFS(OFFSET($A$1,ROW()-1,FirstExtraEventColumn-1,1,IndexExtraEventEnd+IndexEventEnd-2),OFFSET($A$1,RateLine-1,FirstExtraEventColumn-1,1,IndexExtraEventEnd+IndexEventEnd-2),RateYear1,OFFSET($A$1,RateLine-3,FirstExtraEventColumn-1,1,IndexExtraEventEnd+IndexEventEnd-2),"Masters")) +RateYear2* (SUMIFS(OFFSET($A$1,ROW()-1,FirstExtraEventColumn-1,1,IndexExtraEventEnd+IndexEventEnd-2),OFFSET($A$1,RateLine-1,FirstExtraEventColumn-1,1,IndexExtraEventEnd+IndexEventEnd-2),RateYear2,OFFSET($A$1,RateLine-3,FirstExtraEventColumn-1,1,IndexExtraEventEnd+IndexEventEnd-2),"GP") +SUMIFS(OFFSET($A$1,ROW()-1,FirstExtraEventColumn-1,1,IndexExtraEventEnd+IndexEventEnd-2),OFFSET($A$1,RateLine-1,FirstExtraEventColumn-1,1,IndexExtraEventEnd+IndexEventEnd-2),RateYear2,OFFSET($A$1,RateLine-3,FirstExtraEventColumn-1,1,IndexExtraEventEnd+IndexEventEnd-2),"GS") +SUMIFS(OFFSET($A$1,ROW()-1,FirstExtraEventColumn-1,1,IndexExtraEventEnd+IndexEventEnd-2),OFFSET($A$1,RateLine-1,FirstExtraEventColumn-1,1,IndexExtraEventEnd+IndexEventEnd-2),RateYear2,OFFSET($A$1,RateLine-3,FirstExtraEventColumn-1,1,IndexExtraEventEnd+IndexEventEnd-2),"Masters")) -> 304 | X29: =IF(ISNUMBER(LARGE($J29:$U29,Rank1)),LARGE($J29:$U29,Rank1),"") -> 520 | Y29: =IF(ISNUMBER(LARGE($J29:$U29,Rank2)),LARGE($J29:$U29,Rank2),"") -> 490 | Z29: =IF(ISNUMBER(LARGE($J29:$U29,Rank3)),LARGE($J29:$U29,Rank3),"") -> 352 | AA29: =IF(ISNUMBER(LARGE($J29:$U29,Rank4)),LARGE($J29:$U29,Rank4),"") -> 144 | AB29: =IF(ISNUMBER(LARGE($J29:$U29,Rank5)),LARGE($J29:$U29,Rank5),"") -> 130 | AC29: =IF(ISNUMBER(LARGE($J29:$U29,Rank6)),LARGE($J29:$U29,Rank6),"") -> 126 | AD29: =IF(ISNUMBER(LARGE($J29:$U29,Rank7)),LARGE($J29:$U29,Rank7),"") -> 10 | AE29: =IF(ISNUMBER(LARGE($J29:$U29,Rank8)),LARGE($J29:$U29,Rank8),"") -> 5 | AF29: =IF(ISNUMBER(LARGE($J29:$U29,Rank9)),LARGE($J29:$U29,Rank9),"") -> 5 | AG29: =IF(ISNUMBER(LARGE($J29:$U29,Rank10)),LARGE($J29:$U29,Rank10),"") -> 5 | AH29: =IF(ISNUMBER(LARGE($J29:$U29,Rank11)),LARGE($J29:$U29,Rank11),"") ->  | AI29: =IF(ISNUMBER(LARGE($J29:$U29,Rank12)),LARGE($J29:$U29,Rank12),"") ->  | AJ29: =RateYear1*SUM(AK29:AM29)+RateYear2*SUM(AN29:AP29)+ IF(NbEventsRate1<>0,RateYear1*SUM(OFFSET($A$1,ROW()-1,FirstEventColumn+IndexEventsRate1-2,1,NbEventsRate1)),0)+ IF(NbEventsRate2<>0,RateYear2*SUM(OFFSET($A$1,ROW()-1,FirstEventColumn+IndexEventsRate2-2,1,NbEventsRate2)),0) -> 1792 | AK29: =IF(ISNUMBER(LARGE(IF(OFFSET($A$1,FirstEntryLine-3,FirstExtraEventColumn-1,1,FirstEventColumn-FirstExtraEventColumn)=AK$12,OFFSET($A$1,ROW()-1,FirstExtraEventColumn-1,1,FirstEventColumn-FirstExtraEventColumn)),Rank1)), LARGE(IF(OFFSET($A$1,FirstEntryLine-3,FirstExtraEventColumn-1,1,FirstEventColumn-FirstExtraEventColumn)=AK$12,OFFSET($A$1,ROW()-1,FirstExtraEventColumn-1,1,FirstEventColumn-FirstExtraEventColumn)),Rank1), "") -> 490 | AL29: =IF(ISNUMBER(LARGE(IF(OFFSET($A$1,FirstEntryLine-3,FirstExtraEventColumn-1,1,FirstEventColumn-FirstExtraEventColumn)=AL$12,OFFSET($A$1,ROW()-1,FirstExtraEventColumn-1,1,FirstEventColumn-FirstExtraEventColumn)),Rank2)), LARGE(IF(OFFSET($A$1,FirstEntryLine-3,FirstExtraEventColumn-1,1,FirstEventColumn-FirstExtraEventColumn)=AL$12,OFFSET($A$1,ROW()-1,FirstExtraEventColumn-1,1,FirstEventColumn-FirstExtraEventColumn)),Rank2), "") -> 0 | AN29: =IF(AT29>MAX(AS29,AU29),AT29,MAX(AS29,AU29)) -> 288 | AO29: =IF(AT29>MAX(AS29,AU29),MAX(AS29,AU29),AT29) -> 252 | AQ29: 490 | AS29: 252 | AT29: 288 | AU29: 252 | AV29: 200 | AW29: 6 | AY29: 490 | BA29: 490 | BC29: 48 | BE29: 2 | BG29: 2 | BI29: 80 | CB29: 352 | CC29: 520 | CF29: 10 | CJ29: 260 | CK29: 10 | CM29: 10 | CO29: 10 | CS29: 10 | CV29: 120 | CX29: 160 | CZ29: 6 | DB29: 10 | DF29: 10 | DI29: 10 | DM29: 320 | DQ29: 84 | DR29: 112 | DV29: 260 | DW29: 112 | EC29: 350 | EI29: 182 | EO29: 6 | ER29: 10 | EV29: 240 | EY29: 112 | EZ29: 6 | GC29: 240 | GP29: 500 | GR29: 112 | GT29: 10 | GW29: 2 | HG29: 120 | HL29: 60 | HM29: 2 | HN29: 40 | HO29: 60 | HP29: 48 | HV29: 24 | HX29: 40 | HY29: 12 | IB29: 12
B30: =IF(G30="","",IF(ROW()=FirstEntryLine,1,IF(AND(I30=OFFSET(I30,-1,0),V30=OFFSET(V30,-1,0),W30=OFFSET(W30,-1,0),X30=OFFSET(X30,-1,0),Y30=OFFSET(Y30,-1,0),Z30=OFFSET(Z30,-1,0),AA30=OFFSET(AA30,-1,0),AB30=OFFSET(AB30,-1,0),AC30=OFFSET(AC30,-1,0),AD30=OFFSET(AD30,-1,0),AE30=OFFSET(AE30,-1,0),AF30=OFFSET(AF30,-1,0),AG30=OFFSET(AG30,-1,0),AH30=OFFSET(AH30,-1,0),AI30=OFFSET(AI30,-1,0)),OFFSET(B30,-1,0),ROW()-FirstEntryLine+1))) -> 17 | C30: KOR | D30: =IF(C30="", "", VLOOKUP(C30, ContinentShorts, 2, FALSE)) -> JUA | E30: 8fb48b96 | G30: KIM | H30: Won Jin | I30: =SUM(J30:U30) -> 1692 | J30: =IF(ISNUMBER(LARGE((OFFSET($A$1,ROW()-1,FirstExtraEventColumn-2*(NbExtraEvents+1),1,NbExtraEvents-1+COVID_patch),OFFSET($A$1,ROW()-1,FirstEventColumn+IndexEventsRate1-2,1,NbEventsRate1)),Rank1)), IF(LARGE((OFFSET($A$1,ROW()-1,FirstExtraEventColumn-2*(NbExtraEvents+1),1,NbExtraEvents-1+COVID_patch),OFFSET($A$1,ROW()-1,FirstEventColumn+IndexEventsRate1-2,1,NbEventsRate1)),Rank1)>0, J$12*LARGE((OFFSET($A$1,ROW()-1,FirstExtraEventColumn-2*(NbExtraEvents+1),1,NbExtraEvents-1+COVID_patch),OFFSET($A$1,ROW()-1,FirstEventColumn+IndexEventsRate1-2,1,NbEventsRate1)),Rank1),""), "") -> 792 | K30: =IF(ISNUMBER(LARGE((OFFSET($A$1,ROW()-1,FirstExtraEventColumn-2*(NbExtraEvents+1),1,NbExtraEvents-1+COVID_patch),OFFSET($A$1,ROW()-1,FirstEventColumn+IndexEventsRate1-2,1,NbEventsRate1)),Rank2)), IF(LARGE((OFFSET($A$1,ROW()-1,FirstExtraEventColumn-2*(NbExtraEvents+1),1,NbExtraEvents-1+COVID_patch),OFFSET($A$1,ROW()-1,FirstEventColumn+IndexEventsRate1-2,1,NbEventsRate1)),Rank2)>0, K$12*LARGE((OFFSET($A$1,ROW()-1,FirstExtraEventColumn-2*(NbExtraEvents+1),1,NbExtraEvents-1+COVID_patch),OFFSET($A$1,ROW()-1,FirstEventColumn+IndexEventsRate1-2,1,NbEventsRate1)),Rank2),""), "") ->  | L30: =IF(ISNUMBER(LARGE((OFFSET($A$1,ROW()-1,FirstExtraEventColumn-2*(NbExtraEvents+1),1,NbExtraEvents-1+COVID_patch),OFFSET($A$1,ROW()-1,FirstEventColumn+IndexEventsRate1-2,1,NbEventsRate1)),Rank3)), IF(LARGE((OFFSET($A$1,ROW()-1,FirstExtraEventColumn-2*(NbExtraEvents+1),1,NbExtraEvents-1+COVID_patch),OFFSET($A$1,ROW()-1,FirstEventColumn+IndexEventsRate1-2,1,NbEventsRate1)),Rank3)>0, L$12*LARGE((OFFSET($A$1,ROW()-1,FirstExtraEventColumn-2*(NbExtraEvents+1),1,NbExtraEvents-1+COVID_patch),OFFSET($A$1,ROW()-1,FirstEventColumn+IndexEventsRate1-2,1,NbEventsRate1)),Rank3),""), "") ->  | M30: =IF(ISNUMBER(LARGE((OFFSET($A$1,ROW()-1,FirstExtraEventColumn-2*(NbExtraEvents+1),1,NbExtraEvents-1+COVID_patch),OFFSET($A$1,ROW()-1,FirstEventColumn+IndexEventsRate1-2,1,NbEventsRate1)),Rank4)), IF(LARGE((OFFSET($A$1,ROW()-1,FirstExtraEventColumn-2*(NbExtraEvents+1),1,NbExtraEvents-1+COVID_patch),OFFSET($A$1,ROW()-1,FirstEventColumn+IndexEventsRate1-2,1,NbEventsRate1)),Rank4)>0, M$12*LARGE((OFFSET($A$1,ROW()-1,FirstExtraEventColumn-2*(NbExtraEvents+1),1,NbExtraEvents-1+COVID_patch),OFFSET($A$1,ROW()-1,FirstEventColumn+IndexEventsRate1-2,1,NbEventsRate1)),Rank4),""), "") ->  | N30: =IF(ISNUMBER(LARGE((OFFSET($A$1,ROW()-1,FirstExtraEventColumn-2*(NbExtraEvents+1),1,NbExtraEvents-1+COVID_patch),OFFSET($A$1,ROW()-1,FirstEventColumn+IndexEventsRate1-2,1,NbEventsRate1)),Rank5)), IF(LARGE((OFFSET($A$1,ROW()-1,FirstExtraEventColumn-2*(NbExtraEvents+1),1,NbExtraEvents-1+COVID_patch),OFFSET($A$1,ROW()-1,FirstEventColumn+IndexEventsRate1-2,1,NbEventsRate1)),Rank5)>0, N$12*LARGE((OFFSET($A$1,ROW()-1,FirstExtraEventColumn-2*(NbExtraEvents+1),1,NbExtraEvents-1+COVID_patch),OFFSET($A$1,ROW()-1,FirstEventColumn+IndexEventsRate1-2,1,NbEventsRate1)),Rank5),""), "") ->  | O30: =IF($AK30<>0,$AK$12*$AK30,"") ->  | P30: =IF(ISNUMBER(LARGE((OFFSET($A$1,ROW()-1,FirstExtraEventColumn-(NbExtraEvents+1),1,NbExtraEvents-1),OFFSET($A$1,ROW()-1,FirstEventColumn+IndexEventsRate2-2,1,NbEventsRate2)),Rank1)), IF(LARGE((OFFSET($A$1,ROW()-1,FirstExtraEventColumn-(NbExtraEvents+1),1,NbExtraEvents-1),OFFSET($A$1,ROW()-1,FirstEventColumn+IndexEventsRate2-2,1,NbEventsRate2)),Rank1)>0, P$12*LARGE((OFFSET($A$1,ROW()-1,FirstExtraEventColumn-(NbExtraEvents+1),1,NbExtraEvents-1),OFFSET($A$1,ROW()-1,FirstEventColumn+IndexEventsRate2-2,1,NbEventsRate2)),Rank1),""), "") ->  | Q30: =IF(ISNUMBER(LARGE((OFFSET($A$1,ROW()-1,FirstExtraEventColumn-(NbExtraEvents+1),1,NbExtraEvents-1),OFFSET($A$1,ROW()-1,FirstEventColumn+IndexEventsRate2-2,1,NbEventsRate2)),Rank2)), IF(LARGE((OFFSET($A$1,ROW()-1,FirstExtraEventColumn-(NbExtraEvents+1),1,NbExtraEvents-1),OFFSET($A$1,ROW()-1,FirstEventColumn+IndexEventsRate2-2,1,NbEventsRate2)),Rank2)>0, Q$12*LARGE((OFFSET($A$1,ROW()-1,FirstExtraEventColumn-(NbExtraEvents+1),1,NbExtraEvents-1),OFFSET($A$1,ROW()-1,FirstEventColumn+IndexEventsRate2-2,1,NbEventsRate2)),Rank2),""), "") ->  | R30: =IF(ISNUMBER(LARGE((OFFSET($A$1,ROW()-1,FirstExtraEventColumn-(NbExtraEvents+1),1,NbExtraEvents-1),OFFSET($A$1,ROW()-1,FirstEventColumn+IndexEventsRate2-2,1,NbEventsRate2)),Rank3)), IF(LARGE((OFFSET($A$1,ROW()-1,FirstExtraEventColumn-(NbExtraEvents+1),1,NbExtraEvents-1),OFFSET($A$1,ROW()-1,FirstEventColumn+IndexEventsRate2-2,1,NbEventsRate2)),Rank3)>0, R$12*LARGE((OFFSET($A$1,ROW()-1,FirstExtraEventColumn-(NbExtraEvents+1),1,NbExtraEvents-1),OFFSET($A$1,ROW()-1,FirstEventColumn+IndexEventsRate2-2,1,NbEventsRate2)),Rank3),""), "") ->  | S30: =IF(ISNUMBER(LARGE((OFFSET($A$1,ROW()-1,FirstExtraEventColumn-(NbExtraEvents+1),1,NbExtraEvents-1),OFFSET($A$1,ROW()-1,FirstEventColumn+IndexEventsRate2-2,1,NbEventsRate2)),Rank4)), IF(LARGE((OFFSET($A$1,ROW()-1,FirstExtraEventColumn-(NbExtraEvents+1),1,NbExtraEvents-1),OFFSET($A$1,ROW()-1,FirstEventColumn+IndexEventsRate2-2,1,NbEventsRate2)),Rank4)>0, S$12*LARGE((OFFSET($A$1,ROW()-1,FirstExtraEventColumn-(NbExtraEvents+1),1,NbExtraEvents-1),OFFSET($A$1,ROW()-1,FirstEventColumn+IndexEventsRate2-2,1,NbEventsRate2)),Rank4),""), "") ->  | T30: =IF(ISNUMBER(LARGE((OFFSET($A$1,ROW()-1,FirstExtraEventColumn-(NbExtraEvents+1),1,NbExtraEvents-1),OFFSET($A$1,ROW()-1,FirstEventColumn+IndexEventsRate2-2,1,NbEventsRate2)),Rank5)), IF(LARGE((OFFSET($A$1,ROW()-1,FirstExtraEventColumn-(NbExtraEvents+1),1,NbExtraEvents-1),OFFSET($A$1,ROW()-1,FirstEventColumn+IndexEventsRate2-2,1,NbEventsRate2)),Rank5)>0, T$12*LARGE((OFFSET($A$1,ROW()-1,FirstExtraEventColumn-(NbExtraEvents+1),1,NbExtraEvents-1),OFFSET($A$1,ROW()-1,FirstEventColumn+IndexEventsRate2-2,1,NbEventsRate2)),Rank5),""), "") ->  | U30: =IF($AN30<>0,$AN$12*$AN30,"") -> 900 | V30: =RateYear1*SUMIFS(OFFSET($A$1,ROW()-1,FirstExtraEventColumn-1,1,IndexExtraEventEnd+IndexEventEnd-2),OFFSET($A$1,RateLine-1,FirstExtraEventColumn-1,1,IndexExtraEventEnd+IndexEventEnd-2),RateYear1,OFFSET($A$1,RateLine-3,FirstExtraEventColumn-1,1,IndexExtraEventEnd+IndexEventEnd-2),"WCS") +RateYear2*SUMIFS(OFFSET($A$1,ROW()-1,FirstExtraEventColumn-1,1,IndexExtraEventEnd+IndexEventEnd-2),OFFSET($A$1,RateLine-1,FirstExtraEventColumn-1,1,IndexExtraEventEnd+IndexEventEnd-2),RateYear2,OFFSET($A$1,RateLine-3,FirstExtraEventColumn-1,1,IndexExtraEventEnd+IndexEventEnd-2),"WCS") -> 0 | W30: =RateYear1* (SUMIFS(OFFSET($A$1,ROW()-1,FirstExtraEventColumn-1,1,IndexExtraEventEnd+IndexEventEnd-2),OFFSET($A$1,RateLine-1,FirstExtraEventColumn-1,1,IndexExtraEventEnd+IndexEventEnd-2),RateYear1,OFFSET($A$1,RateLine-3,FirstExtraEventColumn-1,1,IndexExtraEventEnd+IndexEventEnd-2),"GP") +SUMIFS(OFFSET($A$1,ROW()-1,FirstExtraEventColumn-1,1,IndexExtraEventEnd+IndexEventEnd-2),OFFSET($A$1,RateLine-1,FirstExtraEventColumn-1,1,IndexExtraEventEnd+IndexEventEnd-2),RateYear1,OFFSET($A$1,RateLine-3,FirstExtraEventColumn-1,1,IndexExtraEventEnd+IndexEventEnd-2),"GS") +SUMIFS(OFFSET($A$1,ROW()-1,FirstExtraEventColumn-1,1,IndexExtraEventEnd+IndexEventEnd-2),OFFSET($A$1,RateLine-1,FirstExtraEventColumn-1,1,IndexExtraEventEnd+IndexEventEnd-2),RateYear1,OFFSET($A$1,RateLine-3,FirstExtraEventColumn-1,1,IndexExtraEventEnd+IndexEventEnd-2),"Masters")) +RateYear2* (SUMIFS(OFFSET($A$1,ROW()-1,FirstExtraEventColumn-1,1,IndexExtraEventEnd+IndexEventEnd-2),OFFSET($A$1,RateLine-1,FirstExtraEventColumn-1,1,IndexExtraEventEnd+IndexEventEnd-2),RateYear2,OFFSET($A$1,RateLine-3,FirstExtraEventColumn-1,1,IndexExtraEventEnd+IndexEventEnd-2),"GP") +SUMIFS(OFFSET($A$1,ROW()-1,FirstExtraEventColumn-1,1,IndexExtraEventEnd+IndexEventEnd-2),OFFSET($A$1,RateLine-1,FirstExtraEventColumn-1,1,IndexExtraEventEnd+IndexEventEnd-2),RateYear2,OFFSET($A$1,RateLine-3,FirstExtraEventColumn-1,1,IndexExtraEventEnd+IndexEventEnd-2),"GS") +SUMIFS(OFFSET($A$1,ROW()-1,FirstExtraEventColumn-1,1,IndexExtraEventEnd+IndexEventEnd-2),OFFSET($A$1,RateLine-1,FirstExtraEventColumn-1,1,IndexExtraEventEnd+IndexEventEnd-2),RateYear2,OFFSET($A$1,RateLine-3,FirstExtraEventColumn-1,1,IndexExtraEventEnd+IndexEventEnd-2),"Masters")) -> 900 | X30: =IF(ISNUMBER(LARGE($J30:$U30,Rank1)),LARGE($J30:$U30,Rank1),"") -> 900 | Y30: =IF(ISNUMBER(LARGE($J30:$U30,Rank2)),LARGE($J30:$U30,Rank2),"") -> 792 | Z30: =IF(ISNUMBER(LARGE($J30:$U30,Rank3)),LARGE($J30:$U30,Rank3),"") ->  | AA30: =IF(ISNUMBER(LARGE($J30:$U30,Rank4)),LARGE($J30:$U30,Rank4),"") ->  | AB30: =IF(ISNUMBER(LARGE($J30:$U30,Rank5)),LARGE($J30:$U30,Rank5),"") ->  | AC30: =IF(ISNUMBER(LARGE($J30:$U30,Rank6)),LARGE($J30:$U30,Rank6),"") ->  | AD30: =IF(ISNUMBER(LARGE($J30:$U30,Rank7)),LARGE($J30:$U30,Rank7),"") ->  | AE30: =IF(ISNUMBER(LARGE($J30:$U30,Rank8)),LARGE($J30:$U30,Rank8),"") ->  | AF30: =IF(ISNUMBER(LARGE($J30:$U30,Rank9)),LARGE($J30:$U30,Rank9),"") ->  | AG30: =IF(ISNUMBER(LARGE($J30:$U30,Rank10)),LARGE($J30:$U30,Rank10),"") ->  | AH30: =IF(ISNUMBER(LARGE($J30:$U30,Rank11)),LARGE($J30:$U30,Rank11),"") ->  | AI30: =IF(ISNUMBER(LARGE($J30:$U30,Rank12)),LARGE($J30:$U30,Rank12),"") ->  | AJ30: =RateYear1*SUM(AK30:AM30)+RateYear2*SUM(AN30:AP30)+ IF(NbEventsRate1<>0,RateYear1*SUM(OFFSET($A$1,ROW()-1,FirstEventColumn+IndexEventsRate1-2,1,NbEventsRate1)),0)+ IF(NbEventsRate2<>0,RateYear2*SUM(OFFSET($A$1,ROW()-1,FirstEventColumn+IndexEventsRate2-2,1,NbEventsRate2)),0) -> 1692 | AK30: =IF(ISNUMBER(LARGE(IF(OFFSET($A$1,FirstEntryLine-3,FirstExtraEventColumn-1,1,FirstEventColumn-FirstExtraEventColumn)=AK$12,OFFSET($A$1,ROW()-1,FirstExtraEventColumn-1,1,FirstEventColumn-FirstExtraEventColumn)),Rank1)), LARGE(IF(OFFSET($A$1,FirstEntryLine-3,FirstExtraEventColumn-1,1,FirstEventColumn-FirstExtraEventColumn)=AK$12,OFFSET($A$1,ROW()-1,FirstExtraEventColumn-1,1,FirstEventColumn-FirstExtraEventColumn)),Rank1), "") -> 0 | AL30: =IF(ISNUMBER(LARGE(IF(OFFSET($A$1,FirstEntryLine-3,FirstExtraEventColumn-1,1,FirstEventColumn-FirstExtraEventColumn)=AL$12,OFFSET($A$1,ROW()-1,FirstExtraEventColumn-1,1,FirstEventColumn-FirstExtraEventColumn)),Rank2)), LARGE(IF(OFFSET($A$1,FirstEntryLine-3,FirstExtraEventColumn-1,1,FirstEventColumn-FirstExtraEventColumn)=AL$12,OFFSET($A$1,ROW()-1,FirstExtraEventColumn-1,1,FirstEventColumn-FirstExtraEventColumn)),Rank2), "") -> 0 | AN30: =IF(AT30>MAX(AS30,AU30),AT30,MAX(AS30,AU30)) -> 1800 | AO30: =IF(AT30>MAX(AS30,AU30),MAX(AS30,AU30),AT30) -> 0 | AT30: 1800 | AV30: 288 | BB30: 280 | BE30: 400 | BG30: 160 | BI30: 240 | CB30: 792 | CV30: 500 | CX30: 360 | CZ30: 700 | DB30: 500 | DM30: 200 | DO30: 6 | DU30: 700 | EL30: 500 | HG30: 160 | HV30: 300 | HX30: 200
B31: =IF(G31="","",IF(ROW()=FirstEntryLine,1,IF(AND(I31=OFFSET(I31,-1,0),V31=OFFSET(V31,-1,0),W31=OFFSET(W31,-1,0),X31=OFFSET(X31,-1,0),Y31=OFFSET(Y31,-1,0),Z31=OFFSET(Z31,-1,0),AA31=OFFSET(AA31,-1,0),AB31=OFFSET(AB31,-1,0),AC31=OFFSET(AC31,-1,0),AD31=OFFSET(AD31,-1,0),AE31=OFFSET(AE31,-1,0),AF31=OFFSET(AF31,-1,0),AG31=OFFSET(AG31,-1,0),AH31=OFFSET(AH31,-1,0),AI31=OFFSET(AI31,-1,0)),OFFSET(B31,-1,0),ROW()-FirstEntryLine+1))) -> 18 | C31: KAZ | D31: =IF(C31="", "", VLOOKUP(C31, ContinentShorts, 2, FALSE)) -> JUA | E31: 7d8a7fc3 | G31: SMETOV | H31: Yeldos | I31: =SUM(J31:U31) -> 1641 | J31: =IF(ISNUMBER(LARGE((OFFSET($A$1,ROW()-1,FirstExtraEventColumn-2*(NbExtraEvents+1),1,NbExtraEvents-1+COVID_patch),OFFSET($A$1,ROW()-1,FirstEventColumn+IndexEventsRate1-2,1,NbEventsRate1)),Rank1)), IF(LARGE((OFFSET($A$1,ROW()-1,FirstExtraEventColumn-2*(NbExtraEvents+1),1,NbExtraEvents-1+COVID_patch),OFFSET($A$1,ROW()-1,FirstEventColumn+IndexEventsRate1-2,1,NbEventsRate1)),Rank1)>0, J$12*LARGE((OFFSET($A$1,ROW()-1,FirstExtraEventColumn-2*(NbExtraEvents+1),1,NbExtraEvents-1+COVID_patch),OFFSET($A$1,ROW()-1,FirstEventColumn+IndexEventsRate1-2,1,NbEventsRate1)),Rank1),""), "") -> 1100 | K31: =IF(ISNUMBER(LARGE((OFFSET($A$1,ROW()-1,FirstExtraEventColumn-2*(NbExtraEvents+1),1,NbExtraEvents-1+COVID_patch),OFFSET($A$1,ROW()-1,FirstEventColumn+IndexEventsRate1-2,1,NbEventsRate1)),Rank2)), IF(LARGE((OFFSET($A$1,ROW()-1,FirstExtraEventColumn-2*(NbExtraEvents+1),1,NbExtraEvents-1+COVID_patch),OFFSET($A$1,ROW()-1,FirstEventColumn+IndexEventsRate1-2,1,NbEventsRate1)),Rank2)>0, K$12*LARGE((OFFSET($A$1,ROW()-1,FirstExtraEventColumn-2*(NbExtraEvents+1),1,NbExtraEvents-1+COVID_patch),OFFSET($A$1,ROW()-1,FirstEventColumn+IndexEventsRate1-2,1,NbEventsRate1)),Rank2),""), "") ->  | L31: =IF(ISNUMBER(LARGE((OFFSET($A$1,ROW()-1,FirstExtraEventColumn-2*(NbExtraEvents+1),1,NbExtraEvents-1+COVID_patch),OFFSET($A$1,ROW()-1,FirstEventColumn+IndexEventsRate1-2,1,NbEventsRate1)),Rank3)), IF(LARGE((OFFSET($A$1,ROW()-1,FirstExtraEventColumn-2*(NbExtraEvents+1),1,NbExtraEvents-1+COVID_patch),OFFSET($A$1,ROW()-1,FirstEventColumn+IndexEventsRate1-2,1,NbEventsRate1)),Rank3)>0, L$12*LARGE((OFFSET($A$1,ROW()-1,FirstExtraEventColumn-2*(NbExtraEvents+1),1,NbExtraEvents-1+COVID_patch),OFFSET($A$1,ROW()-1,FirstEventColumn+IndexEventsRate1-2,1,NbEventsRate1)),Rank3),""), "") ->  | M31: =IF(ISNUMBER(LARGE((OFFSET($A$1,ROW()-1,FirstExtraEventColumn-2*(NbExtraEvents+1),1,NbExtraEvents-1+COVID_patch),OFFSET($A$1,ROW()-1,FirstEventColumn+IndexEventsRate1-2,1,NbEventsRate1)),Rank4)), IF(LARGE((OFFSET($A$1,ROW()-1,FirstExtraEventColumn-2*(NbExtraEvents+1),1,NbExtraEvents-1+COVID_patch),OFFSET($A$1,ROW()-1,FirstEventColumn+IndexEventsRate1-2,1,NbEventsRate1)),Rank4)>0, M$12*LARGE((OFFSET($A$1,ROW()-1,FirstExtraEventColumn-2*(NbExtraEvents+1),1,NbExtraEvents-1+COVID_patch),OFFSET($A$1,ROW()-1,FirstEventColumn+IndexEventsRate1-2,1,NbEventsRate1)),Rank4),""), "") ->  | N31: =IF(ISNUMBER(LARGE((OFFSET($A$1,ROW()-1,FirstExtraEventColumn-2*(NbExtraEvents+1),1,NbExtraEvents-1+COVID_patch),OFFSET($A$1,ROW()-1,FirstEventColumn+IndexEventsRate1-2,1,NbEventsRate1)),Rank5)), IF(LARGE((OFFSET($A$1,ROW()-1,FirstExtraEventColumn-2*(NbExtraEvents+1),1,NbExtraEvents-1+COVID_patch),OFFSET($A$1,ROW()-1,FirstEventColumn+IndexEventsRate1-2,1,NbEventsRate1)),Rank5)>0, N$12*LARGE((OFFSET($A$1,ROW()-1,FirstExtraEventColumn-2*(NbExtraEvents+1),1,NbExtraEvents-1+COVID_patch),OFFSET($A$1,ROW()-1,FirstEventColumn+IndexEventsRate1-2,1,NbEventsRate1)),Rank5),""), "") ->  | O31: =IF($AK31<>0,$AK$12*$AK31,"") ->  | P31: =IF(ISNUMBER(LARGE((OFFSET($A$1,ROW()-1,FirstExtraEventColumn-(NbExtraEvents+1),1,NbExtraEvents-1),OFFSET($A$1,ROW()-1,FirstEventColumn+IndexEventsRate2-2,1,NbEventsRate2)),Rank1)), IF(LARGE((OFFSET($A$1,ROW()-1,FirstExtraEventColumn-(NbExtraEvents+1),1,NbExtraEvents-1),OFFSET($A$1,ROW()-1,FirstEventColumn+IndexEventsRate2-2,1,NbEventsRate2)),Rank1)>0, P$12*LARGE((OFFSET($A$1,ROW()-1,FirstExtraEventColumn-(NbExtraEvents+1),1,NbExtraEvents-1),OFFSET($A$1,ROW()-1,FirstEventColumn+IndexEventsRate2-2,1,NbEventsRate2)),Rank1),""), "") -> 350 | Q31: =IF(ISNUMBER(LARGE((OFFSET($A$1,ROW()-1,FirstExtraEventColumn-(NbExtraEvents+1),1,NbExtraEvents-1),OFFSET($A$1,ROW()-1,FirstEventColumn+IndexEventsRate2-2,1,NbEventsRate2)),Rank2)), IF(LARGE((OFFSET($A$1,ROW()-1,FirstExtraEventColumn-(NbExtraEvents+1),1,NbExtraEvents-1),OFFSET($A$1,ROW()-1,FirstEventColumn+IndexEventsRate2-2,1,NbEventsRate2)),Rank2)>0, Q$12*LARGE((OFFSET($A$1,ROW()-1,FirstExtraEventColumn-(NbExtraEvents+1),1,NbExtraEvents-1),OFFSET($A$1,ROW()-1,FirstEventColumn+IndexEventsRate2-2,1,NbEventsRate2)),Rank2),""), "") -> 91 | R31: =IF(ISNUMBER(LARGE((OFFSET($A$1,ROW()-1,FirstExtraEventColumn-(NbExtraEvents+1),1,NbExtraEvents-1),OFFSET($A$1,ROW()-1,FirstEventColumn+IndexEventsRate2-2,1,NbEventsRate2)),Rank3)), IF(LARGE((OFFSET($A$1,ROW()-1,FirstExtraEventColumn-(NbExtraEvents+1),1,NbExtraEvents-1),OFFSET($A$1,ROW()-1,FirstEventColumn+IndexEventsRate2-2,1,NbEventsRate2)),Rank3)>0, R$12*LARGE((OFFSET($A$1,ROW()-1,FirstExtraEventColumn-(NbExtraEvents+1),1,NbExtraEvents-1),OFFSET($A$1,ROW()-1,FirstEventColumn+IndexEventsRate2-2,1,NbEventsRate2)),Rank3),""), "") ->  | S31: =IF(ISNUMBER(LARGE((OFFSET($A$1,ROW()-1,FirstExtraEventColumn-(NbExtraEvents+1),1,NbExtraEvents-1),OFFSET($A$1,ROW()-1,FirstEventColumn+IndexEventsRate2-2,1,NbEventsRate2)),Rank4)), IF(LARGE((OFFSET($A$1,ROW()-1,FirstExtraEventColumn-(NbExtraEvents+1),1,NbExtraEvents-1),OFFSET($A$1,ROW()-1,FirstEventColumn+IndexEventsRate2-2,1,NbEventsRate2)),Rank4)>0, S$12*LARGE((OFFSET($A$1,ROW()-1,FirstExtraEventColumn-(NbExtraEvents+1),1,NbExtraEvents-1),OFFSET($A$1,ROW()-1,FirstEventColumn+IndexEventsRate2-2,1,NbEventsRate2)),Rank4),""), "") ->  | T31: =IF(ISNUMBER(LARGE((OFFSET($A$1,ROW()-1,FirstExtraEventColumn-(NbExtraEvents+1),1,NbExtraEvents-1),OFFSET($A$1,ROW()-1,FirstEventColumn+IndexEventsRate2-2,1,NbEventsRate2)),Rank5)), IF(LARGE((OFFSET($A$1,ROW()-1,FirstExtraEventColumn-(NbExtraEvents+1),1,NbExtraEvents-1),OFFSET($A$1,ROW()-1,FirstEventColumn+IndexEventsRate2-2,1,NbEventsRate2)),Rank5)>0, T$12*LARGE((OFFSET($A$1,ROW()-1,FirstExtraEventColumn-(NbExtraEvents+1),1,NbExtraEvents-1),OFFSET($A$1,ROW()-1,FirstEventColumn+IndexEventsRate2-2,1,NbEventsRate2)),Rank5),""), "") ->  | U31: =IF($AN31<>0,$AN$12*$AN31,"") -> 100 | V31: =RateYear1*SUMIFS(OFFSET($A$1,ROW()-1,FirstExtraEventColumn-1,1,IndexExtraEventEnd+IndexEventEnd-2),OFFSET($A$1,RateLine-1,FirstExtraEventColumn-1,1,IndexExtraEventEnd+IndexEventEnd-2),RateYear1,OFFSET($A$1,RateLine-3,FirstExtraEventColumn-1,1,IndexExtraEventEnd+IndexEventEnd-2),"WCS") +RateYear2*SUMIFS(OFFSET($A$1,ROW()-1,FirstExtraEventColumn-1,1,IndexExtraEventEnd+IndexEventEnd-2),OFFSET($A$1,RateLine-1,FirstExtraEventColumn-1,1,IndexExtraEventEnd+IndexEventEnd-2),RateYear2,OFFSET($A$1,RateLine-3,FirstExtraEventColumn-1,1,IndexExtraEventEnd+IndexEventEnd-2),"WCS") -> 0 | W31: =RateYear1* (SUMIFS(OFFSET($A$1,ROW()-1,FirstExtraEventColumn-1,1,IndexExtraEventEnd+IndexEventEnd-2),OFFSET($A$1,RateLine-1,FirstExtraEventColumn-1,1,IndexExtraEventEnd+IndexEventEnd-2),RateYear1,OFFSET($A$1,RateLine-3,FirstExtraEventColumn-1,1,IndexExtraEventEnd+IndexEventEnd-2),"GP") +SUMIFS(OFFSET($A$1,ROW()-1,FirstExtraEventColumn-1,1,IndexExtraEventEnd+IndexEventEnd-2),OFFSET($A$1,RateLine-1,FirstExtraEventColumn-1,1,IndexExtraEventEnd+IndexEventEnd-2),RateYear1,OFFSET($A$1,RateLine-3,FirstExtraEventColumn-1,1,IndexExtraEventEnd+IndexEventEnd-2),"GS") +SUMIFS(OFFSET($A$1,ROW()-1,FirstExtraEventColumn-1,1,IndexExtraEventEnd+IndexEventEnd-2),OFFSET($A$1,RateLine-1,FirstExtraEventColumn-1,1,IndexExtraEventEnd+IndexEventEnd-2),RateYear1,OFFSET($A$1,RateLine-3,FirstExtraEventColumn-1,1,IndexExtraEventEnd+IndexEventEnd-2),"Masters")) +RateYear2* (SUMIFS(OFFSET($A$1,ROW()-1,FirstExtraEventColumn-1,1,IndexExtraEventEnd+IndexEventEnd-2),OFFSET($A$1,RateLine-1,FirstExtraEventColumn-1,1,IndexExtraEventEnd+IndexEventEnd-2),RateYear2,OFFSET($A$1,RateLine-3,FirstExtraEventColumn-1,1,IndexExtraEventEnd+IndexEventEnd-2),"GP") +SUMIFS(OFFSET($A$1,ROW()-1,FirstExtraEventColumn-1,1,IndexExtraEventEnd+IndexEventEnd-2),OFFSET($A$1,RateLine-1,FirstExtraEventColumn-1,1,IndexExtraEventEnd+IndexEventEnd-2),RateYear2,OFFSET($A$1,RateLine-3,FirstExtraEventColumn-1,1,IndexExtraEventEnd+IndexEventEnd-2),"GS") +SUMIFS(OFFSET($A$1,ROW()-1,FirstExtraEventColumn-1,1,IndexExtraEventEnd+IndexEventEnd-2),OFFSET($A$1,RateLine-1,FirstExtraEventColumn-1,1,IndexExtraEventEnd+IndexEventEnd-2),RateYear2,OFFSET($A$1,RateLine-3,FirstExtraEventColumn-1,1,IndexExtraEventEnd+IndexEventEnd-2),"Masters")) -> 450 | X31: =IF(ISNUMBER(LARGE($J31:$U31,Rank1)),LARGE($J31:$U31,Rank1),"") -> 1100 | Y31: =IF(ISNUMBER(LARGE($J31:$U31,Rank2)),LARGE($J31:$U31,Rank2),"") -> 350 | Z31: =IF(ISNUMBER(LARGE($J31:$U31,Rank3)),LARGE($J31:$U31,Rank3),"") -> 100 | AA31: =IF(ISNUMBER(LARGE($J31:$U31,Rank4)),LARGE($J31:$U31,Rank4),"") -> 91 | AB31: =IF(ISNUMBER(LARGE($J31:$U31,Rank5)),LARGE($J31:$U31,Rank5),"") ->  | AC31: =IF(ISNUMBER(LARGE($J31:$U31,Rank6)),LARGE($J31:$U31,Rank6),"") ->  | AD31: =IF(ISNUMBER(LARGE($J31:$U31,Rank7)),LARGE($J31:$U31,Rank7),"") ->  | AE31: =IF(ISNUMBER(LARGE($J31:$U31,Rank8)),LARGE($J31:$U31,Rank8),"") ->  | AF31: =IF(ISNUMBER(LARGE($J31:$U31,Rank9)),LARGE($J31:$U31,Rank9),"") ->  | AG31: =IF(ISNUMBER(LARGE($J31:$U31,Rank10)),LARGE($J31:$U31,Rank10),"") ->  | AH31: =IF(ISNUMBER(LARGE($J31:$U31,Rank11)),LARGE($J31:$U31,Rank11),"") ->  | AI31: =IF(ISNUMBER(LARGE($J31:$U31,Rank12)),LARGE($J31:$U31,Rank12),"") ->  | AJ31: =RateYear1*SUM(AK31:AM31)+RateYear2*SUM(AN31:AP31)+ IF(NbEventsRate1<>0,RateYear1*SUM(OFFSET($A$1,ROW()-1,FirstEventColumn+IndexEventsRate1-2,1,NbEventsRate1)),0)+ IF(NbEventsRate2<>0,RateYear2*SUM(OFFSET($A$1,ROW()-1,FirstEventColumn+IndexEventsRate2-2,1,NbEventsRate2)),0) -> 1641 | AK31: =IF(ISNUMBER(LARGE(IF(OFFSET($A$1,FirstEntryLine-3,FirstExtraEventColumn-1,1,FirstEventColumn-FirstExtraEventColumn)=AK$12,OFFSET($A$1,ROW()-1,FirstExtraEventColumn-1,1,FirstEventColumn-FirstExtraEventColumn)),Rank1)), LARGE(IF(OFFSET($A$1,FirstEntryLine-3,FirstExtraEventColumn-1,1,FirstEventColumn-FirstExtraEventColumn)=AK$12,OFFSET($A$1,ROW()-1,FirstExtraEventColumn-1,1,FirstEventColumn-FirstExtraEventColumn)),Rank1), "") -> 0 | AL31: =IF(ISNUMBER(LARGE(IF(OFFSET($A$1,FirstEntryLine-3,FirstExtraEventColumn-1,1,FirstEventColumn-FirstExtraEventColumn)=AL$12,OFFSET($A$1,ROW()-1,FirstExtraEventColumn-1,1,FirstEventColumn-FirstExtraEventColumn)),Rank2)), LARGE(IF(OFFSET($A$1,FirstEntryLine-3,FirstExtraEventColumn-1,1,FirstEventColumn-FirstExtraEventColumn)=AL$12,OFFSET($A$1,ROW()-1,FirstExtraEventColumn-1,1,FirstEventColumn-FirstExtraEventColumn)),Rank2), "") -> 0 | AN31: =IF(AT31>MAX(AS31,AU31),AT31,MAX(AS31,AU31)) -> 200 | AO31: =IF(AT31>MAX(AS31,AU31),MAX(AS31,AU31),AT31) -> 182 | AS31: 182 | AT31: 200 | AV31: 648 | AX31: 900 | AY31: 182 | BC31: 400 | BE31: 80 | BG31: 400 | BH31: 140 | BI31: 160 | CB31: 1100 | CM31: 700 | CX31: 500 | DF31: 360 | DM31: 1000 | DQ31: 700 | DW31: 700 | EG31: 700 | EL31: 260 | ER31: 360 | FC31: 700 | FH31: 1000 | GC31: 520 | GR31: 6 | HG31: 600 | HV31: 180 | IB31: 60
... 32 more rows

Sheet -66 kg
B9: ='-60 kg'!B9 -> Ranking | C9: ='-60 kg'!C9 -> Nation | D9: ='-60 kg'!D9 -> Continent | E9: ='-60 kg'!E9 -> IJF ID | F9: ='-60 kg'!F9 ->  | G9: ='-60 kg'!G9 -> FAMILY NAME | H9: ='-60 kg'!H9 -> Given name | I9: ='-60 kg'!I9 -> Total score | J9: ='-60 kg'!J9 -> best score past 12 months | K9: ='-60 kg'!K9 -> second | L9: ='-60 kg'!L9 -> third | M9: ='-60 kg'!M9 -> fourth | N9: ='-60 kg'!N9 -> fifth | O9: ='-60 kg'!O9 -> 6th extra result | P9: ='-60 kg'!P9 -> best score past 13-24 months | Q9: ='-60 kg'!Q9 -> second | R9: ='-60 kg'!R9 -> third | S9: ='-60 kg'!S9 -> fourth | T9: ='-60 kg'!T9 -> fifth | U9: ='-60 kg'!U9 -> 6th extra result | V9: ='-60 kg'!V9 -> Sum World Chs. | W9: ='-60 kg'!W9 -> Sum GP+GS+Masters | X9: ='-60 kg'!X9 -> best event | Y9: ='-60 kg'!Y9 -> second | Z9: ='-60 kg'!Z9 -> third | AA9: ='-60 kg'!AA9 -> fourth | AB9: ='-60 kg'!AB9 -> fifth | AC9: ='-60 kg'!AC9 -> sixth | AD9: ='-60 kg'!AD9 -> seventh | AE9: ='-60 kg'!AE9 -> eighth | AF9: ='-60 kg'!AF9 -> nineth | AG9: ='-60 kg'!AG9 -> tenth | AH9: ='-60 kg'!AH9 -> eleventh | AI9: ='-60 kg'!AI9 -> twelfth | AJ9: ='-60 kg'!AJ9 -> Total sum | AK9: ='-60 kg'!AK9 -> Best | AL9: ='-60 kg'!AL9 -> Second | AM9: ='-60 kg'!AM9 -> Third | AN9: ='-60 kg'!AN9 -> Best | AO9: ='-60 kg'!AO9 -> Second | AP9: ='-60 kg'!AP9 -> Third | AQ9: ='-60 kg'!AQ9 -> Continental '22 | AR9: ='-60 kg'!AR9 -> Masters '22 | AS9: ='-60 kg'!AS9 -> Continental '21 | AT9: ='-60 kg'!AT9 -> Masters '21 | AU9: ='-60 kg'!AU9 -> Continental '20 | AV9: ='-60 kg'!AV9 -> Masters '19 | AW9: ='-60 kg'!AW9 -> Continental '19 | AX9: ='-60 kg'!AX9 -> Masters '18 | AY9: ='-60 kg'!AY9 -> Continental '18 | AZ9: ='-60 kg'!AZ9 -> Masters '17 | BA9: ='-60 kg'!BA9 -> Continental '17 | BB9: ='-60 kg'!BB9 -> Masters MEX '16 | BC9: ='-60 kg'!BC9 -> Continental '16 | BD9: ='-60 kg'!BD9 -> Masters MAR '15 | BE9: ='-60 kg'!BE9 -> Continental '15 | BF9: ='-60 kg'!BF9 -> Masters '14 | BG9: ='-60 kg'!BG9 -> Continental '14 | BH9: ='-60 kg'!BH9 -> Masters RUS '13 | BI9: ='-60 kg'!BI9 -> Continental '13 | BJ9: ='-60 kg'!BJ9 -> GS TUR '22 | BK9: ='-60 kg'!BK9 -> Cont Open ALG '22 | BL9: ='-60 kg'!BL9 -> Cont Open TUN '22 | BM9: ='-60 kg'!BM9 -> Cont Open CZE '22 | BN9: ='-60 kg'!BN9 -> Cont Open POL '22 | BO9: ='-60 kg'!BO9 -> Grand Slam ISR '22 | BP9: ='-60 kg'!BP9 -> Cont Open BIH '22 | BQ9: ='-60 kg'!BQ9 -> Grand Slam FRA '22 | BR9: ='-60 kg'!BR9 -> Grand Prix POR '22 | BS9: ='-60 kg'!BS9 -> Grand Slam UAE '21 | BT9: ='-60 kg'!BT9 -> Cont Open SEN '21 | BU9: ='-60 kg'!BU9 -> Cont Open CMR '21 | BV9: ='-60 kg'!BV9 -> Grand Slam AZE '21 | BW9: ='-60 kg'!BW9 -> Cont Open ESP '21 | BX9: ='-60 kg'!BX9 -> Grand Slam FRA '21 | BY9: ='-60 kg'!BY9 -> World Champs Junior '21 | BZ9: ='-60 kg'!BZ9 -> Grand Prix CRO '21 | CA9: ='-60 kg'!CA9 -> Cont Open BIH '21 | CB9: ='-60 kg'!CB9 -> Olympic Games JPN '21 | CC9: ='-60 kg'!CC9 -> World Champs Senior '21 | CD9: ='-60 kg'!CD9 -> Cont Open ECU '21 | CE9: ='-60 kg'!CE9 -> Cont Open PER '21 | CF9: ='-60 kg'!CF9 -> Grand Slam RUS '21 | CG9: ='-60 kg'!CG9 -> Cont Open CRO '21 | CH9: ='-60 kg'!CH9 -> Cont Open DOM '21 | CI9: ='-60 kg'!CI9 -> Cont Open MEX '21 | CJ9: ='-60 kg'!CJ9 -> Grand Slam TUR '21 | CK9: ='-60 kg'!CK9 -> Grand Slam GEO '21 | CL9: ='-60 kg'!CL9 -> Cont Open KAZ '21 | CM9: ='-60 kg'!CM9 -> Grand Slam UZB '21 | CN9: ='-60 kg'!CN9 -> Cont Open CZE '21 | CO9: ='-60 kg'!CO9 -> Grand Slam ISR '21 | CP9: ='-60 kg'!CP9 -> Cont Open PER '20 | CQ9: ='-60 kg'!CQ9 -> Cont Open SEN '20 | CR9: ='-60 kg'!CR9 -> Cont Open CMR '20 | CS9: ='-60 kg'!CS9 -> Grand Slam HUN '20 | CT9: ='-60 kg'!CT9 -> Cont Open ARG '20 | CU9: ='-60 kg'!CU9 -> Conr Open POL '20 | CV9: ='-60 kg'!CV9 -> Grand Slam GER '20 | CW9: ='-60 kg'!CW9 -> Cont Open AUT/SVK '20 | CX9: ='-60 kg'!CX9 -> Grand Slam FRA'20 | CY9: ='-60 kg'!CY9 -> Cont Open POR/BUL '20 | CZ9: ='-60 kg'!CZ9 -> Grand Prix ISR '20 | DA9: ='-60 kg'!DA9 -> Cont Open HKG '19 | DB9: ='-60 kg'!DB9 -> Grand Slam JPN '19 | DC9: ='-60 kg'!DC9 -> Cont Open SEN '19 | DD9: ='-60 kg'!DD9 -> Cont Open CMR '19 | DE9: ='-60 kg'!DE9 -> Cont Open AUS '19 | DF9: ='-60 kg'!DF9 -> Grand Slam UAE '19 | DG9: ='-60 kg'!DG9 -> World Champs Junior '19 | DH9: ='-60 kg'!DH9 -> Cont Open EST '19 | DI9: ='-60 kg'!DI9 -> Grand Slam BRA '19 | DJ9: ='-60 kg'!DJ9 -> Cont Open LUX '19 | DK9: ='-60 kg'!DK9 -> Grand Prix UZB '19 | DL9: ='-60 kg'!DL9 -> Cont Open DOM '19 | DM9: ='-60 kg'!DM9 -> World Champs Senior '19 | DN9: ='-60 kg'!DN9 -> Cont Open TPE '19 | DO9: ='-60 kg'!DO9 -> Grand Prix CRO '19 | DP9: ='-60 kg'!DP9 -> Cont Open KAZ '19 | DQ9: ='-60 kg'!DQ9 -> Grand Prix HUN '19 | DR9: ='-60 kg'!DR9 -> Grand Prix CAN '19 | DS9: ='-60 kg'!DS9 -> Cont Open ECU '19 | DT9: ='-60 kg'!DT9 -> Cont Open ROU '19 | DU9: ='-60 kg'!DU9 -> Grand Prix CHN '19 | DV9: ='-60 kg'!DV9 -> Grand Slam AZE '19 | DW9: ='-60 kg'!DW9 -> Grand Prix TUR '19 | DX9: ='-60 kg'!DX9 -> Grand Prix GEO '19 | DY9: ='-60 kg'!DY9 -> Cont Open CHI '19 | DZ9: ='-60 kg'!DZ9 -> Cont Open ARG '19 | EA9: ='-60 kg'!EA9 -> Grand Slam RUS '19 | EB9: ='-60 kg'!EB9 -> Cont Open PER '19 | EC9: ='-60 kg'!EC9 -> Gran Prix MAR '19 | ED9: ='-60 kg'!ED9 -> Cont Open POL/CZE '19 | EE9: ='-60 kg'!EE9 -> Grand Slam GER '19 | EF9: ='-60 kg'!EF9 -> Cont Open ITA/AUT '19 | EG9: ='-60 kg'!EG9 -> Grand Slam FRA '19 | EH9: ='-60 kg'!EH9 -> Cont Open POR/BUL '19 | EI9: ='-60 kg'!EI9 -> Grand Prix ISR '19 | EJ9: ='-60 kg'!EJ9 -> Cont Open HKG '18 | EK9: ='-60 kg'!EK9 -> Cont Open CMR '18 | EL9: ='-60 kg'!EL9 -> Grand Slam JPN '18 | EM9: ='-60 kg'!EM9 -> Cont Open SEN '18 | EN9: ='-60 kg'!EN9 -> Cont Open AUS '18 | EO9: ='-60 kg'!EO9 -> Grand Prix NED '18 | EP9: ='-60 kg'!EP9 -> Grand Prix UZB '18 | EQ9: ='-60 kg'!EQ9 -> Cont Open KAZ '18 | ER9: ='-60 kg'!ER9 -> Grand Slam UAE '18 | ES9: ='-60 kg'!ES9 -> World Champs Junior '18 | ET9: ='-60 kg'!ET9 -> Grand Prix MEX '18 | EU9: ='-60 kg'!EU9 -> Cont Open GBR '18 | EV9: ='-60 kg'!EV9 -> World Champs Senior '18 | EW9: Cont Open DOM '18 | EX9: ='-60 kg'!EX9 -> Cont Open BLR '18 | EY9: ='-60 kg'!EY9 -> Grand Prix HUN '18 | EZ9: ='-60 kg'!EZ9 -> Grand Prix CRO '18 | FA9: ='-60 kg'!FA9 -> Cont Open TPE '18 | FB9: ='-60 kg'!FB9 -> Cont Open ESP '18 | FC9: ='-60 kg'!FC9 -> Grand Prix CHN '18 | FD9: ='-60 kg'!FD9 -> Grand Prix TUR '18 | FE9: ='-60 kg'!FE9 -> Grand Prix GEO '18 | FF9: ='-60 kg'!FF9 -> Cont Open ARG '18 | FG9: ='-60 kg'!FG9 -> Cont Open PER '18 | FH9: ='-60 kg'!FH9 -> Grand Slam RUS '18 | FI9: ='-60 kg'!FI9 -> Cont Open CHI '18 | FJ9: ='-60 kg'!FJ9 -> Grand Prix MAR '18 | FK9: ='-60 kg'!FK9 -> Cont Open POL/CZE '18 | FL9: ='-60 kg'!FL9 -> Grand Slam GER '18 | FM9: ='-60 kg'!FM9 -> Cont Open ITA/AUT'18 | FN9: ='-60 kg'!FN9 -> Grand Slam FRA '18 | FO9: ='-60 kg'!FO9 -> Cont Open BUL/POR '18 | FP9: ='-60 kg'!FP9 -> Grand Prix TUN '18 | FQ9: ='-60 kg'!FQ9 -> Cont Open HKG '17 | FR9: ='-60 kg'!FR9 -> Grand Slam JPN '17 | FS9: ='-60 kg'!FS9 -> Cont Open CMR '17 | FT9: ='-60 kg'!FT9 -> Cont Open SEN '17 | FU9: ='-60 kg'!FU9 -> Grand Prix NED '17 | FV9: ='-60 kg'!FV9 -> Cont Open VAN '17 | FW9: ='-60 kg'!FW9 -> Grand Slam UAE '17 | FX9: ='-60 kg'!FX9 -> World Champ. Junior '17 | FY9: ='-60 kg'!FY9 -> Cont Open DOM '17 | FZ9: ='-60 kg'!FZ9 -> Grand Prix UZB '17 | GA9: ='-60 kg'!GA9 -> Grand Prix CRO '17 | GB9: ='-60 kg'!GB9 -> Cont Open SRB '17 | GC9: ='-60 kg'!GC9 -> World Championships '17 | GD9: ='-60 kg'!GD9 -> Cont Open BLR '17 | GE9: ='-60 kg'!GE9 -> Cont Open TPE '17 | GF9: ='-60 kg'!GF9 -> Grand Prix CHN '17 | GG9: ='-60 kg'!GG9 -> Grand Prix MEX '17 | GH9: ='-60 kg'!GH9 -> Cont Open ROU '17 | GI9: ='-60 kg'!GI9 -> Grand Slam RUS '17 | GJ9: ='-60 kg'!GJ9 -> Grand Prix TUR '17 | GK9: ='-60 kg'!GK9 -> Grand Prix GEO '17 | GL9: ='-60 kg'!GL9 -> Cont Open PER '17 | GM9: ='-60 kg'!GM9 -> Cont Open CHI '17 | GN9: ='-60 kg'!GN9 -> Cont Open MAR '17 | GO9: ='-60 kg'!GO9 -> Cont Open ARG '17 | GP9: ='-60 kg'!GP9 -> Grand Slam AZE '17 | GQ9: ='-60 kg'!GQ9 -> Cont Open CZE/POL '17 | GR9: ='-60 kg'!GR9 -> Grand Prix GER '17 | GS9: ='-60 kg'!GS9 -> Cont Open ITA/AUT '17 | GT9: ='-60 kg'!GT9 -> Grand Slam FRA '17 | GU9: ='-60 kg'!GU9 -> Cont Open POR/BUL '17 | GV9: ='-60 kg'!GV9 -> Cont Open TUN '17 | GW9: ='-60 kg'!GW9 -> Grand Slam JPN '16 | GX9: ='-60 kg'!GX9 -> Grand Prix KOR '16 | GY9: ='-60 kg'!GY9 -> Grand Prix CHN '16 | GZ9: ='-60 kg'!GZ9 -> Grand Slam UAE '16 | HA9: ='-60 kg'!HA9 -> Cont Open AUS '16 | HB9: ='-60 kg'!HB9 -> Cont Open GBR '16 | HC9: ='-60 kg'!HC9 -> Grand Prix UZB '16 | HD9: ='-60 kg'!HD9 -> Grand Prix CRO '16 | HE9: ='-60 kg'!HE9 -> Cont Open EST '16 | HF9: ='-60 kg'!HF9 -> Cont Open TPE '16 | HG9: ='-60 kg'!HG9 -> Olympic Games Rio '16 | HH9: ='-60 kg'!HH9 -> Grand Slam RUS '16 | HI9: ='-60 kg'!HI9 -> Cont Open ESA '16 | HJ9: ='-60 kg'!HJ9 -> Grand Prix MGL '16 | HK9: ='-60 kg'!HK9 -> Grand Prix HUN '16 | HL9: ='-60 kg'!HL9 -> Cont Open ESP '16 | HM9: ='-60 kg'!HM9 -> Grand Prix KAZ '16 | HN9: ='-60 kg'!HN9 -> Grand Slam AZE '16 | HO9: ='-60 kg'!HO9 -> Grand Prix TUR '16 | HP9: ='-60 kg'!HP9 -> Grand Prix GEO '16 | HQ9: ='-60 kg'!HQ9 -> Cont Open CHI '16 | HR9: ='-60 kg'!HR9 -> Cont Open ARG '16 | HS9: ='-60 kg'!HS9 -> Cont Open MAR '16 | HT9: ='-60 kg'!HT9 -> Cont Open PER '16 | HU9: ='-60 kg'!HU9 -> Cont Open CZE/POL '16 | HV9: ='-60 kg'!HV9 -> Grand Prix GER '16 | HW9: ='-60 kg'!HW9 -> Cont Open AUT/ITA '16 | HX9: ='-60 kg'!HX9 -> Grand Slam FRA '16 | HY9: ='-60 kg'!HY9 -> Cont Open BUL '16 | HZ9: ='-60 kg'!HZ9 -> Grand Prix CUB '16 | IA9: ='-60 kg'!IA9 -> Cont Open TUN '16 | IB9: ='-60 kg'!IB9 -> Cont Open GEO '13
AQ10: ='-60 kg'!AQ10 -> CCS | AR10: ='-60 kg'!AR10 -> Masters | AS10: ='-60 kg'!AS10 -> CCS | AT10: ='-60 kg'!AT10 -> Masters | AU10: ='-60 kg'!AU10 -> CCS | AV10: ='-60 kg'!AV10 -> Masters | AW10: ='-60 kg'!AW10 -> CCS | AX10: ='-60 kg'!AX10 -> Masters | AY10: ='-60 kg'!AY10 -> CCS | AZ10: ='-60 kg'!AZ10 -> Masters | BA10: ='-60 kg'!BA10 -> CCS | BB10: ='-60 kg'!BB10 -> Masters | BC10: ='-60 kg'!BC10 -> CCS | BD10: ='-60 kg'!BD10 -> Masters | BE10: ='-60 kg'!BE10 -> CCS | BF10: ='-60 kg'!BF10 -> Masters | BG10: ='-60 kg'!BG10 -> CCS | BH10: ='-60 kg'!BH10 -> Masters | BI10: ='-60 kg'!BI10 -> CCS | BJ10: ='-60 kg'!BJ10 -> GS | BK10: ='-60 kg'!BK10 -> Open | BL10: ='-60 kg'!BL10 -> Open | BM10: ='-60 kg'!BM10 -> Open | BN10: ='-60 kg'!BN10 -> Open | BO10: ='-60 kg'!BO10 -> GS | BP10: ='-60 kg'!BP10 -> Open | BQ10: ='-60 kg'!BQ10 -> GS | BR10: ='-60 kg'!BR10 -> GP | BS10: ='-60 kg'!BS10 -> GS | BT10: ='-60 kg'!BT10 -> Open | BU10: ='-60 kg'!BU10 -> Open | BV10: ='-60 kg'!BV10 -> GS | BW10: ='-60 kg'!BW10 -> Open | BX10: ='-60 kg'!BX10 -> GS | BY10: ='-60 kg'!BY10 -> WCS | BZ10: ='-60 kg'!BZ10 -> GP | CA10: ='-60 kg'!CA10 -> Open | CB10: ='-60 kg'!CB10 -> Olympics | CC10: ='-60 kg'!CC10 -> WCS | CD10: ='-60 kg'!CD10 -> Open | CE10: ='-60 kg'!CE10 -> Open | CF10: ='-60 kg'!CF10 -> GS | CG10: ='-60 kg'!CG10 -> Open | CH10: ='-60 kg'!CH10 -> Open | CI10: ='-60 kg'!CI10 -> Open | CJ10: ='-60 kg'!CJ10 -> GS | CK10: ='-60 kg'!CK10 -> GS | CL10: ='-60 kg'!CL10 -> Open | CM10: ='-60 kg'!CM10 -> GS | CN10: ='-60 kg'!CN10 -> Open | CO10: ='-60 kg'!CO10 -> GS | CP10: ='-60 kg'!CP10 -> Open | CQ10: ='-60 kg'!CQ10 -> Open | CR10: ='-60 kg'!CR10 -> Open | CS10: ='-60 kg'!CS10 -> GS | CT10: ='-60 kg'!CT10 -> Open | CU10: ='-60 kg'!CU10 -> Open | CV10: ='-60 kg'!CV10 -> GS | CW10: ='-60 kg'!CW10 -> Open | CX10: ='-60 kg'!CX10 -> GS | CY10: ='-60 kg'!CY10 -> Open | CZ10: ='-60 kg'!CZ10 -> GP | DA10: ='-60 kg'!DA10 -> Open | DB10: ='-60 kg'!DB10 -> GS | DC10: ='-60 kg'!DC10 -> Open | DD10: ='-60 kg'!DD10 -> Open | DE10: ='-60 kg'!DE10 -> Open | DF10: ='-60 kg'!DF10 -> GS | DG10: ='-60 kg'!DG10 -> WCS | DH10: ='-60 kg'!DH10 -> Open | DI10: ='-60 kg'!DI10 -> GS | DJ10: ='-60 kg'!DJ10 -> Open | DK10: ='-60 kg'!DK10 -> GP | DL10: ='-60 kg'!DL10 -> Open | DM10: ='-60 kg'!DM10 -> WCS | DN10: ='-60 kg'!DN10 -> Open | DO10: ='-60 kg'!DO10 -> GP | DP10: ='-60 kg'!DP10 -> Open | DQ10: ='-60 kg'!DQ10 -> GP | DR10: ='-60 kg'!DR10 -> GP | DS10: ='-60 kg'!DS10 -> Open | DT10: ='-60 kg'!DT10 -> Open | DU10: ='-60 kg'!DU10 -> GP | DV10: ='-60 kg'!DV10 -> GS | DW10: ='-60 kg'!DW10 -> GP | DX10: ='-60 kg'!DX10 -> GP | DY10: ='-60 kg'!DY10 -> Open | DZ10: ='-60 kg'!DZ10 -> Open | EA10: ='-60 kg'!EA10 -> GS | EB10: ='-60 kg'!EB10 -> Open | EC10: ='-60 kg'!EC10 -> GP | ED10: ='-60 kg'!ED10 -> Open | EE10: ='-60 kg'!EE10 -> GS | EF10: ='-60 kg'!EF10 -> Open | EG10: ='-60 kg'!EG10 -> GS | EH10: ='-60 kg'!EH10 -> Open | EI10: ='-60 kg'!EI10 -> GP | EJ10: ='-60 kg'!EJ10 -> Open | EK10: ='-60 kg'!EK10 -> Open | EL10: ='-60 kg'!EL10 -> GS | EM10: ='-60 kg'!EM10 -> Open | EN10: ='-60 kg'!EN10 -> Open | EO10: ='-60 kg'!EO10 -> GP | EP10: ='-60 kg'!EP10 -> GP | EQ10: ='-60 kg'!EQ10 -> Open | ER10: ='-60 kg'!ER10 -> GS | ES10: ='-60 kg'!ES10 -> WCS | ET10: ='-60 kg'!ET10 -> GP | EU10: ='-60 kg'!EU10 -> Open | EV10: ='-60 kg'!EV10 -> WCS | EW10: ='-60 kg'!EW10 -> Open | EX10: ='-60 kg'!EX10 -> Open | EY10: ='-60 kg'!EY10 -> GP | EZ10: ='-60 kg'!EZ10 -> GP | FA10: ='-60 kg'!FA10 -> Open | FB10: ='-60 kg'!FB10 -> Open | FC10: ='-60 kg'!FC10 -> GP | FD10: ='-60 kg'!FD10 -> GP | FE10: ='-60 kg'!FE10 -> GP | FF10: ='-60 kg'!FF10 -> Open | FG10: ='-60 kg'!FG10 -> Open | FH10: ='-60 kg'!FH10 -> GS | FI10: ='-60 kg'!FI10 -> Open | FJ10: ='-60 kg'!FJ10 -> GP | FK10: ='-60 kg'!FK10 -> Open | FL10: ='-60 kg'!FL10 -> GS | FM10: ='-60 kg'!FM10 -> Open | FN10: ='-60 kg'!FN10 -> GS | FO10: ='-60 kg'!FO10 -> Open | FP10: ='-60 kg'!FP10 -> GP | FQ10: ='-60 kg'!FQ10 -> Open | FR10: ='-60 kg'!FR10 -> GS | FS10: ='-60 kg'!FS10 -> Open | FT10: ='-60 kg'!FT10 -> Open | FU10: ='-60 kg'!FU10 -> GP | FV10: ='-60 kg'!FV10 -> Open | FW10: ='-60 kg'!FW10 -> GS | FX10: ='-60 kg'!FX10 -> WCS | FY10: ='-60 kg'!FY10 -> Open | FZ10: ='-60 kg'!FZ10 -> GP | GA10: ='-60 kg'!GA10 -> GP | GB10: ='-60 kg'!GB10 -> Open | GC10: ='-60 kg'!GC10 -> WCS | GD10: ='-60 kg'!GD10 -> Open | GE10: ='-60 kg'!GE10 -> Open | GF10: ='-60 kg'!GF10 -> GP | GG10: ='-60 kg'!GG10 -> GP | GH10: ='-60 kg'!GH10 -> Open | GI10: ='-60 kg'!GI10 -> GS | GJ10: ='-60 kg'!GJ10 -> GP | GK10: ='-60 kg'!GK10 -> GP | GL10: ='-60 kg'!GL10 -> Open | GM10: ='-60 kg'!GM10 -> Open | GN10: ='-60 kg'!GN10 -> Open | GO10: ='-60 kg'!GO10 -> Open | GP10: ='-60 kg'!GP10 -> GS | GQ10: ='-60 kg'!GQ10 -> Open | GR10: ='-60 kg'!GR10 -> GP | GS10: ='-60 kg'!GS10 -> Open | GT10: ='-60 kg'!GT10 -> GS | GU10: ='-60 kg'!GU10 -> Open | GV10: ='-60 kg'!GV10 -> Open | GW10: ='-60 kg'!GW10 -> GS | GX10: ='-60 kg'!GX10 -> GP | GY10: ='-60 kg'!GY10 -> GP | GZ10: ='-60 kg'!GZ10 -> GS | HA10: ='-60 kg'!HA10 -> Open | HB10: ='-60 kg'!HB10 -> Open | HC10: ='-60 kg'!HC10 -> GP | HD10: ='-60 kg'!HD10 -> GP | HE10: ='-60 kg'!HE10 -> Open | HF10: ='-60 kg'!HF10 -> Open | HG10: ='-60 kg'!HG10 -> Olympics | HH10: ='-60 kg'!HH10 -> GS | HI10: ='-60 kg'!HI10 -> Open | HJ10: ='-60 kg'!HJ10 -> GP | HK10: ='-60 kg'!HK10 -> GP | HL10: ='-60 kg'!HL10 -> Open | HM10: ='-60 kg'!HM10 -> GP | HN10: ='-60 kg'!HN10 -> GS | HO10: ='-60 kg'!HO10 -> GP | HP10: ='-60 kg'!HP10 -> GP | HQ10: ='-60 kg'!HQ10 -> Open | HR10: ='-60 kg'!HR10 -> Open | HS10: ='-60 kg'!HS10 -> Open | HT10: ='-60 kg'!HT10 -> Open | HU10: ='-60 kg'!HU10 -> Open | HV10: ='-60 kg'!HV10 -> GP | HW10: ='-60 kg'!HW10 -> Open | HX10: ='-60 kg'!HX10 -> GS | HY10: ='-60 kg'!HY10 -> Open | HZ10: ='-60 kg'!HZ10 -> GP | IA10: ='-60 kg'!IA10 -> Open | IB10: ='-60 kg'!IB10 -> Open
AQ11: ='-60 kg'!AQ11 -> 2022-04-17 | AR11: ='-60 kg'!AR11 -> 2022-01-11 | AS11: ='-60 kg'!AS11 -> 2021-04-26 | AT11: ='-60 kg'!AT11 -> 2021-01-11 | AU11: ='-60 kg'!AU11 -> 2020-04-26 | AV11: ='-60 kg'!AV11 -> 2019-12-12 | AW11: ='-60 kg'!AW11 -> 2019-04-28 | AX11: ='-60 kg'!AX11 -> 2018-12-15 | AY11: ='-60 kg'!AY11 -> 2018-04-29 | AZ11: ='-60 kg'!AZ11 -> 2017-12-17 | BA11: ='-60 kg'!BA11 -> 2017-04-29 | BB11: ='-60 kg'!BB11 -> 2016-05-27 | BC11: ='-60 kg'!BC11 -> 2016-04-30 | BD11: ='-60 kg'!BD11 -> 2015-05-24 | BE11: ='-60 kg'!BE11 -> 2015-04-25 | BF11: ='-60 kg'!BF11 -> 2014-05-24 | BG11: ='-60 kg'!BG11 -> 2014-04-26 | BH11: ='-60 kg'!BH11 -> 2013-05-25 | BI11: ='-60 kg'!BI11 -> 2013-04-27 | BJ11: ='-60 kg'!BJ11 -> 2022-04-01 | BK11: ='-60 kg'!BK11 -> 2022-03-19 | BL11: ='-60 kg'!BL11 -> 2022-03-12 | BM11: ='-60 kg'!BM11 -> 2022-03-05 | BN11: ='-60 kg'!BN11 -> 2022-02-26 | BO11: ='-60 kg'!BO11 -> 2022-02-17 | BP11: ='-60 kg'!BP11 -> 2022-02-12 | BQ11: ='-60 kg'!BQ11 -> 2022-02-05 | BR11: ='-60 kg'!BR11 -> 2022-01-28 | BS11: ='-60 kg'!BS11 -> 2021-11-26 | BT11: ='-60 kg'!BT11 -> 2021-11-13 | BU11: ='-60 kg'!BU11 -> 2021-11-06 | BV11: ='-60 kg'!BV11 -> 2021-11-05 | BW11: ='-60 kg'!BW11 -> 2021-10-23 | BX11: ='-60 kg'!BX11 -> 2021-10-16 | BY11: ='-60 kg'!BY11 -> 2021-10-06 | BZ11: ='-60 kg'!BZ11 -> 2021-09-24 | CA11: ='-60 kg'!CA11 -> 2021-09-18 | CB11: ='-60 kg'!CB11 -> 2021-07-24 | CC11: ='-60 kg'!CC11 -> 2021-06-06 | CD11: ='-60 kg'!CD11 -> 2021-05-22 | CE11: ='-60 kg'!CE11 -> 2021-05-14 | CF11: ='-60 kg'!CF11 -> 2021-05-05 | CG11: ='-60 kg'!CG11 -> 2021-05-01 | CH11: ='-60 kg'!CH11 -> 2021-04-24 | CI11: ='-60 kg'!CI11 -> 2021-04-17 | CJ11: ='-60 kg'!CJ11 -> 2021-04-01 | CK11: ='-60 kg'!CK11 -> 2021-03-26 | CL11: ='-60 kg'!CL11 -> 2021-03-13 | CM11: ='-60 kg'!CM11 -> 2021-03-04 | CN11: ='-60 kg'!CN11 -> 2021-02-27 | CO11: ='-60 kg'!CO11 -> 2021-02-18 | CP11: ='-60 kg'!CP11 -> 2020-12-05 | CQ11: ='-60 kg'!CQ11 -> 2020-11-14 | CR11: ='-60 kg'!CR11 -> 2020-11-07 | CS11: ='-60 kg'!CS11 -> 2020-10-23 | CT11: ='-60 kg'!CT11 -> 2020-03-07 | CU11: ='-60 kg'!CU11 -> 2020-02-29 | CV11: ='-60 kg'!CV11 -> 2020-02-21 | CW11: ='-60 kg'!CW11 -> 2020-02-15 | CX11: ='-60 kg'!CX11 -> 2020-02-08 | CY11: ='-60 kg'!CY11 -> 2020-02-01 | CZ11: ='-60 kg'!CZ11 -> 2020-01-23 | DA11: ='-60 kg'!DA11 -> 2019-11-30 | DB11: ='-60 kg'!DB11 -> 2019-11-22 | DC11: ='-60 kg'!DC11 -> 2019-11-16 | DD11: ='-60 kg'!DD11 -> 2019-11-09 | DE11: ='-60 kg'!DE11 -> 2019-11-03 | DF11: ='-60 kg'!DF11 -> 2019-10-24 | DG11: ='-60 kg'!DG11 -> 2019-10-16 | DH11: ='-60 kg'!DH11 -> 2019-10-12 | DI11: ='-60 kg'!DI11 -> 2019-10-06 | DJ11: ='-60 kg'!DJ11 -> 2019-09-28 | DK11: ='-60 kg'!DK11 -> 2019-09-20 | DL11: ='-60 kg'!DL11 -> 2019-09-07 | DM11: ='-60 kg'!DM11 -> 2019-08-25 | DN11: ='-60 kg'!DN11 -> 2019-08-03 | DO11: ='-60 kg'!DO11 -> 2019-07-26 | DP11: ='-60 kg'!DP11 -> 2019-07-18 | DQ11: ='-60 kg'!DQ11 -> 2019-07-12 | DR11: ='-60 kg'!DR11 -> 2019-07-05 | DS11: ='-60 kg'!DS11 -> 2019-06-15 | DT11: ='-60 kg'!DT11 -> 2019-06-01 | DU11: ='-60 kg'!DU11 -> 2019-05-27 | DV11: ='-60 kg'!DV11 -> 2019-05-10 | DW11: ='-60 kg'!DW11 -> 2019-04-05 | DX11: ='-60 kg'!DX11 -> 2019-03-29 | DY11: ='-60 kg'!DY11 -> 2019-03-23 | DZ11: ='-60 kg'!DZ11 -> 2019-03-16 | EA11: ='-60 kg'!EA11 -> 2019-03-15 | EB11: ='-60 kg'!EB11 -> 2019-03-09 | EC11: ='-60 kg'!EC11 -> 2019-03-08 | ED11: ='-60 kg'!ED11 -> 2019-03-02 | EE11: ='-60 kg'!EE11 -> 2019-02-22 | EF11: ='-60 kg'!EF11 -> 2019-02-16 | EG11: ='-60 kg'!EG11 -> 2019-02-09 | EH11: ='-60 kg'!EH11 -> 2019-02-02 | EI11: ='-60 kg'!EI11 -> 2019-01-24 | EJ11: ='-60 kg'!EJ11 -> 2018-12-01 | EK11: ='-60 kg'!EK11 -> 2018-11-24 | EL11: ='-60 kg'!EL11 -> 2018-11-23 | EM11: ='-60 kg'!EM11 -> 2018-11-17 | EN11: ='-60 kg'!EN11 -> 2018-11-17 | EO11: ='-60 kg'!EO11 -> 2018-11-16 | EP11: ='-60 kg'!EP11 -> 2018-11-09 | EQ11: ='-60 kg'!EQ11 -> 2018-11-03 | ER11: ='-60 kg'!ER11 -> 2018-10-27 | ES11: ='-60 kg'!ES11 -> 2018-10-17 | ET11: ='-60 kg'!ET11 -> 2018-10-10 | EU11: ='-60 kg'!EU11 -> 2018-10-06 | EV11: ='-60 kg'!EV11 -> 2018-09-20 | EW11: ='-60 kg'!EW11 -> 2018-09-01 | EX11: ='-60 kg'!EX11 -> 2018-08-18 | EY11: ='-60 kg'!EY11 -> 2018-08-10 | EZ11: ='-60 kg'!EZ11 -> 2018-07-27 | FA11: ='-60 kg'!FA11 -> 2018-07-07 | FB11: ='-60 kg'!FB11 -> 2018-06-02 | FC11: ='-60 kg'!FC11 -> 2018-05-28 | FD11: ='-60 kg'!FD11 -> 2018-04-06 | FE11: ='-60 kg'!FE11 -> 2018-03-30 | FF11: ='-60 kg'!FF11 -> 2018-03-24 | FG11: ='-60 kg'!FG11 -> 2018-03-17 | FH11: ='-60 kg'!FH11 -> 2018-03-17 | FI11: ='-60 kg'!FI11 -> 2018-03-10 | FJ11: ='-60 kg'!FJ11 -> 2018-03-09 | FK11: ='-60 kg'!FK11 -> 2018-03-03 | FL11: ='-60 kg'!FL11 -> 2018-02-23 | FM11: ='-60 kg'!FM11 -> 2018-02-17 | FN11: ='-60 kg'!FN11 -> 2018-02-10 | FO11: ='-60 kg'!FO11 -> 2018-02-03 | FP11: ='-60 kg'!FP11 -> 2018-01-19 | FQ11: ='-60 kg'!FQ11 -> 2017-12-09 | FR11: ='-60 kg'!FR11 -> 2017-12-02 | FS11: ='-60 kg'!FS11 -> 2017-11-25 | FT11: ='-60 kg'!FT11 -> 2017-11-18 | FU11: ='-60 kg'!FU11 -> 2017-11-17 | FV11: ='-60 kg'!FV11 -> 2017-11-11 | FW11: ='-60 kg'!FW11 -> 2017-10-27 | FX11: ='-60 kg'!FX11 -> 2017-10-18 | FY11: ='-60 kg'!FY11 -> 2017-10-07 | FZ11: ='-60 kg'!FZ11 -> 2017-10-06 | GA11: ='-60 kg'!GA11 -> 2017-09-29 | GB11: ='-60 kg'!GB11 -> 2017-09-23 | GC11: ='-60 kg'!GC11 -> 2017-08-28 | GD11: ='-60 kg'!GD11 -> 2017-07-22 | GE11: ='-60 kg'!GE11 -> 2017-07-08 | GF11: ='-60 kg'!GF11 -> 2017-06-30 | GG11: ='-60 kg'!GG11 -> 2017-06-16 | GH11: ='-60 kg'!GH11 -> 2017-06-03 | GI11: ='-60 kg'!GI11 -> 2017-05-20 | GJ11: ='-60 kg'!GJ11 -> 2017-04-07 | GK11: ='-60 kg'!GK11 -> 2017-03-31 | GL11: ='-60 kg'!GL11 -> 2017-03-25 | GM11: ='-60 kg'!GM11 -> 2017-03-18 | GN11: ='-60 kg'!GN11 -> 2017-03-18 | GO11: ='-60 kg'!GO11 -> 2017-03-11 | GP11: ='-60 kg'!GP11 -> 2017-03-10 | GQ11: ='-60 kg'!GQ11 -> 2017-03-04 | GR11: ='-60 kg'!GR11 -> 2017-02-25 | GS11: ='-60 kg'!GS11 -> 2017-02-18 | GT11: ='-60 kg'!GT11 -> 2017-02-11 | GU11: ='-60 kg'!GU11 -> 2017-02-04 | GV11: ='-60 kg'!GV11 -> 2017-01-14 | GW11: ='-60 kg'!GW11 -> 2016-12-02 | GX11: ='-60 kg'!GX11 -> 2016-11-24 | GY11: ='-60 kg'!GY11 -> 2016-11-18 | GZ11: ='-60 kg'!GZ11 -> 2016-10-28 | HA11: ='-60 kg'!HA11 -> 2016-10-15 | HB11: ='-60 kg'!HB11 -> 2016-10-15 | HC11: ='-60 kg'!HC11 -> 2016-10-06 | HD11: ='-60 kg'!HD11 -> 2016-09-25 | HE11: ='-60 kg'!HE11 -> 2016-09-10 | HF11: ='-60 kg'!HF11 -> 2016-09-03 | HG11: ='-60 kg'!HG11 -> 2016-08-06 | HH11: ='-60 kg'!HH11 -> 2016-07-16 | HI11: ='-60 kg'!HI11 -> 2016-07-02 | HJ11: ='-60 kg'!HJ11 -> 2016-07-01 | HK11: ='-60 kg'!HK11 -> 2016-06-25 | HL11: ='-60 kg'!HL11 -> 2016-06-04 | HM11: ='-60 kg'!HM11 -> 2016-05-13 | HN11: ='-60 kg'!HN11 -> 2016-05-06 | HO11: ='-60 kg'!HO11 -> 2016-04-01 | HP11: ='-60 kg'!HP11 -> 2016-03-25 | HQ11: ='-60 kg'!HQ11 -> 2016-03-19 | HR11: ='-60 kg'!HR11 -> 2016-03-12 | HS11: ='-60 kg'!HS11 -> 2016-03-12 | HT11: ='-60 kg'!HT11 -> 2016-03-05 | HU11: ='-60 kg'!HU11 -> 2016-02-27 | HV11: ='-60 kg'!HV11 -> 2016-02-19 | HW11: ='-60 kg'!HW11 -> 2016-02-13 | HX11: ='-60 kg'!HX11 -> 2016-02-06 | HY11: ='-60 kg'!HY11 -> 2016-01-30 | HZ11: ='-60 kg'!HZ11 -> 2016-01-22 | IA11: ='-60 kg'!IA11 -> 2016-01-16 | IB11: ='-60 kg'!IB11 -> 2013-02-02
J12: ='-60 kg'!J12 -> 1 | K12: ='-60 kg'!K12 -> 1 | L12: ='-60 kg'!L12 -> 1 | M12: ='-60 kg'!M12 -> 1 | N12: ='-60 kg'!N12 -> 1 | O12: ='-60 kg'!O12 -> 1 | P12: ='-60 kg'!P12 -> 0.5 | Q12: ='-60 kg'!Q12 -> 0.5 | R12: ='-60 kg'!R12 -> 0.5 | S12: ='-60 kg'!S12 -> 0.5 | T12: ='-60 kg'!T12 -> 0.5 | U12: ='-60 kg'!U12 -> 0.5 | V12: 0 | AK12: ='-60 kg'!AK12 -> 1 | AL12: ='-60 kg'!AL12 -> 1 | AM12: ='-60 kg'!AM12 -> 1 | AN12: ='-60 kg'!AN12 -> 0.5 | AO12: ='-60 kg'!AO12 -> 0.5 | AP12: ='-60 kg'!AP12 -> 0.5 | AQ12: ='-60 kg'!AQ12 -> 1 | AR12: ='-60 kg'!AR12 -> 1 | AS12: ='-60 kg'!AS12 -> 0.5 | AT12: ='-60 kg'!AT12 -> 0.5 | AU12: ='-60 kg'!AU12 -> 0.5 | AV12: ='-60 kg'!AV12 -> 0 | AW12: ='-60 kg'!AW12 -> 0 | AX12: ='-60 kg'!AX12 -> 0 | AY12: ='-60 kg'!AY12 -> 0 | AZ12: ='-60 kg'!AZ12 -> 0 | BA12: ='-60 kg'!BA12 -> 0 | BB12: ='-60 kg'!BB12 -> 0 | BC12: ='-60 kg'!BC12 -> 0 | BD12: ='-60 kg'!BD12 -> 0 | BE12: ='-60 kg'!BE12 -> 0 | BF12: ='-60 kg'!BF12 -> 0 | BG12: ='-60 kg'!BG12 -> 0 | BH12: ='-60 kg'!BH12 -> 0 | BI12: ='-60 kg'!BI12 -> 0 | BJ12: ='-60 kg'!BJ12 -> 1 | BK12: ='-60 kg'!BK12 -> 1 | BL12: ='-60 kg'!BL12 -> 1 | BM12: ='-60 kg'!BM12 -> 1 | BN12: ='-60 kg'!BN12 -> 1 | BO12: ='-60 kg'!BO12 -> 1 | BP12: ='-60 kg'!BP12 -> 1 | BQ12: ='-60 kg'!BQ12 -> 1 | BR12: ='-60 kg'!BR12 -> 1 | BS12: ='-60 kg'!BS12 -> 1 | BT12: ='-60 kg'!BT12 -> 1 | BU12: ='-60 kg'!BU12 -> 1 | BV12: ='-60 kg'!BV12 -> 1 | BW12: ='-60 kg'!BW12 -> 1 | BX12: ='-60 kg'!BX12 -> 1 | BY12: ='-60 kg'!BY12 -> 1 | BZ12: ='-60 kg'!BZ12 -> 1 | CA12: ='-60 kg'!CA12 -> 1 | CB12: ='-60 kg'!CB12 -> 1 | CC12: ='-60 kg'!CC12 -> 1 | CD12: ='-60 kg'!CD12 -> 1 | CE12: ='-60 kg'!CE12 -> 1 | CF12: ='-60 kg'!CF12 -> 1 | CG12: ='-60 kg'!CG12 -> 0.5 | CH12: ='-60 kg'!CH12 -> 0.5 | CI12: ='-60 kg'!CI12 -> 0.5 | CJ12: ='-60 kg'!CJ12 -> 0.5 | CK12: ='-60 kg'!CK12 -> 0.5 | CL12: ='-60 kg'!CL12 -> 0.5 | CM12: ='-60 kg'!CM12 -> 0.5 | CN12: ='-60 kg'!CN12 -> 0.5 | CO12: ='-60 kg'!CO12 -> 0.5 | CP12: ='-60 kg'!CP12 -> 0.5 | CQ12: ='-60 kg'!CQ12 -> 0.5 | CR12: ='-60 kg'!CR12 -> 0.5 | CS12: ='-60 kg'!CS12 -> 0.5 | CT12: ='-60 kg'!CT12 -> 0 | CU12: ='-60 kg'!CU12 -> 0 | CV12: ='-60 kg'!CV12 -> 0 | CW12: ='-60 kg'!CW12 -> 0 | CX12: ='-60 kg'!CX12 -> 0 | CY12: ='-60 kg'!CY12 -> 0 | CZ12: ='-60 kg'!CZ12 -> 0 | DA12: ='-60 kg'!DA12 -> 0 | DB12: ='-60 kg'!DB12 -> 0 | DC12: ='-60 kg'!DC12 -> 0 | DD12: ='-60 kg'!DD12 -> 0 | DE12: ='-60 kg'!DE12 -> 0 | DF12: ='-60 kg'!DF12 -> 0 | DG12: ='-60 kg'!DG12 -> 0 | DH12: ='-60 kg'!DH12 -> 0 | DI12: ='-60 kg'!DI12 -> 0 | DJ12: ='-60 kg'!DJ12 -> 0 | DK12: ='-60 kg'!DK12 -> 0 | DL12: ='-60 kg'!DL12 -> 0 | DM12: ='-60 kg'!DM12 -> 0 | DN12: ='-60 kg'!DN12 -> 0 | DO12: ='-60 kg'!DO12 -> 0 | DP12: ='-60 kg'!DP12 -> 0 | DQ12: ='-60 kg'!DQ12 -> 0 | DR12: ='-60 kg'!DR12 -> 0 | DS12: ='-60 kg'!DS12 -> 0 | DT12: ='-60 kg'!DT12 -> 0 | DU12: ='-60 kg'!DU12 -> 0 | DV12: ='-60 kg'!DV12 -> 0 | DW12: ='-60 kg'!DW12 -> 0 | DX12: ='-60 kg'!DX12 -> 0 | DY12: ='-60 kg'!DY12 -> 0 | DZ12: ='-60 kg'!DZ12 -> 0 | EA12: ='-60 kg'!EA12 -> 0 | EB12: ='-60 kg'!EB12 -> 0 | EC12: ='-60 kg'!EC12 -> 0 | ED12: ='-60 kg'!ED12 -> 0 | EE12: ='-60 kg'!EE12 -> 0 | EF12: ='-60 kg'!EF12 -> 0 | EG12: ='-60 kg'!EG12 -> 0 | EH12: ='-60 kg'!EH12 -> 0 | EI12: ='-60 kg'!EI12 -> 0 | EJ12: ='-60 kg'!EJ12 -> 0 | EK12: ='-60 kg'!EK12 -> 0 | EL12: ='-60 kg'!EL12 -> 0 | EM12: ='-60 kg'!EM12 -> 0 | EN12: ='-60 kg'!EN12 -> 0 | EO12: ='-60 kg'!EO12 -> 0 | EP12: ='-60 kg'!EP12 -> 0 | EQ12: ='-60 kg'!EQ12 -> 0 | ER12: ='-60 kg'!ER12 -> 0 | ES12: ='-60 kg'!ES12 -> 0 | ET12: ='-60 kg'!ET12 -> 0 | EU12: ='-60 kg'!EU12 -> 0 | EV12: ='-60 kg'!EV12 -> 0 | EW12: ='-60 kg'!EW12 -> 0 | EX12: ='-60 kg'!EX12 -> 0 | EY12: ='-60 kg'!EY12 -> 0 | EZ12: ='-60 kg'!EZ12 -> 0 | FA12: ='-60 kg'!FA12 -> 0 | FB12: ='-60 kg'!FB12 -> 0 | FC12: ='-60 kg'!FC12 -> 0 | FD12: ='-60 kg'!FD12 -> 0 | FE12: ='-60 kg'!FE12 -> 0 | FF12: ='-60 kg'!FF12 -> 0 | FG12: ='-60 kg'!FG12 -> 0 | FH12: ='-60 kg'!FH12 -> 0 | FI12: ='-60 kg'!FI12 -> 0 | FJ12: ='-60 kg'!FJ12 -> 0 | FK12: ='-60 kg'!FK12 -> 0 | FL12: ='-60 kg'!FL12 -> 0 | FM12: ='-60 kg'!FM12 -> 0 | FN12: ='-60 kg'!FN12 -> 0 | FO12: ='-60 kg'!FO12 -> 0 | FP12: ='-60 kg'!FP12 -> 0 | FQ12: ='-60 kg'!FQ12 -> 0 | FR12: ='-60 kg'!FR12 -> 0 | FS12: ='-60 kg'!FS12 -> 0 | FT12: ='-60 kg'!FT12 -> 0 | FU12: ='-60 kg'!FU12 -> 0 | FV12: ='-60 kg'!FV12 -> 0 | FW12: ='-60 kg'!FW12 -> 0 | FX12: ='-60 kg'!FX12 -> 0 | FY12: ='-60 kg'!FY12 -> 0 | FZ12: ='-60 kg'!FZ12 -> 0 | GA12: ='-60 kg'!GA12 -> 0 | GB12: ='-60 kg'!GB12 -> 0 | GC12: ='-60 kg'!GC12 -> 0 | GD12: ='-60 kg'!GD12 -> 0 | GE12: ='-60 kg'!GE12 -> 0 | GF12: ='-60 kg'!GF12 -> 0 | GG12: ='-60 kg'!GG12 -> 0 | GH12: ='-60 kg'!GH12 -> 0 | GI12: ='-60 kg'!GI12 -> 0 | GJ12: ='-60 kg'!GJ12 -> 0 | GK12: ='-60 kg'!GK12 -> 0 | GL12: ='-60 kg'!GL12 -> 0 | GM12: ='-60 kg'!GM12 -> 0 | GN12: ='-60 kg'!GN12 -> 0 | GO12: ='-60 kg'!GO12 -> 0 | GP12: ='-60 kg'!GP12 -> 0 | GQ12: ='-60 kg'!GQ12 -> 0 | GR12: ='-60 kg'!GR12 -> 0 | GS12: ='-60 kg'!GS12 -> 0 | GT12: ='-60 kg'!GT12 -> 0 | GU12: ='-60 kg'!GU12 -> 0 | GV12: ='-60 kg'!GV12 -> 0 | GW12: ='-60 kg'!GW12 -> 0 | GX12: ='-60 kg'!GX12 -> 0 | GY12: ='-60 kg'!GY12 -> 0 | GZ12: ='-60 kg'!GZ12 -> 0 | HA12: ='-60 kg'!HA12 -> 0 | HB12: ='-60 kg'!HB12 -> 0 | HC12: ='-60 kg'!HC12 -> 0 | HD12: ='-60 kg'!HD12 -> 0 | HE12: ='-60 kg'!HE12 -> 0 | HF12: ='-60 kg'!HF12 -> 0 | HG12: ='-60 kg'!HG12 -> 0 | HH12: ='-60 kg'!HH12 -> 0 | HI12: ='-60 kg'!HI12 -> 0 | HJ12: ='-60 kg'!HJ12 -> 0 | HK12: ='-60 kg'!HK12 -> 0 | HL12: ='-60 kg'!HL12 -> 0 | HM12: ='-60 kg'!HM12 -> 0 | HN12: ='-60 kg'!HN12 -> 0 | HO12: ='-60 kg'!HO12 -> 0 | HP12: ='-60 kg'!HP12 -> 0 | HQ12: ='-60 kg'!HQ12 -> 0 | HR12: ='-60 kg'!HR12 -> 0 | HS12: ='-60 kg'!HS12 -> 0 | HT12: ='-60 kg'!HT12 -> 0 | HU12: ='-60 kg'!HU12 -> 0 | HV12: ='-60 kg'!HV12 -> 0 | HW12: ='-60 kg'!HW12 -> 0 | HX12: ='-60 kg'!HX12 -> 0 | HY12: ='-60 kg'!HY12 -> 0 | HZ12: ='-60 kg'!HZ12 -> 0 | IA12: ='-60 kg'!IA12 -> 0 | IB12: ='-60 kg'!IB12 -> 0
B14: =IF(G14="","",IF(ROW()=FirstEntryLine,1,IF(AND(I14=OFFSET(I14,-1,0),V14=OFFSET(V14,-1,0),W14=OFFSET(W14,-1,0),X14=OFFSET(X14,-1,0),Y14=OFFSET(Y14,-1,0),Z14=OFFSET(Z14,-1,0),AA14=OFFSET(AA14,-1,0),AB14=OFFSET(AB14,-1,0),AC14=OFFSET(AC14,-1,0),AD14=OFFSET(AD14,-1,0),AE14=OFFSET(AE14,-1,0),AF14=OFFSET(AF14,-1,0),AG14=OFFSET(AG14,-1,0),AH14=OFFSET(AH14,-1,0),AI14=OFFSET(AI14,-1,0)),OFFSET(B14,-1,0),ROW()-FirstEntryLine+1))) -> 1 | C14: MDA | D14: =IF(C14="", "", VLOOKUP(C14, ContinentShorts, 2, FALSE)) -> EJU | E14: 3341619a | G14: VIERU | H14: Denis | I14: =SUM(J14:U14) -> 5214 | J14: =IF(ISNUMBER(LARGE((OFFSET($A$1,ROW()-1,FirstExtraEventColumn-2*(NbExtraEvents+1),1,NbExtraEvents-1+COVID_patch),OFFSET($A$1,ROW()-1,FirstEventColumn+IndexEventsRate1-2,1,NbEventsRate1)),Rank1)), IF(LARGE((OFFSET($A$1,ROW()-1,FirstExtraEventColumn-2*(NbExtraEvents+1),1,NbExtraEvents-1+COVID_patch),OFFSET($A$1,ROW()-1,FirstEventColumn+IndexEventsRate1-2,1,NbEventsRate1)),Rank1)>0, J$12*LARGE((OFFSET($A$1,ROW()-1,FirstExtraEventColumn-2*(NbExtraEvents+1),1,NbExtraEvents-1+COVID_patch),OFFSET($A$1,ROW()-1,FirstEventColumn+IndexEventsRate1-2,1,NbEventsRate1)),Rank1),""), "") -> 1000 | K14: =IF(ISNUMBER(LARGE((OFFSET($A$1,ROW()-1,FirstExtraEventColumn-2*(NbExtraEvents+1),1,NbExtraEvents-1+COVID_patch),OFFSET($A$1,ROW()-1,FirstEventColumn+IndexEventsRate1-2,1,NbEventsRate1)),Rank2)), IF(LARGE((OFFSET($A$1,ROW()-1,FirstExtraEventColumn-2*(NbExtraEvents+1),1,NbExtraEvents-1+COVID_patch),OFFSET($A$1,ROW()-1,FirstEventColumn+IndexEventsRate1-2,1,NbEventsRate1)),Rank2)>0, K$12*LARGE((OFFSET($A$1,ROW()-1,FirstExtraEventColumn-2*(NbExtraEvents+1),1,NbExtraEvents-1+COVID_patch),OFFSET($A$1,ROW()-1,FirstEventColumn+IndexEventsRate1-2,1,NbEventsRate1)),Rank2),""), "") -> 1000 | L14: =IF(ISNUMBER(LARGE((OFFSET($A$1,ROW()-1,FirstExtraEventColumn-2*(NbExtraEvents+1),1,NbExtraEvents-1+COVID_patch),OFFSET($A$1,ROW()-1,FirstEventColumn+IndexEventsRate1-2,1,NbEventsRate1)),Rank3)), IF(LARGE((OFFSET($A$1,ROW()-1,FirstExtraEventColumn-2*(NbExtraEvents+1),1,NbExtraEvents-1+COVID_patch),OFFSET($A$1,ROW()-1,FirstEventColumn+IndexEventsRate1-2,1,NbEventsRate1)),Rank3)>0, L$12*LARGE((OFFSET($A$1,ROW()-1,FirstExtraEventColumn-2*(NbExtraEvents+1),1,NbExtraEvents-1+COVID_patch),OFFSET($A$1,ROW()-1,FirstEventColumn+IndexEventsRate1-2,1,NbEventsRate1)),Rank3),""), "") -> 700 | M14: =IF(ISNUMBER(LARGE((OFFSET($A$1,ROW()-1,FirstExtraEventColumn-2*(NbExtraEvents+1),1,NbExtraEvents-1+COVID_patch),OFFSET($A$1,ROW()-1,FirstEventColumn+IndexEventsRate1-2,1,NbEventsRate1)),Rank4)), IF(LARGE((OFFSET($A$1,ROW()-1,FirstExtraEventColumn-2*(NbExtraEvents+1),1,NbExtraEvents-1+COVID_patch),OFFSET($A$1,ROW()-1,FirstEventColumn+IndexEventsRate1-2,1,NbEventsRate1)),Rank4)>0, M$12*LARGE((OFFSET($A$1,ROW()-1,FirstExtraEventColumn-2*(NbExtraEvents+1),1,NbExtraEvents-1+COVID_patch),OFFSET($A$1,ROW()-1,FirstEventColumn+IndexEventsRate1-2,1,NbEventsRate1)),Rank4),""), "") -> 700 | N14: =IF(ISNUMBER(LARGE((OFFSET($A$1,ROW()-1,FirstExtraEventColumn-2*(NbExtraEvents+1),1,NbExtraEvents-1+COVID_patch),OFFSET($A$1,ROW()-1,FirstEventColumn+IndexEventsRate1-2,1,NbEventsRate1)),Rank5)), IF(LARGE((OFFSET($A$1,ROW()-1,FirstExtraEventColumn-2*(NbExtraEvents+1),1,NbExtraEvents-1+COVID_patch),OFFSET($A$1,ROW()-1,FirstEventColumn+IndexEventsRate1-2,1,NbEventsRate1)),Rank5)>0, N$12*LARGE((OFFSET($A$1,ROW()-1,FirstExtraEventColumn-2*(NbExtraEvents+1),1,NbExtraEvents-1+COVID_patch),OFFSET($A$1,ROW()-1,FirstEventColumn+IndexEventsRate1-2,1,NbEventsRate1)),Rank5),""), "") -> 700 | O14: =IF($AK14<>0,$AK$12*$AK14,"") -> 350 | P14: =IF(ISNUMBER(LARGE((OFFSET($A$1,ROW()-1,FirstExtraEventColumn-(NbExtraEvents+1),1,NbExtraEvents-1),OFFSET($A$1,ROW()-1,FirstEventColumn+IndexEventsRate2-2,1,NbEventsRate2)),Rank1)), IF(LARGE((OFFSET($A$1,ROW()-1,FirstExtraEventColumn-(NbExtraEvents+1),1,NbExtraEvents-1),OFFSET($A$1,ROW()-1,FirstEventColumn+IndexEventsRate2-2,1,NbEventsRate2)),Rank1)>0, P$12*LARGE((OFFSET($A$1,ROW()-1,FirstExtraEventColumn-(NbExtraEvents+1),1,NbExtraEvents-1),OFFSET($A$1,ROW()-1,FirstEventColumn+IndexEventsRate2-2,1,NbEventsRate2)),Rank1),""), "") -> 180 | Q14: =IF(ISNUMBER(LARGE((OFFSET($A$1,ROW()-1,FirstExtraEventColumn-(NbExtraEvents+1),1,NbExtraEvents-1),OFFSET($A$1,ROW()-1,FirstEventColumn+IndexEventsRate2-2,1,NbEventsRate2)),Rank2)), IF(LARGE((OFFSET($A$1,ROW()-1,FirstExtraEventColumn-(NbExtraEvents+1),1,NbExtraEvents-1),OFFSET($A$1,ROW()-1,FirstEventColumn+IndexEventsRate2-2,1,NbEventsRate2)),Rank2)>0, Q$12*LARGE((OFFSET($A$1,ROW()-1,FirstExtraEventColumn-(NbExtraEvents+1),1,NbExtraEvents-1),OFFSET($A$1,ROW()-1,FirstEventColumn+IndexEventsRate2-2,1,NbEventsRate2)),Rank2),""), "") -> 175 | R14: =IF(ISNUMBER(LARGE((OFFSET($A$1,ROW()-1,FirstExtraEventColumn-(NbExtraEvents+1),1,NbExtraEvents-1),OFFSET($A$1,ROW()-1,FirstEventColumn+IndexEventsRate2-2,1,NbEventsRate2)),Rank3)), IF(LARGE((OFFSET($A$1,ROW()-1,FirstExtraEventColumn-(NbExtraEvents+1),1,NbExtraEvents-1),OFFSET($A$1,ROW()-1,FirstEventColumn+IndexEventsRate2-2,1,NbEventsRate2)),Rank3)>0, R$12*LARGE((OFFSET($A$1,ROW()-1,FirstExtraEventColumn-(NbExtraEvents+1),1,NbExtraEvents-1),OFFSET($A$1,ROW()-1,FirstEventColumn+IndexEventsRate2-2,1,NbEventsRate2)),Rank3),""), "") -> 80 | S14: =IF(ISNUMBER(LARGE((OFFSET($A$1,ROW()-1,FirstExtraEventColumn-(NbExtraEvents+1),1,NbExtraEvents-1),OFFSET($A$1,ROW()-1,FirstEventColumn+IndexEventsRate2-2,1,NbEventsRate2)),Rank4)), IF(LARGE((OFFSET($A$1,ROW()-1,FirstExtraEventColumn-(NbExtraEvents+1),1,NbExtraEvents-1),OFFSET($A$1,ROW()-1,FirstEventColumn+IndexEventsRate2-2,1,NbEventsRate2)),Rank4)>0, S$12*LARGE((OFFSET($A$1,ROW()-1,FirstExtraEventColumn-(NbExtraEvents+1),1,NbExtraEvents-1),OFFSET($A$1,ROW()-1,FirstEventColumn+IndexEventsRate2-2,1,NbEventsRate2)),Rank4),""), "") -> 5 | T14: =IF(ISNUMBER(LARGE((OFFSET($A$1,ROW()-1,FirstExtraEventColumn-(NbExtraEvents+1),1,NbExtraEvents-1),OFFSET($A$1,ROW()-1,FirstEventColumn+IndexEventsRate2-2,1,NbEventsRate2)),Rank5)), IF(LARGE((OFFSET($A$1,ROW()-1,FirstExtraEventColumn-(NbExtraEvents+1),1,NbExtraEvents-1),OFFSET($A$1,ROW()-1,FirstEventColumn+IndexEventsRate2-2,1,NbEventsRate2)),Rank5)>0, T$12*LARGE((OFFSET($A$1,ROW()-1,FirstExtraEventColumn-(NbExtraEvents+1),1,NbExtraEvents-1),OFFSET($A$1,ROW()-1,FirstEventColumn+IndexEventsRate2-2,1,NbEventsRate2)),Rank5),""), "") ->  | U14: =IF($AN14<>0,$AN$12*$AN14,"") -> 324 | V14: =RateYear1*SUMIFS(OFFSET($A$1,ROW()-1,FirstExtraEventColumn-1,1,IndexExtraEventEnd+IndexEventEnd-2),OFFSET($A$1,RateLine-1,FirstExtraEventColumn-1,1,IndexExtraEventEnd+IndexEventEnd-2),RateYear1,OFFSET($A$1,RateLine-3,FirstExtraEventColumn-1,1,IndexExtraEventEnd+IndexEventEnd-2),"WCS") +RateYear2*SUMIFS(OFFSET($A$1,ROW()-1,FirstExtraEventColumn-1,1,IndexExtraEventEnd+IndexEventEnd-2),OFFSET($A$1,RateLine-1,FirstExtraEventColumn-1,1,IndexExtraEventEnd+IndexEventEnd-2),RateYear2,OFFSET($A$1,RateLine-3,FirstExtraEventColumn-1,1,IndexExtraEventEnd+IndexEventEnd-2),"WCS") -> 0 | W14: =RateYear1* (SUMIFS(OFFSET($A$1,ROW()-1,FirstExtraEventColumn-1,1,IndexExtraEventEnd+IndexEventEnd-2),OFFSET($A$1,RateLine-1,FirstExtraEventColumn-1,1,IndexExtraEventEnd+IndexEventEnd-2),RateYear1,OFFSET($A$1,RateLine-3,FirstExtraEventColumn-1,1,IndexExtraEventEnd+IndexEventEnd-2),"GP") +SUMIFS(OFFSET($A$1,ROW()-1,FirstExtraEventColumn-1,1,IndexExtraEventEnd+IndexEventEnd-2),OFFSET($A$1,RateLine-1,FirstExtraEventColumn-1,1,IndexExtraEventEnd+IndexEventEnd-2),RateYear1,OFFSET($A$1,RateLine-3,FirstExtraEventColumn-1,1,IndexExtraEventEnd+IndexEventEnd-2),"GS") +SUMIFS(OFFSET($A$1,ROW()-1,FirstExtraEventColumn-1,1,IndexExtraEventEnd+IndexEventEnd-2),OFFSET($A$1,RateLine-1,FirstExtraEventColumn-1,1,IndexExtraEventEnd+IndexEventEnd-2),RateYear1,OFFSET($A$1,RateLine-3,FirstExtraEventColumn-1,1,IndexExtraEventEnd+IndexEventEnd-2),"Masters")) +RateYear2* (SUMIFS(OFFSET($A$1,ROW()-1,FirstExtraEventColumn-1,1,IndexExtraEventEnd+IndexEventEnd-2),OFFSET($A$1,RateLine-1,FirstExtraEventColumn-1,1,IndexExtraEventEnd+IndexEventEnd-2),RateYear2,OFFSET($A$1,RateLine-3,FirstExtraEventColumn-1,1,IndexExtraEventEnd+IndexEventEnd-2),"GP") +SUMIFS(OFFSET($A$1,ROW()-1,FirstExtraEventColumn-1,1,IndexExtraEventEnd+IndexEventEnd-2),OFFSET($A$1,RateLine-1,FirstExtraEventColumn-1,1,IndexExtraEventEnd+IndexEventEnd-2),RateYear2,OFFSET($A$1,RateLine-3,FirstExtraEventColumn-1,1,IndexExtraEventEnd+IndexEventEnd-2),"GS") +SUMIFS(OFFSET($A$1,ROW()-1,FirstExtraEventColumn-1,1,IndexExtraEventEnd+IndexEventEnd-2),OFFSET($A$1,RateLine-1,FirstExtraEventColumn-1,1,IndexExtraEventEnd+IndexEventEnd-2),RateYear2,OFFSET($A$1,RateLine-3,FirstExtraEventColumn-1,1,IndexExtraEventEnd+IndexEventEnd-2),"Masters")) -> 5059 | X14: =IF(ISNUMBER(LARGE($J14:$U14,Rank1)),LARGE($J14:$U14,Rank1),"") -> 1000 | Y14: =IF(ISNUMBER(LARGE($J14:$U14,Rank2)),LARGE($J14:$U14,Rank2),"") -> 1000 | Z14: =IF(ISNUMBER(LARGE($J14:$U14,Rank3)),LARGE($J14:$U14,Rank3),"") -> 700 | AA14: =IF(ISNUMBER(LARGE($J14:$U14,Rank4)),LARGE($J14:$U14,Rank4),"") -> 700 | AB14: =IF(ISNUMBER(LARGE($J14:$U14,Rank5)),LARGE($J14:$U14,Rank5),"") -> 700 | AC14: =IF(ISNUMBER(LARGE($J14:$U14,Rank6)),LARGE($J14:$U14,Rank6),"") -> 350 | AD14: =IF(ISNUMBER(LARGE($J14:$U14,Rank7)),LARGE($J14:$U14,Rank7),"") -> 324 | AE14: =IF(ISNUMBER(LARGE($J14:$U14,Rank8)),LARGE($J14:$U14,Rank8),"") -> 180 | AF14: =IF(ISNUMBER(LARGE($J14:$U14,Rank9)),LARGE($J14:$U14,Rank9),"") -> 175 | AG14: =IF(ISNUMBER(LARGE($J14:$U14,Rank10)),LARGE($J14:$U14,Rank10),"") -> 80 | AH14: =IF(ISNUMBER(LARGE($J14:$U14,Rank11)),LARGE($J14:$U14,Rank11),"") -> 5 | AI14: =IF(ISNUMBER(LARGE($J14:$U14,Rank12)),LARGE($J14:$U14,Rank12),"") ->  | AJ14: =RateYear1*SUM(AK14:AM14)+RateYear2*SUM(AN14:AP14)+ IF(NbEventsRate1<>0,RateYear1*SUM(OFFSET($A$1,ROW()-1,FirstEventColumn+IndexEventsRate1-2,1,NbEventsRate1)),0)+ IF(NbEventsRate2<>0,RateYear2*SUM(OFFSET($A$1,ROW()-1,FirstEventColumn+IndexEventsRate2-2,1,NbEventsRate2)),0) -> 5936 | AK14: =IF(ISNUMBER(LARGE(IF(OFFSET($A$1,FirstEntryLine-3,FirstExtraEventColumn-1,1,FirstEventColumn-FirstExtraEventColumn)=AK$12,OFFSET($A$1,ROW()-1,FirstExtraEventColumn-1,1,FirstEventColumn-FirstExtraEventColumn)),Rank1)), LARGE(IF(OFFSET($A$1,FirstEntryLine-3,FirstExtraEventColumn-1,1,FirstEventColumn-FirstExtraEventColumn)=AK$12,OFFSET($A$1,ROW()-1,FirstExtraEventColumn-1,1,FirstEventColumn-FirstExtraEventColumn)),Rank1), "") -> 350 | AL14: =IF(ISNUMBER(LARGE(IF(OFFSET($A$1,FirstEntryLine-3,FirstExtraEventColumn-1,1,FirstEventColumn-FirstExtraEventColumn)=AL$12,OFFSET($A$1,ROW()-1,FirstExtraEventColumn-1,1,FirstEventColumn-FirstExtraEventColumn)),Rank2)), LARGE(IF(OFFSET($A$1,FirstEntryLine-3,FirstExtraEventColumn-1,1,FirstEventColumn-FirstExtraEventColumn)=AL$12,OFFSET($A$1,ROW()-1,FirstExtraEventColumn-1,1,FirstEventColumn-FirstExtraEventColumn)),Rank2), "") -> 0 | AN14: =IF(AT14>MAX(AS14,AU14),AT14,MAX(AS14,AU14)) -> 648 | AO14: =IF(AT14>MAX(AS14,AU14),MAX(AS14,AU14),AT14) -> 350 | AQ14: 350 | AT14: 648 | AU14: 350 | AV14: 0 | AW14: 252 | AX14: 200 | AY14: 6 | AZ14: 468 | BA14: 6 | BC14: 2 | BJ14: 1000 | BR14: 700 | BS14: 1000 | BV14: 700 | BX14: 360 | BZ14: 700 | CB14: 352 | CF14: 10 | CK14: 360 | CO14: 160 | CS14: 10 | CV14: 10 | CX14: 160 | DM14: 0 | DO14: 0 | DV14: 1000 | DW14: 700 | EE14: 360 | EG14: 1000 | EO14: 252 | ER14: 160 | EV14: 320 | EX14: 0 | EY14: 350 | EZ14: 182 | FD14: 490 | FR14: 10 | FW14: 160 | GA14: 6 | GC14: 200 | GD14: 26 | GJ14: 182 | GP14: 360 | GR14: 182 | GZ14: 80 | HD14: 60 | HK14: 36 | HN14: 60 | HW14: 0
B15: =IF(G15="","",IF(ROW()=FirstEntryLine,1,IF(AND(I15=OFFSET(I15,-1,0),V15=OFFSET(V15,-1,0),W15=OFFSET(W15,-1,0),X15=OFFSET(X15,-1,0),Y15=OFFSET(Y15,-1,0),Z15=OFFSET(Z15,-1,0),AA15=OFFSET(AA15,-1,0),AB15=OFFSET(AB15,-1,0),AC15=OFFSET(AC15,-1,0),AD15=OFFSET(AD15,-1,0),AE15=OFFSET(AE15,-1,0),AF15=OFFSET(AF15,-1,0),AG15=OFFSET(AG15,-1,0),AH15=OFFSET(AH15,-1,0),AI15=OFFSET(AI15,-1,0)),OFFSET(B15,-1,0),ROW()-FirstEntryLine+1))) -> 2 | C15: MGL | D15: =IF(C15="", "", VLOOKUP(C15, ContinentShorts, 2, FALSE)) -> JUA | E15: 8679711a | G15: YONDONPERENLEI | H15: Baskhuu | I15: =SUM(J15:U15) -> 4016 | J15: =IF(ISNUMBER(LARGE((OFFSET($A$1,ROW()-1,FirstExtraEventColumn-2*(NbExtraEvents+1),1,NbExtraEvents-1+COVID_patch),OFFSET($A$1,ROW()-1,FirstEventColumn+IndexEventsRate1-2,1,NbEventsRate1)),Rank1)), IF(LARGE((OFFSET($A$1,ROW()-1,FirstExtraEventColumn-2*(NbExtraEvents+1),1,NbExtraEvents-1+COVID_patch),OFFSET($A$1,ROW()-1,FirstEventColumn+IndexEventsRate1-2,1,NbEventsRate1)),Rank1)>0, J$12*LARGE((OFFSET($A$1,ROW()-1,FirstExtraEventColumn-2*(NbExtraEvents+1),1,NbExtraEvents-1+COVID_patch),OFFSET($A$1,ROW()-1,FirstEventColumn+IndexEventsRate1-2,1,NbEventsRate1)),Rank1),""), "") -> 1000 | K15: =IF(ISNUMBER(LARGE((OFFSET($A$1,ROW()-1,FirstExtraEventColumn-2*(NbExtraEvents+1),1,NbExtraEvents-1+COVID_patch),OFFSET($A$1,ROW()-1,FirstEventColumn+IndexEventsRate1-2,1,NbEventsRate1)),Rank2)), IF(LARGE((OFFSET($A$1,ROW()-1,FirstExtraEventColumn-2*(NbExtraEvents+1),1,NbExtraEvents-1+COVID_patch),OFFSET($A$1,ROW()-1,FirstEventColumn+IndexEventsRate1-2,1,NbEventsRate1)),Rank2)>0, K$12*LARGE((OFFSET($A$1,ROW()-1,FirstExtraEventColumn-2*(NbExtraEvents+1),1,NbExtraEvents-1+COVID_patch),OFFSET($A$1,ROW()-1,FirstEventColumn+IndexEventsRate1-2,1,NbEventsRate1)),Rank2),""), "") -> 1000 | L15: =IF(ISNUMBER(LARGE((OFFSET($A$1,ROW()-1,FirstExtraEventColumn-2*(NbExtraEvents+1),1,NbExtraEvents-1+COVID_patch),OFFSET($A$1,ROW()-1,FirstEventColumn+IndexEventsRate1-2,1,NbEventsRate1)),Rank3)), IF(LARGE((OFFSET($A$1,ROW()-1,FirstExtraEventColumn-2*(NbExtraEvents+1),1,NbExtraEvents-1+COVID_patch),OFFSET($A$1,ROW()-1,FirstEventColumn+IndexEventsRate1-2,1,NbEventsRate1)),Rank3)>0, L$12*LARGE((OFFSET($A$1,ROW()-1,FirstExtraEventColumn-2*(NbExtraEvents+1),1,NbExtraEvents-1+COVID_patch),OFFSET($A$1,ROW()-1,FirstEventColumn+IndexEventsRate1-2,1,NbEventsRate1)),Rank3),""), "") -> 572 | M15: =IF(ISNUMBER(LARGE((OFFSET($A$1,ROW()-1,FirstExtraEventColumn-2*(NbExtraEvents+1),1,NbExtraEvents-1+COVID_patch),OFFSET($A$1,ROW()-1,FirstEventColumn+IndexEventsRate1-2,1,NbEventsRate1)),Rank4)), IF(LARGE((OFFSET($A$1,ROW()-1,FirstExtraEventColumn-2*(NbExtraEvents+1),1,NbExtraEvents-1+COVID_patch),OFFSET($A$1,ROW()-1,FirstEventColumn+IndexEventsRate1-2,1,NbEventsRate1)),Rank4)>0, M$12*LARGE((OFFSET($A$1,ROW()-1,FirstExtraEventColumn-2*(NbExtraEvents+1),1,NbExtraEvents-1+COVID_patch),OFFSET($A$1,ROW()-1,FirstEventColumn+IndexEventsRate1-2,1,NbEventsRate1)),Rank4),""), "") -> 500 | N15: =IF(ISNUMBER(LARGE((OFFSET($A$1,ROW()-1,FirstExtraEventColumn-2*(NbExtraEvents+1),1,NbExtraEvents-1+COVID_patch),OFFSET($A$1,ROW()-1,FirstEventColumn+IndexEventsRate1-2,1,NbEventsRate1)),Rank5)), IF(LARGE((OFFSET($A$1,ROW()-1,FirstExtraEventColumn-2*(NbExtraEvents+1),1,NbExtraEvents-1+COVID_patch),OFFSET($A$1,ROW()-1,FirstEventColumn+IndexEventsRate1-2,1,NbEventsRate1)),Rank5)>0, N$12*LARGE((OFFSET($A$1,ROW()-1,FirstExtraEventColumn-2*(NbExtraEvents+1),1,NbExtraEvents-1+COVID_patch),OFFSET($A$1,ROW()-1,FirstEventColumn+IndexEventsRate1-2,1,NbEventsRate1)),Rank5),""), "") -> 360 | O15: =IF($AK15<>0,$AK$12*$AK15,"") ->  | P15: =IF(ISNUMBER(LARGE((OFFSET($A$1,ROW()-1,FirstExtraEventColumn-(NbExtraEvents+1),1,NbExtraEvents-1),OFFSET($A$1,ROW()-1,FirstEventColumn+IndexEventsRate2-2,1,NbEventsRate2)),Rank1)), IF(LARGE((OFFSET($A$1,ROW()-1,FirstExtraEventColumn-(NbExtraEvents+1),1,NbExtraEvents-1),OFFSET($A$1,ROW()-1,FirstEventColumn+IndexEventsRate2-2,1,NbEventsRate2)),Rank1)>0, P$12*LARGE((OFFSET($A$1,ROW()-1,FirstExtraEventColumn-(NbExtraEvents+1),1,NbExtraEvents-1),OFFSET($A$1,ROW()-1,FirstEventColumn+IndexEventsRate2-2,1,NbEventsRate2)),Rank1),""), "") -> 350 | Q15: =IF(ISNUMBER(LARGE((OFFSET($A$1,ROW()-1,FirstExtraEventColumn-(NbExtraEvents+1),1,NbExtraEvents-1),OFFSET($A$1,ROW()-1,FirstEventColumn+IndexEventsRate2-2,1,NbEventsRate2)),Rank2)), IF(LARGE((OFFSET($A$1,ROW()-1,FirstExtraEventColumn-(NbExtraEvents+1),1,NbExtraEvents-1),OFFSET($A$1,ROW()-1,FirstEventColumn+IndexEventsRate2-2,1,NbEventsRate2)),Rank2)>0, Q$12*LARGE((OFFSET($A$1,ROW()-1,FirstExtraEventColumn-(NbExtraEvents+1),1,NbExtraEvents-1),OFFSET($A$1,ROW()-1,FirstEventColumn+IndexEventsRate2-2,1,NbEventsRate2)),Rank2),""), "") ->  | R15: =IF(ISNUMBER(LARGE((OFFSET($A$1,ROW()-1,FirstExtraEventColumn-(NbExtraEvents+1),1,NbExtraEvents-1),OFFSET($A$1,ROW()-1,FirstEventColumn+IndexEventsRate2-2,1,NbEventsRate2)),Rank3)), IF(LARGE((OFFSET($A$1,ROW()-1,FirstExtraEventColumn-(NbExtraEvents+1),1,NbExtraEvents-1),OFFSET($A$1,ROW()-1,FirstEventColumn+IndexEventsRate2-2,1,NbEventsRate2)),Rank3)>0, R$12*LARGE((OFFSET($A$1,ROW()-1,FirstExtraEventColumn-(NbExtraEvents+1),1,NbExtraEvents-1),OFFSET($A$1,ROW()-1,FirstEventColumn+IndexEventsRate2-2,1,NbEventsRate2)),Rank3),""), "") ->  | S15: =IF(ISNUMBER(LARGE((OFFSET($A$1,ROW()-1,FirstExtraEventColumn-(NbExtraEvents+1),1,NbExtraEvents-1),OFFSET($A$1,ROW()-1,FirstEventColumn+IndexEventsRate2-2,1,NbEventsRate2)),Rank4)), IF(LARGE((OFFSET($A$1,ROW()-1,FirstExtraEventColumn-(NbExtraEvents+1),1,NbExtraEvents-1),OFFSET($A$1,ROW()-1,FirstEventColumn+IndexEventsRate2-2,1,NbEventsRate2)),Rank4)>0, S$12*LARGE((OFFSET($A$1,ROW()-1,FirstExtraEventColumn-(NbExtraEvents+1),1,NbExtraEvents-1),OFFSET($A$1,ROW()-1,FirstEventColumn+IndexEventsRate2-2,1,NbEventsRate2)),Rank4),""), "") ->  | T15: =IF(ISNUMBER(LARGE((OFFSET($A$1,ROW()-1,FirstExtraEventColumn-(NbExtraEvents+1),1,NbExtraEvents-1),OFFSET($A$1,ROW()-1,FirstEventColumn+IndexEventsRate2-2,1,NbEventsRate2)),Rank5)), IF(LARGE((OFFSET($A$1,ROW()-1,FirstExtraEventColumn-(NbExtraEvents+1),1,NbExtraEvents-1),OFFSET($A$1,ROW()-1,FirstEventColumn+IndexEventsRate2-2,1,NbEventsRate2)),Rank5)>0, T$12*LARGE((OFFSET($A$1,ROW()-1,FirstExtraEventColumn-(NbExtraEvents+1),1,NbExtraEvents-1),OFFSET($A$1,ROW()-1,FirstEventColumn+IndexEventsRate2-2,1,NbEventsRate2)),Rank5),""), "") ->  | U15: =IF($AN15<>0,$AN$12*$AN15,"") -> 234 | V15: =RateYear1*SUMIFS(OFFSET($A$1,ROW()-1,FirstExtraEventColumn-1,1,IndexExtraEventEnd+IndexEventEnd-2),OFFSET($A$1,RateLine-1,FirstExtraEventColumn-1,1,IndexExtraEventEnd+IndexEventEnd-2),RateYear1,OFFSET($A$1,RateLine-3,FirstExtraEventColumn-1,1,IndexExtraEventEnd+IndexEventEnd-2),"WCS") +RateYear2*SUMIFS(OFFSET($A$1,ROW()-1,FirstExtraEventColumn-1,1,IndexExtraEventEnd+IndexEventEnd-2),OFFSET($A$1,RateLine-1,FirstExtraEventColumn-1,1,IndexExtraEventEnd+IndexEventEnd-2),RateYear2,OFFSET($A$1,RateLine-3,FirstExtraEventColumn-1,1,IndexExtraEventEnd+IndexEventEnd-2),"WCS") -> 1000 | W15: =RateYear1* (SUMIFS(OFFSET($A$1,ROW()-1,FirstExtraEventColumn-1,1,IndexExtraEventEnd+IndexEventEnd-2),OFFSET($A$1,RateLine-1,FirstExtraEventColumn-1,1,IndexExtraEventEnd+IndexEventEnd-2),RateYear1,OFFSET($A$1,RateLine-3,FirstExtraEventColumn-1,1,IndexExtraEventEnd+IndexEventEnd-2),"GP") +SUMIFS(OFFSET($A$1,ROW()-1,FirstExtraEventColumn-1,1,IndexExtraEventEnd+IndexEventEnd-2),OFFSET($A$1,RateLine-1,FirstExtraEventColumn-1,1,IndexExtraEventEnd+IndexEventEnd-2),RateYear1,OFFSET($A$1,RateLine-3,FirstExtraEventColumn-1,1,IndexExtraEventEnd+IndexEventEnd-2),"GS") +SUMIFS(OFFSET($A$1,ROW()-1,FirstExtraEventColumn-1,1,IndexExtraEventEnd+IndexEventEnd-2),OFFSET($A$1,RateLine-1,FirstExtraEventColumn-1,1,IndexExtraEventEnd+IndexEventEnd-2),RateYear1,OFFSET($A$1,RateLine-3,FirstExtraEventColumn-1,1,IndexExtraEventEnd+IndexEventEnd-2),"Masters")) +RateYear2* (SUMIFS(OFFSET($A$1,ROW()-1,FirstExtraEventColumn-1,1,IndexExtraEventEnd+IndexEventEnd-2),OFFSET($A$1,RateLine-1,FirstExtraEventColumn-1,1,IndexExtraEventEnd+IndexEventEnd-2),RateYear2,OFFSET($A$1,RateLine-3,FirstExtraEventColumn-1,1,IndexExtraEventEnd+IndexEventEnd-2),"GP") +SUMIFS(OFFSET($A$1,ROW()-1,FirstExtraEventColumn-1,1,IndexExtraEventEnd+IndexEventEnd-2),OFFSET($A$1,RateLine-1,FirstExtraEventColumn-1,1,IndexExtraEventEnd+IndexEventEnd-2),RateYear2,OFFSET($A$1,RateLine-3,FirstExtraEventColumn-1,1,IndexExtraEventEnd+IndexEventEnd-2),"GS") +SUMIFS(OFFSET($A$1,ROW()-1,FirstExtraEventColumn-1,1,IndexExtraEventEnd+IndexEventEnd-2),OFFSET($A$1,RateLine-1,FirstExtraEventColumn-1,1,IndexExtraEventEnd+IndexEventEnd-2),RateYear2,OFFSET($A$1,RateLine-3,FirstExtraEventColumn-1,1,IndexExtraEventEnd+IndexEventEnd-2),"Masters")) -> 2444 | X15: =IF(ISNUMBER(LARGE($J15:$U15,Rank1)),LARGE($J15:$U15,Rank1),"") -> 1000 | Y15: =IF(ISNUMBER(LARGE($J15:$U15,Rank2)),LARGE($J15:$U15,Rank2),"") -> 1000 | Z15: =IF(ISNUMBER(LARGE($J15:$U15,Rank3)),LARGE($J15:$U15,Rank3),"") -> 572 | AA15: =IF(ISNUMBER(LARGE($J15:$U15,Rank4)),LARGE($J15:$U15,Rank4),"") -> 500 | AB15: =IF(ISNUMBER(LARGE($J15:$U15,Rank5)),LARGE($J15:$U15,Rank5),"") -> 360 | AC15: =IF(ISNUMBER(LARGE($J15:$U15,Rank6)),LARGE($J15:$U15,Rank6),"") -> 350 | AD15: =IF(ISNUMBER(LARGE($J15:$U15,Rank7)),LARGE($J15:$U15,Rank7),"") -> 234 | AE15: =IF(ISNUMBER(LARGE($J15:$U15,Rank8)),LARGE($J15:$U15,Rank8),"") ->  | AF15: =IF(ISNUMBER(LARGE($J15:$U15,Rank9)),LARGE($J15:$U15,Rank9),"") ->  | AG15: =IF(ISNUMBER(LARGE($J15:$U15,Rank10)),LARGE($J15:$U15,Rank10),"") ->  | AH15: =IF(ISNUMBER(LARGE($J15:$U15,Rank11)),LARGE($J15:$U15,Rank11),"") ->  | AI15: =IF(ISNUMBER(LARGE($J15:$U15,Rank12)),LARGE($J15:$U15,Rank12),"") ->  | AJ15: =RateYear1*SUM(AK15:AM15)+RateYear2*SUM(AN15:AP15)+ IF(NbEventsRate1<>0,RateYear1*SUM(OFFSET($A$1,ROW()-1,FirstEventColumn+IndexEventsRate1-2,1,NbEventsRate1)),0)+ IF(NbEventsRate2<>0,RateYear2*SUM(OFFSET($A$1,ROW()-1,FirstEventColumn+IndexEventsRate2-2,1,NbEventsRate2)),0) -> 4016 | AK15: =IF(ISNUMBER(LARGE(IF(OFFSET($A$1,FirstEntryLine-3,FirstExtraEventColumn-1,1,FirstEventColumn-FirstExtraEventColumn)=AK$12,OFFSET($A$1,ROW()-1,FirstExtraEventColumn-1,1,FirstEventColumn-FirstExtraEventColumn)),Rank1)), LARGE(IF(OFFSET($A$1,FirstEntryLine-3,FirstExtraEventColumn-1,1,FirstEventColumn-FirstExtraEventColumn)=AK$12,OFFSET($A$1,ROW()-1,FirstExtraEventColumn-1,1,FirstEventColumn-FirstExtraEventColumn)),Rank1), "") -> 0 | AL15: =IF(ISNUMBER(LARGE(IF(OFFSET($A$1,FirstEntryLine-3,FirstExtraEventColumn-1,1,FirstEventColumn-FirstExtraEventColumn)=AL$12,OFFSET($A$1,ROW()-1,FirstExtraEventColumn-1,1,FirstEventColumn-FirstExtraEventColumn)),Rank2)), LARGE(IF(OFFSET($A$1,FirstEntryLine-3,FirstExtraEventColumn-1,1,FirstEventColumn-FirstExtraEventColumn)=AL$12,OFFSET($A$1,ROW()-1,FirstExtraEventColumn-1,1,FirstEventColumn-FirstExtraEventColumn)),Rank2), "") -> 0 | AN15: =IF(AT15>MAX(AS15,AU15),AT15,MAX(AS15,AU15)) -> 468 | AO15: =IF(AT15>MAX(AS15,AU15),MAX(AS15,AU15),AT15) -> 0 | AT15: 468 | AV15: 900 | AW15: 350 | BJ15: 360 | BQ15: 1000 | BS15: 500 | CB15: 572 | CC15: 1000 | CM15: 700 | CV15: 120 | CX15: 500 | DF15: 260 | DM15: 720 | DU15: 350 | DV15: 500 | EE15: 500 | EL15: 500 | FC15: 84 | FH15: 260 | FN15: 10 | FU15: 700 | GF15: 350
B16: =IF(G16="","",IF(ROW()=FirstEntryLine,1,IF(AND(I16=OFFSET(I16,-1,0),V16=OFFSET(V16,-1,0),W16=OFFSET(W16,-1,0),X16=OFFSET(X16,-1,0),Y16=OFFSET(Y16,-1,0),Z16=OFFSET(Z16,-1,0),AA16=OFFSET(AA16,-1,0),AB16=OFFSET(AB16,-1,0),AC16=OFFSET(AC16,-1,0),AD16=OFFSET(AD16,-1,0),AE16=OFFSET(AE16,-1,0),AF16=OFFSET(AF16,-1,0),AG16=OFFSET(AG16,-1,0),AH16=OFFSET(AH16,-1,0),AI16=OFFSET(AI16,-1,0)),OFFSET(B16,-1,0),ROW()-FirstEntryLine+1))) -> 3 | C16: KOR | D16: =IF(C16="", "", VLOOKUP(C16, ContinentShorts, 2, FALSE)) -> JUA | E16: 8172bc84 | G16: AN | H16: Baul | I16: =SUM(J16:U16) -> 3795 | J16: =IF(ISNUMBER(LARGE((OFFSET($A$1,ROW()-1,FirstExtraEventColumn-2*(NbExtraEvents+1),1,NbExtraEvents-1+COVID_patch),OFFSET($A$1,ROW()-1,FirstEventColumn+IndexEventsRate1-2,1,NbEventsRate1)),Rank1)), IF(LARGE((OFFSET($A$1,ROW()-1,FirstExtraEventColumn-2*(NbExtraEvents+1),1,NbExtraEvents-1+COVID_patch),OFFSET($A$1,ROW()-1,FirstEventColumn+IndexEventsRate1-2,1,NbEventsRate1)),Rank1)>0, J$12*LARGE((OFFSET($A$1,ROW()-1,FirstExtraEventColumn-2*(NbExtraEvents+1),1,NbExtraEvents-1+COVID_patch),OFFSET($A$1,ROW()-1,FirstEventColumn+IndexEventsRate1-2,1,NbEventsRate1)),Rank1),""), "") -> 1100 | K16: =IF(ISNUMBER(LARGE((OFFSET($A$1,ROW()-1,FirstExtraEventColumn-2*(NbExtraEvents+1),1,NbExtraEvents-1+COVID_patch),OFFSET($A$1,ROW()-1,FirstEventColumn+IndexEventsRate1-2,1,NbEventsRate1)),Rank2)), IF(LARGE((OFFSET($A$1,ROW()-1,FirstExtraEventColumn-2*(NbExtraEvents+1),1,NbExtraEvents-1+COVID_patch),OFFSET($A$1,ROW()-1,FirstEventColumn+IndexEventsRate1-2,1,NbEventsRate1)),Rank2)>0, K$12*LARGE((OFFSET($A$1,ROW()-1,FirstExtraEventColumn-2*(NbExtraEvents+1),1,NbExtraEvents-1+COVID_patch),OFFSET($A$1,ROW()-1,FirstEventColumn+IndexEventsRate1-2,1,NbEventsRate1)),Rank2),""), "") -> 700 | L16: =IF(ISNUMBER(LARGE((OFFSET($A$1,ROW()-1,FirstExtraEventColumn-2*(NbExtraEvents+1),1,NbExtraEvents-1+COVID_patch),OFFSET($A$1,ROW()-1,FirstEventColumn+IndexEventsRate1-2,1,NbEventsRate1)),Rank3)), IF(LARGE((OFFSET($A$1,ROW()-1,FirstExtraEventColumn-2*(NbExtraEvents+1),1,NbExtraEvents-1+COVID_patch),OFFSET($A$1,ROW()-1,FirstEventColumn+IndexEventsRate1-2,1,NbEventsRate1)),Rank3)>0, L$12*LARGE((OFFSET($A$1,ROW()-1,FirstExtraEventColumn-2*(NbExtraEvents+1),1,NbExtraEvents-1+COVID_patch),OFFSET($A$1,ROW()-1,FirstEventColumn+IndexEventsRate1-2,1,NbEventsRate1)),Rank3),""), "") -> 350 | M16: =IF(ISNUMBER(LARGE((OFFSET($A$1,ROW()-1,FirstExtraEventColumn-2*(NbExtraEvents+1),1,NbExtraEvents-1+COVID_patch),OFFSET($A$1,ROW()-1,FirstEventColumn+IndexEventsRate1-2,1,NbEventsRate1)),Rank4)), IF(LARGE((OFFSET($A$1,ROW()-1,FirstExtraEventColumn-2*(NbExtraEvents+1),1,NbExtraEvents-1+COVID_patch),OFFSET($A$1,ROW()-1,FirstEventColumn+IndexEventsRate1-2,1,NbEventsRate1)),Rank4)>0, M$12*LARGE((OFFSET($A$1,ROW()-1,FirstExtraEventColumn-2*(NbExtraEvents+1),1,NbExtraEvents-1+COVID_patch),OFFSET($A$1,ROW()-1,FirstEventColumn+IndexEventsRate1-2,1,NbEventsRate1)),Rank4),""), "") ->  | N16: =IF(ISNUMBER(LARGE((OFFSET($A$1,ROW()-1,FirstExtraEventColumn-2*(NbExtraEvents+1),1,NbExtraEvents-1+COVID_patch),OFFSET($A$1,ROW()-1,FirstEventColumn+IndexEventsRate1-2,1,NbEventsRate1)),Rank5)), IF(LARGE((OFFSET($A$1,ROW()-1,FirstExtraEventColumn-2*(NbExtraEvents+1),1,NbExtraEvents-1+COVID_patch),OFFSET($A$1,ROW()-1,FirstEventColumn+IndexEventsRate1-2,1,NbEventsRate1)),Rank5)>0, N$12*LARGE((OFFSET($A$1,ROW()-1,FirstExtraEventColumn-2*(NbExtraEvents+1),1,NbExtraEvents-1+COVID_patch),OFFSET($A$1,ROW()-1,FirstEventColumn+IndexEventsRate1-2,1,NbEventsRate1)),Rank5),""), "") ->  | O16: =IF($AK16<>0,$AK$12*$AK16,"") ->  | P16: =IF(ISNUMBER(LARGE((OFFSET($A$1,ROW()-1,FirstExtraEventColumn-(NbExtraEvents+1),1,NbExtraEvents-1),OFFSET($A$1,ROW()-1,FirstEventColumn+IndexEventsRate2-2,1,NbEventsRate2)),Rank1)), IF(LARGE((OFFSET($A$1,ROW()-1,FirstExtraEventColumn-(NbExtraEvents+1),1,NbExtraEvents-1),OFFSET($A$1,ROW()-1,FirstEventColumn+IndexEventsRate2-2,1,NbEventsRate2)),Rank1)>0, P$12*LARGE((OFFSET($A$1,ROW()-1,FirstExtraEventColumn-(NbExtraEvents+1),1,NbExtraEvents-1),OFFSET($A$1,ROW()-1,FirstEventColumn+IndexEventsRate2-2,1,NbEventsRate2)),Rank1),""), "") -> 500 | Q16: =IF(ISNUMBER(LARGE((OFFSET($A$1,ROW()-1,FirstExtraEventColumn-(NbExtraEvents+1),1,NbExtraEvents-1),OFFSET($A$1,ROW()-1,FirstEventColumn+IndexEventsRate2-2,1,NbEventsRate2)),Rank2)), IF(LARGE((OFFSET($A$1,ROW()-1,FirstExtraEventColumn-(NbExtraEvents+1),1,NbExtraEvents-1),OFFSET($A$1,ROW()-1,FirstEventColumn+IndexEventsRate2-2,1,NbEventsRate2)),Rank2)>0, Q$12*LARGE((OFFSET($A$1,ROW()-1,FirstExtraEventColumn-(NbExtraEvents+1),1,NbExtraEvents-1),OFFSET($A$1,ROW()-1,FirstEventColumn+IndexEventsRate2-2,1,NbEventsRate2)),Rank2),""), "") -> 245 | R16: =IF(ISNUMBER(LARGE((OFFSET($A$1,ROW()-1,FirstExtraEventColumn-(NbExtraEvents+1),1,NbExtraEvents-1),OFFSET($A$1,ROW()-1,FirstEventColumn+IndexEventsRate2-2,1,NbEventsRate2)),Rank3)), IF(LARGE((OFFSET($A$1,ROW()-1,FirstExtraEventColumn-(NbExtraEvents+1),1,NbExtraEvents-1),OFFSET($A$1,ROW()-1,FirstEventColumn+IndexEventsRate2-2,1,NbEventsRate2)),Rank3)>0, R$12*LARGE((OFFSET($A$1,ROW()-1,FirstExtraEventColumn-(NbExtraEvents+1),1,NbExtraEvents-1),OFFSET($A$1,ROW()-1,FirstEventColumn+IndexEventsRate2-2,1,NbEventsRate2)),Rank3),""), "") ->  | S16: =IF(ISNUMBER(LARGE((OFFSET($A$1,ROW()-1,FirstExtraEventColumn-(NbExtraEvents+1),1,NbExtraEvents-1),OFFSET($A$1,ROW()-1,FirstEventColumn+IndexEventsRate2-2,1,NbEventsRate2)),Rank4)), IF(LARGE((OFFSET($A$1,ROW()-1,FirstExtraEventColumn-(NbExtraEvents+1),1,NbExtraEvents-1),OFFSET($A$1,ROW()-1,FirstEventColumn+IndexEventsRate2-2,1,NbEventsRate2)),Rank4)>0, S$12*LARGE((OFFSET($A$1,ROW()-1,FirstExtraEventColumn-(NbExtraEvents+1),1,NbExtraEvents-1),OFFSET($A$1,ROW()-1,FirstEventColumn+IndexEventsRate2-2,1,NbEventsRate2)),Rank4),""), "") ->  | T16: =IF(ISNUMBER(LARGE((OFFSET($A$1,ROW()-1,FirstExtraEventColumn-(NbExtraEvents+1),1,NbExtraEvents-1),OFFSET($A$1,ROW()-1,FirstEventColumn+IndexEventsRate2-2,1,NbEventsRate2)),Rank5)), IF(LARGE((OFFSET($A$1,ROW()-1,FirstExtraEventColumn-(NbExtraEvents+1),1,NbExtraEvents-1),OFFSET($A$1,ROW()-1,FirstEventColumn+IndexEventsRate2-2,1,NbEventsRate2)),Rank5)>0, T$12*LARGE((OFFSET($A$1,ROW()-1,FirstExtraEventColumn-(NbExtraEvents+1),1,NbExtraEvents-1),OFFSET($A$1,ROW()-1,FirstEventColumn+IndexEventsRate2-2,1,NbEventsRate2)),Rank5),""), "") ->  | U16: =IF($AN16<>0,$AN$12*$AN16,"") -> 900 | V16: =RateYear1*SUMIFS(OFFSET($A$1,ROW()-1,FirstExtraEventColumn-1,1,IndexExtraEventEnd+IndexEventEnd-2),OFFSET($A$1,RateLine-1,FirstExtraEventColumn-1,1,IndexExtraEventEnd+IndexEventEnd-2),RateYear1,OFFSET($A$1,RateLine-3,FirstExtraEventColumn-1,1,IndexExtraEventEnd+IndexEventEnd-2),"WCS") +RateYear2*SUMIFS(OFFSET($A$1,ROW()-1,FirstExtraEventColumn-1,1,IndexExtraEventEnd+IndexEventEnd-2),OFFSET($A$1,RateLine-1,FirstExtraEventColumn-1,1,IndexExtraEventEnd+IndexEventEnd-2),RateYear2,OFFSET($A$1,RateLine-3,FirstExtraEventColumn-1,1,IndexExtraEventEnd+IndexEventEnd-2),"WCS") -> 0 | W16: =RateYear1* (SUMIFS(OFFSET($A$1,ROW()-1,FirstExtraEventColumn-1,1,IndexExtraEventEnd+IndexEventEnd-2),OFFSET($A$1,RateLine-1,FirstExtraEventColumn-1,1,IndexExtraEventEnd+IndexEventEnd-2),RateYear1,OFFSET($A$1,RateLine-3,FirstExtraEventColumn-1,1,IndexExtraEventEnd+IndexEventEnd-2),"GP") +SUMIFS(OFFSET($A$1,ROW()-1,FirstExtraEventColumn-1,1,IndexExtraEventEnd+IndexEventEnd-2),OFFSET($A$1,RateLine-1,FirstExtraEventColumn-1,1,IndexExtraEventEnd+IndexEventEnd-2),RateYear1,OFFSET($A$1,RateLine-3,FirstExtraEventColumn-1,1,IndexExtraEventEnd+IndexEventEnd-2),"GS") +SUMIFS(OFFSET($A$1,ROW()-1,FirstExtraEventColumn-1,1,IndexExtraEventEnd+IndexEventEnd-2),OFFSET($A$1,RateLine-1,FirstExtraEventColumn-1,1,IndexExtraEventEnd+IndexEventEnd-2),RateYear1,OFFSET($A$1,RateLine-3,FirstExtraEventColumn-1,1,IndexExtraEventEnd+IndexEventEnd-2),"Masters")) +RateYear2* (SUMIFS(OFFSET($A$1,ROW()-1,FirstExtraEventColumn-1,1,IndexExtraEventEnd+IndexEventEnd-2),OFFSET($A$1,RateLine-1,FirstExtraEventColumn-1,1,IndexExtraEventEnd+IndexEventEnd-2),RateYear2,OFFSET($A$1,RateLine-3,FirstExtraEventColumn-1,1,IndexExtraEventEnd+IndexEventEnd-2),"GP") +SUMIFS(OFFSET($A$1,ROW()-1,FirstExtraEventColumn-1,1,IndexExtraEventEnd+IndexEventEnd-2),OFFSET($A$1,RateLine-1,FirstExtraEventColumn-1,1,IndexExtraEventEnd+IndexEventEnd-2),RateYear2,OFFSET($A$1,RateLine-3,FirstExtraEventColumn-1,1,IndexExtraEventEnd+IndexEventEnd-2),"GS") +SUMIFS(OFFSET($A$1,ROW()-1,FirstExtraEventColumn-1,1,IndexExtraEventEnd+IndexEventEnd-2),OFFSET($A$1,RateLine-1,FirstExtraEventColumn-1,1,IndexExtraEventEnd+IndexEventEnd-2),RateYear2,OFFSET($A$1,RateLine-3,FirstExtraEventColumn-1,1,IndexExtraEventEnd+IndexEventEnd-2),"Masters")) -> 2450 | X16: =IF(ISNUMBER(LARGE($J16:$U16,Rank1)),LARGE($J16:$U16,Rank1),"") -> 1100 | Y16: =IF(ISNUMBER(LARGE($J16:$U16,Rank2)),LARGE($J16:$U16,Rank2),"") -> 900 | Z16: =IF(ISNUMBER(LARGE($J16:$U16,Rank3)),LARGE($J16:$U16,Rank3),"") -> 700 | AA16: =IF(ISNUMBER(LARGE($J16:$U16,Rank4)),LARGE($J16:$U16,Rank4),"") -> 500 | AB16: =IF(ISNUMBER(LARGE($J16:$U16,Rank5)),LARGE($J16:$U16,Rank5),"") -> 350 | AC16: =IF(ISNUMBER(LARGE($J16:$U16,Rank6)),LARGE($J16:$U16,Rank6),"") -> 245 | AD16: =IF(ISNUMBER(LARGE($J16:$U16,Rank7)),LARGE($J16:$U16,Rank7),"") ->  | AE16: =IF(ISNUMBER(LARGE($J16:$U16,Rank8)),LARGE($J16:$U16,Rank8),"") ->  | AF16: =IF(ISNUMBER(LARGE($J16:$U16,Rank9)),LARGE($J16:$U16,Rank9),"") ->  | AG16: =IF(ISNUMBER(LARGE($J16:$U16,Rank10)),LARGE($J16:$U16,Rank10),"") ->  | AH16: =IF(ISNUMBER(LARGE($J16:$U16,Rank11)),LARGE($J16:$U16,Rank11),"") ->  | AI16: =IF(ISNUMBER(LARGE($J16:$U16,Rank12)),LARGE($J16:$U16,Rank12),"") ->  | AJ16: =RateYear1*SUM(AK16:AM16)+RateYear2*SUM(AN16:AP16)+ IF(NbEventsRate1<>0,RateYear1*SUM(OFFSET($A$1,ROW()-1,FirstEventColumn+IndexEventsRate1-2,1,NbEventsRate1)),0)+ IF(NbEventsRate2<>0,RateYear2*SUM(OFFSET($A$1,ROW()-1,FirstEventColumn+IndexEventsRate2-2,1,NbEventsRate2)),0) -> 3795 | AK16: =IF(ISNUMBER(LARGE(IF(OFFSET($A$1,FirstEntryLine-3,FirstExtraEventColumn-1,1,FirstEventColumn-FirstExtraEventColumn)=AK$12,OFFSET($A$1,ROW()-1,FirstExtraEventColumn-1,1,FirstEventColumn-FirstExtraEventColumn)),Rank1)), LARGE(IF(OFFSET($A$1,FirstEntryLine-3,FirstExtraEventColumn-1,1,FirstEventColumn-FirstExtraEventColumn)=AK$12,OFFSET($A$1,ROW()-1,FirstExtraEventColumn-1,1,FirstEventColumn-FirstExtraEventColumn)),Rank1), "") -> 0 | AL16: =IF(ISNUMBER(LARGE(IF(OFFSET($A$1,FirstEntryLine-3,FirstExtraEventColumn-1,1,FirstEventColumn-FirstExtraEventColumn)=AL$12,OFFSET($A$1,ROW()-1,FirstExtraEventColumn-1,1,FirstEventColumn-FirstExtraEventColumn)),Rank2)), LARGE(IF(OFFSET($A$1,FirstEntryLine-3,FirstExtraEventColumn-1,1,FirstEventColumn-FirstExtraEventColumn)=AL$12,OFFSET($A$1,ROW()-1,FirstExtraEventColumn-1,1,FirstEventColumn-FirstExtraEventColumn)),Rank2), "") -> 0 | AN16: =IF(AT16>MAX(AS16,AU16),AT16,MAX(AS16,AU16)) -> 1800 | AO16: =IF(AT16>MAX(AS16,AU16),MAX(AS16,AU16),AT16) -> 490 | AS16: 490 | AT16: 1800 | AV16: 216 | AY16: 700 | BA16: 700 | BB16: 700 | BE16: 240 | BQ16: 700 | BR16: 350 | CB16: 1100 | CM16: 1000 | CX16: 1000 | CZ16: 700 | DB16: 10 | DF16: 500 | DM16: 20 | DO16: 6 | EV16: 1000 | FC16: 350 | FN16: 1000 | FR16: 500 | GC16: 520 | GS16: 100 | GW16: 80 | HG16: 600 | HV16: 300 | HX16: 200
B17: =IF(G17="","",IF(ROW()=FirstEntryLine,1,IF(AND(I17=OFFSET(I17,-1,0),V17=OFFSET(V17,-1,0),W17=OFFSET(W17,-1,0),X17=OFFSET(X17,-1,0),Y17=OFFSET(Y17,-1,0),Z17=OFFSET(Z17,-1,0),AA17=OFFSET(AA17,-1,0),AB17=OFFSET(AB17,-1,0),AC17=OFFSET(AC17,-1,0),AD17=OFFSET(AD17,-1,0),AE17=OFFSET(AE17,-1,0),AF17=OFFSET(AF17,-1,0),AG17=OFFSET(AG17,-1,0),AH17=OFFSET(AH17,-1,0),AI17=OFFSET(AI17,-1,0)),OFFSET(B17,-1,0),ROW()-FirstEntryLine+1))) -> 4 | C17: GEO | D17: =IF(C17="", "", VLOOKUP(C17, ContinentShorts, 2, FALSE)) -> EJU | E17: 9b2f2642 | G17: MARGVELASHVILI | H17: Vazha | I17: =SUM(J17:U17) -> 3227 | J17: =IF(ISNUMBER(LARGE((OFFSET($A$1,ROW()-1,FirstExtraEventColumn-2*(NbExtraEvents+1),1,NbExtraEvents-1+COVID_patch),OFFSET($A$1,ROW()-1,FirstEventColumn+IndexEventsRate1-2,1,NbEventsRate1)),Rank1)), IF(LARGE((OFFSET($A$1,ROW()-1,FirstExtraEventColumn-2*(NbExtraEvents+1),1,NbExtraEvents-1+COVID_patch),OFFSET($A$1,ROW()-1,FirstEventColumn+IndexEventsRate1-2,1,NbEventsRate1)),Rank1)>0, J$12*LARGE((OFFSET($A$1,ROW()-1,FirstExtraEventColumn-2*(NbExtraEvents+1),1,NbExtraEvents-1+COVID_patch),OFFSET($A$1,ROW()-1,FirstEventColumn+IndexEventsRate1-2,1,NbEventsRate1)),Rank1),""), "") -> 1540 | K17: =IF(ISNUMBER(LARGE((OFFSET($A$1,ROW()-1,FirstExtraEventColumn-2*(NbExtraEvents+1),1,NbExtraEvents-1+COVID_patch),OFFSET($A$1,ROW()-1,FirstEventColumn+IndexEventsRate1-2,1,NbEventsRate1)),Rank2)), IF(LARGE((OFFSET($A$1,ROW()-1,FirstExtraEventColumn-2*(NbExtraEvents+1),1,NbExtraEvents-1+COVID_patch),OFFSET($A$1,ROW()-1,FirstEventColumn+IndexEventsRate1-2,1,NbEventsRate1)),Rank2)>0, K$12*LARGE((OFFSET($A$1,ROW()-1,FirstExtraEventColumn-2*(NbExtraEvents+1),1,NbExtraEvents-1+COVID_patch),OFFSET($A$1,ROW()-1,FirstEventColumn+IndexEventsRate1-2,1,NbEventsRate1)),Rank2),""), "") -> 500 | L17: =IF(ISNUMBER(LARGE((OFFSET($A$1,ROW()-1,FirstExtraEventColumn-2*(NbExtraEvents+1),1,NbExtraEvents-1+COVID_patch),OFFSET($A$1,ROW()-1,FirstEventColumn+IndexEventsRate1-2,1,NbEventsRate1)),Rank3)), IF(LARGE((OFFSET($A$1,ROW()-1,FirstExtraEventColumn-2*(NbExtraEvents+1),1,NbExtraEvents-1+COVID_patch),OFFSET($A$1,ROW()-1,FirstEventColumn+IndexEventsRate1-2,1,NbEventsRate1)),Rank3)>0, L$12*LARGE((OFFSET($A$1,ROW()-1,FirstExtraEventColumn-2*(NbExtraEvents+1),1,NbExtraEvents-1+COVID_patch),OFFSET($A$1,ROW()-1,FirstEventColumn+IndexEventsRate1-2,1,NbEventsRate1)),Rank3),""), "") -> 20 | M17: =IF(ISNUMBER(LARGE((OFFSET($A$1,ROW()-1,FirstExtraEventColumn-2*(NbExtraEvents+1),1,NbExtraEvents-1+COVID_patch),OFFSET($A$1,ROW()-1,FirstEventColumn+IndexEventsRate1-2,1,NbEventsRate1)),Rank4)), IF(LARGE((OFFSET($A$1,ROW()-1,FirstExtraEventColumn-2*(NbExtraEvents+1),1,NbExtraEvents-1+COVID_patch),OFFSET($A$1,ROW()-1,FirstEventColumn+IndexEventsRate1-2,1,NbEventsRate1)),Rank4)>0, M$12*LARGE((OFFSET($A$1,ROW()-1,FirstExtraEventColumn-2*(NbExtraEvents+1),1,NbExtraEvents-1+COVID_patch),OFFSET($A$1,ROW()-1,FirstEventColumn+IndexEventsRate1-2,1,NbEventsRate1)),Rank4),""), "") -> 10 | N17: =IF(ISNUMBER(LARGE((OFFSET($A$1,ROW()-1,FirstExtraEventColumn-2*(NbExtraEvents+1),1,NbExtraEvents-1+COVID_patch),OFFSET($A$1,ROW()-1,FirstEventColumn+IndexEventsRate1-2,1,NbEventsRate1)),Rank5)), IF(LARGE((OFFSET($A$1,ROW()-1,FirstExtraEventColumn-2*(NbExtraEvents+1),1,NbExtraEvents-1+COVID_patch),OFFSET($A$1,ROW()-1,FirstEventColumn+IndexEventsRate1-2,1,NbEventsRate1)),Rank5)>0, N$12*LARGE((OFFSET($A$1,ROW()-1,FirstExtraEventColumn-2*(NbExtraEvents+1),1,NbExtraEvents-1+COVID_patch),OFFSET($A$1,ROW()-1,FirstEventColumn+IndexEventsRate1-2,1,NbEventsRate1)),Rank5),""), "") ->  | O17: =IF($AK17<>0,$AK$12*$AK17,"") -> 112 | P17: =IF(ISNUMBER(LARGE((OFFSET($A$1,ROW()-1,FirstExtraEventColumn-(NbExtraEvents+1),1,NbExtraEvents-1),OFFSET($A$1,ROW()-1,FirstEventColumn+IndexEventsRate2-2,1,NbEventsRate2)),Rank1)), IF(LARGE((OFFSET($A$1,ROW()-1,FirstExtraEventColumn-(NbExtraEvents+1),1,NbExtraEvents-1),OFFSET($A$1,ROW()-1,FirstEventColumn+IndexEventsRate2-2,1,NbEventsRate2)),Rank1)>0, P$12*LARGE((OFFSET($A$1,ROW()-1,FirstExtraEventColumn-(NbExtraEvents+1),1,NbExtraEvents-1),OFFSET($A$1,ROW()-1,FirstEventColumn+IndexEventsRate2-2,1,NbEventsRate2)),Rank1),""), "") -> 350 | Q17: =IF(ISNUMBER(LARGE((OFFSET($A$1,ROW()-1,FirstExtraEventColumn-(NbExtraEvents+1),1,NbExtraEvents-1),OFFSET($A$1,ROW()-1,FirstEventColumn+IndexEventsRate2-2,1,NbEventsRate2)),Rank2)), IF(LARGE((OFFSET($A$1,ROW()-1,FirstExtraEventColumn-(NbExtraEvents+1),1,NbExtraEvents-1),OFFSET($A$1,ROW()-1,FirstEventColumn+IndexEventsRate2-2,1,NbEventsRate2)),Rank2)>0, Q$12*LARGE((OFFSET($A$1,ROW()-1,FirstExtraEventColumn-(NbExtraEvents+1),1,NbExtraEvents-1),OFFSET($A$1,ROW()-1,FirstEventColumn+IndexEventsRate2-2,1,NbEventsRate2)),Rank2),""), "") -> 245 | R17: =IF(ISNUMBER(LARGE((OFFSET($A$1,ROW()-1,FirstExtraEventColumn-(NbExtraEvents+1),1,NbExtraEvents-1),OFFSET($A$1,ROW()-1,FirstEventColumn+IndexEventsRate2-2,1,NbEventsRate2)),Rank3)), IF(LARGE((OFFSET($A$1,ROW()-1,FirstExtraEventColumn-(NbExtraEvents+1),1,NbExtraEvents-1),OFFSET($A$1,ROW()-1,FirstEventColumn+IndexEventsRate2-2,1,NbEventsRate2)),Rank3)>0, R$12*LARGE((OFFSET($A$1,ROW()-1,FirstExtraEventColumn-(NbExtraEvents+1),1,NbExtraEvents-1),OFFSET($A$1,ROW()-1,FirstEventColumn+IndexEventsRate2-2,1,NbEventsRate2)),Rank3),""), "") ->  | S17: =IF(ISNUMBER(LARGE((OFFSET($A$1,ROW()-1,FirstExtraEventColumn-(NbExtraEvents+1),1,NbExtraEvents-1),OFFSET($A$1,ROW()-1,FirstEventColumn+IndexEventsRate2-2,1,NbEventsRate2)),Rank4)), IF(LARGE((OFFSET($A$1,ROW()-1,FirstExtraEventColumn-(NbExtraEvents+1),1,NbExtraEvents-1),OFFSET($A$1,ROW()-1,FirstEventColumn+IndexEventsRate2-2,1,NbEventsRate2)),Rank4)>0, S$12*LARGE((OFFSET($A$1,ROW()-1,FirstExtraEventColumn-(NbExtraEvents+1),1,NbExtraEvents-1),OFFSET($A$1,ROW()-1,FirstEventColumn+IndexEventsRate2-2,1,NbEventsRate2)),Rank4),""), "") ->  | T17: =IF(ISNUMBER(LARGE((OFFSET($A$1,ROW()-1,FirstExtraEventColumn-(NbExtraEvents+1),1,NbExtraEvents-1),OFFSET($A$1,ROW()-1,FirstEventColumn+IndexEventsRate2-2,1,NbEventsRate2)),Rank5)), IF(LARGE((OFFSET($A$1,ROW()-1,FirstExtraEventColumn-(NbExtraEvents+1),1,NbExtraEvents-1),OFFSET($A$1,ROW()-1,FirstEventColumn+IndexEventsRate2-2,1,NbEventsRate2)),Rank5)>0, T$12*LARGE((OFFSET($A$1,ROW()-1,FirstExtraEventColumn-(NbExtraEvents+1),1,NbExtraEvents-1),OFFSET($A$1,ROW()-1,FirstEventColumn+IndexEventsRate2-2,1,NbEventsRate2)),Rank5),""), "") ->  | U17: =IF($AN17<>0,$AN$12*$AN17,"") -> 450 | V17: =RateYear1*SUMIFS(OFFSET($A$1,ROW()-1,FirstExtraEventColumn-1,1,IndexExtraEventEnd+IndexEventEnd-2),OFFSET($A$1,RateLine-1,FirstExtraEventColumn-1,1,IndexExtraEventEnd+IndexEventEnd-2),RateYear1,OFFSET($A$1,RateLine-3,FirstExtraEventColumn-1,1,IndexExtraEventEnd+IndexEventEnd-2),"WCS") +RateYear2*SUMIFS(OFFSET($A$1,ROW()-1,FirstExtraEventColumn-1,1,IndexExtraEventEnd+IndexEventEnd-2),OFFSET($A$1,RateLine-1,FirstExtraEventColumn-1,1,IndexExtraEventEnd+IndexEventEnd-2),RateYear2,OFFSET($A$1,RateLine-3,FirstExtraEventColumn-1,1,IndexExtraEventEnd+IndexEventEnd-2),"WCS") -> 20 | W17: =RateYear1* (SUMIFS(OFFSET($A$1,ROW()-1,FirstExtraEventColumn-1,1,IndexExtraEventEnd+IndexEventEnd-2),OFFSET($A$1,RateLine-1,FirstExtraEventColumn-1,1,IndexExtraEventEnd+IndexEventEnd-2),RateYear1,OFFSET($A$1,RateLine-3,FirstExtraEventColumn-1,1,IndexExtraEventEnd+IndexEventEnd-2),"GP") +SUMIFS(OFFSET($A$1,ROW()-1,FirstExtraEventColumn-1,1,IndexExtraEventEnd+IndexEventEnd-2),OFFSET($A$1,RateLine-1,FirstExtraEventColumn-1,1,IndexExtraEventEnd+IndexEventEnd-2),RateYear1,OFFSET($A$1,RateLine-3,FirstExtraEventColumn-1,1,IndexExtraEventEnd+IndexEventEnd-2),"GS") +SUMIFS(OFFSET($A$1,ROW()-1,FirstExtraEventColumn-1,1,IndexExtraEventEnd+IndexEventEnd-2),OFFSET($A$1,RateLine-1,FirstExtraEventColumn-1,1,IndexExtraEventEnd+IndexEventEnd-2),RateYear1,OFFSET($A$1,RateLine-3,FirstExtraEventColumn-1,1,IndexExtraEventEnd+IndexEventEnd-2),"Masters")) +RateYear2* (SUMIFS(OFFSET($A$1,ROW()-1,FirstExtraEventColumn-1,1,IndexExtraEventEnd+IndexEventEnd-2),OFFSET($A$1,RateLine-1,FirstExtraEventColumn-1,1,IndexExtraEventEnd+IndexEventEnd-2),RateYear2,OFFSET($A$1,RateLine-3,FirstExtraEventColumn-1,1,IndexExtraEventEnd+IndexEventEnd-2),"GP") +SUMIFS(OFFSET($A$1,ROW()-1,FirstExtraEventColumn-1,1,IndexExtraEventEnd+IndexEventEnd-2),OFFSET($A$1,RateLine-1,FirstExtraEventColumn-1,1,IndexExtraEventEnd+IndexEventEnd-2),RateYear2,OFFSET($A$1,RateLine-3,FirstExtraEventColumn-1,1,IndexExtraEventEnd+IndexEventEnd-2),"GS") +SUMIFS(OFFSET($A$1,ROW()-1,FirstExtraEventColumn-1,1,IndexExtraEventEnd+IndexEventEnd-2),OFFSET($A$1,RateLine-1,FirstExtraEventColumn-1,1,IndexExtraEventEnd+IndexEventEnd-2),RateYear2,OFFSET($A$1,RateLine-3,FirstExtraEventColumn-1,1,IndexExtraEventEnd+IndexEventEnd-2),"Masters")) -> 1310 | X17: =IF(ISNUMBER(LARGE($J17:$U17,Rank1)),LARGE($J17:$U17,Rank1),"") -> 1540 | Y17: =IF(ISNUMBER(LARGE($J17:$U17,Rank2)),LARGE($J17:$U17,Rank2),"") -> 500 | Z17: =IF(ISNUMBER(LARGE($J17:$U17,Rank3)),LARGE($J17:$U17,Rank3),"") -> 450 | AA17: =IF(ISNUMBER(LARGE($J17:$U17,Rank4)),LARGE($J17:$U17,Rank4),"") -> 350 | AB17: =IF(ISNUMBER(LARGE($J17:$U17,Rank5)),LARGE($J17:$U17,Rank5),"") -> 245 | AC17: =IF(ISNUMBER(LARGE($J17:$U17,Rank6)),LARGE($J17:$U17,Rank6),"") -> 112 | AD17: =IF(ISNUMBER(LARGE($J17:$U17,Rank7)),LARGE($J17:$U17,Rank7),"") -> 20 | AE17: =IF(ISNUMBER(LARGE($J17:$U17,Rank8)),LARGE($J17:$U17,Rank8),"") -> 10 | AF17: =IF(ISNUMBER(LARGE($J17:$U17,Rank9)),LARGE($J17:$U17,Rank9),"") ->  | AG17: =IF(ISNUMBER(LARGE($J17:$U17,Rank10)),LARGE($J17:$U17,Rank10),"") ->  | AH17: =IF(ISNUMBER(LARGE($J17:$U17,Rank11)),LARGE($J17:$U17,Rank11),"") ->  | AI17: =IF(ISNUMBER(LARGE($J17:$U17,Rank12)),LARGE($J17:$U17,Rank12),"") ->  | AJ17: =RateYear1*SUM(AK17:AM17)+RateYear2*SUM(AN17:AP17)+ IF(NbEventsRate1<>0,RateYear1*SUM(OFFSET($A$1,ROW()-1,FirstEventColumn+IndexEventsRate1-2,1,NbEventsRate1)),0)+ IF(NbEventsRate2<>0,RateYear2*SUM(OFFSET($A$1,ROW()-1,FirstEventColumn+IndexEventsRate2-2,1,NbEventsRate2)),0) -> 3227 | AK17: =IF(ISNUMBER(LARGE(IF(OFFSET($A$1,FirstEntryLine-3,FirstExtraEventColumn-1,1,FirstEventColumn-FirstExtraEventColumn)=AK$12,OFFSET($A$1,ROW()-1,FirstExtraEventColumn-1,1,FirstEventColumn-FirstExtraEventColumn)),Rank1)), LARGE(IF(OFFSET($A$1,FirstEntryLine-3,FirstExtraEventColumn-1,1,FirstEventColumn-FirstExtraEventColumn)=AK$12,OFFSET($A$1,ROW()-1,FirstExtraEventColumn-1,1,FirstEventColumn-FirstExtraEventColumn)),Rank1), "") -> 112 | AL17: =IF(ISNUMBER(LARGE(IF(OFFSET($A$1,FirstEntryLine-3,FirstExtraEventColumn-1,1,FirstEventColumn-FirstExtraEventColumn)=AL$12,OFFSET($A$1,ROW()-1,FirstExtraEventColumn-1,1,FirstEventColumn-FirstExtraEventColumn)),Rank2)), LARGE(IF(OFFSET($A$1,FirstEntryLine-3,FirstExtraEventColumn-1,1,FirstEventColumn-FirstExtraEventColumn)=AL$12,OFFSET($A$1,ROW()-1,FirstExtraEventColumn-1,1,FirstEventColumn-FirstExtraEventColumn)),Rank2), "") -> 0 | AN17: =IF(AT17>MAX(AS17,AU17),AT17,MAX(AS17,AU17)) -> 900 | AO17: =IF(AT17>MAX(AS17,AU17),MAX(AS17,AU17),AT17) -> 490 | AQ17: 112 | AS17: 490 | AT17: 900 | AU17: 252 | AV17: 900 | AW17: 350 | AX17: 900 | AY17: 6 | AZ17: 900 | BA17: 112 | BC17: 0 | BQ17: 500 | BV17: 10 | CB17: 1540 | CC17: 20 | CK17: 700 | CV17: 700 | DF17: 160 | DM17: 240 | EG17: 700 | EL17: 260 | EO17: 700 | ER17: 1000 | EV17: 240 | FE17: 700 | FN17: 10 | FR17: 360 | FW17: 500 | GC17: 1000 | GR17: 700 | GT17: 500 | HG17: 0 | HN17: 2 | HP17: 300 | HV17: 120 | HX17: 2 | HZ17: 120 | IA17: 40
